Workbook

Sheet Transmission Dashboard
F2: Select the Reporting Period of Choice here
F4: Year | G4: Period
F5: 2026 | G5: Q1
F56: Period | G56: =IF(OR($G$5="Q1",$G$5="Q2",$G$5="Q3",$G$5="Q4"),a!A200&"-"&$G$5,IF($G$5="Calendar Year",a!A200,"")) -> 2022-Q1 | H56: =IF(OR($G$5="Q1",$G$5="Q2",$G$5="Q3",$G$5="Q4"),a!B200&"-"&$G$5,IF($G$5="Calendar Year",a!B200,"")) -> 2023-Q1 | I56: =IF(OR($G$5="Q1",$G$5="Q2",$G$5="Q3",$G$5="Q4"),a!C200&"-"&$G$5,IF($G$5="Calendar Year",a!C200,"")) -> 2024-Q1 | J56: =IF(OR($G$5="Q1",$G$5="Q2",$G$5="Q3",$G$5="Q4"),a!D200&"-"&$G$5,IF($G$5="Calendar Year",a!D200,"")) -> 2025-Q1 | K56: =IF(OR($G$5="Q1",$G$5="Q2",$G$5="Q3",$G$5="Q4"),a!E200&"-"&$G$5,IF($G$5="Calendar Year",a!E200,"")) -> 2026-Q1
F57: Energy Purchased (GWh) | G57: =SUM(G102:G156) -> 1356.731411 | H57: =SUM(H102:H156) -> 1443.508928 | I57: =SUM(I102:I156) -> 1599.55092 | J57: =SUM(J102:J156) -> 1782.777946 | K57: =SUM(K102:K156) -> 2167.222
F58: Energy Sold (GWh) | G58: =SUM(G69:G82) -> 1287.910157 | H58: =SUM(H69:H82) -> 1366.597417 | I58: =SUM(I69:I82) -> 1517.1046 | J58: =SUM(J69:J82) -> 1706.439491 | K58: =SUM(K69:K82) -> 2028.183348
F59: Transmission Losses (GWh) | G59: =G57-G58 -> 68.821254 | H59: =H57-H58 -> 76.91151121 | I59: =I57-I58 -> 82.44632021 | J59: =J57-J58 -> 76.338455 | K59: =K57-K58 -> 139.0386519
F60: Transmission Losses (%) | G60: =IFERROR(G59/G57,"") -> 0.05072577626 | H60: =IFERROR(H59/H57,"") -> 0.05328093905 | I60: =IFERROR(I59/I57,"") -> 0.05154341707 | J60: =IFERROR(J59/J57,"") -> 0.04281994578 | K60: =IFERROR(K59/K57,"") -> 0.06415524202
F61: UETCL Energy Purchases by Technology(GWh) | G61: =G56 -> 2022-Q1 | H61: =H56 -> 2023-Q1 | I61: =I56 -> 2024-Q1 | J61: =J56 -> 2025-Q1 | K61: =K56 -> 2026-Q1
F62: Bagasse | G62: =IFERROR(SUM(IF($G$5="Q1",SUMIFS(Energy_Purchases_MWh[Energy purchased],Energy_Purchases_MWh[Year],a!A$200,Energy_Purchases_MWh[Quarter],"Q1",Energy_Purchases_MWh[Category],$F62),IF($G$5="Q2",SUMIFS(Energy_Purchases_MWh[Energy purchased],Energy_Purchases_MWh[Year],a!A$200,Energy_Purchases_MWh[Quarter],"Q2",Energy_Purchases_MWh[Category],$F62),IF($G$5="Q3",SUMIFS( Energy_Purchases_MWh[Energy purchased],Energy_Purchases_MWh[Year],a!A$200,Energy_Purchases_MWh[Quarter],"Q3",Energy_Purchases_MWh[Category],$F62),IF($G$5="Q4",SUMIFS( Energy_Purchases_MWh[Energy purchased],Energy_Purchases_MWh[Year],a!A$200,Energy_Purchases_MWh[Quarter],"Q4",Energy_Purchases_MWh[Category],$F62), IF($G$5="Calendar Year",SUMIFS( Energy_Purchases_MWh[Energy purchased],Energy_Purchases_MWh[Year],a!A$200,Energy_Purchases_MWh[Category],$F62),""))))))/10^3,"") -> 103.199158 | H62: =IFERROR(SUM(IF($G$5="Q1",SUMIFS(Energy_Purchases_MWh[Energy purchased],Energy_Purchases_MWh[Year],a!B$200,Energy_Purchases_MWh[Quarter],"Q1",Energy_Purchases_MWh[Category],$F62),IF($G$5="Q2",SUMIFS(Energy_Purchases_MWh[Energy purchased],Energy_Purchases_MWh[Year],a!B$200,Energy_Purchases_MWh[Quarter],"Q2",Energy_Purchases_MWh[Category],$F62),IF($G$5="Q3",SUMIFS( Energy_Purchases_MWh[Energy purchased],Energy_Purchases_MWh[Year],a!B$200,Energy_Purchases_MWh[Quarter],"Q3",Energy_Purchases_MWh[Category],$F62),IF($G$5="Q4",SUMIFS( Energy_Purchases_MWh[Energy purchased],Energy_Purchases_MWh[Year],a!B$200,Energy_Purchases_MWh[Quarter],"Q4",Energy_Purchases_MWh[Category],$F62), IF($G$5="Calendar Year",SUMIFS( Energy_Purchases_MWh[Energy purchased],Energy_Purchases_MWh[Year],a!B$200,Energy_Purchases_MWh[Category],$F62),""))))))/10^3,"") -> 63.05704688 | I62: =IFERROR(SUM(IF($G$5="Q1",SUMIFS(Energy_Purchases_MWh[Energy purchased],Energy_Purchases_MWh[Year],a!C$200,Energy_Purchases_MWh[Quarter],"Q1",Energy_Purchases_MWh[Category],$F62),IF($G$5="Q2",SUMIFS(Energy_Purchases_MWh[Energy purchased],Energy_Purchases_MWh[Year],a!C$200,Energy_Purchases_MWh[Quarter],"Q2",Energy_Purchases_MWh[Category],$F62),IF($G$5="Q3",SUMIFS( Energy_Purchases_MWh[Energy purchased],Energy_Purchases_MWh[Year],a!C$200,Energy_Purchases_MWh[Quarter],"Q3",Energy_Purchases_MWh[Category],$F62),IF($G$5="Q4",SUMIFS( Energy_Purchases_MWh[Energy purchased],Energy_Purchases_MWh[Year],a!C$200,Energy_Purchases_MWh[Quarter],"Q4",Energy_Purchases_MWh[Category],$F62), IF($G$5="Calendar Year",SUMIFS( Energy_Purchases_MWh[Energy purchased],Energy_Purchases_MWh[Year],a!C$200,Energy_Purchases_MWh[Category],$F62),""))))))/10^3,"") -> 112.4766688 | J62: =IFERROR(SUM(IF($G$5="Q1",SUMIFS(Energy_Purchases_MWh[Energy purchased],Energy_Purchases_MWh[Year],a!D$200,Energy_Purchases_MWh[Quarter],"Q1",Energy_Purchases_MWh[Category],$F62),IF($G$5="Q2",SUMIFS(Energy_Purchases_MWh[Energy purchased],Energy_Purchases_MWh[Year],a!D$200,Energy_Purchases_MWh[Quarter],"Q2",Energy_Purchases_MWh[Category],$F62),IF($G$5="Q3",SUMIFS( Energy_Purchases_MWh[Energy purchased],Energy_Purchases_MWh[Year],a!D$200,Energy_Purchases_MWh[Quarter],"Q3",Energy_Purchases_MWh[Category],$F62),IF($G$5="Q4",SUMIFS( Energy_Purchases_MWh[Energy purchased],Energy_Purchases_MWh[Year],a!D$200,Energy_Purchases_MWh[Quarter],"Q4",Energy_Purchases_MWh[Category],$F62), IF($G$5="Calendar Year",SUMIFS( Energy_Purchases_MWh[Energy purchased],Energy_Purchases_MWh[Year],a!D$200,Energy_Purchases_MWh[Category],$F62),""))))))/10^3,"") -> 134.827387 | K62: =IFERROR(SUM(IF($G$5="Q1",SUMIFS(Energy_Purchases_MWh[Energy purchased],Energy_Purchases_MWh[Year],a!E$200,Energy_Purchases_MWh[Quarter],"Q1",Energy_Purchases_MWh[Category],$F62),IF($G$5="Q2",SUMIFS(Energy_Purchases_MWh[Energy purchased],Energy_Purchases_MWh[Year],a!E$200,Energy_Purchases_MWh[Quarter],"Q2",Energy_Purchases_MWh[Category],$F62),IF($G$5="Q3",SUMIFS( Energy_Purchases_MWh[Energy purchased],Energy_Purchases_MWh[Year],a!E$200,Energy_Purchases_MWh[Quarter],"Q3",Energy_Purchases_MWh[Category],$F62),IF($G$5="Q4",SUMIFS( Energy_Purchases_MWh[Energy purchased],Energy_Purchases_MWh[Year],a!E$200,Energy_Purchases_MWh[Quarter],"Q4",Energy_Purchases_MWh[Category],$F62), IF($G$5="Calendar Year",SUMIFS( Energy_Purchases_MWh[Energy purchased],Energy_Purchases_MWh[Year],a!E$200,Energy_Purchases_MWh[Category],$F62),""))))))/10^3,"") -> 122.538
F63: Imports | G63: =IFERROR(SUM(IF($G$5="Q1",SUMIFS(Energy_Purchases_MWh[Energy purchased],Energy_Purchases_MWh[Year],a!A$200,Energy_Purchases_MWh[Quarter],"Q1",Energy_Purchases_MWh[Category],$F63),IF($G$5="Q2",SUMIFS(Energy_Purchases_MWh[Energy purchased],Energy_Purchases_MWh[Year],a!A$200,Energy_Purchases_MWh[Quarter],"Q2",Energy_Purchases_MWh[Category],$F63),IF($G$5="Q3",SUMIFS( Energy_Purchases_MWh[Energy purchased],Energy_Purchases_MWh[Year],a!A$200,Energy_Purchases_MWh[Quarter],"Q3",Energy_Purchases_MWh[Category],$F63),IF($G$5="Q4",SUMIFS( Energy_Purchases_MWh[Energy purchased],Energy_Purchases_MWh[Year],a!A$200,Energy_Purchases_MWh[Quarter],"Q4",Energy_Purchases_MWh[Category],$F63), IF($G$5="Calendar Year",SUMIFS( Energy_Purchases_MWh[Energy purchased],Energy_Purchases_MWh[Year],a!A$200,Energy_Purchases_MWh[Category],$F63),""))))))/10^3,"") -> 3.492057 | H63: =IFERROR(SUM(IF($G$5="Q1",SUMIFS(Energy_Purchases_MWh[Energy purchased],Energy_Purchases_MWh[Year],a!B$200,Energy_Purchases_MWh[Quarter],"Q1",Energy_Purchases_MWh[Category],$F63),IF($G$5="Q2",SUMIFS(Energy_Purchases_MWh[Energy purchased],Energy_Purchases_MWh[Year],a!B$200,Energy_Purchases_MWh[Quarter],"Q2",Energy_Purchases_MWh[Category],$F63),IF($G$5="Q3",SUMIFS( Energy_Purchases_MWh[Energy purchased],Energy_Purchases_MWh[Year],a!B$200,Energy_Purchases_MWh[Quarter],"Q3",Energy_Purchases_MWh[Category],$F63),IF($G$5="Q4",SUMIFS( Energy_Purchases_MWh[Energy purchased],Energy_Purchases_MWh[Year],a!B$200,Energy_Purchases_MWh[Quarter],"Q4",Energy_Purchases_MWh[Category],$F63), IF($G$5="Calendar Year",SUMIFS( Energy_Purchases_MWh[Energy purchased],Energy_Purchases_MWh[Year],a!B$200,Energy_Purchases_MWh[Category],$F63),""))))))/10^3,"") -> 8.7524107 | I63: =IFERROR(SUM(IF($G$5="Q1",SUMIFS(Energy_Purchases_MWh[Energy purchased],Energy_Purchases_MWh[Year],a!C$200,Energy_Purchases_MWh[Quarter],"Q1",Energy_Purchases_MWh[Category],$F63),IF($G$5="Q2",SUMIFS(Energy_Purchases_MWh[Energy purchased],Energy_Purchases_MWh[Year],a!C$200,Energy_Purchases_MWh[Quarter],"Q2",Energy_Purchases_MWh[Category],$F63),IF($G$5="Q3",SUMIFS( Energy_Purchases_MWh[Energy purchased],Energy_Purchases_MWh[Year],a!C$200,Energy_Purchases_MWh[Quarter],"Q3",Energy_Purchases_MWh[Category],$F63),IF($G$5="Q4",SUMIFS( Energy_Purchases_MWh[Energy purchased],Energy_Purchases_MWh[Year],a!C$200,Energy_Purchases_MWh[Quarter],"Q4",Energy_Purchases_MWh[Category],$F63), IF($G$5="Calendar Year",SUMIFS( Energy_Purchases_MWh[Energy purchased],Energy_Purchases_MWh[Year],a!C$200,Energy_Purchases_MWh[Category],$F63),""))))))/10^3,"") -> 12.48419771 | J63: =IFERROR(SUM(IF($G$5="Q1",SUMIFS(Energy_Purchases_MWh[Energy purchased],Energy_Purchases_MWh[Year],a!D$200,Energy_Purchases_MWh[Quarter],"Q1",Energy_Purchases_MWh[Category],$F63),IF($G$5="Q2",SUMIFS(Energy_Purchases_MWh[Energy purchased],Energy_Purchases_MWh[Year],a!D$200,Energy_Purchases_MWh[Quarter],"Q2",Energy_Purchases_MWh[Category],$F63),IF($G$5="Q3",SUMIFS( Energy_Purchases_MWh[Energy purchased],Energy_Purchases_MWh[Year],a!D$200,Energy_Purchases_MWh[Quarter],"Q3",Energy_Purchases_MWh[Category],$F63),IF($G$5="Q4",SUMIFS( Energy_Purchases_MWh[Energy purchased],Energy_Purchases_MWh[Year],a!D$200,Energy_Purchases_MWh[Quarter],"Q4",Energy_Purchases_MWh[Category],$F63), IF($G$5="Calendar Year",SUMIFS( Energy_Purchases_MWh[Energy purchased],Energy_Purchases_MWh[Year],a!D$200,Energy_Purchases_MWh[Category],$F63),""))))))/10^3,"") -> 16.491402 | K63: =IFERROR(SUM(IF($G$5="Q1",SUMIFS(Energy_Purchases_MWh[Energy purchased],Energy_Purchases_MWh[Year],a!E$200,Energy_Purchases_MWh[Quarter],"Q1",Energy_Purchases_MWh[Category],$F63),IF($G$5="Q2",SUMIFS(Energy_Purchases_MWh[Energy purchased],Energy_Purchases_MWh[Year],a!E$200,Energy_Purchases_MWh[Quarter],"Q2",Energy_Purchases_MWh[Category],$F63),IF($G$5="Q3",SUMIFS( Energy_Purchases_MWh[Energy purchased],Energy_Purchases_MWh[Year],a!E$200,Energy_Purchases_MWh[Quarter],"Q3",Energy_Purchases_MWh[Category],$F63),IF($G$5="Q4",SUMIFS( Energy_Purchases_MWh[Energy purchased],Energy_Purchases_MWh[Year],a!E$200,Energy_Purchases_MWh[Quarter],"Q4",Energy_Purchases_MWh[Category],$F63), IF($G$5="Calendar Year",SUMIFS( Energy_Purchases_MWh[Energy purchased],Energy_Purchases_MWh[Year],a!E$200,Energy_Purchases_MWh[Category],$F63),""))))))/10^3,"") -> 7.381
F64: Large Hydros | G64: =IFERROR(SUM(IF($G$5="Q1",SUMIFS(Energy_Purchases_MWh[Energy purchased],Energy_Purchases_MWh[Year],a!A$200,Energy_Purchases_MWh[Quarter],"Q1",Energy_Purchases_MWh[Category],$F64),IF($G$5="Q2",SUMIFS(Energy_Purchases_MWh[Energy purchased],Energy_Purchases_MWh[Year],a!A$200,Energy_Purchases_MWh[Quarter],"Q2",Energy_Purchases_MWh[Category],$F64),IF($G$5="Q3",SUMIFS( Energy_Purchases_MWh[Energy purchased],Energy_Purchases_MWh[Year],a!A$200,Energy_Purchases_MWh[Quarter],"Q3",Energy_Purchases_MWh[Category],$F64),IF($G$5="Q4",SUMIFS( Energy_Purchases_MWh[Energy purchased],Energy_Purchases_MWh[Year],a!A$200,Energy_Purchases_MWh[Quarter],"Q4",Energy_Purchases_MWh[Category],$F64), IF($G$5="Calendar Year",SUMIFS( Energy_Purchases_MWh[Energy purchased],Energy_Purchases_MWh[Year],a!A$200,Energy_Purchases_MWh[Category],$F64),""))))))/10^3,"") -> 1087.833696 | H64: =IFERROR(SUM(IF($G$5="Q1",SUMIFS(Energy_Purchases_MWh[Energy purchased],Energy_Purchases_MWh[Year],a!B$200,Energy_Purchases_MWh[Quarter],"Q1",Energy_Purchases_MWh[Category],$F64),IF($G$5="Q2",SUMIFS(Energy_Purchases_MWh[Energy purchased],Energy_Purchases_MWh[Year],a!B$200,Energy_Purchases_MWh[Quarter],"Q2",Energy_Purchases_MWh[Category],$F64),IF($G$5="Q3",SUMIFS( Energy_Purchases_MWh[Energy purchased],Energy_Purchases_MWh[Year],a!B$200,Energy_Purchases_MWh[Quarter],"Q3",Energy_Purchases_MWh[Category],$F64),IF($G$5="Q4",SUMIFS( Energy_Purchases_MWh[Energy purchased],Energy_Purchases_MWh[Year],a!B$200,Energy_Purchases_MWh[Quarter],"Q4",Energy_Purchases_MWh[Category],$F64), IF($G$5="Calendar Year",SUMIFS( Energy_Purchases_MWh[Energy purchased],Energy_Purchases_MWh[Year],a!B$200,Energy_Purchases_MWh[Category],$F64),""))))))/10^3,"") -> 1157.189893 | I64: =IFERROR(SUM(IF($G$5="Q1",SUMIFS(Energy_Purchases_MWh[Energy purchased],Energy_Purchases_MWh[Year],a!C$200,Energy_Purchases_MWh[Quarter],"Q1",Energy_Purchases_MWh[Category],$F64),IF($G$5="Q2",SUMIFS(Energy_Purchases_MWh[Energy purchased],Energy_Purchases_MWh[Year],a!C$200,Energy_Purchases_MWh[Quarter],"Q2",Energy_Purchases_MWh[Category],$F64),IF($G$5="Q3",SUMIFS( Energy_Purchases_MWh[Energy purchased],Energy_Purchases_MWh[Year],a!C$200,Energy_Purchases_MWh[Quarter],"Q3",Energy_Purchases_MWh[Category],$F64),IF($G$5="Q4",SUMIFS( Energy_Purchases_MWh[Energy purchased],Energy_Purchases_MWh[Year],a!C$200,Energy_Purchases_MWh[Quarter],"Q4",Energy_Purchases_MWh[Category],$F64), IF($G$5="Calendar Year",SUMIFS( Energy_Purchases_MWh[Energy purchased],Energy_Purchases_MWh[Year],a!C$200,Energy_Purchases_MWh[Category],$F64),""))))))/10^3,"") -> 1224.190606 | J64: =IFERROR(SUM(IF($G$5="Q1",SUMIFS(Energy_Purchases_MWh[Energy purchased],Energy_Purchases_MWh[Year],a!D$200,Energy_Purchases_MWh[Quarter],"Q1",Energy_Purchases_MWh[Category],$F64),IF($G$5="Q2",SUMIFS(Energy_Purchases_MWh[Energy purchased],Energy_Purchases_MWh[Year],a!D$200,Energy_Purchases_MWh[Quarter],"Q2",Energy_Purchases_MWh[Category],$F64),IF($G$5="Q3",SUMIFS( Energy_Purchases_MWh[Energy purchased],Energy_Purchases_MWh[Year],a!D$200,Energy_Purchases_MWh[Quarter],"Q3",Energy_Purchases_MWh[Category],$F64),IF($G$5="Q4",SUMIFS( Energy_Purchases_MWh[Energy purchased],Energy_Purchases_MWh[Year],a!D$200,Energy_Purchases_MWh[Quarter],"Q4",Energy_Purchases_MWh[Category],$F64), IF($G$5="Calendar Year",SUMIFS( Energy_Purchases_MWh[Energy purchased],Energy_Purchases_MWh[Year],a!D$200,Energy_Purchases_MWh[Category],$F64),""))))))/10^3,"") -> 1417.443499 | K64: =IFERROR(SUM(IF($G$5="Q1",SUMIFS(Energy_Purchases_MWh[Energy purchased],Energy_Purchases_MWh[Year],a!E$200,Energy_Purchases_MWh[Quarter],"Q1",Energy_Purchases_MWh[Category],$F64),IF($G$5="Q2",SUMIFS(Energy_Purchases_MWh[Energy purchased],Energy_Purchases_MWh[Year],a!E$200,Energy_Purchases_MWh[Quarter],"Q2",Energy_Purchases_MWh[Category],$F64),IF($G$5="Q3",SUMIFS( Energy_Purchases_MWh[Energy purchased],Energy_Purchases_MWh[Year],a!E$200,Energy_Purchases_MWh[Quarter],"Q3",Energy_Purchases_MWh[Category],$F64),IF($G$5="Q4",SUMIFS( Energy_Purchases_MWh[Energy purchased],Energy_Purchases_MWh[Year],a!E$200,Energy_Purchases_MWh[Quarter],"Q4",Energy_Purchases_MWh[Category],$F64), IF($G$5="Calendar Year",SUMIFS( Energy_Purchases_MWh[Energy purchased],Energy_Purchases_MWh[Year],a!E$200,Energy_Purchases_MWh[Category],$F64),""))))))/10^3,"") -> 3966.366
F65: Small Hydro | G65: =IFERROR(SUM(IF($G$5="Q1",SUMIFS(Energy_Purchases_MWh[Energy purchased],Energy_Purchases_MWh[Year],a!A$200,Energy_Purchases_MWh[Quarter],"Q1",Energy_Purchases_MWh[Category],$F65),IF($G$5="Q2",SUMIFS(Energy_Purchases_MWh[Energy purchased],Energy_Purchases_MWh[Year],a!A$200,Energy_Purchases_MWh[Quarter],"Q2",Energy_Purchases_MWh[Category],$F65),IF($G$5="Q3",SUMIFS( Energy_Purchases_MWh[Energy purchased],Energy_Purchases_MWh[Year],a!A$200,Energy_Purchases_MWh[Quarter],"Q3",Energy_Purchases_MWh[Category],$F65),IF($G$5="Q4",SUMIFS( Energy_Purchases_MWh[Energy purchased],Energy_Purchases_MWh[Year],a!A$200,Energy_Purchases_MWh[Quarter],"Q4",Energy_Purchases_MWh[Category],$F65), IF($G$5="Calendar Year",SUMIFS( Energy_Purchases_MWh[Energy purchased],Energy_Purchases_MWh[Year],a!A$200,Energy_Purchases_MWh[Category],$F65),""))))))/10^3,"") -> 125.920243 | H65: =IFERROR(SUM(IF($G$5="Q1",SUMIFS(Energy_Purchases_MWh[Energy purchased],Energy_Purchases_MWh[Year],a!B$200,Energy_Purchases_MWh[Quarter],"Q1",Energy_Purchases_MWh[Category],$F65),IF($G$5="Q2",SUMIFS(Energy_Purchases_MWh[Energy purchased],Energy_Purchases_MWh[Year],a!B$200,Energy_Purchases_MWh[Quarter],"Q2",Energy_Purchases_MWh[Category],$F65),IF($G$5="Q3",SUMIFS( Energy_Purchases_MWh[Energy purchased],Energy_Purchases_MWh[Year],a!B$200,Energy_Purchases_MWh[Quarter],"Q3",Energy_Purchases_MWh[Category],$F65),IF($G$5="Q4",SUMIFS( Energy_Purchases_MWh[Energy purchased],Energy_Purchases_MWh[Year],a!B$200,Energy_Purchases_MWh[Quarter],"Q4",Energy_Purchases_MWh[Category],$F65), IF($G$5="Calendar Year",SUMIFS( Energy_Purchases_MWh[Energy purchased],Energy_Purchases_MWh[Year],a!B$200,Energy_Purchases_MWh[Category],$F65),""))))))/10^3,"") -> 171.572845 | I65: =IFERROR(SUM(IF($G$5="Q1",SUMIFS(Energy_Purchases_MWh[Energy purchased],Energy_Purchases_MWh[Year],a!C$200,Energy_Purchases_MWh[Quarter],"Q1",Energy_Purchases_MWh[Category],$F65),IF($G$5="Q2",SUMIFS(Energy_Purchases_MWh[Energy purchased],Energy_Purchases_MWh[Year],a!C$200,Energy_Purchases_MWh[Quarter],"Q2",Energy_Purchases_MWh[Category],$F65),IF($G$5="Q3",SUMIFS( Energy_Purchases_MWh[Energy purchased],Energy_Purchases_MWh[Year],a!C$200,Energy_Purchases_MWh[Quarter],"Q3",Energy_Purchases_MWh[Category],$F65),IF($G$5="Q4",SUMIFS( Energy_Purchases_MWh[Energy purchased],Energy_Purchases_MWh[Year],a!C$200,Energy_Purchases_MWh[Quarter],"Q4",Energy_Purchases_MWh[Category],$F65), IF($G$5="Calendar Year",SUMIFS( Energy_Purchases_MWh[Energy purchased],Energy_Purchases_MWh[Year],a!C$200,Energy_Purchases_MWh[Category],$F65),""))))))/10^3,"") -> 210.741635 | J65: =IFERROR(SUM(IF($G$5="Q1",SUMIFS(Energy_Purchases_MWh[Energy purchased],Energy_Purchases_MWh[Year],a!D$200,Energy_Purchases_MWh[Quarter],"Q1",Energy_Purchases_MWh[Category],$F65),IF($G$5="Q2",SUMIFS(Energy_Purchases_MWh[Energy purchased],Energy_Purchases_MWh[Year],a!D$200,Energy_Purchases_MWh[Quarter],"Q2",Energy_Purchases_MWh[Category],$F65),IF($G$5="Q3",SUMIFS( Energy_Purchases_MWh[Energy purchased],Energy_Purchases_MWh[Year],a!D$200,Energy_Purchases_MWh[Quarter],"Q3",Energy_Purchases_MWh[Category],$F65),IF($G$5="Q4",SUMIFS( Energy_Purchases_MWh[Energy purchased],Energy_Purchases_MWh[Year],a!D$200,Energy_Purchases_MWh[Quarter],"Q4",Energy_Purchases_MWh[Category],$F65), IF($G$5="Calendar Year",SUMIFS( Energy_Purchases_MWh[Energy purchased],Energy_Purchases_MWh[Year],a!D$200,Energy_Purchases_MWh[Category],$F65),""))))))/10^3,"") -> 162.5993915 | K65: =IFERROR(SUM(IF($G$5="Q1",SUMIFS(Energy_Purchases_MWh[Energy purchased],Energy_Purchases_MWh[Year],a!E$200,Energy_Purchases_MWh[Quarter],"Q1",Energy_Purchases_MWh[Category],$F65),IF($G$5="Q2",SUMIFS(Energy_Purchases_MWh[Energy purchased],Energy_Purchases_MWh[Year],a!E$200,Energy_Purchases_MWh[Quarter],"Q2",Energy_Purchases_MWh[Category],$F65),IF($G$5="Q3",SUMIFS( Energy_Purchases_MWh[Energy purchased],Energy_Purchases_MWh[Year],a!E$200,Energy_Purchases_MWh[Quarter],"Q3",Energy_Purchases_MWh[Category],$F65),IF($G$5="Q4",SUMIFS( Energy_Purchases_MWh[Energy purchased],Energy_Purchases_MWh[Year],a!E$200,Energy_Purchases_MWh[Quarter],"Q4",Energy_Purchases_MWh[Category],$F65), IF($G$5="Calendar Year",SUMIFS( Energy_Purchases_MWh[Energy purchased],Energy_Purchases_MWh[Year],a!E$200,Energy_Purchases_MWh[Category],$F65),""))))))/10^3,"") -> 198.942
F66: Solar | G66: =IFERROR(SUM(IF($G$5="Q1",SUMIFS(Energy_Purchases_MWh[Energy purchased],Energy_Purchases_MWh[Year],a!A$200,Energy_Purchases_MWh[Quarter],"Q1",Energy_Purchases_MWh[Category],$F66),IF($G$5="Q2",SUMIFS(Energy_Purchases_MWh[Energy purchased],Energy_Purchases_MWh[Year],a!A$200,Energy_Purchases_MWh[Quarter],"Q2",Energy_Purchases_MWh[Category],$F66),IF($G$5="Q3",SUMIFS( Energy_Purchases_MWh[Energy purchased],Energy_Purchases_MWh[Year],a!A$200,Energy_Purchases_MWh[Quarter],"Q3",Energy_Purchases_MWh[Category],$F66),IF($G$5="Q4",SUMIFS( Energy_Purchases_MWh[Energy purchased],Energy_Purchases_MWh[Year],a!A$200,Energy_Purchases_MWh[Quarter],"Q4",Energy_Purchases_MWh[Category],$F66), IF($G$5="Calendar Year",SUMIFS( Energy_Purchases_MWh[Energy purchased],Energy_Purchases_MWh[Year],a!A$200,Energy_Purchases_MWh[Category],$F66),""))))))/10^3,"") -> 25.291697 | H66: =IFERROR(SUM(IF($G$5="Q1",SUMIFS(Energy_Purchases_MWh[Energy purchased],Energy_Purchases_MWh[Year],a!B$200,Energy_Purchases_MWh[Quarter],"Q1",Energy_Purchases_MWh[Category],$F66),IF($G$5="Q2",SUMIFS(Energy_Purchases_MWh[Energy purchased],Energy_Purchases_MWh[Year],a!B$200,Energy_Purchases_MWh[Quarter],"Q2",Energy_Purchases_MWh[Category],$F66),IF($G$5="Q3",SUMIFS( Energy_Purchases_MWh[Energy purchased],Energy_Purchases_MWh[Year],a!B$200,Energy_Purchases_MWh[Quarter],"Q3",Energy_Purchases_MWh[Category],$F66),IF($G$5="Q4",SUMIFS( Energy_Purchases_MWh[Energy purchased],Energy_Purchases_MWh[Year],a!B$200,Energy_Purchases_MWh[Quarter],"Q4",Energy_Purchases_MWh[Category],$F66), IF($G$5="Calendar Year",SUMIFS( Energy_Purchases_MWh[Energy purchased],Energy_Purchases_MWh[Year],a!B$200,Energy_Purchases_MWh[Category],$F66),""))))))/10^3,"") -> 25.149102 | I66: =IFERROR(SUM(IF($G$5="Q1",SUMIFS(Energy_Purchases_MWh[Energy purchased],Energy_Purchases_MWh[Year],a!C$200,Energy_Purchases_MWh[Quarter],"Q1",Energy_Purchases_MWh[Category],$F66),IF($G$5="Q2",SUMIFS(Energy_Purchases_MWh[Energy purchased],Energy_Purchases_MWh[Year],a!C$200,Energy_Purchases_MWh[Quarter],"Q2",Energy_Purchases_MWh[Category],$F66),IF($G$5="Q3",SUMIFS( Energy_Purchases_MWh[Energy purchased],Energy_Purchases_MWh[Year],a!C$200,Energy_Purchases_MWh[Quarter],"Q3",Energy_Purchases_MWh[Category],$F66),IF($G$5="Q4",SUMIFS( Energy_Purchases_MWh[Energy purchased],Energy_Purchases_MWh[Year],a!C$200,Energy_Purchases_MWh[Quarter],"Q4",Energy_Purchases_MWh[Category],$F66), IF($G$5="Calendar Year",SUMIFS( Energy_Purchases_MWh[Energy purchased],Energy_Purchases_MWh[Year],a!C$200,Energy_Purchases_MWh[Category],$F66),""))))))/10^3,"") -> 24.3266684 | J66: =IFERROR(SUM(IF($G$5="Q1",SUMIFS(Energy_Purchases_MWh[Energy purchased],Energy_Purchases_MWh[Year],a!D$200,Energy_Purchases_MWh[Quarter],"Q1",Energy_Purchases_MWh[Category],$F66),IF($G$5="Q2",SUMIFS(Energy_Purchases_MWh[Energy purchased],Energy_Purchases_MWh[Year],a!D$200,Energy_Purchases_MWh[Quarter],"Q2",Energy_Purchases_MWh[Category],$F66),IF($G$5="Q3",SUMIFS( Energy_Purchases_MWh[Energy purchased],Energy_Purchases_MWh[Year],a!D$200,Energy_Purchases_MWh[Quarter],"Q3",Energy_Purchases_MWh[Category],$F66),IF($G$5="Q4",SUMIFS( Energy_Purchases_MWh[Energy purchased],Energy_Purchases_MWh[Year],a!D$200,Energy_Purchases_MWh[Quarter],"Q4",Energy_Purchases_MWh[Category],$F66), IF($G$5="Calendar Year",SUMIFS( Energy_Purchases_MWh[Energy purchased],Energy_Purchases_MWh[Year],a!D$200,Energy_Purchases_MWh[Category],$F66),""))))))/10^3,"") -> 36.0901302 | K66: =IFERROR(SUM(IF($G$5="Q1",SUMIFS(Energy_Purchases_MWh[Energy purchased],Energy_Purchases_MWh[Year],a!E$200,Energy_Purchases_MWh[Quarter],"Q1",Energy_Purchases_MWh[Category],$F66),IF($G$5="Q2",SUMIFS(Energy_Purchases_MWh[Energy purchased],Energy_Purchases_MWh[Year],a!E$200,Energy_Purchases_MWh[Quarter],"Q2",Energy_Purchases_MWh[Category],$F66),IF($G$5="Q3",SUMIFS( Energy_Purchases_MWh[Energy purchased],Energy_Purchases_MWh[Year],a!E$200,Energy_Purchases_MWh[Quarter],"Q3",Energy_Purchases_MWh[Category],$F66),IF($G$5="Q4",SUMIFS( Energy_Purchases_MWh[Energy purchased],Energy_Purchases_MWh[Year],a!E$200,Energy_Purchases_MWh[Quarter],"Q4",Energy_Purchases_MWh[Category],$F66), IF($G$5="Calendar Year",SUMIFS( Energy_Purchases_MWh[Energy purchased],Energy_Purchases_MWh[Year],a!E$200,Energy_Purchases_MWh[Category],$F66),""))))))/10^3,"") -> 32.413
F67: Thermal | G67: =IFERROR(SUM(IF($G$5="Q1",SUMIFS(Energy_Purchases_MWh[Energy purchased],Energy_Purchases_MWh[Year],a!A$200,Energy_Purchases_MWh[Quarter],"Q1",Energy_Purchases_MWh[Category],$F67),IF($G$5="Q2",SUMIFS(Energy_Purchases_MWh[Energy purchased],Energy_Purchases_MWh[Year],a!A$200,Energy_Purchases_MWh[Quarter],"Q2",Energy_Purchases_MWh[Category],$F67),IF($G$5="Q3",SUMIFS( Energy_Purchases_MWh[Energy purchased],Energy_Purchases_MWh[Year],a!A$200,Energy_Purchases_MWh[Quarter],"Q3",Energy_Purchases_MWh[Category],$F67),IF($G$5="Q4",SUMIFS( Energy_Purchases_MWh[Energy purchased],Energy_Purchases_MWh[Year],a!A$200,Energy_Purchases_MWh[Quarter],"Q4",Energy_Purchases_MWh[Category],$F67), IF($G$5="Calendar Year",SUMIFS( Energy_Purchases_MWh[Energy purchased],Energy_Purchases_MWh[Year],a!A$200,Energy_Purchases_MWh[Category],$F67),""))))))/10^3,"") -> 10.99456 | H67: =IFERROR(SUM(IF($G$5="Q1",SUMIFS(Energy_Purchases_MWh[Energy purchased],Energy_Purchases_MWh[Year],a!B$200,Energy_Purchases_MWh[Quarter],"Q1",Energy_Purchases_MWh[Category],$F67),IF($G$5="Q2",SUMIFS(Energy_Purchases_MWh[Energy purchased],Energy_Purchases_MWh[Year],a!B$200,Energy_Purchases_MWh[Quarter],"Q2",Energy_Purchases_MWh[Category],$F67),IF($G$5="Q3",SUMIFS( Energy_Purchases_MWh[Energy purchased],Energy_Purchases_MWh[Year],a!B$200,Energy_Purchases_MWh[Quarter],"Q3",Energy_Purchases_MWh[Category],$F67),IF($G$5="Q4",SUMIFS( Energy_Purchases_MWh[Energy purchased],Energy_Purchases_MWh[Year],a!B$200,Energy_Purchases_MWh[Quarter],"Q4",Energy_Purchases_MWh[Category],$F67), IF($G$5="Calendar Year",SUMIFS( Energy_Purchases_MWh[Energy purchased],Energy_Purchases_MWh[Year],a!B$200,Energy_Purchases_MWh[Category],$F67),""))))))/10^3,"") -> 17.7876307 | I67: =IFERROR(SUM(IF($G$5="Q1",SUMIFS(Energy_Purchases_MWh[Energy purchased],Energy_Purchases_MWh[Year],a!C$200,Energy_Purchases_MWh[Quarter],"Q1",Energy_Purchases_MWh[Category],$F67),IF($G$5="Q2",SUMIFS(Energy_Purchases_MWh[Energy purchased],Energy_Purchases_MWh[Year],a!C$200,Energy_Purchases_MWh[Quarter],"Q2",Energy_Purchases_MWh[Category],$F67),IF($G$5="Q3",SUMIFS( Energy_Purchases_MWh[Energy purchased],Energy_Purchases_MWh[Year],a!C$200,Energy_Purchases_MWh[Quarter],"Q3",Energy_Purchases_MWh[Category],$F67),IF($G$5="Q4",SUMIFS( Energy_Purchases_MWh[Energy purchased],Energy_Purchases_MWh[Year],a!C$200,Energy_Purchases_MWh[Quarter],"Q4",Energy_Purchases_MWh[Category],$F67), IF($G$5="Calendar Year",SUMIFS( Energy_Purchases_MWh[Energy purchased],Energy_Purchases_MWh[Year],a!C$200,Energy_Purchases_MWh[Category],$F67),""))))))/10^3,"") -> 15.3311443 | J67: =IFERROR(SUM(IF($G$5="Q1",SUMIFS(Energy_Purchases_MWh[Energy purchased],Energy_Purchases_MWh[Year],a!D$200,Energy_Purchases_MWh[Quarter],"Q1",Energy_Purchases_MWh[Category],$F67),IF($G$5="Q2",SUMIFS(Energy_Purchases_MWh[Energy purchased],Energy_Purchases_MWh[Year],a!D$200,Energy_Purchases_MWh[Quarter],"Q2",Energy_Purchases_MWh[Category],$F67),IF($G$5="Q3",SUMIFS( Energy_Purchases_MWh[Energy purchased],Energy_Purchases_MWh[Year],a!D$200,Energy_Purchases_MWh[Quarter],"Q3",Energy_Purchases_MWh[Category],$F67),IF($G$5="Q4",SUMIFS( Energy_Purchases_MWh[Energy purchased],Energy_Purchases_MWh[Year],a!D$200,Energy_Purchases_MWh[Quarter],"Q4",Energy_Purchases_MWh[Category],$F67), IF($G$5="Calendar Year",SUMIFS( Energy_Purchases_MWh[Energy purchased],Energy_Purchases_MWh[Year],a!D$200,Energy_Purchases_MWh[Category],$F67),""))))))/10^3,"") -> 15.3261364 | K67: =IFERROR(SUM(IF($G$5="Q1",SUMIFS(Energy_Purchases_MWh[Energy purchased],Energy_Purchases_MWh[Year],a!E$200,Energy_Purchases_MWh[Quarter],"Q1",Energy_Purchases_MWh[Category],$F67),IF($G$5="Q2",SUMIFS(Energy_Purchases_MWh[Energy purchased],Energy_Purchases_MWh[Year],a!E$200,Energy_Purchases_MWh[Quarter],"Q2",Energy_Purchases_MWh[Category],$F67),IF($G$5="Q3",SUMIFS( Energy_Purchases_MWh[Energy purchased],Energy_Purchases_MWh[Year],a!E$200,Energy_Purchases_MWh[Quarter],"Q3",Energy_Purchases_MWh[Category],$F67),IF($G$5="Q4",SUMIFS( Energy_Purchases_MWh[Energy purchased],Energy_Purchases_MWh[Year],a!E$200,Energy_Purchases_MWh[Quarter],"Q4",Energy_Purchases_MWh[Category],$F67), IF($G$5="Calendar Year",SUMIFS( Energy_Purchases_MWh[Energy purchased],Energy_Purchases_MWh[Year],a!E$200,Energy_Purchases_MWh[Category],$F67),""))))))/10^3,"") -> 16.546
F68: UETCL Energy Sales by Destination (GWh) | G68: =G56 -> 2022-Q1 | H68: =H56 -> 2023-Q1 | I68: =I56 -> 2024-Q1 | J68: =J56 -> 2025-Q1 | K68: =K56 -> 2026-Q1
F69: BUNDIBUGYO CO-OPERATIVE SOCIETY (BECS) | G69: =IFERROR(SUM(IF($G$5="Q1",SUMIFS(Energy_Sold_MWh[Energy Sold MWh],Energy_Sold_MWh[Year],a!A$200,Energy_Sold_MWh[Quarter],"Q1",Energy_Sold_MWh[Distribution Utility],$F69),IF($G$5="Q2",SUMIFS(Energy_Sold_MWh[Energy Sold MWh],Energy_Sold_MWh[Year],a!A$200,Energy_Sold_MWh[Quarter],"Q2",Energy_Sold_MWh[Distribution Utility],$F69),IF($G$5="Q3",SUMIFS(Energy_Sold_MWh[Energy Sold MWh],Energy_Sold_MWh[Year],a!A$200,Energy_Sold_MWh[Quarter],"Q3",Energy_Sold_MWh[Distribution Utility],$F69),IF($G$5="Q4",SUMIFS(Energy_Sold_MWh[Energy Sold MWh],Energy_Sold_MWh[Year],a!A$200,Energy_Sold_MWh[Quarter],"Q4",Energy_Sold_MWh[Distribution Utility],$F69), IF($G$5="Calendar Year",SUMIFS(Energy_Sold_MWh[Energy Sold MWh],Energy_Sold_MWh[Year],a!A$200,Energy_Sold_MWh[Distribution Utility],$F69),""))))))/10^3,"") -> 0 | H69: =IFERROR(SUM(IF($G$5="Q1",SUMIFS(Energy_Sold_MWh[Energy Sold MWh],Energy_Sold_MWh[Year],a!B$200,Energy_Sold_MWh[Quarter],"Q1",Energy_Sold_MWh[Distribution Utility],$F69),IF($G$5="Q2",SUMIFS(Energy_Sold_MWh[Energy Sold MWh],Energy_Sold_MWh[Year],a!B$200,Energy_Sold_MWh[Quarter],"Q2",Energy_Sold_MWh[Distribution Utility],$F69),IF($G$5="Q3",SUMIFS(Energy_Sold_MWh[Energy Sold MWh],Energy_Sold_MWh[Year],a!B$200,Energy_Sold_MWh[Quarter],"Q3",Energy_Sold_MWh[Distribution Utility],$F69),IF($G$5="Q4",SUMIFS(Energy_Sold_MWh[Energy Sold MWh],Energy_Sold_MWh[Year],a!B$200,Energy_Sold_MWh[Quarter],"Q4",Energy_Sold_MWh[Distribution Utility],$F69), IF($G$5="Calendar Year",SUMIFS(Energy_Sold_MWh[Energy Sold MWh],Energy_Sold_MWh[Year],a!B$200,Energy_Sold_MWh[Distribution Utility],$F69),""))))))/10^3,"") -> 0 | I69: =IFERROR(SUM(IF($G$5="Q1",SUMIFS(Energy_Sold_MWh[Energy Sold MWh],Energy_Sold_MWh[Year],a!C$200,Energy_Sold_MWh[Quarter],"Q1",Energy_Sold_MWh[Distribution Utility],$F69),IF($G$5="Q2",SUMIFS(Energy_Sold_MWh[Energy Sold MWh],Energy_Sold_MWh[Year],a!C$200,Energy_Sold_MWh[Quarter],"Q2",Energy_Sold_MWh[Distribution Utility],$F69),IF($G$5="Q3",SUMIFS(Energy_Sold_MWh[Energy Sold MWh],Energy_Sold_MWh[Year],a!C$200,Energy_Sold_MWh[Quarter],"Q3",Energy_Sold_MWh[Distribution Utility],$F69),IF($G$5="Q4",SUMIFS(Energy_Sold_MWh[Energy Sold MWh],Energy_Sold_MWh[Year],a!C$200,Energy_Sold_MWh[Quarter],"Q4",Energy_Sold_MWh[Distribution Utility],$F69), IF($G$5="Calendar Year",SUMIFS(Energy_Sold_MWh[Energy Sold MWh],Energy_Sold_MWh[Year],a!C$200,Energy_Sold_MWh[Distribution Utility],$F69),""))))))/10^3,"") -> 0 | J69: =IFERROR(SUM(IF($G$5="Q1",SUMIFS(Energy_Sold_MWh[Energy Sold MWh],Energy_Sold_MWh[Year],a!D$200,Energy_Sold_MWh[Quarter],"Q1",Energy_Sold_MWh[Distribution Utility],$F69),IF($G$5="Q2",SUMIFS(Energy_Sold_MWh[Energy Sold MWh],Energy_Sold_MWh[Year],a!D$200,Energy_Sold_MWh[Quarter],"Q2",Energy_Sold_MWh[Distribution Utility],$F69),IF($G$5="Q3",SUMIFS(Energy_Sold_MWh[Energy Sold MWh],Energy_Sold_MWh[Year],a!D$200,Energy_Sold_MWh[Quarter],"Q3",Energy_Sold_MWh[Distribution Utility],$F69),IF($G$5="Q4",SUMIFS(Energy_Sold_MWh[Energy Sold MWh],Energy_Sold_MWh[Year],a!D$200,Energy_Sold_MWh[Quarter],"Q4",Energy_Sold_MWh[Distribution Utility],$F69), IF($G$5="Calendar Year",SUMIFS(Energy_Sold_MWh[Energy Sold MWh],Energy_Sold_MWh[Year],a!D$200,Energy_Sold_MWh[Distribution Utility],$F69),""))))))/10^3,"") -> 0 | K69: =IFERROR(SUM(IF($G$5="Q1",SUMIFS(Energy_Sold_MWh[Energy Sold MWh],Energy_Sold_MWh[Year],a!E$200,Energy_Sold_MWh[Quarter],"Q1",Energy_Sold_MWh[Distribution Utility],$F69),IF($G$5="Q2",SUMIFS(Energy_Sold_MWh[Energy Sold MWh],Energy_Sold_MWh[Year],a!E$200,Energy_Sold_MWh[Quarter],"Q2",Energy_Sold_MWh[Distribution Utility],$F69),IF($G$5="Q3",SUMIFS(Energy_Sold_MWh[Energy Sold MWh],Energy_Sold_MWh[Year],a!E$200,Energy_Sold_MWh[Quarter],"Q3",Energy_Sold_MWh[Distribution Utility],$F69),IF($G$5="Q4",SUMIFS(Energy_Sold_MWh[Energy Sold MWh],Energy_Sold_MWh[Year],a!E$200,Energy_Sold_MWh[Quarter],"Q4",Energy_Sold_MWh[Distribution Utility],$F69), IF($G$5="Calendar Year",SUMIFS(Energy_Sold_MWh[Energy Sold MWh],Energy_Sold_MWh[Year],a!E$200,Energy_Sold_MWh[Distribution Utility],$F69),""))))))/10^3,"") -> 0
F70: DRC SNEL | G70: =IFERROR(SUM(IF($G$5="Q1",SUMIFS(Energy_Sold_MWh[Energy Sold MWh],Energy_Sold_MWh[Year],a!A$200,Energy_Sold_MWh[Quarter],"Q1",Energy_Sold_MWh[Distribution Utility],$F70),IF($G$5="Q2",SUMIFS(Energy_Sold_MWh[Energy Sold MWh],Energy_Sold_MWh[Year],a!A$200,Energy_Sold_MWh[Quarter],"Q2",Energy_Sold_MWh[Distribution Utility],$F70),IF($G$5="Q3",SUMIFS(Energy_Sold_MWh[Energy Sold MWh],Energy_Sold_MWh[Year],a!A$200,Energy_Sold_MWh[Quarter],"Q3",Energy_Sold_MWh[Distribution Utility],$F70),IF($G$5="Q4",SUMIFS(Energy_Sold_MWh[Energy Sold MWh],Energy_Sold_MWh[Year],a!A$200,Energy_Sold_MWh[Quarter],"Q4",Energy_Sold_MWh[Distribution Utility],$F70), IF($G$5="Calendar Year",SUMIFS(Energy_Sold_MWh[Energy Sold MWh],Energy_Sold_MWh[Year],a!A$200,Energy_Sold_MWh[Distribution Utility],$F70),""))))))/10^3,"") -> 0.478833 | H70: =IFERROR(SUM(IF($G$5="Q1",SUMIFS(Energy_Sold_MWh[Energy Sold MWh],Energy_Sold_MWh[Year],a!B$200,Energy_Sold_MWh[Quarter],"Q1",Energy_Sold_MWh[Distribution Utility],$F70),IF($G$5="Q2",SUMIFS(Energy_Sold_MWh[Energy Sold MWh],Energy_Sold_MWh[Year],a!B$200,Energy_Sold_MWh[Quarter],"Q2",Energy_Sold_MWh[Distribution Utility],$F70),IF($G$5="Q3",SUMIFS(Energy_Sold_MWh[Energy Sold MWh],Energy_Sold_MWh[Year],a!B$200,Energy_Sold_MWh[Quarter],"Q3",Energy_Sold_MWh[Distribution Utility],$F70),IF($G$5="Q4",SUMIFS(Energy_Sold_MWh[Energy Sold MWh],Energy_Sold_MWh[Year],a!B$200,Energy_Sold_MWh[Quarter],"Q4",Energy_Sold_MWh[Distribution Utility],$F70), IF($G$5="Calendar Year",SUMIFS(Energy_Sold_MWh[Energy Sold MWh],Energy_Sold_MWh[Year],a!B$200,Energy_Sold_MWh[Distribution Utility],$F70),""))))))/10^3,"") -> 0.578934 | I70: =IFERROR(SUM(IF($G$5="Q1",SUMIFS(Energy_Sold_MWh[Energy Sold MWh],Energy_Sold_MWh[Year],a!C$200,Energy_Sold_MWh[Quarter],"Q1",Energy_Sold_MWh[Distribution Utility],$F70),IF($G$5="Q2",SUMIFS(Energy_Sold_MWh[Energy Sold MWh],Energy_Sold_MWh[Year],a!C$200,Energy_Sold_MWh[Quarter],"Q2",Energy_Sold_MWh[Distribution Utility],$F70),IF($G$5="Q3",SUMIFS(Energy_Sold_MWh[Energy Sold MWh],Energy_Sold_MWh[Year],a!C$200,Energy_Sold_MWh[Quarter],"Q3",Energy_Sold_MWh[Distribution Utility],$F70),IF($G$5="Q4",SUMIFS(Energy_Sold_MWh[Energy Sold MWh],Energy_Sold_MWh[Year],a!C$200,Energy_Sold_MWh[Quarter],"Q4",Energy_Sold_MWh[Distribution Utility],$F70), IF($G$5="Calendar Year",SUMIFS(Energy_Sold_MWh[Energy Sold MWh],Energy_Sold_MWh[Year],a!C$200,Energy_Sold_MWh[Distribution Utility],$F70),""))))))/10^3,"") -> 0.662113 | J70: =IFERROR(SUM(IF($G$5="Q1",SUMIFS(Energy_Sold_MWh[Energy Sold MWh],Energy_Sold_MWh[Year],a!D$200,Energy_Sold_MWh[Quarter],"Q1",Energy_Sold_MWh[Distribution Utility],$F70),IF($G$5="Q2",SUMIFS(Energy_Sold_MWh[Energy Sold MWh],Energy_Sold_MWh[Year],a!D$200,Energy_Sold_MWh[Quarter],"Q2",Energy_Sold_MWh[Distribution Utility],$F70),IF($G$5="Q3",SUMIFS(Energy_Sold_MWh[Energy Sold MWh],Energy_Sold_MWh[Year],a!D$200,Energy_Sold_MWh[Quarter],"Q3",Energy_Sold_MWh[Distribution Utility],$F70),IF($G$5="Q4",SUMIFS(Energy_Sold_MWh[Energy Sold MWh],Energy_Sold_MWh[Year],a!D$200,Energy_Sold_MWh[Quarter],"Q4",Energy_Sold_MWh[Distribution Utility],$F70), IF($G$5="Calendar Year",SUMIFS(Energy_Sold_MWh[Energy Sold MWh],Energy_Sold_MWh[Year],a!D$200,Energy_Sold_MWh[Distribution Utility],$F70),""))))))/10^3,"") -> 0.732494 | K70: =IFERROR(SUM(IF($G$5="Q1",SUMIFS(Energy_Sold_MWh[Energy Sold MWh],Energy_Sold_MWh[Year],a!E$200,Energy_Sold_MWh[Quarter],"Q1",Energy_Sold_MWh[Distribution Utility],$F70),IF($G$5="Q2",SUMIFS(Energy_Sold_MWh[Energy Sold MWh],Energy_Sold_MWh[Year],a!E$200,Energy_Sold_MWh[Quarter],"Q2",Energy_Sold_MWh[Distribution Utility],$F70),IF($G$5="Q3",SUMIFS(Energy_Sold_MWh[Energy Sold MWh],Energy_Sold_MWh[Year],a!E$200,Energy_Sold_MWh[Quarter],"Q3",Energy_Sold_MWh[Distribution Utility],$F70),IF($G$5="Q4",SUMIFS(Energy_Sold_MWh[Energy Sold MWh],Energy_Sold_MWh[Year],a!E$200,Energy_Sold_MWh[Quarter],"Q4",Energy_Sold_MWh[Distribution Utility],$F70), IF($G$5="Calendar Year",SUMIFS(Energy_Sold_MWh[Energy Sold MWh],Energy_Sold_MWh[Year],a!E$200,Energy_Sold_MWh[Distribution Utility],$F70),""))))))/10^3,"") -> 0.0415585
F71: FERDSULT KIHIIHI/KABALE | G71: =IFERROR(SUM(IF($G$5="Q1",SUMIFS(Energy_Sold_MWh[Energy Sold MWh],Energy_Sold_MWh[Year],a!A$200,Energy_Sold_MWh[Quarter],"Q1",Energy_Sold_MWh[Distribution Utility],$F71),IF($G$5="Q2",SUMIFS(Energy_Sold_MWh[Energy Sold MWh],Energy_Sold_MWh[Year],a!A$200,Energy_Sold_MWh[Quarter],"Q2",Energy_Sold_MWh[Distribution Utility],$F71),IF($G$5="Q3",SUMIFS(Energy_Sold_MWh[Energy Sold MWh],Energy_Sold_MWh[Year],a!A$200,Energy_Sold_MWh[Quarter],"Q3",Energy_Sold_MWh[Distribution Utility],$F71),IF($G$5="Q4",SUMIFS(Energy_Sold_MWh[Energy Sold MWh],Energy_Sold_MWh[Year],a!A$200,Energy_Sold_MWh[Quarter],"Q4",Energy_Sold_MWh[Distribution Utility],$F71), IF($G$5="Calendar Year",SUMIFS(Energy_Sold_MWh[Energy Sold MWh],Energy_Sold_MWh[Year],a!A$200,Energy_Sold_MWh[Distribution Utility],$F71),""))))))/10^3,"") -> 0 | H71: =IFERROR(SUM(IF($G$5="Q1",SUMIFS(Energy_Sold_MWh[Energy Sold MWh],Energy_Sold_MWh[Year],a!B$200,Energy_Sold_MWh[Quarter],"Q1",Energy_Sold_MWh[Distribution Utility],$F71),IF($G$5="Q2",SUMIFS(Energy_Sold_MWh[Energy Sold MWh],Energy_Sold_MWh[Year],a!B$200,Energy_Sold_MWh[Quarter],"Q2",Energy_Sold_MWh[Distribution Utility],$F71),IF($G$5="Q3",SUMIFS(Energy_Sold_MWh[Energy Sold MWh],Energy_Sold_MWh[Year],a!B$200,Energy_Sold_MWh[Quarter],"Q3",Energy_Sold_MWh[Distribution Utility],$F71),IF($G$5="Q4",SUMIFS(Energy_Sold_MWh[Energy Sold MWh],Energy_Sold_MWh[Year],a!B$200,Energy_Sold_MWh[Quarter],"Q4",Energy_Sold_MWh[Distribution Utility],$F71), IF($G$5="Calendar Year",SUMIFS(Energy_Sold_MWh[Energy Sold MWh],Energy_Sold_MWh[Year],a!B$200,Energy_Sold_MWh[Distribution Utility],$F71),""))))))/10^3,"") -> 0 | I71: =IFERROR(SUM(IF($G$5="Q1",SUMIFS(Energy_Sold_MWh[Energy Sold MWh],Energy_Sold_MWh[Year],a!C$200,Energy_Sold_MWh[Quarter],"Q1",Energy_Sold_MWh[Distribution Utility],$F71),IF($G$5="Q2",SUMIFS(Energy_Sold_MWh[Energy Sold MWh],Energy_Sold_MWh[Year],a!C$200,Energy_Sold_MWh[Quarter],"Q2",Energy_Sold_MWh[Distribution Utility],$F71),IF($G$5="Q3",SUMIFS(Energy_Sold_MWh[Energy Sold MWh],Energy_Sold_MWh[Year],a!C$200,Energy_Sold_MWh[Quarter],"Q3",Energy_Sold_MWh[Distribution Utility],$F71),IF($G$5="Q4",SUMIFS(Energy_Sold_MWh[Energy Sold MWh],Energy_Sold_MWh[Year],a!C$200,Energy_Sold_MWh[Quarter],"Q4",Energy_Sold_MWh[Distribution Utility],$F71), IF($G$5="Calendar Year",SUMIFS(Energy_Sold_MWh[Energy Sold MWh],Energy_Sold_MWh[Year],a!C$200,Energy_Sold_MWh[Distribution Utility],$F71),""))))))/10^3,"") -> 0 | J71: =IFERROR(SUM(IF($G$5="Q1",SUMIFS(Energy_Sold_MWh[Energy Sold MWh],Energy_Sold_MWh[Year],a!D$200,Energy_Sold_MWh[Quarter],"Q1",Energy_Sold_MWh[Distribution Utility],$F71),IF($G$5="Q2",SUMIFS(Energy_Sold_MWh[Energy Sold MWh],Energy_Sold_MWh[Year],a!D$200,Energy_Sold_MWh[Quarter],"Q2",Energy_Sold_MWh[Distribution Utility],$F71),IF($G$5="Q3",SUMIFS(Energy_Sold_MWh[Energy Sold MWh],Energy_Sold_MWh[Year],a!D$200,Energy_Sold_MWh[Quarter],"Q3",Energy_Sold_MWh[Distribution Utility],$F71),IF($G$5="Q4",SUMIFS(Energy_Sold_MWh[Energy Sold MWh],Energy_Sold_MWh[Year],a!D$200,Energy_Sold_MWh[Quarter],"Q4",Energy_Sold_MWh[Distribution Utility],$F71), IF($G$5="Calendar Year",SUMIFS(Energy_Sold_MWh[Energy Sold MWh],Energy_Sold_MWh[Year],a!D$200,Energy_Sold_MWh[Distribution Utility],$F71),""))))))/10^3,"") -> 0 | K71: =IFERROR(SUM(IF($G$5="Q1",SUMIFS(Energy_Sold_MWh[Energy Sold MWh],Energy_Sold_MWh[Year],a!E$200,Energy_Sold_MWh[Quarter],"Q1",Energy_Sold_MWh[Distribution Utility],$F71),IF($G$5="Q2",SUMIFS(Energy_Sold_MWh[Energy Sold MWh],Energy_Sold_MWh[Year],a!E$200,Energy_Sold_MWh[Quarter],"Q2",Energy_Sold_MWh[Distribution Utility],$F71),IF($G$5="Q3",SUMIFS(Energy_Sold_MWh[Energy Sold MWh],Energy_Sold_MWh[Year],a!E$200,Energy_Sold_MWh[Quarter],"Q3",Energy_Sold_MWh[Distribution Utility],$F71),IF($G$5="Q4",SUMIFS(Energy_Sold_MWh[Energy Sold MWh],Energy_Sold_MWh[Year],a!E$200,Energy_Sold_MWh[Quarter],"Q4",Energy_Sold_MWh[Distribution Utility],$F71), IF($G$5="Calendar Year",SUMIFS(Energy_Sold_MWh[Energy Sold MWh],Energy_Sold_MWh[Year],a!E$200,Energy_Sold_MWh[Distribution Utility],$F71),""))))))/10^3,"") -> 0
F72: KILEMBE INVESTMENTS LIMITED | G72: =IFERROR(SUM(IF($G$5="Q1",SUMIFS(Energy_Sold_MWh[Energy Sold MWh],Energy_Sold_MWh[Year],a!A$200,Energy_Sold_MWh[Quarter],"Q1",Energy_Sold_MWh[Distribution Utility],$F72),IF($G$5="Q2",SUMIFS(Energy_Sold_MWh[Energy Sold MWh],Energy_Sold_MWh[Year],a!A$200,Energy_Sold_MWh[Quarter],"Q2",Energy_Sold_MWh[Distribution Utility],$F72),IF($G$5="Q3",SUMIFS(Energy_Sold_MWh[Energy Sold MWh],Energy_Sold_MWh[Year],a!A$200,Energy_Sold_MWh[Quarter],"Q3",Energy_Sold_MWh[Distribution Utility],$F72),IF($G$5="Q4",SUMIFS(Energy_Sold_MWh[Energy Sold MWh],Energy_Sold_MWh[Year],a!A$200,Energy_Sold_MWh[Quarter],"Q4",Energy_Sold_MWh[Distribution Utility],$F72), IF($G$5="Calendar Year",SUMIFS(Energy_Sold_MWh[Energy Sold MWh],Energy_Sold_MWh[Year],a!A$200,Energy_Sold_MWh[Distribution Utility],$F72),""))))))/10^3,"") -> 2.815633 | H72: =IFERROR(SUM(IF($G$5="Q1",SUMIFS(Energy_Sold_MWh[Energy Sold MWh],Energy_Sold_MWh[Year],a!B$200,Energy_Sold_MWh[Quarter],"Q1",Energy_Sold_MWh[Distribution Utility],$F72),IF($G$5="Q2",SUMIFS(Energy_Sold_MWh[Energy Sold MWh],Energy_Sold_MWh[Year],a!B$200,Energy_Sold_MWh[Quarter],"Q2",Energy_Sold_MWh[Distribution Utility],$F72),IF($G$5="Q3",SUMIFS(Energy_Sold_MWh[Energy Sold MWh],Energy_Sold_MWh[Year],a!B$200,Energy_Sold_MWh[Quarter],"Q3",Energy_Sold_MWh[Distribution Utility],$F72),IF($G$5="Q4",SUMIFS(Energy_Sold_MWh[Energy Sold MWh],Energy_Sold_MWh[Year],a!B$200,Energy_Sold_MWh[Quarter],"Q4",Energy_Sold_MWh[Distribution Utility],$F72), IF($G$5="Calendar Year",SUMIFS(Energy_Sold_MWh[Energy Sold MWh],Energy_Sold_MWh[Year],a!B$200,Energy_Sold_MWh[Distribution Utility],$F72),""))))))/10^3,"") -> 1.321516 | I72: =IFERROR(SUM(IF($G$5="Q1",SUMIFS(Energy_Sold_MWh[Energy Sold MWh],Energy_Sold_MWh[Year],a!C$200,Energy_Sold_MWh[Quarter],"Q1",Energy_Sold_MWh[Distribution Utility],$F72),IF($G$5="Q2",SUMIFS(Energy_Sold_MWh[Energy Sold MWh],Energy_Sold_MWh[Year],a!C$200,Energy_Sold_MWh[Quarter],"Q2",Energy_Sold_MWh[Distribution Utility],$F72),IF($G$5="Q3",SUMIFS(Energy_Sold_MWh[Energy Sold MWh],Energy_Sold_MWh[Year],a!C$200,Energy_Sold_MWh[Quarter],"Q3",Energy_Sold_MWh[Distribution Utility],$F72),IF($G$5="Q4",SUMIFS(Energy_Sold_MWh[Energy Sold MWh],Energy_Sold_MWh[Year],a!C$200,Energy_Sold_MWh[Quarter],"Q4",Energy_Sold_MWh[Distribution Utility],$F72), IF($G$5="Calendar Year",SUMIFS(Energy_Sold_MWh[Energy Sold MWh],Energy_Sold_MWh[Year],a!C$200,Energy_Sold_MWh[Distribution Utility],$F72),""))))))/10^3,"") -> 4.425215 | J72: =IFERROR(SUM(IF($G$5="Q1",SUMIFS(Energy_Sold_MWh[Energy Sold MWh],Energy_Sold_MWh[Year],a!D$200,Energy_Sold_MWh[Quarter],"Q1",Energy_Sold_MWh[Distribution Utility],$F72),IF($G$5="Q2",SUMIFS(Energy_Sold_MWh[Energy Sold MWh],Energy_Sold_MWh[Year],a!D$200,Energy_Sold_MWh[Quarter],"Q2",Energy_Sold_MWh[Distribution Utility],$F72),IF($G$5="Q3",SUMIFS(Energy_Sold_MWh[Energy Sold MWh],Energy_Sold_MWh[Year],a!D$200,Energy_Sold_MWh[Quarter],"Q3",Energy_Sold_MWh[Distribution Utility],$F72),IF($G$5="Q4",SUMIFS(Energy_Sold_MWh[Energy Sold MWh],Energy_Sold_MWh[Year],a!D$200,Energy_Sold_MWh[Quarter],"Q4",Energy_Sold_MWh[Distribution Utility],$F72), IF($G$5="Calendar Year",SUMIFS(Energy_Sold_MWh[Energy Sold MWh],Energy_Sold_MWh[Year],a!D$200,Energy_Sold_MWh[Distribution Utility],$F72),""))))))/10^3,"") -> 0 | K72: =IFERROR(SUM(IF($G$5="Q1",SUMIFS(Energy_Sold_MWh[Energy Sold MWh],Energy_Sold_MWh[Year],a!E$200,Energy_Sold_MWh[Quarter],"Q1",Energy_Sold_MWh[Distribution Utility],$F72),IF($G$5="Q2",SUMIFS(Energy_Sold_MWh[Energy Sold MWh],Energy_Sold_MWh[Year],a!E$200,Energy_Sold_MWh[Quarter],"Q2",Energy_Sold_MWh[Distribution Utility],$F72),IF($G$5="Q3",SUMIFS(Energy_Sold_MWh[Energy Sold MWh],Energy_Sold_MWh[Year],a!E$200,Energy_Sold_MWh[Quarter],"Q3",Energy_Sold_MWh[Distribution Utility],$F72),IF($G$5="Q4",SUMIFS(Energy_Sold_MWh[Energy Sold MWh],Energy_Sold_MWh[Year],a!E$200,Energy_Sold_MWh[Quarter],"Q4",Energy_Sold_MWh[Distribution Utility],$F72), IF($G$5="Calendar Year",SUMIFS(Energy_Sold_MWh[Energy Sold MWh],Energy_Sold_MWh[Year],a!E$200,Energy_Sold_MWh[Distribution Utility],$F72),""))))))/10^3,"") -> 0
F73: TAIFA TECHNOLOGIES LTD | G73: =IFERROR(SUM(IF($G$5="Q1",SUMIFS(Energy_Sold_MWh[Energy Sold MWh],Energy_Sold_MWh[Year],a!A$200,Energy_Sold_MWh[Quarter],"Q1",Energy_Sold_MWh[Distribution Utility],$F73),IF($G$5="Q2",SUMIFS(Energy_Sold_MWh[Energy Sold MWh],Energy_Sold_MWh[Year],a!A$200,Energy_Sold_MWh[Quarter],"Q2",Energy_Sold_MWh[Distribution Utility],$F73),IF($G$5="Q3",SUMIFS(Energy_Sold_MWh[Energy Sold MWh],Energy_Sold_MWh[Year],a!A$200,Energy_Sold_MWh[Quarter],"Q3",Energy_Sold_MWh[Distribution Utility],$F73),IF($G$5="Q4",SUMIFS(Energy_Sold_MWh[Energy Sold MWh],Energy_Sold_MWh[Year],a!A$200,Energy_Sold_MWh[Quarter],"Q4",Energy_Sold_MWh[Distribution Utility],$F73), IF($G$5="Calendar Year",SUMIFS(Energy_Sold_MWh[Energy Sold MWh],Energy_Sold_MWh[Year],a!A$200,Energy_Sold_MWh[Distribution Utility],$F73),""))))))/10^3,"") -> 0 | H73: =IFERROR(SUM(IF($G$5="Q1",SUMIFS(Energy_Sold_MWh[Energy Sold MWh],Energy_Sold_MWh[Year],a!B$200,Energy_Sold_MWh[Quarter],"Q1",Energy_Sold_MWh[Distribution Utility],$F73),IF($G$5="Q2",SUMIFS(Energy_Sold_MWh[Energy Sold MWh],Energy_Sold_MWh[Year],a!B$200,Energy_Sold_MWh[Quarter],"Q2",Energy_Sold_MWh[Distribution Utility],$F73),IF($G$5="Q3",SUMIFS(Energy_Sold_MWh[Energy Sold MWh],Energy_Sold_MWh[Year],a!B$200,Energy_Sold_MWh[Quarter],"Q3",Energy_Sold_MWh[Distribution Utility],$F73),IF($G$5="Q4",SUMIFS(Energy_Sold_MWh[Energy Sold MWh],Energy_Sold_MWh[Year],a!B$200,Energy_Sold_MWh[Quarter],"Q4",Energy_Sold_MWh[Distribution Utility],$F73), IF($G$5="Calendar Year",SUMIFS(Energy_Sold_MWh[Energy Sold MWh],Energy_Sold_MWh[Year],a!B$200,Energy_Sold_MWh[Distribution Utility],$F73),""))))))/10^3,"") -> 0 | I73: =IFERROR(SUM(IF($G$5="Q1",SUMIFS(Energy_Sold_MWh[Energy Sold MWh],Energy_Sold_MWh[Year],a!C$200,Energy_Sold_MWh[Quarter],"Q1",Energy_Sold_MWh[Distribution Utility],$F73),IF($G$5="Q2",SUMIFS(Energy_Sold_MWh[Energy Sold MWh],Energy_Sold_MWh[Year],a!C$200,Energy_Sold_MWh[Quarter],"Q2",Energy_Sold_MWh[Distribution Utility],$F73),IF($G$5="Q3",SUMIFS(Energy_Sold_MWh[Energy Sold MWh],Energy_Sold_MWh[Year],a!C$200,Energy_Sold_MWh[Quarter],"Q3",Energy_Sold_MWh[Distribution Utility],$F73),IF($G$5="Q4",SUMIFS(Energy_Sold_MWh[Energy Sold MWh],Energy_Sold_MWh[Year],a!C$200,Energy_Sold_MWh[Quarter],"Q4",Energy_Sold_MWh[Distribution Utility],$F73), IF($G$5="Calendar Year",SUMIFS(Energy_Sold_MWh[Energy Sold MWh],Energy_Sold_MWh[Year],a!C$200,Energy_Sold_MWh[Distribution Utility],$F73),""))))))/10^3,"") -> 0 | J73: =IFERROR(SUM(IF($G$5="Q1",SUMIFS(Energy_Sold_MWh[Energy Sold MWh],Energy_Sold_MWh[Year],a!D$200,Energy_Sold_MWh[Quarter],"Q1",Energy_Sold_MWh[Distribution Utility],$F73),IF($G$5="Q2",SUMIFS(Energy_Sold_MWh[Energy Sold MWh],Energy_Sold_MWh[Year],a!D$200,Energy_Sold_MWh[Quarter],"Q2",Energy_Sold_MWh[Distribution Utility],$F73),IF($G$5="Q3",SUMIFS(Energy_Sold_MWh[Energy Sold MWh],Energy_Sold_MWh[Year],a!D$200,Energy_Sold_MWh[Quarter],"Q3",Energy_Sold_MWh[Distribution Utility],$F73),IF($G$5="Q4",SUMIFS(Energy_Sold_MWh[Energy Sold MWh],Energy_Sold_MWh[Year],a!D$200,Energy_Sold_MWh[Quarter],"Q4",Energy_Sold_MWh[Distribution Utility],$F73), IF($G$5="Calendar Year",SUMIFS(Energy_Sold_MWh[Energy Sold MWh],Energy_Sold_MWh[Year],a!D$200,Energy_Sold_MWh[Distribution Utility],$F73),""))))))/10^3,"") -> 0 | K73: =IFERROR(SUM(IF($G$5="Q1",SUMIFS(Energy_Sold_MWh[Energy Sold MWh],Energy_Sold_MWh[Year],a!E$200,Energy_Sold_MWh[Quarter],"Q1",Energy_Sold_MWh[Distribution Utility],$F73),IF($G$5="Q2",SUMIFS(Energy_Sold_MWh[Energy Sold MWh],Energy_Sold_MWh[Year],a!E$200,Energy_Sold_MWh[Quarter],"Q2",Energy_Sold_MWh[Distribution Utility],$F73),IF($G$5="Q3",SUMIFS(Energy_Sold_MWh[Energy Sold MWh],Energy_Sold_MWh[Year],a!E$200,Energy_Sold_MWh[Quarter],"Q3",Energy_Sold_MWh[Distribution Utility],$F73),IF($G$5="Q4",SUMIFS(Energy_Sold_MWh[Energy Sold MWh],Energy_Sold_MWh[Year],a!E$200,Energy_Sold_MWh[Quarter],"Q4",Energy_Sold_MWh[Distribution Utility],$F73), IF($G$5="Calendar Year",SUMIFS(Energy_Sold_MWh[Energy Sold MWh],Energy_Sold_MWh[Year],a!E$200,Energy_Sold_MWh[Distribution Utility],$F73),""))))))/10^3,"") -> 90.865835
F74: KIS | G74: =IFERROR(SUM(IF($G$5="Q1",SUMIFS(Energy_Sold_MWh[Energy Sold MWh],Energy_Sold_MWh[Year],a!A$200,Energy_Sold_MWh[Quarter],"Q1",Energy_Sold_MWh[Distribution Utility],$F74),IF($G$5="Q2",SUMIFS(Energy_Sold_MWh[Energy Sold MWh],Energy_Sold_MWh[Year],a!A$200,Energy_Sold_MWh[Quarter],"Q2",Energy_Sold_MWh[Distribution Utility],$F74),IF($G$5="Q3",SUMIFS(Energy_Sold_MWh[Energy Sold MWh],Energy_Sold_MWh[Year],a!A$200,Energy_Sold_MWh[Quarter],"Q3",Energy_Sold_MWh[Distribution Utility],$F74),IF($G$5="Q4",SUMIFS(Energy_Sold_MWh[Energy Sold MWh],Energy_Sold_MWh[Year],a!A$200,Energy_Sold_MWh[Quarter],"Q4",Energy_Sold_MWh[Distribution Utility],$F74), IF($G$5="Calendar Year",SUMIFS(Energy_Sold_MWh[Energy Sold MWh],Energy_Sold_MWh[Year],a!A$200,Energy_Sold_MWh[Distribution Utility],$F74),""))))))/10^3,"") -> 0 | H74: =IFERROR(SUM(IF($G$5="Q1",SUMIFS(Energy_Sold_MWh[Energy Sold MWh],Energy_Sold_MWh[Year],a!B$200,Energy_Sold_MWh[Quarter],"Q1",Energy_Sold_MWh[Distribution Utility],$F74),IF($G$5="Q2",SUMIFS(Energy_Sold_MWh[Energy Sold MWh],Energy_Sold_MWh[Year],a!B$200,Energy_Sold_MWh[Quarter],"Q2",Energy_Sold_MWh[Distribution Utility],$F74),IF($G$5="Q3",SUMIFS(Energy_Sold_MWh[Energy Sold MWh],Energy_Sold_MWh[Year],a!B$200,Energy_Sold_MWh[Quarter],"Q3",Energy_Sold_MWh[Distribution Utility],$F74),IF($G$5="Q4",SUMIFS(Energy_Sold_MWh[Energy Sold MWh],Energy_Sold_MWh[Year],a!B$200,Energy_Sold_MWh[Quarter],"Q4",Energy_Sold_MWh[Distribution Utility],$F74), IF($G$5="Calendar Year",SUMIFS(Energy_Sold_MWh[Energy Sold MWh],Energy_Sold_MWh[Year],a!B$200,Energy_Sold_MWh[Distribution Utility],$F74),""))))))/10^3,"") -> 0 | I74: =IFERROR(SUM(IF($G$5="Q1",SUMIFS(Energy_Sold_MWh[Energy Sold MWh],Energy_Sold_MWh[Year],a!C$200,Energy_Sold_MWh[Quarter],"Q1",Energy_Sold_MWh[Distribution Utility],$F74),IF($G$5="Q2",SUMIFS(Energy_Sold_MWh[Energy Sold MWh],Energy_Sold_MWh[Year],a!C$200,Energy_Sold_MWh[Quarter],"Q2",Energy_Sold_MWh[Distribution Utility],$F74),IF($G$5="Q3",SUMIFS(Energy_Sold_MWh[Energy Sold MWh],Energy_Sold_MWh[Year],a!C$200,Energy_Sold_MWh[Quarter],"Q3",Energy_Sold_MWh[Distribution Utility],$F74),IF($G$5="Q4",SUMIFS(Energy_Sold_MWh[Energy Sold MWh],Energy_Sold_MWh[Year],a!C$200,Energy_Sold_MWh[Quarter],"Q4",Energy_Sold_MWh[Distribution Utility],$F74), IF($G$5="Calendar Year",SUMIFS(Energy_Sold_MWh[Energy Sold MWh],Energy_Sold_MWh[Year],a!C$200,Energy_Sold_MWh[Distribution Utility],$F74),""))))))/10^3,"") -> 0 | J74: =IFERROR(SUM(IF($G$5="Q1",SUMIFS(Energy_Sold_MWh[Energy Sold MWh],Energy_Sold_MWh[Year],a!D$200,Energy_Sold_MWh[Quarter],"Q1",Energy_Sold_MWh[Distribution Utility],$F74),IF($G$5="Q2",SUMIFS(Energy_Sold_MWh[Energy Sold MWh],Energy_Sold_MWh[Year],a!D$200,Energy_Sold_MWh[Quarter],"Q2",Energy_Sold_MWh[Distribution Utility],$F74),IF($G$5="Q3",SUMIFS(Energy_Sold_MWh[Energy Sold MWh],Energy_Sold_MWh[Year],a!D$200,Energy_Sold_MWh[Quarter],"Q3",Energy_Sold_MWh[Distribution Utility],$F74),IF($G$5="Q4",SUMIFS(Energy_Sold_MWh[Energy Sold MWh],Energy_Sold_MWh[Year],a!D$200,Energy_Sold_MWh[Quarter],"Q4",Energy_Sold_MWh[Distribution Utility],$F74), IF($G$5="Calendar Year",SUMIFS(Energy_Sold_MWh[Energy Sold MWh],Energy_Sold_MWh[Year],a!D$200,Energy_Sold_MWh[Distribution Utility],$F74),""))))))/10^3,"") -> 0.574222 | K74: =IFERROR(SUM(IF($G$5="Q1",SUMIFS(Energy_Sold_MWh[Energy Sold MWh],Energy_Sold_MWh[Year],a!E$200,Energy_Sold_MWh[Quarter],"Q1",Energy_Sold_MWh[Distribution Utility],$F74),IF($G$5="Q2",SUMIFS(Energy_Sold_MWh[Energy Sold MWh],Energy_Sold_MWh[Year],a!E$200,Energy_Sold_MWh[Quarter],"Q2",Energy_Sold_MWh[Distribution Utility],$F74),IF($G$5="Q3",SUMIFS(Energy_Sold_MWh[Energy Sold MWh],Energy_Sold_MWh[Year],a!E$200,Energy_Sold_MWh[Quarter],"Q3",Energy_Sold_MWh[Distribution Utility],$F74),IF($G$5="Q4",SUMIFS(Energy_Sold_MWh[Energy Sold MWh],Energy_Sold_MWh[Year],a!E$200,Energy_Sold_MWh[Quarter],"Q4",Energy_Sold_MWh[Distribution Utility],$F74), IF($G$5="Calendar Year",SUMIFS(Energy_Sold_MWh[Energy Sold MWh],Energy_Sold_MWh[Year],a!E$200,Energy_Sold_MWh[Distribution Utility],$F74),""))))))/10^3,"") -> 112.25245
F75: KPLC | G75: =IFERROR(SUM(IF($G$5="Q1",SUMIFS(Energy_Sold_MWh[Energy Sold MWh],Energy_Sold_MWh[Year],a!A$200,Energy_Sold_MWh[Quarter],"Q1",Energy_Sold_MWh[Distribution Utility],$F75),IF($G$5="Q2",SUMIFS(Energy_Sold_MWh[Energy Sold MWh],Energy_Sold_MWh[Year],a!A$200,Energy_Sold_MWh[Quarter],"Q2",Energy_Sold_MWh[Distribution Utility],$F75),IF($G$5="Q3",SUMIFS(Energy_Sold_MWh[Energy Sold MWh],Energy_Sold_MWh[Year],a!A$200,Energy_Sold_MWh[Quarter],"Q3",Energy_Sold_MWh[Distribution Utility],$F75),IF($G$5="Q4",SUMIFS(Energy_Sold_MWh[Energy Sold MWh],Energy_Sold_MWh[Year],a!A$200,Energy_Sold_MWh[Quarter],"Q4",Energy_Sold_MWh[Distribution Utility],$F75), IF($G$5="Calendar Year",SUMIFS(Energy_Sold_MWh[Energy Sold MWh],Energy_Sold_MWh[Year],a!A$200,Energy_Sold_MWh[Distribution Utility],$F75),""))))))/10^3,"") -> 95.56045 | H75: =IFERROR(SUM(IF($G$5="Q1",SUMIFS(Energy_Sold_MWh[Energy Sold MWh],Energy_Sold_MWh[Year],a!B$200,Energy_Sold_MWh[Quarter],"Q1",Energy_Sold_MWh[Distribution Utility],$F75),IF($G$5="Q2",SUMIFS(Energy_Sold_MWh[Energy Sold MWh],Energy_Sold_MWh[Year],a!B$200,Energy_Sold_MWh[Quarter],"Q2",Energy_Sold_MWh[Distribution Utility],$F75),IF($G$5="Q3",SUMIFS(Energy_Sold_MWh[Energy Sold MWh],Energy_Sold_MWh[Year],a!B$200,Energy_Sold_MWh[Quarter],"Q3",Energy_Sold_MWh[Distribution Utility],$F75),IF($G$5="Q4",SUMIFS(Energy_Sold_MWh[Energy Sold MWh],Energy_Sold_MWh[Year],a!B$200,Energy_Sold_MWh[Quarter],"Q4",Energy_Sold_MWh[Distribution Utility],$F75), IF($G$5="Calendar Year",SUMIFS(Energy_Sold_MWh[Energy Sold MWh],Energy_Sold_MWh[Year],a!B$200,Energy_Sold_MWh[Distribution Utility],$F75),""))))))/10^3,"") -> 70.015916 | I75: =IFERROR(SUM(IF($G$5="Q1",SUMIFS(Energy_Sold_MWh[Energy Sold MWh],Energy_Sold_MWh[Year],a!C$200,Energy_Sold_MWh[Quarter],"Q1",Energy_Sold_MWh[Distribution Utility],$F75),IF($G$5="Q2",SUMIFS(Energy_Sold_MWh[Energy Sold MWh],Energy_Sold_MWh[Year],a!C$200,Energy_Sold_MWh[Quarter],"Q2",Energy_Sold_MWh[Distribution Utility],$F75),IF($G$5="Q3",SUMIFS(Energy_Sold_MWh[Energy Sold MWh],Energy_Sold_MWh[Year],a!C$200,Energy_Sold_MWh[Quarter],"Q3",Energy_Sold_MWh[Distribution Utility],$F75),IF($G$5="Q4",SUMIFS(Energy_Sold_MWh[Energy Sold MWh],Energy_Sold_MWh[Year],a!C$200,Energy_Sold_MWh[Quarter],"Q4",Energy_Sold_MWh[Distribution Utility],$F75), IF($G$5="Calendar Year",SUMIFS(Energy_Sold_MWh[Energy Sold MWh],Energy_Sold_MWh[Year],a!C$200,Energy_Sold_MWh[Distribution Utility],$F75),""))))))/10^3,"") -> 55.850544 | J75: =IFERROR(SUM(IF($G$5="Q1",SUMIFS(Energy_Sold_MWh[Energy Sold MWh],Energy_Sold_MWh[Year],a!D$200,Energy_Sold_MWh[Quarter],"Q1",Energy_Sold_MWh[Distribution Utility],$F75),IF($G$5="Q2",SUMIFS(Energy_Sold_MWh[Energy Sold MWh],Energy_Sold_MWh[Year],a!D$200,Energy_Sold_MWh[Quarter],"Q2",Energy_Sold_MWh[Distribution Utility],$F75),IF($G$5="Q3",SUMIFS(Energy_Sold_MWh[Energy Sold MWh],Energy_Sold_MWh[Year],a!D$200,Energy_Sold_MWh[Quarter],"Q3",Energy_Sold_MWh[Distribution Utility],$F75),IF($G$5="Q4",SUMIFS(Energy_Sold_MWh[Energy Sold MWh],Energy_Sold_MWh[Year],a!D$200,Energy_Sold_MWh[Quarter],"Q4",Energy_Sold_MWh[Distribution Utility],$F75), IF($G$5="Calendar Year",SUMIFS(Energy_Sold_MWh[Energy Sold MWh],Energy_Sold_MWh[Year],a!D$200,Energy_Sold_MWh[Distribution Utility],$F75),""))))))/10^3,"") -> 54.944915 | K75: =IFERROR(SUM(IF($G$5="Q1",SUMIFS(Energy_Sold_MWh[Energy Sold MWh],Energy_Sold_MWh[Year],a!E$200,Energy_Sold_MWh[Quarter],"Q1",Energy_Sold_MWh[Distribution Utility],$F75),IF($G$5="Q2",SUMIFS(Energy_Sold_MWh[Energy Sold MWh],Energy_Sold_MWh[Year],a!E$200,Energy_Sold_MWh[Quarter],"Q2",Energy_Sold_MWh[Distribution Utility],$F75),IF($G$5="Q3",SUMIFS(Energy_Sold_MWh[Energy Sold MWh],Energy_Sold_MWh[Year],a!E$200,Energy_Sold_MWh[Quarter],"Q3",Energy_Sold_MWh[Distribution Utility],$F75),IF($G$5="Q4",SUMIFS(Energy_Sold_MWh[Energy Sold MWh],Energy_Sold_MWh[Year],a!E$200,Energy_Sold_MWh[Quarter],"Q4",Energy_Sold_MWh[Distribution Utility],$F75), IF($G$5="Calendar Year",SUMIFS(Energy_Sold_MWh[Energy Sold MWh],Energy_Sold_MWh[Year],a!E$200,Energy_Sold_MWh[Distribution Utility],$F75),""))))))/10^3,"") -> 29.1401484
F76: KYEGEGWA RURAL ELECTRIFICATION COMPANY LIMITED | G76: =IFERROR(SUM(IF($G$5="Q1",SUMIFS(Energy_Sold_MWh[Energy Sold MWh],Energy_Sold_MWh[Year],a!A$200,Energy_Sold_MWh[Quarter],"Q1",Energy_Sold_MWh[Distribution Utility],$F76),IF($G$5="Q2",SUMIFS(Energy_Sold_MWh[Energy Sold MWh],Energy_Sold_MWh[Year],a!A$200,Energy_Sold_MWh[Quarter],"Q2",Energy_Sold_MWh[Distribution Utility],$F76),IF($G$5="Q3",SUMIFS(Energy_Sold_MWh[Energy Sold MWh],Energy_Sold_MWh[Year],a!A$200,Energy_Sold_MWh[Quarter],"Q3",Energy_Sold_MWh[Distribution Utility],$F76),IF($G$5="Q4",SUMIFS(Energy_Sold_MWh[Energy Sold MWh],Energy_Sold_MWh[Year],a!A$200,Energy_Sold_MWh[Quarter],"Q4",Energy_Sold_MWh[Distribution Utility],$F76), IF($G$5="Calendar Year",SUMIFS(Energy_Sold_MWh[Energy Sold MWh],Energy_Sold_MWh[Year],a!A$200,Energy_Sold_MWh[Distribution Utility],$F76),""))))))/10^3,"") -> 3.020176 | H76: =IFERROR(SUM(IF($G$5="Q1",SUMIFS(Energy_Sold_MWh[Energy Sold MWh],Energy_Sold_MWh[Year],a!B$200,Energy_Sold_MWh[Quarter],"Q1",Energy_Sold_MWh[Distribution Utility],$F76),IF($G$5="Q2",SUMIFS(Energy_Sold_MWh[Energy Sold MWh],Energy_Sold_MWh[Year],a!B$200,Energy_Sold_MWh[Quarter],"Q2",Energy_Sold_MWh[Distribution Utility],$F76),IF($G$5="Q3",SUMIFS(Energy_Sold_MWh[Energy Sold MWh],Energy_Sold_MWh[Year],a!B$200,Energy_Sold_MWh[Quarter],"Q3",Energy_Sold_MWh[Distribution Utility],$F76),IF($G$5="Q4",SUMIFS(Energy_Sold_MWh[Energy Sold MWh],Energy_Sold_MWh[Year],a!B$200,Energy_Sold_MWh[Quarter],"Q4",Energy_Sold_MWh[Distribution Utility],$F76), IF($G$5="Calendar Year",SUMIFS(Energy_Sold_MWh[Energy Sold MWh],Energy_Sold_MWh[Year],a!B$200,Energy_Sold_MWh[Distribution Utility],$F76),""))))))/10^3,"") -> 3.410438 | I76: =IFERROR(SUM(IF($G$5="Q1",SUMIFS(Energy_Sold_MWh[Energy Sold MWh],Energy_Sold_MWh[Year],a!C$200,Energy_Sold_MWh[Quarter],"Q1",Energy_Sold_MWh[Distribution Utility],$F76),IF($G$5="Q2",SUMIFS(Energy_Sold_MWh[Energy Sold MWh],Energy_Sold_MWh[Year],a!C$200,Energy_Sold_MWh[Quarter],"Q2",Energy_Sold_MWh[Distribution Utility],$F76),IF($G$5="Q3",SUMIFS(Energy_Sold_MWh[Energy Sold MWh],Energy_Sold_MWh[Year],a!C$200,Energy_Sold_MWh[Quarter],"Q3",Energy_Sold_MWh[Distribution Utility],$F76),IF($G$5="Q4",SUMIFS(Energy_Sold_MWh[Energy Sold MWh],Energy_Sold_MWh[Year],a!C$200,Energy_Sold_MWh[Quarter],"Q4",Energy_Sold_MWh[Distribution Utility],$F76), IF($G$5="Calendar Year",SUMIFS(Energy_Sold_MWh[Energy Sold MWh],Energy_Sold_MWh[Year],a!C$200,Energy_Sold_MWh[Distribution Utility],$F76),""))))))/10^3,"") -> 3.948715 | J76: =IFERROR(SUM(IF($G$5="Q1",SUMIFS(Energy_Sold_MWh[Energy Sold MWh],Energy_Sold_MWh[Year],a!D$200,Energy_Sold_MWh[Quarter],"Q1",Energy_Sold_MWh[Distribution Utility],$F76),IF($G$5="Q2",SUMIFS(Energy_Sold_MWh[Energy Sold MWh],Energy_Sold_MWh[Year],a!D$200,Energy_Sold_MWh[Quarter],"Q2",Energy_Sold_MWh[Distribution Utility],$F76),IF($G$5="Q3",SUMIFS(Energy_Sold_MWh[Energy Sold MWh],Energy_Sold_MWh[Year],a!D$200,Energy_Sold_MWh[Quarter],"Q3",Energy_Sold_MWh[Distribution Utility],$F76),IF($G$5="Q4",SUMIFS(Energy_Sold_MWh[Energy Sold MWh],Energy_Sold_MWh[Year],a!D$200,Energy_Sold_MWh[Quarter],"Q4",Energy_Sold_MWh[Distribution Utility],$F76), IF($G$5="Calendar Year",SUMIFS(Energy_Sold_MWh[Energy Sold MWh],Energy_Sold_MWh[Year],a!D$200,Energy_Sold_MWh[Distribution Utility],$F76),""))))))/10^3,"") -> 0 | K76: =IFERROR(SUM(IF($G$5="Q1",SUMIFS(Energy_Sold_MWh[Energy Sold MWh],Energy_Sold_MWh[Year],a!E$200,Energy_Sold_MWh[Quarter],"Q1",Energy_Sold_MWh[Distribution Utility],$F76),IF($G$5="Q2",SUMIFS(Energy_Sold_MWh[Energy Sold MWh],Energy_Sold_MWh[Year],a!E$200,Energy_Sold_MWh[Quarter],"Q2",Energy_Sold_MWh[Distribution Utility],$F76),IF($G$5="Q3",SUMIFS(Energy_Sold_MWh[Energy Sold MWh],Energy_Sold_MWh[Year],a!E$200,Energy_Sold_MWh[Quarter],"Q3",Energy_Sold_MWh[Distribution Utility],$F76),IF($G$5="Q4",SUMIFS(Energy_Sold_MWh[Energy Sold MWh],Energy_Sold_MWh[Year],a!E$200,Energy_Sold_MWh[Quarter],"Q4",Energy_Sold_MWh[Distribution Utility],$F76), IF($G$5="Calendar Year",SUMIFS(Energy_Sold_MWh[Energy Sold MWh],Energy_Sold_MWh[Year],a!E$200,Energy_Sold_MWh[Distribution Utility],$F76),""))))))/10^3,"") -> 0
F77: PADER-ABIM (PACMECS) | G77: =IFERROR(SUM(IF($G$5="Q1",SUMIFS(Energy_Sold_MWh[Energy Sold MWh],Energy_Sold_MWh[Year],a!A$200,Energy_Sold_MWh[Quarter],"Q1",Energy_Sold_MWh[Distribution Utility],$F77),IF($G$5="Q2",SUMIFS(Energy_Sold_MWh[Energy Sold MWh],Energy_Sold_MWh[Year],a!A$200,Energy_Sold_MWh[Quarter],"Q2",Energy_Sold_MWh[Distribution Utility],$F77),IF($G$5="Q3",SUMIFS(Energy_Sold_MWh[Energy Sold MWh],Energy_Sold_MWh[Year],a!A$200,Energy_Sold_MWh[Quarter],"Q3",Energy_Sold_MWh[Distribution Utility],$F77),IF($G$5="Q4",SUMIFS(Energy_Sold_MWh[Energy Sold MWh],Energy_Sold_MWh[Year],a!A$200,Energy_Sold_MWh[Quarter],"Q4",Energy_Sold_MWh[Distribution Utility],$F77), IF($G$5="Calendar Year",SUMIFS(Energy_Sold_MWh[Energy Sold MWh],Energy_Sold_MWh[Year],a!A$200,Energy_Sold_MWh[Distribution Utility],$F77),""))))))/10^3,"") -> 1.022117 | H77: =IFERROR(SUM(IF($G$5="Q1",SUMIFS(Energy_Sold_MWh[Energy Sold MWh],Energy_Sold_MWh[Year],a!B$200,Energy_Sold_MWh[Quarter],"Q1",Energy_Sold_MWh[Distribution Utility],$F77),IF($G$5="Q2",SUMIFS(Energy_Sold_MWh[Energy Sold MWh],Energy_Sold_MWh[Year],a!B$200,Energy_Sold_MWh[Quarter],"Q2",Energy_Sold_MWh[Distribution Utility],$F77),IF($G$5="Q3",SUMIFS(Energy_Sold_MWh[Energy Sold MWh],Energy_Sold_MWh[Year],a!B$200,Energy_Sold_MWh[Quarter],"Q3",Energy_Sold_MWh[Distribution Utility],$F77),IF($G$5="Q4",SUMIFS(Energy_Sold_MWh[Energy Sold MWh],Energy_Sold_MWh[Year],a!B$200,Energy_Sold_MWh[Quarter],"Q4",Energy_Sold_MWh[Distribution Utility],$F77), IF($G$5="Calendar Year",SUMIFS(Energy_Sold_MWh[Energy Sold MWh],Energy_Sold_MWh[Year],a!B$200,Energy_Sold_MWh[Distribution Utility],$F77),""))))))/10^3,"") -> 35.583763 | I77: =IFERROR(SUM(IF($G$5="Q1",SUMIFS(Energy_Sold_MWh[Energy Sold MWh],Energy_Sold_MWh[Year],a!C$200,Energy_Sold_MWh[Quarter],"Q1",Energy_Sold_MWh[Distribution Utility],$F77),IF($G$5="Q2",SUMIFS(Energy_Sold_MWh[Energy Sold MWh],Energy_Sold_MWh[Year],a!C$200,Energy_Sold_MWh[Quarter],"Q2",Energy_Sold_MWh[Distribution Utility],$F77),IF($G$5="Q3",SUMIFS(Energy_Sold_MWh[Energy Sold MWh],Energy_Sold_MWh[Year],a!C$200,Energy_Sold_MWh[Quarter],"Q3",Energy_Sold_MWh[Distribution Utility],$F77),IF($G$5="Q4",SUMIFS(Energy_Sold_MWh[Energy Sold MWh],Energy_Sold_MWh[Year],a!C$200,Energy_Sold_MWh[Quarter],"Q4",Energy_Sold_MWh[Distribution Utility],$F77), IF($G$5="Calendar Year",SUMIFS(Energy_Sold_MWh[Energy Sold MWh],Energy_Sold_MWh[Year],a!C$200,Energy_Sold_MWh[Distribution Utility],$F77),""))))))/10^3,"") -> 0 | J77: =IFERROR(SUM(IF($G$5="Q1",SUMIFS(Energy_Sold_MWh[Energy Sold MWh],Energy_Sold_MWh[Year],a!D$200,Energy_Sold_MWh[Quarter],"Q1",Energy_Sold_MWh[Distribution Utility],$F77),IF($G$5="Q2",SUMIFS(Energy_Sold_MWh[Energy Sold MWh],Energy_Sold_MWh[Year],a!D$200,Energy_Sold_MWh[Quarter],"Q2",Energy_Sold_MWh[Distribution Utility],$F77),IF($G$5="Q3",SUMIFS(Energy_Sold_MWh[Energy Sold MWh],Energy_Sold_MWh[Year],a!D$200,Energy_Sold_MWh[Quarter],"Q3",Energy_Sold_MWh[Distribution Utility],$F77),IF($G$5="Q4",SUMIFS(Energy_Sold_MWh[Energy Sold MWh],Energy_Sold_MWh[Year],a!D$200,Energy_Sold_MWh[Quarter],"Q4",Energy_Sold_MWh[Distribution Utility],$F77), IF($G$5="Calendar Year",SUMIFS(Energy_Sold_MWh[Energy Sold MWh],Energy_Sold_MWh[Year],a!D$200,Energy_Sold_MWh[Distribution Utility],$F77),""))))))/10^3,"") -> 0 | K77: =IFERROR(SUM(IF($G$5="Q1",SUMIFS(Energy_Sold_MWh[Energy Sold MWh],Energy_Sold_MWh[Year],a!E$200,Energy_Sold_MWh[Quarter],"Q1",Energy_Sold_MWh[Distribution Utility],$F77),IF($G$5="Q2",SUMIFS(Energy_Sold_MWh[Energy Sold MWh],Energy_Sold_MWh[Year],a!E$200,Energy_Sold_MWh[Quarter],"Q2",Energy_Sold_MWh[Distribution Utility],$F77),IF($G$5="Q3",SUMIFS(Energy_Sold_MWh[Energy Sold MWh],Energy_Sold_MWh[Year],a!E$200,Energy_Sold_MWh[Quarter],"Q3",Energy_Sold_MWh[Distribution Utility],$F77),IF($G$5="Q4",SUMIFS(Energy_Sold_MWh[Energy Sold MWh],Energy_Sold_MWh[Year],a!E$200,Energy_Sold_MWh[Quarter],"Q4",Energy_Sold_MWh[Distribution Utility],$F77), IF($G$5="Calendar Year",SUMIFS(Energy_Sold_MWh[Energy Sold MWh],Energy_Sold_MWh[Year],a!E$200,Energy_Sold_MWh[Distribution Utility],$F77),""))))))/10^3,"") -> 0
F78: RWANDA | G78: =IFERROR(SUM(IF($G$5="Q1",SUMIFS(Energy_Sold_MWh[Energy Sold MWh],Energy_Sold_MWh[Year],a!A$200,Energy_Sold_MWh[Quarter],"Q1",Energy_Sold_MWh[Distribution Utility],$F78),IF($G$5="Q2",SUMIFS(Energy_Sold_MWh[Energy Sold MWh],Energy_Sold_MWh[Year],a!A$200,Energy_Sold_MWh[Quarter],"Q2",Energy_Sold_MWh[Distribution Utility],$F78),IF($G$5="Q3",SUMIFS(Energy_Sold_MWh[Energy Sold MWh],Energy_Sold_MWh[Year],a!A$200,Energy_Sold_MWh[Quarter],"Q3",Energy_Sold_MWh[Distribution Utility],$F78),IF($G$5="Q4",SUMIFS(Energy_Sold_MWh[Energy Sold MWh],Energy_Sold_MWh[Year],a!A$200,Energy_Sold_MWh[Quarter],"Q4",Energy_Sold_MWh[Distribution Utility],$F78), IF($G$5="Calendar Year",SUMIFS(Energy_Sold_MWh[Energy Sold MWh],Energy_Sold_MWh[Year],a!A$200,Energy_Sold_MWh[Distribution Utility],$F78),""))))))/10^3,"") -> 2.244589 | H78: =IFERROR(SUM(IF($G$5="Q1",SUMIFS(Energy_Sold_MWh[Energy Sold MWh],Energy_Sold_MWh[Year],a!B$200,Energy_Sold_MWh[Quarter],"Q1",Energy_Sold_MWh[Distribution Utility],$F78),IF($G$5="Q2",SUMIFS(Energy_Sold_MWh[Energy Sold MWh],Energy_Sold_MWh[Year],a!B$200,Energy_Sold_MWh[Quarter],"Q2",Energy_Sold_MWh[Distribution Utility],$F78),IF($G$5="Q3",SUMIFS(Energy_Sold_MWh[Energy Sold MWh],Energy_Sold_MWh[Year],a!B$200,Energy_Sold_MWh[Quarter],"Q3",Energy_Sold_MWh[Distribution Utility],$F78),IF($G$5="Q4",SUMIFS(Energy_Sold_MWh[Energy Sold MWh],Energy_Sold_MWh[Year],a!B$200,Energy_Sold_MWh[Quarter],"Q4",Energy_Sold_MWh[Distribution Utility],$F78), IF($G$5="Calendar Year",SUMIFS(Energy_Sold_MWh[Energy Sold MWh],Energy_Sold_MWh[Year],a!B$200,Energy_Sold_MWh[Distribution Utility],$F78),""))))))/10^3,"") -> 1.30301072 | I78: =IFERROR(SUM(IF($G$5="Q1",SUMIFS(Energy_Sold_MWh[Energy Sold MWh],Energy_Sold_MWh[Year],a!C$200,Energy_Sold_MWh[Quarter],"Q1",Energy_Sold_MWh[Distribution Utility],$F78),IF($G$5="Q2",SUMIFS(Energy_Sold_MWh[Energy Sold MWh],Energy_Sold_MWh[Year],a!C$200,Energy_Sold_MWh[Quarter],"Q2",Energy_Sold_MWh[Distribution Utility],$F78),IF($G$5="Q3",SUMIFS(Energy_Sold_MWh[Energy Sold MWh],Energy_Sold_MWh[Year],a!C$200,Energy_Sold_MWh[Quarter],"Q3",Energy_Sold_MWh[Distribution Utility],$F78),IF($G$5="Q4",SUMIFS(Energy_Sold_MWh[Energy Sold MWh],Energy_Sold_MWh[Year],a!C$200,Energy_Sold_MWh[Quarter],"Q4",Energy_Sold_MWh[Distribution Utility],$F78), IF($G$5="Calendar Year",SUMIFS(Energy_Sold_MWh[Energy Sold MWh],Energy_Sold_MWh[Year],a!C$200,Energy_Sold_MWh[Distribution Utility],$F78),""))))))/10^3,"") -> 22.082209 | J78: =IFERROR(SUM(IF($G$5="Q1",SUMIFS(Energy_Sold_MWh[Energy Sold MWh],Energy_Sold_MWh[Year],a!D$200,Energy_Sold_MWh[Quarter],"Q1",Energy_Sold_MWh[Distribution Utility],$F78),IF($G$5="Q2",SUMIFS(Energy_Sold_MWh[Energy Sold MWh],Energy_Sold_MWh[Year],a!D$200,Energy_Sold_MWh[Quarter],"Q2",Energy_Sold_MWh[Distribution Utility],$F78),IF($G$5="Q3",SUMIFS(Energy_Sold_MWh[Energy Sold MWh],Energy_Sold_MWh[Year],a!D$200,Energy_Sold_MWh[Quarter],"Q3",Energy_Sold_MWh[Distribution Utility],$F78),IF($G$5="Q4",SUMIFS(Energy_Sold_MWh[Energy Sold MWh],Energy_Sold_MWh[Year],a!D$200,Energy_Sold_MWh[Quarter],"Q4",Energy_Sold_MWh[Distribution Utility],$F78), IF($G$5="Calendar Year",SUMIFS(Energy_Sold_MWh[Energy Sold MWh],Energy_Sold_MWh[Year],a!D$200,Energy_Sold_MWh[Distribution Utility],$F78),""))))))/10^3,"") -> 30.71588933 | K78: =IFERROR(SUM(IF($G$5="Q1",SUMIFS(Energy_Sold_MWh[Energy Sold MWh],Energy_Sold_MWh[Year],a!E$200,Energy_Sold_MWh[Quarter],"Q1",Energy_Sold_MWh[Distribution Utility],$F78),IF($G$5="Q2",SUMIFS(Energy_Sold_MWh[Energy Sold MWh],Energy_Sold_MWh[Year],a!E$200,Energy_Sold_MWh[Quarter],"Q2",Energy_Sold_MWh[Distribution Utility],$F78),IF($G$5="Q3",SUMIFS(Energy_Sold_MWh[Energy Sold MWh],Energy_Sold_MWh[Year],a!E$200,Energy_Sold_MWh[Quarter],"Q3",Energy_Sold_MWh[Distribution Utility],$F78),IF($G$5="Q4",SUMIFS(Energy_Sold_MWh[Energy Sold MWh],Energy_Sold_MWh[Year],a!E$200,Energy_Sold_MWh[Quarter],"Q4",Energy_Sold_MWh[Distribution Utility],$F78), IF($G$5="Calendar Year",SUMIFS(Energy_Sold_MWh[Energy Sold MWh],Energy_Sold_MWh[Year],a!E$200,Energy_Sold_MWh[Distribution Utility],$F78),""))))))/10^3,"") -> 18.11780412
F79: TANESCO | G79: =IFERROR(SUM(IF($G$5="Q1",SUMIFS(Energy_Sold_MWh[Energy Sold MWh],Energy_Sold_MWh[Year],a!A$200,Energy_Sold_MWh[Quarter],"Q1",Energy_Sold_MWh[Distribution Utility],$F79),IF($G$5="Q2",SUMIFS(Energy_Sold_MWh[Energy Sold MWh],Energy_Sold_MWh[Year],a!A$200,Energy_Sold_MWh[Quarter],"Q2",Energy_Sold_MWh[Distribution Utility],$F79),IF($G$5="Q3",SUMIFS(Energy_Sold_MWh[Energy Sold MWh],Energy_Sold_MWh[Year],a!A$200,Energy_Sold_MWh[Quarter],"Q3",Energy_Sold_MWh[Distribution Utility],$F79),IF($G$5="Q4",SUMIFS(Energy_Sold_MWh[Energy Sold MWh],Energy_Sold_MWh[Year],a!A$200,Energy_Sold_MWh[Quarter],"Q4",Energy_Sold_MWh[Distribution Utility],$F79), IF($G$5="Calendar Year",SUMIFS(Energy_Sold_MWh[Energy Sold MWh],Energy_Sold_MWh[Year],a!A$200,Energy_Sold_MWh[Distribution Utility],$F79),""))))))/10^3,"") -> 27.7075 | H79: =IFERROR(SUM(IF($G$5="Q1",SUMIFS(Energy_Sold_MWh[Energy Sold MWh],Energy_Sold_MWh[Year],a!B$200,Energy_Sold_MWh[Quarter],"Q1",Energy_Sold_MWh[Distribution Utility],$F79),IF($G$5="Q2",SUMIFS(Energy_Sold_MWh[Energy Sold MWh],Energy_Sold_MWh[Year],a!B$200,Energy_Sold_MWh[Quarter],"Q2",Energy_Sold_MWh[Distribution Utility],$F79),IF($G$5="Q3",SUMIFS(Energy_Sold_MWh[Energy Sold MWh],Energy_Sold_MWh[Year],a!B$200,Energy_Sold_MWh[Quarter],"Q3",Energy_Sold_MWh[Distribution Utility],$F79),IF($G$5="Q4",SUMIFS(Energy_Sold_MWh[Energy Sold MWh],Energy_Sold_MWh[Year],a!B$200,Energy_Sold_MWh[Quarter],"Q4",Energy_Sold_MWh[Distribution Utility],$F79), IF($G$5="Calendar Year",SUMIFS(Energy_Sold_MWh[Energy Sold MWh],Energy_Sold_MWh[Year],a!B$200,Energy_Sold_MWh[Distribution Utility],$F79),""))))))/10^3,"") -> 33.86187 | I79: =IFERROR(SUM(IF($G$5="Q1",SUMIFS(Energy_Sold_MWh[Energy Sold MWh],Energy_Sold_MWh[Year],a!C$200,Energy_Sold_MWh[Quarter],"Q1",Energy_Sold_MWh[Distribution Utility],$F79),IF($G$5="Q2",SUMIFS(Energy_Sold_MWh[Energy Sold MWh],Energy_Sold_MWh[Year],a!C$200,Energy_Sold_MWh[Quarter],"Q2",Energy_Sold_MWh[Distribution Utility],$F79),IF($G$5="Q3",SUMIFS(Energy_Sold_MWh[Energy Sold MWh],Energy_Sold_MWh[Year],a!C$200,Energy_Sold_MWh[Quarter],"Q3",Energy_Sold_MWh[Distribution Utility],$F79),IF($G$5="Q4",SUMIFS(Energy_Sold_MWh[Energy Sold MWh],Energy_Sold_MWh[Year],a!C$200,Energy_Sold_MWh[Quarter],"Q4",Energy_Sold_MWh[Distribution Utility],$F79), IF($G$5="Calendar Year",SUMIFS(Energy_Sold_MWh[Energy Sold MWh],Energy_Sold_MWh[Year],a!C$200,Energy_Sold_MWh[Distribution Utility],$F79),""))))))/10^3,"") -> 36.4219 | J79: =IFERROR(SUM(IF($G$5="Q1",SUMIFS(Energy_Sold_MWh[Energy Sold MWh],Energy_Sold_MWh[Year],a!D$200,Energy_Sold_MWh[Quarter],"Q1",Energy_Sold_MWh[Distribution Utility],$F79),IF($G$5="Q2",SUMIFS(Energy_Sold_MWh[Energy Sold MWh],Energy_Sold_MWh[Year],a!D$200,Energy_Sold_MWh[Quarter],"Q2",Energy_Sold_MWh[Distribution Utility],$F79),IF($G$5="Q3",SUMIFS(Energy_Sold_MWh[Energy Sold MWh],Energy_Sold_MWh[Year],a!D$200,Energy_Sold_MWh[Quarter],"Q3",Energy_Sold_MWh[Distribution Utility],$F79),IF($G$5="Q4",SUMIFS(Energy_Sold_MWh[Energy Sold MWh],Energy_Sold_MWh[Year],a!D$200,Energy_Sold_MWh[Quarter],"Q4",Energy_Sold_MWh[Distribution Utility],$F79), IF($G$5="Calendar Year",SUMIFS(Energy_Sold_MWh[Energy Sold MWh],Energy_Sold_MWh[Year],a!D$200,Energy_Sold_MWh[Distribution Utility],$F79),""))))))/10^3,"") -> 53.23265 | K79: =IFERROR(SUM(IF($G$5="Q1",SUMIFS(Energy_Sold_MWh[Energy Sold MWh],Energy_Sold_MWh[Year],a!E$200,Energy_Sold_MWh[Quarter],"Q1",Energy_Sold_MWh[Distribution Utility],$F79),IF($G$5="Q2",SUMIFS(Energy_Sold_MWh[Energy Sold MWh],Energy_Sold_MWh[Year],a!E$200,Energy_Sold_MWh[Quarter],"Q2",Energy_Sold_MWh[Distribution Utility],$F79),IF($G$5="Q3",SUMIFS(Energy_Sold_MWh[Energy Sold MWh],Energy_Sold_MWh[Year],a!E$200,Energy_Sold_MWh[Quarter],"Q3",Energy_Sold_MWh[Distribution Utility],$F79),IF($G$5="Q4",SUMIFS(Energy_Sold_MWh[Energy Sold MWh],Energy_Sold_MWh[Year],a!E$200,Energy_Sold_MWh[Quarter],"Q4",Energy_Sold_MWh[Distribution Utility],$F79), IF($G$5="Calendar Year",SUMIFS(Energy_Sold_MWh[Energy Sold MWh],Energy_Sold_MWh[Year],a!E$200,Energy_Sold_MWh[Distribution Utility],$F79),""))))))/10^3,"") -> 10.51233716
F80: UEDCL | G80: =IFERROR(SUM(IF($G$5="Q1",SUMIFS(Energy_Sold_MWh[Energy Sold MWh],Energy_Sold_MWh[Year],a!A$200,Energy_Sold_MWh[Quarter],"Q1",Energy_Sold_MWh[Distribution Utility],$F80),IF($G$5="Q2",SUMIFS(Energy_Sold_MWh[Energy Sold MWh],Energy_Sold_MWh[Year],a!A$200,Energy_Sold_MWh[Quarter],"Q2",Energy_Sold_MWh[Distribution Utility],$F80),IF($G$5="Q3",SUMIFS(Energy_Sold_MWh[Energy Sold MWh],Energy_Sold_MWh[Year],a!A$200,Energy_Sold_MWh[Quarter],"Q3",Energy_Sold_MWh[Distribution Utility],$F80),IF($G$5="Q4",SUMIFS(Energy_Sold_MWh[Energy Sold MWh],Energy_Sold_MWh[Year],a!A$200,Energy_Sold_MWh[Quarter],"Q4",Energy_Sold_MWh[Distribution Utility],$F80), IF($G$5="Calendar Year",SUMIFS(Energy_Sold_MWh[Energy Sold MWh],Energy_Sold_MWh[Year],a!A$200,Energy_Sold_MWh[Distribution Utility],$F80),""))))))/10^3,"") -> 28.407318 | H80: =IFERROR(SUM(IF($G$5="Q1",SUMIFS(Energy_Sold_MWh[Energy Sold MWh],Energy_Sold_MWh[Year],a!B$200,Energy_Sold_MWh[Quarter],"Q1",Energy_Sold_MWh[Distribution Utility],$F80),IF($G$5="Q2",SUMIFS(Energy_Sold_MWh[Energy Sold MWh],Energy_Sold_MWh[Year],a!B$200,Energy_Sold_MWh[Quarter],"Q2",Energy_Sold_MWh[Distribution Utility],$F80),IF($G$5="Q3",SUMIFS(Energy_Sold_MWh[Energy Sold MWh],Energy_Sold_MWh[Year],a!B$200,Energy_Sold_MWh[Quarter],"Q3",Energy_Sold_MWh[Distribution Utility],$F80),IF($G$5="Q4",SUMIFS(Energy_Sold_MWh[Energy Sold MWh],Energy_Sold_MWh[Year],a!B$200,Energy_Sold_MWh[Quarter],"Q4",Energy_Sold_MWh[Distribution Utility],$F80), IF($G$5="Calendar Year",SUMIFS(Energy_Sold_MWh[Energy Sold MWh],Energy_Sold_MWh[Year],a!B$200,Energy_Sold_MWh[Distribution Utility],$F80),""))))))/10^3,"") -> 3.825556 | I80: =IFERROR(SUM(IF($G$5="Q1",SUMIFS(Energy_Sold_MWh[Energy Sold MWh],Energy_Sold_MWh[Year],a!C$200,Energy_Sold_MWh[Quarter],"Q1",Energy_Sold_MWh[Distribution Utility],$F80),IF($G$5="Q2",SUMIFS(Energy_Sold_MWh[Energy Sold MWh],Energy_Sold_MWh[Year],a!C$200,Energy_Sold_MWh[Quarter],"Q2",Energy_Sold_MWh[Distribution Utility],$F80),IF($G$5="Q3",SUMIFS(Energy_Sold_MWh[Energy Sold MWh],Energy_Sold_MWh[Year],a!C$200,Energy_Sold_MWh[Quarter],"Q3",Energy_Sold_MWh[Distribution Utility],$F80),IF($G$5="Q4",SUMIFS(Energy_Sold_MWh[Energy Sold MWh],Energy_Sold_MWh[Year],a!C$200,Energy_Sold_MWh[Quarter],"Q4",Energy_Sold_MWh[Distribution Utility],$F80), IF($G$5="Calendar Year",SUMIFS(Energy_Sold_MWh[Energy Sold MWh],Energy_Sold_MWh[Year],a!C$200,Energy_Sold_MWh[Distribution Utility],$F80),""))))))/10^3,"") -> 47.984236 | J80: =IFERROR(SUM(IF($G$5="Q1",SUMIFS(Energy_Sold_MWh[Energy Sold MWh],Energy_Sold_MWh[Year],a!D$200,Energy_Sold_MWh[Quarter],"Q1",Energy_Sold_MWh[Distribution Utility],$F80),IF($G$5="Q2",SUMIFS(Energy_Sold_MWh[Energy Sold MWh],Energy_Sold_MWh[Year],a!D$200,Energy_Sold_MWh[Quarter],"Q2",Energy_Sold_MWh[Distribution Utility],$F80),IF($G$5="Q3",SUMIFS(Energy_Sold_MWh[Energy Sold MWh],Energy_Sold_MWh[Year],a!D$200,Energy_Sold_MWh[Quarter],"Q3",Energy_Sold_MWh[Distribution Utility],$F80),IF($G$5="Q4",SUMIFS(Energy_Sold_MWh[Energy Sold MWh],Energy_Sold_MWh[Year],a!D$200,Energy_Sold_MWh[Quarter],"Q4",Energy_Sold_MWh[Distribution Utility],$F80), IF($G$5="Calendar Year",SUMIFS(Energy_Sold_MWh[Energy Sold MWh],Energy_Sold_MWh[Year],a!D$200,Energy_Sold_MWh[Distribution Utility],$F80),""))))))/10^3,"") -> 59.92535454 | K80: =IFERROR(SUM(IF($G$5="Q1",SUMIFS(Energy_Sold_MWh[Energy Sold MWh],Energy_Sold_MWh[Year],a!E$200,Energy_Sold_MWh[Quarter],"Q1",Energy_Sold_MWh[Distribution Utility],$F80),IF($G$5="Q2",SUMIFS(Energy_Sold_MWh[Energy Sold MWh],Energy_Sold_MWh[Year],a!E$200,Energy_Sold_MWh[Quarter],"Q2",Energy_Sold_MWh[Distribution Utility],$F80),IF($G$5="Q3",SUMIFS(Energy_Sold_MWh[Energy Sold MWh],Energy_Sold_MWh[Year],a!E$200,Energy_Sold_MWh[Quarter],"Q3",Energy_Sold_MWh[Distribution Utility],$F80),IF($G$5="Q4",SUMIFS(Energy_Sold_MWh[Energy Sold MWh],Energy_Sold_MWh[Year],a!E$200,Energy_Sold_MWh[Quarter],"Q4",Energy_Sold_MWh[Distribution Utility],$F80), IF($G$5="Calendar Year",SUMIFS(Energy_Sold_MWh[Energy Sold MWh],Energy_Sold_MWh[Year],a!E$200,Energy_Sold_MWh[Distribution Utility],$F80),""))))))/10^3,"") -> 1767.253215
F81: UMEME | G81: =IFERROR(SUM(IF($G$5="Q1",SUMIFS(Energy_Sold_MWh[Energy Sold MWh],Energy_Sold_MWh[Year],a!A$200,Energy_Sold_MWh[Quarter],"Q1",Energy_Sold_MWh[Distribution Utility],$F81),IF($G$5="Q2",SUMIFS(Energy_Sold_MWh[Energy Sold MWh],Energy_Sold_MWh[Year],a!A$200,Energy_Sold_MWh[Quarter],"Q2",Energy_Sold_MWh[Distribution Utility],$F81),IF($G$5="Q3",SUMIFS(Energy_Sold_MWh[Energy Sold MWh],Energy_Sold_MWh[Year],a!A$200,Energy_Sold_MWh[Quarter],"Q3",Energy_Sold_MWh[Distribution Utility],$F81),IF($G$5="Q4",SUMIFS(Energy_Sold_MWh[Energy Sold MWh],Energy_Sold_MWh[Year],a!A$200,Energy_Sold_MWh[Quarter],"Q4",Energy_Sold_MWh[Distribution Utility],$F81), IF($G$5="Calendar Year",SUMIFS(Energy_Sold_MWh[Energy Sold MWh],Energy_Sold_MWh[Year],a!A$200,Energy_Sold_MWh[Distribution Utility],$F81),""))))))/10^3,"") -> 1126.653541 | H81: =IFERROR(SUM(IF($G$5="Q1",SUMIFS(Energy_Sold_MWh[Energy Sold MWh],Energy_Sold_MWh[Year],a!B$200,Energy_Sold_MWh[Quarter],"Q1",Energy_Sold_MWh[Distribution Utility],$F81),IF($G$5="Q2",SUMIFS(Energy_Sold_MWh[Energy Sold MWh],Energy_Sold_MWh[Year],a!B$200,Energy_Sold_MWh[Quarter],"Q2",Energy_Sold_MWh[Distribution Utility],$F81),IF($G$5="Q3",SUMIFS(Energy_Sold_MWh[Energy Sold MWh],Energy_Sold_MWh[Year],a!B$200,Energy_Sold_MWh[Quarter],"Q3",Energy_Sold_MWh[Distribution Utility],$F81),IF($G$5="Q4",SUMIFS(Energy_Sold_MWh[Energy Sold MWh],Energy_Sold_MWh[Year],a!B$200,Energy_Sold_MWh[Quarter],"Q4",Energy_Sold_MWh[Distribution Utility],$F81), IF($G$5="Calendar Year",SUMIFS(Energy_Sold_MWh[Energy Sold MWh],Energy_Sold_MWh[Year],a!B$200,Energy_Sold_MWh[Distribution Utility],$F81),""))))))/10^3,"") -> 1216.696413 | I81: =IFERROR(SUM(IF($G$5="Q1",SUMIFS(Energy_Sold_MWh[Energy Sold MWh],Energy_Sold_MWh[Year],a!C$200,Energy_Sold_MWh[Quarter],"Q1",Energy_Sold_MWh[Distribution Utility],$F81),IF($G$5="Q2",SUMIFS(Energy_Sold_MWh[Energy Sold MWh],Energy_Sold_MWh[Year],a!C$200,Energy_Sold_MWh[Quarter],"Q2",Energy_Sold_MWh[Distribution Utility],$F81),IF($G$5="Q3",SUMIFS(Energy_Sold_MWh[Energy Sold MWh],Energy_Sold_MWh[Year],a!C$200,Energy_Sold_MWh[Quarter],"Q3",Energy_Sold_MWh[Distribution Utility],$F81),IF($G$5="Q4",SUMIFS(Energy_Sold_MWh[Energy Sold MWh],Energy_Sold_MWh[Year],a!C$200,Energy_Sold_MWh[Quarter],"Q4",Energy_Sold_MWh[Distribution Utility],$F81), IF($G$5="Calendar Year",SUMIFS(Energy_Sold_MWh[Energy Sold MWh],Energy_Sold_MWh[Year],a!C$200,Energy_Sold_MWh[Distribution Utility],$F81),""))))))/10^3,"") -> 1345.729668 | J81: =IFERROR(SUM(IF($G$5="Q1",SUMIFS(Energy_Sold_MWh[Energy Sold MWh],Energy_Sold_MWh[Year],a!D$200,Energy_Sold_MWh[Quarter],"Q1",Energy_Sold_MWh[Distribution Utility],$F81),IF($G$5="Q2",SUMIFS(Energy_Sold_MWh[Energy Sold MWh],Energy_Sold_MWh[Year],a!D$200,Energy_Sold_MWh[Quarter],"Q2",Energy_Sold_MWh[Distribution Utility],$F81),IF($G$5="Q3",SUMIFS(Energy_Sold_MWh[Energy Sold MWh],Energy_Sold_MWh[Year],a!D$200,Energy_Sold_MWh[Quarter],"Q3",Energy_Sold_MWh[Distribution Utility],$F81),IF($G$5="Q4",SUMIFS(Energy_Sold_MWh[Energy Sold MWh],Energy_Sold_MWh[Year],a!D$200,Energy_Sold_MWh[Quarter],"Q4",Energy_Sold_MWh[Distribution Utility],$F81), IF($G$5="Calendar Year",SUMIFS(Energy_Sold_MWh[Energy Sold MWh],Energy_Sold_MWh[Year],a!D$200,Energy_Sold_MWh[Distribution Utility],$F81),""))))))/10^3,"") -> 1506.313966 | K81: =IFERROR(SUM(IF($G$5="Q1",SUMIFS(Energy_Sold_MWh[Energy Sold MWh],Energy_Sold_MWh[Year],a!E$200,Energy_Sold_MWh[Quarter],"Q1",Energy_Sold_MWh[Distribution Utility],$F81),IF($G$5="Q2",SUMIFS(Energy_Sold_MWh[Energy Sold MWh],Energy_Sold_MWh[Year],a!E$200,Energy_Sold_MWh[Quarter],"Q2",Energy_Sold_MWh[Distribution Utility],$F81),IF($G$5="Q3",SUMIFS(Energy_Sold_MWh[Energy Sold MWh],Energy_Sold_MWh[Year],a!E$200,Energy_Sold_MWh[Quarter],"Q3",Energy_Sold_MWh[Distribution Utility],$F81),IF($G$5="Q4",SUMIFS(Energy_Sold_MWh[Energy Sold MWh],Energy_Sold_MWh[Year],a!E$200,Energy_Sold_MWh[Quarter],"Q4",Energy_Sold_MWh[Distribution Utility],$F81), IF($G$5="Calendar Year",SUMIFS(Energy_Sold_MWh[Energy Sold MWh],Energy_Sold_MWh[Year],a!E$200,Energy_Sold_MWh[Distribution Utility],$F81),""))))))/10^3,"") -> 0
F82: WENRECO | G82: =IFERROR(SUM(IF($G$5="Q1",SUMIFS(Energy_Sold_MWh[Energy Sold MWh],Energy_Sold_MWh[Year],a!A$200,Energy_Sold_MWh[Quarter],"Q1",Energy_Sold_MWh[Distribution Utility],$F82),IF($G$5="Q2",SUMIFS(Energy_Sold_MWh[Energy Sold MWh],Energy_Sold_MWh[Year],a!A$200,Energy_Sold_MWh[Quarter],"Q2",Energy_Sold_MWh[Distribution Utility],$F82),IF($G$5="Q3",SUMIFS(Energy_Sold_MWh[Energy Sold MWh],Energy_Sold_MWh[Year],a!A$200,Energy_Sold_MWh[Quarter],"Q3",Energy_Sold_MWh[Distribution Utility],$F82),IF($G$5="Q4",SUMIFS(Energy_Sold_MWh[Energy Sold MWh],Energy_Sold_MWh[Year],a!A$200,Energy_Sold_MWh[Quarter],"Q4",Energy_Sold_MWh[Distribution Utility],$F82), IF($G$5="Calendar Year",SUMIFS(Energy_Sold_MWh[Energy Sold MWh],Energy_Sold_MWh[Year],a!A$200,Energy_Sold_MWh[Distribution Utility],$F82),""))))))/10^3,"") -> 0 | H82: =IFERROR(SUM(IF($G$5="Q1",SUMIFS(Energy_Sold_MWh[Energy Sold MWh],Energy_Sold_MWh[Year],a!B$200,Energy_Sold_MWh[Quarter],"Q1",Energy_Sold_MWh[Distribution Utility],$F82),IF($G$5="Q2",SUMIFS(Energy_Sold_MWh[Energy Sold MWh],Energy_Sold_MWh[Year],a!B$200,Energy_Sold_MWh[Quarter],"Q2",Energy_Sold_MWh[Distribution Utility],$F82),IF($G$5="Q3",SUMIFS(Energy_Sold_MWh[Energy Sold MWh],Energy_Sold_MWh[Year],a!B$200,Energy_Sold_MWh[Quarter],"Q3",Energy_Sold_MWh[Distribution Utility],$F82),IF($G$5="Q4",SUMIFS(Energy_Sold_MWh[Energy Sold MWh],Energy_Sold_MWh[Year],a!B$200,Energy_Sold_MWh[Quarter],"Q4",Energy_Sold_MWh[Distribution Utility],$F82), IF($G$5="Calendar Year",SUMIFS(Energy_Sold_MWh[Energy Sold MWh],Energy_Sold_MWh[Year],a!B$200,Energy_Sold_MWh[Distribution Utility],$F82),""))))))/10^3,"") -> 0 | I82: =IFERROR(SUM(IF($G$5="Q1",SUMIFS(Energy_Sold_MWh[Energy Sold MWh],Energy_Sold_MWh[Year],a!C$200,Energy_Sold_MWh[Quarter],"Q1",Energy_Sold_MWh[Distribution Utility],$F82),IF($G$5="Q2",SUMIFS(Energy_Sold_MWh[Energy Sold MWh],Energy_Sold_MWh[Year],a!C$200,Energy_Sold_MWh[Quarter],"Q2",Energy_Sold_MWh[Distribution Utility],$F82),IF($G$5="Q3",SUMIFS(Energy_Sold_MWh[Energy Sold MWh],Energy_Sold_MWh[Year],a!C$200,Energy_Sold_MWh[Quarter],"Q3",Energy_Sold_MWh[Distribution Utility],$F82),IF($G$5="Q4",SUMIFS(Energy_Sold_MWh[Energy Sold MWh],Energy_Sold_MWh[Year],a!C$200,Energy_Sold_MWh[Quarter],"Q4",Energy_Sold_MWh[Distribution Utility],$F82), IF($G$5="Calendar Year",SUMIFS(Energy_Sold_MWh[Energy Sold MWh],Energy_Sold_MWh[Year],a!C$200,Energy_Sold_MWh[Distribution Utility],$F82),""))))))/10^3,"") -> 0 | J82: =IFERROR(SUM(IF($G$5="Q1",SUMIFS(Energy_Sold_MWh[Energy Sold MWh],Energy_Sold_MWh[Year],a!D$200,Energy_Sold_MWh[Quarter],"Q1",Energy_Sold_MWh[Distribution Utility],$F82),IF($G$5="Q2",SUMIFS(Energy_Sold_MWh[Energy Sold MWh],Energy_Sold_MWh[Year],a!D$200,Energy_Sold_MWh[Quarter],"Q2",Energy_Sold_MWh[Distribution Utility],$F82),IF($G$5="Q3",SUMIFS(Energy_Sold_MWh[Energy Sold MWh],Energy_Sold_MWh[Year],a!D$200,Energy_Sold_MWh[Quarter],"Q3",Energy_Sold_MWh[Distribution Utility],$F82),IF($G$5="Q4",SUMIFS(Energy_Sold_MWh[Energy Sold MWh],Energy_Sold_MWh[Year],a!D$200,Energy_Sold_MWh[Quarter],"Q4",Energy_Sold_MWh[Distribution Utility],$F82), IF($G$5="Calendar Year",SUMIFS(Energy_Sold_MWh[Energy Sold MWh],Energy_Sold_MWh[Year],a!D$200,Energy_Sold_MWh[Distribution Utility],$F82),""))))))/10^3,"") -> 0 | K82: =IFERROR(SUM(IF($G$5="Q1",SUMIFS(Energy_Sold_MWh[Energy Sold MWh],Energy_Sold_MWh[Year],a!E$200,Energy_Sold_MWh[Quarter],"Q1",Energy_Sold_MWh[Distribution Utility],$F82),IF($G$5="Q2",SUMIFS(Energy_Sold_MWh[Energy Sold MWh],Energy_Sold_MWh[Year],a!E$200,Energy_Sold_MWh[Quarter],"Q2",Energy_Sold_MWh[Distribution Utility],$F82),IF($G$5="Q3",SUMIFS(Energy_Sold_MWh[Energy Sold MWh],Energy_Sold_MWh[Year],a!E$200,Energy_Sold_MWh[Quarter],"Q3",Energy_Sold_MWh[Distribution Utility],$F82),IF($G$5="Q4",SUMIFS(Energy_Sold_MWh[Energy Sold MWh],Energy_Sold_MWh[Year],a!E$200,Energy_Sold_MWh[Quarter],"Q4",Energy_Sold_MWh[Distribution Utility],$F82), IF($G$5="Calendar Year",SUMIFS(Energy_Sold_MWh[Energy Sold MWh],Energy_Sold_MWh[Year],a!E$200,Energy_Sold_MWh[Distribution Utility],$F82),""))))))/10^3,"") -> 0
F83: Energy Sales by Destination(GWh) | G83: =G68 -> 2022-Q1 | H83: =H68 -> 2023-Q1 | I83: =I68 -> 2024-Q1 | J83: =J68 -> 2025-Q1 | K83: =K68 -> 2026-Q1
F84: UMEME | G84: =G81 -> 1126.653541 | H84: =H81 -> 1216.696413 | I84: =I81 -> 1345.729668 | J84: =J81 -> 1506.313966 | K84: =K81 -> 0
F85: MINIGRIDS | G85: =G82+G80+G79+G76+G74+G72+G71+G69 -> 61.950627 | H85: =H82+H80+H79+H76+H74+H72+H71+H69 -> 42.41938 | I85: =I82+I80+I79+I76+I74+I72+I71+I69 -> 92.780066 | J85: =J82+J80+J79+J76+J74+J72+J71+J69 -> 113.7322265 | K85: =K82+K80+K79+K76+K74+K72+K71+K69 -> 1890.018002
F86: EXPORTS | G86: =G79+G78+G70+G75 -> 125.991372 | H86: =H79+H78+H70+H75 -> 105.7597307 | I86: =I79+I78+I70+I75 -> 115.016766 | J86: =J79+J78+J70+J75 -> 139.6259483 | K86: =K79+K78+K70+K75 -> 57.81184818
F87: UETCL Energy Sales by Time of Use (GWh) | G87: =G83 -> 2022-Q1 | H87: =H83 -> 2023-Q1 | I87: =I83 -> 2024-Q1 | J87: =J83 -> 2025-Q1 | K87: =K83 -> 2026-Q1
F88: Off-Peak | G88: =IFERROR(SUM(IF($G$5="Q1",SUMIFS(Energy_Sold_TOU_MWh[MWh],Energy_Sold_TOU_MWh[Year],a!A$200,Energy_Sold_TOU_MWh[Quarter],"Q1",Energy_Sold_TOU_MWh[TOU],$F88),IF($G$5="Q2",SUMIFS(Energy_Sold_TOU_MWh[MWh],Energy_Sold_TOU_MWh[Year],a!A$200,Energy_Sold_TOU_MWh[Quarter],"Q2",Energy_Sold_TOU_MWh[TOU],$F88),IF($G$5="Q3",SUMIFS(Energy_Sold_TOU_MWh[MWh],Energy_Sold_TOU_MWh[Year],a!A$200,Energy_Sold_TOU_MWh[Quarter],"Q3",Energy_Sold_TOU_MWh[TOU],$F88),IF($G$5="Q4",SUMIFS(Energy_Sold_TOU_MWh[MWh],Energy_Sold_TOU_MWh[Year],a!A$200,Energy_Sold_TOU_MWh[Quarter],"Q4",Energy_Sold_TOU_MWh[TOU],$F88), IF($G$5="Calendar Year",SUMIFS(Energy_Sold_TOU_MWh[MWh],Energy_Sold_TOU_MWh[Year],a!A$200,Energy_Sold_TOU_MWh[TOU],$F88),""))))))/10^3,"") -> 258.9153325 | H88: =IFERROR(SUM(IF($G$5="Q1",SUMIFS(Energy_Sold_TOU_MWh[MWh],Energy_Sold_TOU_MWh[Year],a!B$200,Energy_Sold_TOU_MWh[Quarter],"Q1",Energy_Sold_TOU_MWh[TOU],$F88),IF($G$5="Q2",SUMIFS(Energy_Sold_TOU_MWh[MWh],Energy_Sold_TOU_MWh[Year],a!B$200,Energy_Sold_TOU_MWh[Quarter],"Q2",Energy_Sold_TOU_MWh[TOU],$F88),IF($G$5="Q3",SUMIFS(Energy_Sold_TOU_MWh[MWh],Energy_Sold_TOU_MWh[Year],a!B$200,Energy_Sold_TOU_MWh[Quarter],"Q3",Energy_Sold_TOU_MWh[TOU],$F88),IF($G$5="Q4",SUMIFS(Energy_Sold_TOU_MWh[MWh],Energy_Sold_TOU_MWh[Year],a!B$200,Energy_Sold_TOU_MWh[Quarter],"Q4",Energy_Sold_TOU_MWh[TOU],$F88), IF($G$5="Calendar Year",SUMIFS(Energy_Sold_TOU_MWh[MWh],Energy_Sold_TOU_MWh[Year],a!B$200,Energy_Sold_TOU_MWh[TOU],$F88),""))))))/10^3,"") -> 283.1419125 | I88: =IFERROR(SUM(IF($G$5="Q1",SUMIFS(Energy_Sold_TOU_MWh[MWh],Energy_Sold_TOU_MWh[Year],a!C$200,Energy_Sold_TOU_MWh[Quarter],"Q1",Energy_Sold_TOU_MWh[TOU],$F88),IF($G$5="Q2",SUMIFS(Energy_Sold_TOU_MWh[MWh],Energy_Sold_TOU_MWh[Year],a!C$200,Energy_Sold_TOU_MWh[Quarter],"Q2",Energy_Sold_TOU_MWh[TOU],$F88),IF($G$5="Q3",SUMIFS(Energy_Sold_TOU_MWh[MWh],Energy_Sold_TOU_MWh[Year],a!C$200,Energy_Sold_TOU_MWh[Quarter],"Q3",Energy_Sold_TOU_MWh[TOU],$F88),IF($G$5="Q4",SUMIFS(Energy_Sold_TOU_MWh[MWh],Energy_Sold_TOU_MWh[Year],a!C$200,Energy_Sold_TOU_MWh[Quarter],"Q4",Energy_Sold_TOU_MWh[TOU],$F88), IF($G$5="Calendar Year",SUMIFS(Energy_Sold_TOU_MWh[MWh],Energy_Sold_TOU_MWh[Year],a!C$200,Energy_Sold_TOU_MWh[TOU],$F88),""))))))/10^3,"") -> 309.42684 | J88: =IFERROR(SUM(IF($G$5="Q1",SUMIFS(Energy_Sold_TOU_MWh[MWh],Energy_Sold_TOU_MWh[Year],a!D$200,Energy_Sold_TOU_MWh[Quarter],"Q1",Energy_Sold_TOU_MWh[TOU],$F88),IF($G$5="Q2",SUMIFS(Energy_Sold_TOU_MWh[MWh],Energy_Sold_TOU_MWh[Year],a!D$200,Energy_Sold_TOU_MWh[Quarter],"Q2",Energy_Sold_TOU_MWh[TOU],$F88),IF($G$5="Q3",SUMIFS(Energy_Sold_TOU_MWh[MWh],Energy_Sold_TOU_MWh[Year],a!D$200,Energy_Sold_TOU_MWh[Quarter],"Q3",Energy_Sold_TOU_MWh[TOU],$F88),IF($G$5="Q4",SUMIFS(Energy_Sold_TOU_MWh[MWh],Energy_Sold_TOU_MWh[Year],a!D$200,Energy_Sold_TOU_MWh[Quarter],"Q4",Energy_Sold_TOU_MWh[TOU],$F88), IF($G$5="Calendar Year",SUMIFS(Energy_Sold_TOU_MWh[MWh],Energy_Sold_TOU_MWh[Year],a!D$200,Energy_Sold_TOU_MWh[TOU],$F88),""))))))/10^3,"") -> 352.5819032 | K88: 417.4169884
F89: Peak | G89: =IFERROR(SUM(IF($G$5="Q1",SUMIFS(Energy_Sold_TOU_MWh[MWh],Energy_Sold_TOU_MWh[Year],a!A$200,Energy_Sold_TOU_MWh[Quarter],"Q1",Energy_Sold_TOU_MWh[TOU],$F89),IF($G$5="Q2",SUMIFS(Energy_Sold_TOU_MWh[MWh],Energy_Sold_TOU_MWh[Year],a!A$200,Energy_Sold_TOU_MWh[Quarter],"Q2",Energy_Sold_TOU_MWh[TOU],$F89),IF($G$5="Q3",SUMIFS(Energy_Sold_TOU_MWh[MWh],Energy_Sold_TOU_MWh[Year],a!A$200,Energy_Sold_TOU_MWh[Quarter],"Q3",Energy_Sold_TOU_MWh[TOU],$F89),IF($G$5="Q4",SUMIFS(Energy_Sold_TOU_MWh[MWh],Energy_Sold_TOU_MWh[Year],a!A$200,Energy_Sold_TOU_MWh[Quarter],"Q4",Energy_Sold_TOU_MWh[TOU],$F89), IF($G$5="Calendar Year",SUMIFS(Energy_Sold_TOU_MWh[MWh],Energy_Sold_TOU_MWh[Year],a!A$200,Energy_Sold_TOU_MWh[TOU],$F89),""))))))/10^3,"") -> 332.4155162 | H89: =IFERROR(SUM(IF($G$5="Q1",SUMIFS(Energy_Sold_TOU_MWh[MWh],Energy_Sold_TOU_MWh[Year],a!B$200,Energy_Sold_TOU_MWh[Quarter],"Q1",Energy_Sold_TOU_MWh[TOU],$F89),IF($G$5="Q2",SUMIFS(Energy_Sold_TOU_MWh[MWh],Energy_Sold_TOU_MWh[Year],a!B$200,Energy_Sold_TOU_MWh[Quarter],"Q2",Energy_Sold_TOU_MWh[TOU],$F89),IF($G$5="Q3",SUMIFS(Energy_Sold_TOU_MWh[MWh],Energy_Sold_TOU_MWh[Year],a!B$200,Energy_Sold_TOU_MWh[Quarter],"Q3",Energy_Sold_TOU_MWh[TOU],$F89),IF($G$5="Q4",SUMIFS(Energy_Sold_TOU_MWh[MWh],Energy_Sold_TOU_MWh[Year],a!B$200,Energy_Sold_TOU_MWh[Quarter],"Q4",Energy_Sold_TOU_MWh[TOU],$F89), IF($G$5="Calendar Year",SUMIFS(Energy_Sold_TOU_MWh[MWh],Energy_Sold_TOU_MWh[Year],a!B$200,Energy_Sold_TOU_MWh[TOU],$F89),""))))))/10^3,"") -> 370.6703812 | I89: =IFERROR(SUM(IF($G$5="Q1",SUMIFS(Energy_Sold_TOU_MWh[MWh],Energy_Sold_TOU_MWh[Year],a!C$200,Energy_Sold_TOU_MWh[Quarter],"Q1",Energy_Sold_TOU_MWh[TOU],$F89),IF($G$5="Q2",SUMIFS(Energy_Sold_TOU_MWh[MWh],Energy_Sold_TOU_MWh[Year],a!C$200,Energy_Sold_TOU_MWh[Quarter],"Q2",Energy_Sold_TOU_MWh[TOU],$F89),IF($G$5="Q3",SUMIFS(Energy_Sold_TOU_MWh[MWh],Energy_Sold_TOU_MWh[Year],a!C$200,Energy_Sold_TOU_MWh[Quarter],"Q3",Energy_Sold_TOU_MWh[TOU],$F89),IF($G$5="Q4",SUMIFS(Energy_Sold_TOU_MWh[MWh],Energy_Sold_TOU_MWh[Year],a!C$200,Energy_Sold_TOU_MWh[Quarter],"Q4",Energy_Sold_TOU_MWh[TOU],$F89), IF($G$5="Calendar Year",SUMIFS(Energy_Sold_TOU_MWh[MWh],Energy_Sold_TOU_MWh[Year],a!C$200,Energy_Sold_TOU_MWh[TOU],$F89),""))))))/10^3,"") -> 413.330321 | J89: =IFERROR(SUM(IF($G$5="Q1",SUMIFS(Energy_Sold_TOU_MWh[MWh],Energy_Sold_TOU_MWh[Year],a!D$200,Energy_Sold_TOU_MWh[Quarter],"Q1",Energy_Sold_TOU_MWh[TOU],$F89),IF($G$5="Q2",SUMIFS(Energy_Sold_TOU_MWh[MWh],Energy_Sold_TOU_MWh[Year],a!D$200,Energy_Sold_TOU_MWh[Quarter],"Q2",Energy_Sold_TOU_MWh[TOU],$F89),IF($G$5="Q3",SUMIFS(Energy_Sold_TOU_MWh[MWh],Energy_Sold_TOU_MWh[Year],a!D$200,Energy_Sold_TOU_MWh[Quarter],"Q3",Energy_Sold_TOU_MWh[TOU],$F89),IF($G$5="Q4",SUMIFS(Energy_Sold_TOU_MWh[MWh],Energy_Sold_TOU_MWh[Year],a!D$200,Energy_Sold_TOU_MWh[Quarter],"Q4",Energy_Sold_TOU_MWh[TOU],$F89), IF($G$5="Calendar Year",SUMIFS(Energy_Sold_TOU_MWh[MWh],Energy_Sold_TOU_MWh[Year],a!D$200,Energy_Sold_TOU_MWh[TOU],$F89),""))))))/10^3,"") -> 461.7535487 | K89: 559.2783888
F90: Shoulder | G90: =IFERROR(SUM(IF($G$5="Q1",SUMIFS(Energy_Sold_TOU_MWh[MWh],Energy_Sold_TOU_MWh[Year],a!A$200,Energy_Sold_TOU_MWh[Quarter],"Q1",Energy_Sold_TOU_MWh[TOU],$F90),IF($G$5="Q2",SUMIFS(Energy_Sold_TOU_MWh[MWh],Energy_Sold_TOU_MWh[Year],a!A$200,Energy_Sold_TOU_MWh[Quarter],"Q2",Energy_Sold_TOU_MWh[TOU],$F90),IF($G$5="Q3",SUMIFS(Energy_Sold_TOU_MWh[MWh],Energy_Sold_TOU_MWh[Year],a!A$200,Energy_Sold_TOU_MWh[Quarter],"Q3",Energy_Sold_TOU_MWh[TOU],$F90),IF($G$5="Q4",SUMIFS(Energy_Sold_TOU_MWh[MWh],Energy_Sold_TOU_MWh[Year],a!A$200,Energy_Sold_TOU_MWh[Quarter],"Q4",Energy_Sold_TOU_MWh[TOU],$F90), IF($G$5="Calendar Year",SUMIFS(Energy_Sold_TOU_MWh[MWh],Energy_Sold_TOU_MWh[Year],a!A$200,Energy_Sold_TOU_MWh[TOU],$F90),""))))))/10^3,"") -> 701.2427693 | H90: =IFERROR(SUM(IF($G$5="Q1",SUMIFS(Energy_Sold_TOU_MWh[MWh],Energy_Sold_TOU_MWh[Year],a!B$200,Energy_Sold_TOU_MWh[Quarter],"Q1",Energy_Sold_TOU_MWh[TOU],$F90),IF($G$5="Q2",SUMIFS(Energy_Sold_TOU_MWh[MWh],Energy_Sold_TOU_MWh[Year],a!B$200,Energy_Sold_TOU_MWh[Quarter],"Q2",Energy_Sold_TOU_MWh[TOU],$F90),IF($G$5="Q3",SUMIFS(Energy_Sold_TOU_MWh[MWh],Energy_Sold_TOU_MWh[Year],a!B$200,Energy_Sold_TOU_MWh[Quarter],"Q3",Energy_Sold_TOU_MWh[TOU],$F90),IF($G$5="Q4",SUMIFS(Energy_Sold_TOU_MWh[MWh],Energy_Sold_TOU_MWh[Year],a!B$200,Energy_Sold_TOU_MWh[Quarter],"Q4",Energy_Sold_TOU_MWh[TOU],$F90), IF($G$5="Calendar Year",SUMIFS(Energy_Sold_TOU_MWh[MWh],Energy_Sold_TOU_MWh[Year],a!B$200,Energy_Sold_TOU_MWh[TOU],$F90),""))))))/10^3,"") -> 714.6804201 | I90: =IFERROR(SUM(IF($G$5="Q1",SUMIFS(Energy_Sold_TOU_MWh[MWh],Energy_Sold_TOU_MWh[Year],a!C$200,Energy_Sold_TOU_MWh[Quarter],"Q1",Energy_Sold_TOU_MWh[TOU],$F90),IF($G$5="Q2",SUMIFS(Energy_Sold_TOU_MWh[MWh],Energy_Sold_TOU_MWh[Year],a!C$200,Energy_Sold_TOU_MWh[Quarter],"Q2",Energy_Sold_TOU_MWh[TOU],$F90),IF($G$5="Q3",SUMIFS(Energy_Sold_TOU_MWh[MWh],Energy_Sold_TOU_MWh[Year],a!C$200,Energy_Sold_TOU_MWh[Quarter],"Q3",Energy_Sold_TOU_MWh[TOU],$F90),IF($G$5="Q4",SUMIFS(Energy_Sold_TOU_MWh[MWh],Energy_Sold_TOU_MWh[Year],a!C$200,Energy_Sold_TOU_MWh[Quarter],"Q4",Energy_Sold_TOU_MWh[TOU],$F90), IF($G$5="Calendar Year",SUMIFS(Energy_Sold_TOU_MWh[MWh],Energy_Sold_TOU_MWh[Year],a!C$200,Energy_Sold_TOU_MWh[TOU],$F90),""))))))/10^3,"") -> 799.111565 | J90: =IFERROR(SUM(IF($G$5="Q1",SUMIFS(Energy_Sold_TOU_MWh[MWh],Energy_Sold_TOU_MWh[Year],a!D$200,Energy_Sold_TOU_MWh[Quarter],"Q1",Energy_Sold_TOU_MWh[TOU],$F90),IF($G$5="Q2",SUMIFS(Energy_Sold_TOU_MWh[MWh],Energy_Sold_TOU_MWh[Year],a!D$200,Energy_Sold_TOU_MWh[Quarter],"Q2",Energy_Sold_TOU_MWh[TOU],$F90),IF($G$5="Q3",SUMIFS(Energy_Sold_TOU_MWh[MWh],Energy_Sold_TOU_MWh[Year],a!D$200,Energy_Sold_TOU_MWh[Quarter],"Q3",Energy_Sold_TOU_MWh[TOU],$F90),IF($G$5="Q4",SUMIFS(Energy_Sold_TOU_MWh[MWh],Energy_Sold_TOU_MWh[Year],a!D$200,Energy_Sold_TOU_MWh[Quarter],"Q4",Energy_Sold_TOU_MWh[TOU],$F90), IF($G$5="Calendar Year",SUMIFS(Energy_Sold_TOU_MWh[MWh],Energy_Sold_TOU_MWh[Year],a!D$200,Energy_Sold_TOU_MWh[TOU],$F90),""))))))/10^3,"") -> 869.8671086 | K90: 1037.262268
F91: UETCL Energy Sales by Time of Use (%age) | G91: =G83 -> 2022-Q1 | H91: =H83 -> 2023-Q1 | I91: =I83 -> 2024-Q1 | J91: =J83 -> 2025-Q1 | K91: =K83 -> 2026-Q1
F92: Off-Peak | G92: =IFERROR(G88/(SUM(G88:G90)),"") -> 0.2003099312 | H92: =IFERROR(H88/(SUM(H88:H90)),"") -> 0.2069005627 | I92: 0.2033203224 | J92: 0.2093464952 | K92: =IFERROR(K88/(SUM(K88:K90)),"") -> 0.2072620491
F93: Peak | G93: =IFERROR(G89/(SUM(G88:G90)),"") -> 0.2571733722 | H93: =IFERROR(H89/(SUM(H88:H90)),"") -> 0.270860325 | I93: 0.2715939384 | J93: 0.2741674663 | K93: =IFERROR(K89/(SUM(K88:K90)),"") -> 0.2777011672
F94: Shoulder | G94: =IFERROR(G90/(SUM(G88:G90)),"") -> 0.5425166966 | H94: =IFERROR(H90/(SUM(H88:H90)),"") -> 0.5222391123 | I94: =IFERROR(I90/(SUM(I88:I90)),"") -> 0.5250857392 | J94: 0.5164860386 | K94: =IFERROR(K90/(SUM(K88:K90)),"") -> 0.5150367837
F95: Transmission Network Length (kms) by Category | G95: =G91 -> 2022-Q1 | H95: =H91 -> 2023-Q1 | I95: =I91 -> 2024-Q1 | J95: =J91 -> 2025-Q1 | K95: =K91 -> 2026-Q1
F96: 400KV | G96: =IFERROR(SUM(IF($G$5="Q1",SUMIFS(Network_Length__kms[Length],Network_Length__kms[Year],a!A$200,Network_Length__kms[Quarter],"Q1",Network_Length__kms[Category],$F96),IF($G$5="Q2",SUMIFS(Network_Length__kms[Length],Network_Length__kms[Year],a!A$200,Network_Length__kms[Quarter],"Q2",Network_Length__kms[Category],$F96),IF($G$5="Q3",SUMIFS(Network_Length__kms[Length],Network_Length__kms[Year],a!A$200,Network_Length__kms[Quarter],"Q3",Network_Length__kms[Category],$F96),IF($G$5="Q4",SUMIFS(Network_Length__kms[Length],Network_Length__kms[Year],a!A$200,Network_Length__kms[Quarter],"Q4",Network_Length__kms[Category],$F96), IF($G$5="Calendar Year",SUMIFS(Network_Length__kms[Length],Network_Length__kms[Year],a!A$200,Network_Length__kms[Quarter],"Q4",Network_Length__kms[Category],$F96),"")))))),"") -> 0 | H96: =IFERROR(SUM(IF($G$5="Q1",SUMIFS(Network_Length__kms[Length],Network_Length__kms[Year],a!B$200,Network_Length__kms[Quarter],"Q1",Network_Length__kms[Category],$F96),IF($G$5="Q2",SUMIFS(Network_Length__kms[Length],Network_Length__kms[Year],a!B$200,Network_Length__kms[Quarter],"Q2",Network_Length__kms[Category],$F96),IF($G$5="Q3",SUMIFS(Network_Length__kms[Length],Network_Length__kms[Year],a!B$200,Network_Length__kms[Quarter],"Q3",Network_Length__kms[Category],$F96),IF($G$5="Q4",SUMIFS(Network_Length__kms[Length],Network_Length__kms[Year],a!B$200,Network_Length__kms[Quarter],"Q4",Network_Length__kms[Category],$F96), IF($G$5="Calendar Year",SUMIFS(Network_Length__kms[Length],Network_Length__kms[Year],a!B$200,Network_Length__kms[Quarter],"Q4",Network_Length__kms[Category],$F96),"")))))),"") -> 0 | I96: =IFERROR(SUM(IF($G$5="Q1",SUMIFS(Network_Length__kms[Length],Network_Length__kms[Year],a!C$200,Network_Length__kms[Quarter],"Q1",Network_Length__kms[Category],$F96),IF($G$5="Q2",SUMIFS(Network_Length__kms[Length],Network_Length__kms[Year],a!C$200,Network_Length__kms[Quarter],"Q2",Network_Length__kms[Category],$F96),IF($G$5="Q3",SUMIFS(Network_Length__kms[Length],Network_Length__kms[Year],a!C$200,Network_Length__kms[Quarter],"Q3",Network_Length__kms[Category],$F96),IF($G$5="Q4",SUMIFS(Network_Length__kms[Length],Network_Length__kms[Year],a!C$200,Network_Length__kms[Quarter],"Q4",Network_Length__kms[Category],$F96), IF($G$5="Calendar Year",SUMIFS(Network_Length__kms[Length],Network_Length__kms[Year],a!C$200,Network_Length__kms[Quarter],"Q4",Network_Length__kms[Category],$F96),"")))))),"") -> 606 | J96: =IFERROR(SUM(IF($G$5="Q1",SUMIFS(Network_Length__kms[Length],Network_Length__kms[Year],a!D$200,Network_Length__kms[Quarter],"Q1",Network_Length__kms[Category],$F96),IF($G$5="Q2",SUMIFS(Network_Length__kms[Length],Network_Length__kms[Year],a!D$200,Network_Length__kms[Quarter],"Q2",Network_Length__kms[Category],$F96),IF($G$5="Q3",SUMIFS(Network_Length__kms[Length],Network_Length__kms[Year],a!D$200,Network_Length__kms[Quarter],"Q3",Network_Length__kms[Category],$F96),IF($G$5="Q4",SUMIFS(Network_Length__kms[Length],Network_Length__kms[Year],a!D$200,Network_Length__kms[Quarter],"Q4",Network_Length__kms[Category],$F96), IF($G$5="Calendar Year",SUMIFS(Network_Length__kms[Length],Network_Length__kms[Year],a!D$200,Network_Length__kms[Quarter],"Q4",Network_Length__kms[Category],$F96),"")))))),"") -> 606 | K96: =IFERROR(SUM(IF($G$5="Q1",SUMIFS(Network_Length__kms[Length],Network_Length__kms[Year],a!E$200,Network_Length__kms[Quarter],"Q1",Network_Length__kms[Category],$F96),IF($G$5="Q2",SUMIFS(Network_Length__kms[Length],Network_Length__kms[Year],a!E$200,Network_Length__kms[Quarter],"Q2",Network_Length__kms[Category],$F96),IF($G$5="Q3",SUMIFS(Network_Length__kms[Length],Network_Length__kms[Year],a!E$200,Network_Length__kms[Quarter],"Q3",Network_Length__kms[Category],$F96),IF($G$5="Q4",SUMIFS(Network_Length__kms[Length],Network_Length__kms[Year],a!E$200,Network_Length__kms[Quarter],"Q4",Network_Length__kms[Category],$F96), IF($G$5="Calendar Year",SUMIFS(Network_Length__kms[Length],Network_Length__kms[Year],a!E$200,Network_Length__kms[Quarter],"Q4",Network_Length__kms[Category],$F96),"")))))),"") -> 606
F97: 132 kV | G97: =IFERROR(SUM(IF($G$5="Q1",SUMIFS(Network_Length__kms[Length],Network_Length__kms[Year],a!A$200,Network_Length__kms[Quarter],"Q1",Network_Length__kms[Category],$F97),IF($G$5="Q2",SUMIFS(Network_Length__kms[Length],Network_Length__kms[Year],a!A$200,Network_Length__kms[Quarter],"Q2",Network_Length__kms[Category],$F97),IF($G$5="Q3",SUMIFS(Network_Length__kms[Length],Network_Length__kms[Year],a!A$200,Network_Length__kms[Quarter],"Q3",Network_Length__kms[Category],$F97),IF($G$5="Q4",SUMIFS(Network_Length__kms[Length],Network_Length__kms[Year],a!A$200,Network_Length__kms[Quarter],"Q4",Network_Length__kms[Category],$F97), IF($G$5="Calendar Year",SUMIFS(Network_Length__kms[Length],Network_Length__kms[Year],a!A$200,Network_Length__kms[Quarter],"Q4",Network_Length__kms[Category],$F97),"")))))),"") -> 2348.36 | H97: =IFERROR(SUM(IF($G$5="Q1",SUMIFS(Network_Length__kms[Length],Network_Length__kms[Year],a!B$200,Network_Length__kms[Quarter],"Q1",Network_Length__kms[Category],$F97),IF($G$5="Q2",SUMIFS(Network_Length__kms[Length],Network_Length__kms[Year],a!B$200,Network_Length__kms[Quarter],"Q2",Network_Length__kms[Category],$F97),IF($G$5="Q3",SUMIFS(Network_Length__kms[Length],Network_Length__kms[Year],a!B$200,Network_Length__kms[Quarter],"Q3",Network_Length__kms[Category],$F97),IF($G$5="Q4",SUMIFS(Network_Length__kms[Length],Network_Length__kms[Year],a!B$200,Network_Length__kms[Quarter],"Q4",Network_Length__kms[Category],$F97), IF($G$5="Calendar Year",SUMIFS(Network_Length__kms[Length],Network_Length__kms[Year],a!B$200,Network_Length__kms[Quarter],"Q4",Network_Length__kms[Category],$F97),"")))))),"") -> 2348.36 | I97: =IFERROR(SUM(IF($G$5="Q1",SUMIFS(Network_Length__kms[Length],Network_Length__kms[Year],a!C$200,Network_Length__kms[Quarter],"Q1",Network_Length__kms[Category],$F97),IF($G$5="Q2",SUMIFS(Network_Length__kms[Length],Network_Length__kms[Year],a!C$200,Network_Length__kms[Quarter],"Q2",Network_Length__kms[Category],$F97),IF($G$5="Q3",SUMIFS(Network_Length__kms[Length],Network_Length__kms[Year],a!C$200,Network_Length__kms[Quarter],"Q3",Network_Length__kms[Category],$F97),IF($G$5="Q4",SUMIFS(Network_Length__kms[Length],Network_Length__kms[Year],a!C$200,Network_Length__kms[Quarter],"Q4",Network_Length__kms[Category],$F97), IF($G$5="Calendar Year",SUMIFS(Network_Length__kms[Length],Network_Length__kms[Year],a!C$200,Network_Length__kms[Quarter],"Q4",Network_Length__kms[Category],$F97),"")))))),"") -> 2875.46 | J97: =IFERROR(SUM(IF($G$5="Q1",SUMIFS(Network_Length__kms[Length],Network_Length__kms[Year],a!D$200,Network_Length__kms[Quarter],"Q1",Network_Length__kms[Category],$F97),IF($G$5="Q2",SUMIFS(Network_Length__kms[Length],Network_Length__kms[Year],a!D$200,Network_Length__kms[Quarter],"Q2",Network_Length__kms[Category],$F97),IF($G$5="Q3",SUMIFS(Network_Length__kms[Length],Network_Length__kms[Year],a!D$200,Network_Length__kms[Quarter],"Q3",Network_Length__kms[Category],$F97),IF($G$5="Q4",SUMIFS(Network_Length__kms[Length],Network_Length__kms[Year],a!D$200,Network_Length__kms[Quarter],"Q4",Network_Length__kms[Category],$F97), IF($G$5="Calendar Year",SUMIFS(Network_Length__kms[Length],Network_Length__kms[Year],a!D$200,Network_Length__kms[Quarter],"Q4",Network_Length__kms[Category],$F97),"")))))),"") -> 3496.5 | K97: =IFERROR(SUM(IF($G$5="Q1",SUMIFS(Network_Length__kms[Length],Network_Length__kms[Year],a!E$200,Network_Length__kms[Quarter],"Q1",Network_Length__kms[Category],$F97),IF($G$5="Q2",SUMIFS(Network_Length__kms[Length],Network_Length__kms[Year],a!E$200,Network_Length__kms[Quarter],"Q2",Network_Length__kms[Category],$F97),IF($G$5="Q3",SUMIFS(Network_Length__kms[Length],Network_Length__kms[Year],a!E$200,Network_Length__kms[Quarter],"Q3",Network_Length__kms[Category],$F97),IF($G$5="Q4",SUMIFS(Network_Length__kms[Length],Network_Length__kms[Year],a!E$200,Network_Length__kms[Quarter],"Q4",Network_Length__kms[Category],$F97), IF($G$5="Calendar Year",SUMIFS(Network_Length__kms[Length],Network_Length__kms[Year],a!E$200,Network_Length__kms[Quarter],"Q4",Network_Length__kms[Category],$F97),"")))))),"") -> 3739.98
F98: 220 kV | G98: =IFERROR(SUM(IF($G$5="Q1",SUMIFS(Network_Length__kms[Length],Network_Length__kms[Year],a!A$200,Network_Length__kms[Quarter],"Q1",Network_Length__kms[Category],$F98),IF($G$5="Q2",SUMIFS(Network_Length__kms[Length],Network_Length__kms[Year],a!A$200,Network_Length__kms[Quarter],"Q2",Network_Length__kms[Category],$F98),IF($G$5="Q3",SUMIFS(Network_Length__kms[Length],Network_Length__kms[Year],a!A$200,Network_Length__kms[Quarter],"Q3",Network_Length__kms[Category],$F98),IF($G$5="Q4",SUMIFS(Network_Length__kms[Length],Network_Length__kms[Year],a!A$200,Network_Length__kms[Quarter],"Q4",Network_Length__kms[Category],$F98), IF($G$5="Calendar Year",SUMIFS(Network_Length__kms[Length],Network_Length__kms[Year],a!A$200,Network_Length__kms[Quarter],"Q4",Network_Length__kms[Category],$F98),"")))))),"") -> 1002 | H98: =IFERROR(SUM(IF($G$5="Q1",SUMIFS(Network_Length__kms[Length],Network_Length__kms[Year],a!B$200,Network_Length__kms[Quarter],"Q1",Network_Length__kms[Category],$F98),IF($G$5="Q2",SUMIFS(Network_Length__kms[Length],Network_Length__kms[Year],a!B$200,Network_Length__kms[Quarter],"Q2",Network_Length__kms[Category],$F98),IF($G$5="Q3",SUMIFS(Network_Length__kms[Length],Network_Length__kms[Year],a!B$200,Network_Length__kms[Quarter],"Q3",Network_Length__kms[Category],$F98),IF($G$5="Q4",SUMIFS(Network_Length__kms[Length],Network_Length__kms[Year],a!B$200,Network_Length__kms[Quarter],"Q4",Network_Length__kms[Category],$F98), IF($G$5="Calendar Year",SUMIFS(Network_Length__kms[Length],Network_Length__kms[Year],a!B$200,Network_Length__kms[Quarter],"Q4",Network_Length__kms[Category],$F98),"")))))),"") -> 1002 | I98: =IFERROR(SUM(IF($G$5="Q1",SUMIFS(Network_Length__kms[Length],Network_Length__kms[Year],a!C$200,Network_Length__kms[Quarter],"Q1",Network_Length__kms[Category],$F98),IF($G$5="Q2",SUMIFS(Network_Length__kms[Length],Network_Length__kms[Year],a!C$200,Network_Length__kms[Quarter],"Q2",Network_Length__kms[Category],$F98),IF($G$5="Q3",SUMIFS(Network_Length__kms[Length],Network_Length__kms[Year],a!C$200,Network_Length__kms[Quarter],"Q3",Network_Length__kms[Category],$F98),IF($G$5="Q4",SUMIFS(Network_Length__kms[Length],Network_Length__kms[Year],a!C$200,Network_Length__kms[Quarter],"Q4",Network_Length__kms[Category],$F98), IF($G$5="Calendar Year",SUMIFS(Network_Length__kms[Length],Network_Length__kms[Year],a!C$200,Network_Length__kms[Quarter],"Q4",Network_Length__kms[Category],$F98),"")))))),"") -> 1002 | J98: =IFERROR(SUM(IF($G$5="Q1",SUMIFS(Network_Length__kms[Length],Network_Length__kms[Year],a!D$200,Network_Length__kms[Quarter],"Q1",Network_Length__kms[Category],$F98),IF($G$5="Q2",SUMIFS(Network_Length__kms[Length],Network_Length__kms[Year],a!D$200,Network_Length__kms[Quarter],"Q2",Network_Length__kms[Category],$F98),IF($G$5="Q3",SUMIFS(Network_Length__kms[Length],Network_Length__kms[Year],a!D$200,Network_Length__kms[Quarter],"Q3",Network_Length__kms[Category],$F98),IF($G$5="Q4",SUMIFS(Network_Length__kms[Length],Network_Length__kms[Year],a!D$200,Network_Length__kms[Quarter],"Q4",Network_Length__kms[Category],$F98), IF($G$5="Calendar Year",SUMIFS(Network_Length__kms[Length],Network_Length__kms[Year],a!D$200,Network_Length__kms[Quarter],"Q4",Network_Length__kms[Category],$F98),"")))))),"") -> 1002 | K98: =IFERROR(SUM(IF($G$5="Q1",SUMIFS(Network_Length__kms[Length],Network_Length__kms[Year],a!E$200,Network_Length__kms[Quarter],"Q1",Network_Length__kms[Category],$F98),IF($G$5="Q2",SUMIFS(Network_Length__kms[Length],Network_Length__kms[Year],a!E$200,Network_Length__kms[Quarter],"Q2",Network_Length__kms[Category],$F98),IF($G$5="Q3",SUMIFS(Network_Length__kms[Length],Network_Length__kms[Year],a!E$200,Network_Length__kms[Quarter],"Q3",Network_Length__kms[Category],$F98),IF($G$5="Q4",SUMIFS(Network_Length__kms[Length],Network_Length__kms[Year],a!E$200,Network_Length__kms[Quarter],"Q4",Network_Length__kms[Category],$F98), IF($G$5="Calendar Year",SUMIFS(Network_Length__kms[Length],Network_Length__kms[Year],a!E$200,Network_Length__kms[Quarter],"Q4",Network_Length__kms[Category],$F98),"")))))),"") -> 1002
F99: 66 kV | G99: =IFERROR(SUM(IF($G$5="Q1",SUMIFS(Network_Length__kms[Length],Network_Length__kms[Year],a!A$200,Network_Length__kms[Quarter],"Q1",Network_Length__kms[Category],$F99),IF($G$5="Q2",SUMIFS(Network_Length__kms[Length],Network_Length__kms[Year],a!A$200,Network_Length__kms[Quarter],"Q2",Network_Length__kms[Category],$F99),IF($G$5="Q3",SUMIFS(Network_Length__kms[Length],Network_Length__kms[Year],a!A$200,Network_Length__kms[Quarter],"Q3",Network_Length__kms[Category],$F99),IF($G$5="Q4",SUMIFS(Network_Length__kms[Length],Network_Length__kms[Year],a!A$200,Network_Length__kms[Quarter],"Q4",Network_Length__kms[Category],$F99), IF($G$5="Calendar Year",SUMIFS(Network_Length__kms[Length],Network_Length__kms[Year],a!A$200,Network_Length__kms[Quarter],"Q4",Network_Length__kms[Category],$F99),"")))))),"") -> 35.2 | H99: =IFERROR(SUM(IF($G$5="Q1",SUMIFS(Network_Length__kms[Length],Network_Length__kms[Year],a!B$200,Network_Length__kms[Quarter],"Q1",Network_Length__kms[Category],$F99),IF($G$5="Q2",SUMIFS(Network_Length__kms[Length],Network_Length__kms[Year],a!B$200,Network_Length__kms[Quarter],"Q2",Network_Length__kms[Category],$F99),IF($G$5="Q3",SUMIFS(Network_Length__kms[Length],Network_Length__kms[Year],a!B$200,Network_Length__kms[Quarter],"Q3",Network_Length__kms[Category],$F99),IF($G$5="Q4",SUMIFS(Network_Length__kms[Length],Network_Length__kms[Year],a!B$200,Network_Length__kms[Quarter],"Q4",Network_Length__kms[Category],$F99), IF($G$5="Calendar Year",SUMIFS(Network_Length__kms[Length],Network_Length__kms[Year],a!B$200,Network_Length__kms[Quarter],"Q4",Network_Length__kms[Category],$F99),"")))))),"") -> 35.2 | I99: =IFERROR(SUM(IF($G$5="Q1",SUMIFS(Network_Length__kms[Length],Network_Length__kms[Year],a!C$200,Network_Length__kms[Quarter],"Q1",Network_Length__kms[Category],$F99),IF($G$5="Q2",SUMIFS(Network_Length__kms[Length],Network_Length__kms[Year],a!C$200,Network_Length__kms[Quarter],"Q2",Network_Length__kms[Category],$F99),IF($G$5="Q3",SUMIFS(Network_Length__kms[Length],Network_Length__kms[Year],a!C$200,Network_Length__kms[Quarter],"Q3",Network_Length__kms[Category],$F99),IF($G$5="Q4",SUMIFS(Network_Length__kms[Length],Network_Length__kms[Year],a!C$200,Network_Length__kms[Quarter],"Q4",Network_Length__kms[Category],$F99), IF($G$5="Calendar Year",SUMIFS(Network_Length__kms[Length],Network_Length__kms[Year],a!C$200,Network_Length__kms[Quarter],"Q4",Network_Length__kms[Category],$F99),"")))))),"") -> 35.2 | J99: =IFERROR(SUM(IF($G$5="Q1",SUMIFS(Network_Length__kms[Length],Network_Length__kms[Year],a!D$200,Network_Length__kms[Quarter],"Q1",Network_Length__kms[Category],$F99),IF($G$5="Q2",SUMIFS(Network_Length__kms[Length],Network_Length__kms[Year],a!D$200,Network_Length__kms[Quarter],"Q2",Network_Length__kms[Category],$F99),IF($G$5="Q3",SUMIFS(Network_Length__kms[Length],Network_Length__kms[Year],a!D$200,Network_Length__kms[Quarter],"Q3",Network_Length__kms[Category],$F99),IF($G$5="Q4",SUMIFS(Network_Length__kms[Length],Network_Length__kms[Year],a!D$200,Network_Length__kms[Quarter],"Q4",Network_Length__kms[Category],$F99), IF($G$5="Calendar Year",SUMIFS(Network_Length__kms[Length],Network_Length__kms[Year],a!D$200,Network_Length__kms[Quarter],"Q4",Network_Length__kms[Category],$F99),"")))))),"") -> 35.2 | K99: =IFERROR(SUM(IF($G$5="Q1",SUMIFS(Network_Length__kms[Length],Network_Length__kms[Year],a!E$200,Network_Length__kms[Quarter],"Q1",Network_Length__kms[Category],$F99),IF($G$5="Q2",SUMIFS(Network_Length__kms[Length],Network_Length__kms[Year],a!E$200,Network_Length__kms[Quarter],"Q2",Network_Length__kms[Category],$F99),IF($G$5="Q3",SUMIFS(Network_Length__kms[Length],Network_Length__kms[Year],a!E$200,Network_Length__kms[Quarter],"Q3",Network_Length__kms[Category],$F99),IF($G$5="Q4",SUMIFS(Network_Length__kms[Length],Network_Length__kms[Year],a!E$200,Network_Length__kms[Quarter],"Q4",Network_Length__kms[Category],$F99), IF($G$5="Calendar Year",SUMIFS(Network_Length__kms[Length],Network_Length__kms[Year],a!E$200,Network_Length__kms[Quarter],"Q4",Network_Length__kms[Category],$F99),"")))))),"") -> 35.2
F100: Total Length | G100: =SUM(G96:G99) -> 3385.56 | H100: =SUM(H96:H99) -> 3385.56 | I100: =SUM(I96:I99) -> 4518.66 | J100: =SUM(J96:J99) -> 5139.7 | K100: =SUM(K96:K99) -> 5383.18
F101: UETCL Energy Purchases by Source | G101: =G95 -> 2022-Q1 | H101: =H95 -> 2023-Q1 | I101: =I95 -> 2024-Q1 | J101: =J95 -> 2025-Q1 | K101: =K95 -> 2026-Q1
F102: ACCESS SOLAR | G102: =IFERROR(SUM(IF($G$5="Q1",SUMIFS(Energy_Purchases_MWh[Energy purchased],Energy_Purchases_MWh[Year],a!A$200,Energy_Purchases_MWh[Quarter],"Q1",Energy_Purchases_MWh[Plant Name],$F102),IF($G$5="Q2",SUMIFS(Energy_Purchases_MWh[Energy purchased],Energy_Purchases_MWh[Year],a!A$200,Energy_Purchases_MWh[Quarter],"Q2",Energy_Purchases_MWh[Plant Name],$F102),IF($G$5="Q3",SUMIFS(Energy_Purchases_MWh[Energy purchased],Energy_Purchases_MWh[Year],a!A$200,Energy_Purchases_MWh[Quarter],"Q3",Energy_Purchases_MWh[Plant Name],$F102),IF($G$5="Q4",SUMIFS(Energy_Purchases_MWh[Energy purchased],Energy_Purchases_MWh[Year],a!A$200,Energy_Purchases_MWh[Quarter],"Q4",Energy_Purchases_MWh[Plant Name],$F102), IF($G$5="Calendar Year",SUMIFS(Energy_Purchases_MWh[Energy purchased],Energy_Purchases_MWh[Year],a!A$200,Energy_Purchases_MWh[Plant Name],$F102),""))))))/10^3,"") -> 4.123106 | H102: =IFERROR(SUM(IF($G$5="Q1",SUMIFS(Energy_Purchases_MWh[Energy purchased],Energy_Purchases_MWh[Year],a!B$200,Energy_Purchases_MWh[Quarter],"Q1",Energy_Purchases_MWh[Plant Name],$F102),IF($G$5="Q2",SUMIFS(Energy_Purchases_MWh[Energy purchased],Energy_Purchases_MWh[Year],a!B$200,Energy_Purchases_MWh[Quarter],"Q2",Energy_Purchases_MWh[Plant Name],$F102),IF($G$5="Q3",SUMIFS(Energy_Purchases_MWh[Energy purchased],Energy_Purchases_MWh[Year],a!B$200,Energy_Purchases_MWh[Quarter],"Q3",Energy_Purchases_MWh[Plant Name],$F102),IF($G$5="Q4",SUMIFS(Energy_Purchases_MWh[Energy purchased],Energy_Purchases_MWh[Year],a!B$200,Energy_Purchases_MWh[Quarter],"Q4",Energy_Purchases_MWh[Plant Name],$F102), IF($G$5="Calendar Year",SUMIFS(Energy_Purchases_MWh[Energy purchased],Energy_Purchases_MWh[Year],a!B$200,Energy_Purchases_MWh[Plant Name],$F102),""))))))/10^3,"") -> 4.107337 | I102: =IFERROR(SUM(IF($G$5="Q1",SUMIFS(Energy_Purchases_MWh[Energy purchased],Energy_Purchases_MWh[Year],a!C$200,Energy_Purchases_MWh[Quarter],"Q1",Energy_Purchases_MWh[Plant Name],$F102),IF($G$5="Q2",SUMIFS(Energy_Purchases_MWh[Energy purchased],Energy_Purchases_MWh[Year],a!C$200,Energy_Purchases_MWh[Quarter],"Q2",Energy_Purchases_MWh[Plant Name],$F102),IF($G$5="Q3",SUMIFS(Energy_Purchases_MWh[Energy purchased],Energy_Purchases_MWh[Year],a!C$200,Energy_Purchases_MWh[Quarter],"Q3",Energy_Purchases_MWh[Plant Name],$F102),IF($G$5="Q4",SUMIFS(Energy_Purchases_MWh[Energy purchased],Energy_Purchases_MWh[Year],a!C$200,Energy_Purchases_MWh[Quarter],"Q4",Energy_Purchases_MWh[Plant Name],$F102), IF($G$5="Calendar Year",SUMIFS(Energy_Purchases_MWh[Energy purchased],Energy_Purchases_MWh[Year],a!C$200,Energy_Purchases_MWh[Plant Name],$F102),""))))))/10^3,"") -> 4.364181 | J102: =IFERROR(SUM(IF($G$5="Q1",SUMIFS(Energy_Purchases_MWh[Energy purchased],Energy_Purchases_MWh[Year],a!D$200,Energy_Purchases_MWh[Quarter],"Q1",Energy_Purchases_MWh[Plant Name],$F102),IF($G$5="Q2",SUMIFS(Energy_Purchases_MWh[Energy purchased],Energy_Purchases_MWh[Year],a!D$200,Energy_Purchases_MWh[Quarter],"Q2",Energy_Purchases_MWh[Plant Name],$F102),IF($G$5="Q3",SUMIFS(Energy_Purchases_MWh[Energy purchased],Energy_Purchases_MWh[Year],a!D$200,Energy_Purchases_MWh[Quarter],"Q3",Energy_Purchases_MWh[Plant Name],$F102),IF($G$5="Q4",SUMIFS(Energy_Purchases_MWh[Energy purchased],Energy_Purchases_MWh[Year],a!D$200,Energy_Purchases_MWh[Quarter],"Q4",Energy_Purchases_MWh[Plant Name],$F102), IF($G$5="Calendar Year",SUMIFS(Energy_Purchases_MWh[Energy purchased],Energy_Purchases_MWh[Year],a!D$200,Energy_Purchases_MWh[Plant Name],$F102),""))))))/10^3,"") -> 4.436439 | K102: =IFERROR(SUM(IF($G$5="Q1",SUMIFS(Energy_Purchases_MWh[Energy purchased],Energy_Purchases_MWh[Year],a!E$200,Energy_Purchases_MWh[Quarter],"Q1",Energy_Purchases_MWh[Plant Name],$F102),IF($G$5="Q2",SUMIFS(Energy_Purchases_MWh[Energy purchased],Energy_Purchases_MWh[Year],a!E$200,Energy_Purchases_MWh[Quarter],"Q2",Energy_Purchases_MWh[Plant Name],$F102),IF($G$5="Q3",SUMIFS(Energy_Purchases_MWh[Energy purchased],Energy_Purchases_MWh[Year],a!E$200,Energy_Purchases_MWh[Quarter],"Q3",Energy_Purchases_MWh[Plant Name],$F102),IF($G$5="Q4",SUMIFS(Energy_Purchases_MWh[Energy purchased],Energy_Purchases_MWh[Year],a!E$200,Energy_Purchases_MWh[Quarter],"Q4",Energy_Purchases_MWh[Plant Name],$F102), IF($G$5="Calendar Year",SUMIFS(Energy_Purchases_MWh[Energy purchased],Energy_Purchases_MWh[Year],a!E$200,Energy_Purchases_MWh[Plant Name],$F102),""))))))/10^3,"") -> 4.312
F103: ACHWA 1 | G103: =IFERROR(SUM(IF($G$5="Q1",SUMIFS(Energy_Purchases_MWh[Energy purchased],Energy_Purchases_MWh[Year],a!A$200,Energy_Purchases_MWh[Quarter],"Q1",Energy_Purchases_MWh[Plant Name],$F103),IF($G$5="Q2",SUMIFS(Energy_Purchases_MWh[Energy purchased],Energy_Purchases_MWh[Year],a!A$200,Energy_Purchases_MWh[Quarter],"Q2",Energy_Purchases_MWh[Plant Name],$F103),IF($G$5="Q3",SUMIFS(Energy_Purchases_MWh[Energy purchased],Energy_Purchases_MWh[Year],a!A$200,Energy_Purchases_MWh[Quarter],"Q3",Energy_Purchases_MWh[Plant Name],$F103),IF($G$5="Q4",SUMIFS(Energy_Purchases_MWh[Energy purchased],Energy_Purchases_MWh[Year],a!A$200,Energy_Purchases_MWh[Quarter],"Q4",Energy_Purchases_MWh[Plant Name],$F103), IF($G$5="Calendar Year",SUMIFS(Energy_Purchases_MWh[Energy purchased],Energy_Purchases_MWh[Year],a!A$200,Energy_Purchases_MWh[Plant Name],$F103),""))))))/10^3,"") -> 0 | H103: =IFERROR(SUM(IF($G$5="Q1",SUMIFS(Energy_Purchases_MWh[Energy purchased],Energy_Purchases_MWh[Year],a!B$200,Energy_Purchases_MWh[Quarter],"Q1",Energy_Purchases_MWh[Plant Name],$F103),IF($G$5="Q2",SUMIFS(Energy_Purchases_MWh[Energy purchased],Energy_Purchases_MWh[Year],a!B$200,Energy_Purchases_MWh[Quarter],"Q2",Energy_Purchases_MWh[Plant Name],$F103),IF($G$5="Q3",SUMIFS(Energy_Purchases_MWh[Energy purchased],Energy_Purchases_MWh[Year],a!B$200,Energy_Purchases_MWh[Quarter],"Q3",Energy_Purchases_MWh[Plant Name],$F103),IF($G$5="Q4",SUMIFS(Energy_Purchases_MWh[Energy purchased],Energy_Purchases_MWh[Year],a!B$200,Energy_Purchases_MWh[Quarter],"Q4",Energy_Purchases_MWh[Plant Name],$F103), IF($G$5="Calendar Year",SUMIFS(Energy_Purchases_MWh[Energy purchased],Energy_Purchases_MWh[Year],a!B$200,Energy_Purchases_MWh[Plant Name],$F103),""))))))/10^3,"") -> 2.2367683 | I103: =IFERROR(SUM(IF($G$5="Q1",SUMIFS(Energy_Purchases_MWh[Energy purchased],Energy_Purchases_MWh[Year],a!C$200,Energy_Purchases_MWh[Quarter],"Q1",Energy_Purchases_MWh[Plant Name],$F103),IF($G$5="Q2",SUMIFS(Energy_Purchases_MWh[Energy purchased],Energy_Purchases_MWh[Year],a!C$200,Energy_Purchases_MWh[Quarter],"Q2",Energy_Purchases_MWh[Plant Name],$F103),IF($G$5="Q3",SUMIFS(Energy_Purchases_MWh[Energy purchased],Energy_Purchases_MWh[Year],a!C$200,Energy_Purchases_MWh[Quarter],"Q3",Energy_Purchases_MWh[Plant Name],$F103),IF($G$5="Q4",SUMIFS(Energy_Purchases_MWh[Energy purchased],Energy_Purchases_MWh[Year],a!C$200,Energy_Purchases_MWh[Quarter],"Q4",Energy_Purchases_MWh[Plant Name],$F103), IF($G$5="Calendar Year",SUMIFS(Energy_Purchases_MWh[Energy purchased],Energy_Purchases_MWh[Year],a!C$200,Energy_Purchases_MWh[Plant Name],$F103),""))))))/10^3,"") -> 0 | J103: =IFERROR(SUM(IF($G$5="Q1",SUMIFS(Energy_Purchases_MWh[Energy purchased],Energy_Purchases_MWh[Year],a!D$200,Energy_Purchases_MWh[Quarter],"Q1",Energy_Purchases_MWh[Plant Name],$F103),IF($G$5="Q2",SUMIFS(Energy_Purchases_MWh[Energy purchased],Energy_Purchases_MWh[Year],a!D$200,Energy_Purchases_MWh[Quarter],"Q2",Energy_Purchases_MWh[Plant Name],$F103),IF($G$5="Q3",SUMIFS(Energy_Purchases_MWh[Energy purchased],Energy_Purchases_MWh[Year],a!D$200,Energy_Purchases_MWh[Quarter],"Q3",Energy_Purchases_MWh[Plant Name],$F103),IF($G$5="Q4",SUMIFS(Energy_Purchases_MWh[Energy purchased],Energy_Purchases_MWh[Year],a!D$200,Energy_Purchases_MWh[Quarter],"Q4",Energy_Purchases_MWh[Plant Name],$F103), IF($G$5="Calendar Year",SUMIFS(Energy_Purchases_MWh[Energy purchased],Energy_Purchases_MWh[Year],a!D$200,Energy_Purchases_MWh[Plant Name],$F103),""))))))/10^3,"") -> 0 | K103: =IFERROR(SUM(IF($G$5="Q1",SUMIFS(Energy_Purchases_MWh[Energy purchased],Energy_Purchases_MWh[Year],a!E$200,Energy_Purchases_MWh[Quarter],"Q1",Energy_Purchases_MWh[Plant Name],$F103),IF($G$5="Q2",SUMIFS(Energy_Purchases_MWh[Energy purchased],Energy_Purchases_MWh[Year],a!E$200,Energy_Purchases_MWh[Quarter],"Q2",Energy_Purchases_MWh[Plant Name],$F103),IF($G$5="Q3",SUMIFS(Energy_Purchases_MWh[Energy purchased],Energy_Purchases_MWh[Year],a!E$200,Energy_Purchases_MWh[Quarter],"Q3",Energy_Purchases_MWh[Plant Name],$F103),IF($G$5="Q4",SUMIFS(Energy_Purchases_MWh[Energy purchased],Energy_Purchases_MWh[Year],a!E$200,Energy_Purchases_MWh[Quarter],"Q4",Energy_Purchases_MWh[Plant Name],$F103), IF($G$5="Calendar Year",SUMIFS(Energy_Purchases_MWh[Energy purchased],Energy_Purchases_MWh[Year],a!E$200,Energy_Purchases_MWh[Plant Name],$F103),""))))))/10^3,"") -> 11.26
F104: ACHWA 2 | G104: =IFERROR(SUM(IF($G$5="Q1",SUMIFS(Energy_Purchases_MWh[Energy purchased],Energy_Purchases_MWh[Year],a!A$200,Energy_Purchases_MWh[Quarter],"Q1",Energy_Purchases_MWh[Plant Name],$F104),IF($G$5="Q2",SUMIFS(Energy_Purchases_MWh[Energy purchased],Energy_Purchases_MWh[Year],a!A$200,Energy_Purchases_MWh[Quarter],"Q2",Energy_Purchases_MWh[Plant Name],$F104),IF($G$5="Q3",SUMIFS(Energy_Purchases_MWh[Energy purchased],Energy_Purchases_MWh[Year],a!A$200,Energy_Purchases_MWh[Quarter],"Q3",Energy_Purchases_MWh[Plant Name],$F104),IF($G$5="Q4",SUMIFS(Energy_Purchases_MWh[Energy purchased],Energy_Purchases_MWh[Year],a!A$200,Energy_Purchases_MWh[Quarter],"Q4",Energy_Purchases_MWh[Plant Name],$F104), IF($G$5="Calendar Year",SUMIFS(Energy_Purchases_MWh[Energy purchased],Energy_Purchases_MWh[Year],a!A$200,Energy_Purchases_MWh[Plant Name],$F104),""))))))/10^3,"") -> 1.702183 | H104: =IFERROR(SUM(IF($G$5="Q1",SUMIFS(Energy_Purchases_MWh[Energy purchased],Energy_Purchases_MWh[Year],a!B$200,Energy_Purchases_MWh[Quarter],"Q1",Energy_Purchases_MWh[Plant Name],$F104),IF($G$5="Q2",SUMIFS(Energy_Purchases_MWh[Energy purchased],Energy_Purchases_MWh[Year],a!B$200,Energy_Purchases_MWh[Quarter],"Q2",Energy_Purchases_MWh[Plant Name],$F104),IF($G$5="Q3",SUMIFS(Energy_Purchases_MWh[Energy purchased],Energy_Purchases_MWh[Year],a!B$200,Energy_Purchases_MWh[Quarter],"Q3",Energy_Purchases_MWh[Plant Name],$F104),IF($G$5="Q4",SUMIFS(Energy_Purchases_MWh[Energy purchased],Energy_Purchases_MWh[Year],a!B$200,Energy_Purchases_MWh[Quarter],"Q4",Energy_Purchases_MWh[Plant Name],$F104), IF($G$5="Calendar Year",SUMIFS(Energy_Purchases_MWh[Energy purchased],Energy_Purchases_MWh[Year],a!B$200,Energy_Purchases_MWh[Plant Name],$F104),""))))))/10^3,"") -> 2.5530196 | I104: =IFERROR(SUM(IF($G$5="Q1",SUMIFS(Energy_Purchases_MWh[Energy purchased],Energy_Purchases_MWh[Year],a!C$200,Energy_Purchases_MWh[Quarter],"Q1",Energy_Purchases_MWh[Plant Name],$F104),IF($G$5="Q2",SUMIFS(Energy_Purchases_MWh[Energy purchased],Energy_Purchases_MWh[Year],a!C$200,Energy_Purchases_MWh[Quarter],"Q2",Energy_Purchases_MWh[Plant Name],$F104),IF($G$5="Q3",SUMIFS(Energy_Purchases_MWh[Energy purchased],Energy_Purchases_MWh[Year],a!C$200,Energy_Purchases_MWh[Quarter],"Q3",Energy_Purchases_MWh[Plant Name],$F104),IF($G$5="Q4",SUMIFS(Energy_Purchases_MWh[Energy purchased],Energy_Purchases_MWh[Year],a!C$200,Energy_Purchases_MWh[Quarter],"Q4",Energy_Purchases_MWh[Plant Name],$F104), IF($G$5="Calendar Year",SUMIFS(Energy_Purchases_MWh[Energy purchased],Energy_Purchases_MWh[Year],a!C$200,Energy_Purchases_MWh[Plant Name],$F104),""))))))/10^3,"") -> 4.60363 | J104: =IFERROR(SUM(IF($G$5="Q1",SUMIFS(Energy_Purchases_MWh[Energy purchased],Energy_Purchases_MWh[Year],a!D$200,Energy_Purchases_MWh[Quarter],"Q1",Energy_Purchases_MWh[Plant Name],$F104),IF($G$5="Q2",SUMIFS(Energy_Purchases_MWh[Energy purchased],Energy_Purchases_MWh[Year],a!D$200,Energy_Purchases_MWh[Quarter],"Q2",Energy_Purchases_MWh[Plant Name],$F104),IF($G$5="Q3",SUMIFS(Energy_Purchases_MWh[Energy purchased],Energy_Purchases_MWh[Year],a!D$200,Energy_Purchases_MWh[Quarter],"Q3",Energy_Purchases_MWh[Plant Name],$F104),IF($G$5="Q4",SUMIFS(Energy_Purchases_MWh[Energy purchased],Energy_Purchases_MWh[Year],a!D$200,Energy_Purchases_MWh[Quarter],"Q4",Energy_Purchases_MWh[Plant Name],$F104), IF($G$5="Calendar Year",SUMIFS(Energy_Purchases_MWh[Energy purchased],Energy_Purchases_MWh[Year],a!D$200,Energy_Purchases_MWh[Plant Name],$F104),""))))))/10^3,"") -> 2.60634 | K104: =IFERROR(SUM(IF($G$5="Q1",SUMIFS(Energy_Purchases_MWh[Energy purchased],Energy_Purchases_MWh[Year],a!E$200,Energy_Purchases_MWh[Quarter],"Q1",Energy_Purchases_MWh[Plant Name],$F104),IF($G$5="Q2",SUMIFS(Energy_Purchases_MWh[Energy purchased],Energy_Purchases_MWh[Year],a!E$200,Energy_Purchases_MWh[Quarter],"Q2",Energy_Purchases_MWh[Plant Name],$F104),IF($G$5="Q3",SUMIFS(Energy_Purchases_MWh[Energy purchased],Energy_Purchases_MWh[Year],a!E$200,Energy_Purchases_MWh[Quarter],"Q3",Energy_Purchases_MWh[Plant Name],$F104),IF($G$5="Q4",SUMIFS(Energy_Purchases_MWh[Energy purchased],Energy_Purchases_MWh[Year],a!E$200,Energy_Purchases_MWh[Quarter],"Q4",Energy_Purchases_MWh[Plant Name],$F104), IF($G$5="Calendar Year",SUMIFS(Energy_Purchases_MWh[Energy purchased],Energy_Purchases_MWh[Year],a!E$200,Energy_Purchases_MWh[Plant Name],$F104),""))))))/10^3,"") -> 0
F105: AEMS MPANGA | G105: =IFERROR(SUM(IF($G$5="Q1",SUMIFS(Energy_Purchases_MWh[Energy purchased],Energy_Purchases_MWh[Year],a!A$200,Energy_Purchases_MWh[Quarter],"Q1",Energy_Purchases_MWh[Plant Name],$F105),IF($G$5="Q2",SUMIFS(Energy_Purchases_MWh[Energy purchased],Energy_Purchases_MWh[Year],a!A$200,Energy_Purchases_MWh[Quarter],"Q2",Energy_Purchases_MWh[Plant Name],$F105),IF($G$5="Q3",SUMIFS(Energy_Purchases_MWh[Energy purchased],Energy_Purchases_MWh[Year],a!A$200,Energy_Purchases_MWh[Quarter],"Q3",Energy_Purchases_MWh[Plant Name],$F105),IF($G$5="Q4",SUMIFS(Energy_Purchases_MWh[Energy purchased],Energy_Purchases_MWh[Year],a!A$200,Energy_Purchases_MWh[Quarter],"Q4",Energy_Purchases_MWh[Plant Name],$F105), IF($G$5="Calendar Year",SUMIFS(Energy_Purchases_MWh[Energy purchased],Energy_Purchases_MWh[Year],a!A$200,Energy_Purchases_MWh[Plant Name],$F105),""))))))/10^3,"") -> 10.49791 | H105: =IFERROR(SUM(IF($G$5="Q1",SUMIFS(Energy_Purchases_MWh[Energy purchased],Energy_Purchases_MWh[Year],a!B$200,Energy_Purchases_MWh[Quarter],"Q1",Energy_Purchases_MWh[Plant Name],$F105),IF($G$5="Q2",SUMIFS(Energy_Purchases_MWh[Energy purchased],Energy_Purchases_MWh[Year],a!B$200,Energy_Purchases_MWh[Quarter],"Q2",Energy_Purchases_MWh[Plant Name],$F105),IF($G$5="Q3",SUMIFS(Energy_Purchases_MWh[Energy purchased],Energy_Purchases_MWh[Year],a!B$200,Energy_Purchases_MWh[Quarter],"Q3",Energy_Purchases_MWh[Plant Name],$F105),IF($G$5="Q4",SUMIFS(Energy_Purchases_MWh[Energy purchased],Energy_Purchases_MWh[Year],a!B$200,Energy_Purchases_MWh[Quarter],"Q4",Energy_Purchases_MWh[Plant Name],$F105), IF($G$5="Calendar Year",SUMIFS(Energy_Purchases_MWh[Energy purchased],Energy_Purchases_MWh[Year],a!B$200,Energy_Purchases_MWh[Plant Name],$F105),""))))))/10^3,"") -> 11.68797 | I105: =IFERROR(SUM(IF($G$5="Q1",SUMIFS(Energy_Purchases_MWh[Energy purchased],Energy_Purchases_MWh[Year],a!C$200,Energy_Purchases_MWh[Quarter],"Q1",Energy_Purchases_MWh[Plant Name],$F105),IF($G$5="Q2",SUMIFS(Energy_Purchases_MWh[Energy purchased],Energy_Purchases_MWh[Year],a!C$200,Energy_Purchases_MWh[Quarter],"Q2",Energy_Purchases_MWh[Plant Name],$F105),IF($G$5="Q3",SUMIFS(Energy_Purchases_MWh[Energy purchased],Energy_Purchases_MWh[Year],a!C$200,Energy_Purchases_MWh[Quarter],"Q3",Energy_Purchases_MWh[Plant Name],$F105),IF($G$5="Q4",SUMIFS(Energy_Purchases_MWh[Energy purchased],Energy_Purchases_MWh[Year],a!C$200,Energy_Purchases_MWh[Quarter],"Q4",Energy_Purchases_MWh[Plant Name],$F105), IF($G$5="Calendar Year",SUMIFS(Energy_Purchases_MWh[Energy purchased],Energy_Purchases_MWh[Year],a!C$200,Energy_Purchases_MWh[Plant Name],$F105),""))))))/10^3,"") -> 24.50653 | J105: =IFERROR(SUM(IF($G$5="Q1",SUMIFS(Energy_Purchases_MWh[Energy purchased],Energy_Purchases_MWh[Year],a!D$200,Energy_Purchases_MWh[Quarter],"Q1",Energy_Purchases_MWh[Plant Name],$F105),IF($G$5="Q2",SUMIFS(Energy_Purchases_MWh[Energy purchased],Energy_Purchases_MWh[Year],a!D$200,Energy_Purchases_MWh[Quarter],"Q2",Energy_Purchases_MWh[Plant Name],$F105),IF($G$5="Q3",SUMIFS(Energy_Purchases_MWh[Energy purchased],Energy_Purchases_MWh[Year],a!D$200,Energy_Purchases_MWh[Quarter],"Q3",Energy_Purchases_MWh[Plant Name],$F105),IF($G$5="Q4",SUMIFS(Energy_Purchases_MWh[Energy purchased],Energy_Purchases_MWh[Year],a!D$200,Energy_Purchases_MWh[Quarter],"Q4",Energy_Purchases_MWh[Plant Name],$F105), IF($G$5="Calendar Year",SUMIFS(Energy_Purchases_MWh[Energy purchased],Energy_Purchases_MWh[Year],a!D$200,Energy_Purchases_MWh[Plant Name],$F105),""))))))/10^3,"") -> 15.28963 | K105: =IFERROR(SUM(IF($G$5="Q1",SUMIFS(Energy_Purchases_MWh[Energy purchased],Energy_Purchases_MWh[Year],a!E$200,Energy_Purchases_MWh[Quarter],"Q1",Energy_Purchases_MWh[Plant Name],$F105),IF($G$5="Q2",SUMIFS(Energy_Purchases_MWh[Energy purchased],Energy_Purchases_MWh[Year],a!E$200,Energy_Purchases_MWh[Quarter],"Q2",Energy_Purchases_MWh[Plant Name],$F105),IF($G$5="Q3",SUMIFS(Energy_Purchases_MWh[Energy purchased],Energy_Purchases_MWh[Year],a!E$200,Energy_Purchases_MWh[Quarter],"Q3",Energy_Purchases_MWh[Plant Name],$F105),IF($G$5="Q4",SUMIFS(Energy_Purchases_MWh[Energy purchased],Energy_Purchases_MWh[Year],a!E$200,Energy_Purchases_MWh[Quarter],"Q4",Energy_Purchases_MWh[Plant Name],$F105), IF($G$5="Calendar Year",SUMIFS(Energy_Purchases_MWh[Energy purchased],Energy_Purchases_MWh[Year],a!E$200,Energy_Purchases_MWh[Plant Name],$F105),""))))))/10^3,"") -> 24.654
F106: AGGREKO KIIRA | G106: =IFERROR(SUM(IF($G$5="Q1",SUMIFS(Energy_Purchases_MWh[Energy purchased],Energy_Purchases_MWh[Year],a!A$200,Energy_Purchases_MWh[Quarter],"Q1",Energy_Purchases_MWh[Plant Name],$F106),IF($G$5="Q2",SUMIFS(Energy_Purchases_MWh[Energy purchased],Energy_Purchases_MWh[Year],a!A$200,Energy_Purchases_MWh[Quarter],"Q2",Energy_Purchases_MWh[Plant Name],$F106),IF($G$5="Q3",SUMIFS(Energy_Purchases_MWh[Energy purchased],Energy_Purchases_MWh[Year],a!A$200,Energy_Purchases_MWh[Quarter],"Q3",Energy_Purchases_MWh[Plant Name],$F106),IF($G$5="Q4",SUMIFS(Energy_Purchases_MWh[Energy purchased],Energy_Purchases_MWh[Year],a!A$200,Energy_Purchases_MWh[Quarter],"Q4",Energy_Purchases_MWh[Plant Name],$F106), IF($G$5="Calendar Year",SUMIFS(Energy_Purchases_MWh[Energy purchased],Energy_Purchases_MWh[Year],a!A$200,Energy_Purchases_MWh[Plant Name],$F106),""))))))/10^3,"") -> 0 | H106: =IFERROR(SUM(IF($G$5="Q1",SUMIFS(Energy_Purchases_MWh[Energy purchased],Energy_Purchases_MWh[Year],a!B$200,Energy_Purchases_MWh[Quarter],"Q1",Energy_Purchases_MWh[Plant Name],$F106),IF($G$5="Q2",SUMIFS(Energy_Purchases_MWh[Energy purchased],Energy_Purchases_MWh[Year],a!B$200,Energy_Purchases_MWh[Quarter],"Q2",Energy_Purchases_MWh[Plant Name],$F106),IF($G$5="Q3",SUMIFS(Energy_Purchases_MWh[Energy purchased],Energy_Purchases_MWh[Year],a!B$200,Energy_Purchases_MWh[Quarter],"Q3",Energy_Purchases_MWh[Plant Name],$F106),IF($G$5="Q4",SUMIFS(Energy_Purchases_MWh[Energy purchased],Energy_Purchases_MWh[Year],a!B$200,Energy_Purchases_MWh[Quarter],"Q4",Energy_Purchases_MWh[Plant Name],$F106), IF($G$5="Calendar Year",SUMIFS(Energy_Purchases_MWh[Energy purchased],Energy_Purchases_MWh[Year],a!B$200,Energy_Purchases_MWh[Plant Name],$F106),""))))))/10^3,"") -> 0 | I106: =IFERROR(SUM(IF($G$5="Q1",SUMIFS(Energy_Purchases_MWh[Energy purchased],Energy_Purchases_MWh[Year],a!C$200,Energy_Purchases_MWh[Quarter],"Q1",Energy_Purchases_MWh[Plant Name],$F106),IF($G$5="Q2",SUMIFS(Energy_Purchases_MWh[Energy purchased],Energy_Purchases_MWh[Year],a!C$200,Energy_Purchases_MWh[Quarter],"Q2",Energy_Purchases_MWh[Plant Name],$F106),IF($G$5="Q3",SUMIFS(Energy_Purchases_MWh[Energy purchased],Energy_Purchases_MWh[Year],a!C$200,Energy_Purchases_MWh[Quarter],"Q3",Energy_Purchases_MWh[Plant Name],$F106),IF($G$5="Q4",SUMIFS(Energy_Purchases_MWh[Energy purchased],Energy_Purchases_MWh[Year],a!C$200,Energy_Purchases_MWh[Quarter],"Q4",Energy_Purchases_MWh[Plant Name],$F106), IF($G$5="Calendar Year",SUMIFS(Energy_Purchases_MWh[Energy purchased],Energy_Purchases_MWh[Year],a!C$200,Energy_Purchases_MWh[Plant Name],$F106),""))))))/10^3,"") -> 0 | J106: =IFERROR(SUM(IF($G$5="Q1",SUMIFS(Energy_Purchases_MWh[Energy purchased],Energy_Purchases_MWh[Year],a!D$200,Energy_Purchases_MWh[Quarter],"Q1",Energy_Purchases_MWh[Plant Name],$F106),IF($G$5="Q2",SUMIFS(Energy_Purchases_MWh[Energy purchased],Energy_Purchases_MWh[Year],a!D$200,Energy_Purchases_MWh[Quarter],"Q2",Energy_Purchases_MWh[Plant Name],$F106),IF($G$5="Q3",SUMIFS(Energy_Purchases_MWh[Energy purchased],Energy_Purchases_MWh[Year],a!D$200,Energy_Purchases_MWh[Quarter],"Q3",Energy_Purchases_MWh[Plant Name],$F106),IF($G$5="Q4",SUMIFS(Energy_Purchases_MWh[Energy purchased],Energy_Purchases_MWh[Year],a!D$200,Energy_Purchases_MWh[Quarter],"Q4",Energy_Purchases_MWh[Plant Name],$F106), IF($G$5="Calendar Year",SUMIFS(Energy_Purchases_MWh[Energy purchased],Energy_Purchases_MWh[Year],a!D$200,Energy_Purchases_MWh[Plant Name],$F106),""))))))/10^3,"") -> 0 | K106: =IFERROR(SUM(IF($G$5="Q1",SUMIFS(Energy_Purchases_MWh[Energy purchased],Energy_Purchases_MWh[Year],a!E$200,Energy_Purchases_MWh[Quarter],"Q1",Energy_Purchases_MWh[Plant Name],$F106),IF($G$5="Q2",SUMIFS(Energy_Purchases_MWh[Energy purchased],Energy_Purchases_MWh[Year],a!E$200,Energy_Purchases_MWh[Quarter],"Q2",Energy_Purchases_MWh[Plant Name],$F106),IF($G$5="Q3",SUMIFS(Energy_Purchases_MWh[Energy purchased],Energy_Purchases_MWh[Year],a!E$200,Energy_Purchases_MWh[Quarter],"Q3",Energy_Purchases_MWh[Plant Name],$F106),IF($G$5="Q4",SUMIFS(Energy_Purchases_MWh[Energy purchased],Energy_Purchases_MWh[Year],a!E$200,Energy_Purchases_MWh[Quarter],"Q4",Energy_Purchases_MWh[Plant Name],$F106), IF($G$5="Calendar Year",SUMIFS(Energy_Purchases_MWh[Energy purchased],Energy_Purchases_MWh[Year],a!E$200,Energy_Purchases_MWh[Plant Name],$F106),""))))))/10^3,"") -> 0
F107: BUGOYE | G107: =IFERROR(SUM(IF($G$5="Q1",SUMIFS(Energy_Purchases_MWh[Energy purchased],Energy_Purchases_MWh[Year],a!A$200,Energy_Purchases_MWh[Quarter],"Q1",Energy_Purchases_MWh[Plant Name],$F107),IF($G$5="Q2",SUMIFS(Energy_Purchases_MWh[Energy purchased],Energy_Purchases_MWh[Year],a!A$200,Energy_Purchases_MWh[Quarter],"Q2",Energy_Purchases_MWh[Plant Name],$F107),IF($G$5="Q3",SUMIFS(Energy_Purchases_MWh[Energy purchased],Energy_Purchases_MWh[Year],a!A$200,Energy_Purchases_MWh[Quarter],"Q3",Energy_Purchases_MWh[Plant Name],$F107),IF($G$5="Q4",SUMIFS(Energy_Purchases_MWh[Energy purchased],Energy_Purchases_MWh[Year],a!A$200,Energy_Purchases_MWh[Quarter],"Q4",Energy_Purchases_MWh[Plant Name],$F107), IF($G$5="Calendar Year",SUMIFS(Energy_Purchases_MWh[Energy purchased],Energy_Purchases_MWh[Year],a!A$200,Energy_Purchases_MWh[Plant Name],$F107),""))))))/10^3,"") -> 9.72114 | H107: =IFERROR(SUM(IF($G$5="Q1",SUMIFS(Energy_Purchases_MWh[Energy purchased],Energy_Purchases_MWh[Year],a!B$200,Energy_Purchases_MWh[Quarter],"Q1",Energy_Purchases_MWh[Plant Name],$F107),IF($G$5="Q2",SUMIFS(Energy_Purchases_MWh[Energy purchased],Energy_Purchases_MWh[Year],a!B$200,Energy_Purchases_MWh[Quarter],"Q2",Energy_Purchases_MWh[Plant Name],$F107),IF($G$5="Q3",SUMIFS(Energy_Purchases_MWh[Energy purchased],Energy_Purchases_MWh[Year],a!B$200,Energy_Purchases_MWh[Quarter],"Q3",Energy_Purchases_MWh[Plant Name],$F107),IF($G$5="Q4",SUMIFS(Energy_Purchases_MWh[Energy purchased],Energy_Purchases_MWh[Year],a!B$200,Energy_Purchases_MWh[Quarter],"Q4",Energy_Purchases_MWh[Plant Name],$F107), IF($G$5="Calendar Year",SUMIFS(Energy_Purchases_MWh[Energy purchased],Energy_Purchases_MWh[Year],a!B$200,Energy_Purchases_MWh[Plant Name],$F107),""))))))/10^3,"") -> 24.12829 | I107: =IFERROR(SUM(IF($G$5="Q1",SUMIFS(Energy_Purchases_MWh[Energy purchased],Energy_Purchases_MWh[Year],a!C$200,Energy_Purchases_MWh[Quarter],"Q1",Energy_Purchases_MWh[Plant Name],$F107),IF($G$5="Q2",SUMIFS(Energy_Purchases_MWh[Energy purchased],Energy_Purchases_MWh[Year],a!C$200,Energy_Purchases_MWh[Quarter],"Q2",Energy_Purchases_MWh[Plant Name],$F107),IF($G$5="Q3",SUMIFS(Energy_Purchases_MWh[Energy purchased],Energy_Purchases_MWh[Year],a!C$200,Energy_Purchases_MWh[Quarter],"Q3",Energy_Purchases_MWh[Plant Name],$F107),IF($G$5="Q4",SUMIFS(Energy_Purchases_MWh[Energy purchased],Energy_Purchases_MWh[Year],a!C$200,Energy_Purchases_MWh[Quarter],"Q4",Energy_Purchases_MWh[Plant Name],$F107), IF($G$5="Calendar Year",SUMIFS(Energy_Purchases_MWh[Energy purchased],Energy_Purchases_MWh[Year],a!C$200,Energy_Purchases_MWh[Plant Name],$F107),""))))))/10^3,"") -> 13.23308 | J107: =IFERROR(SUM(IF($G$5="Q1",SUMIFS(Energy_Purchases_MWh[Energy purchased],Energy_Purchases_MWh[Year],a!D$200,Energy_Purchases_MWh[Quarter],"Q1",Energy_Purchases_MWh[Plant Name],$F107),IF($G$5="Q2",SUMIFS(Energy_Purchases_MWh[Energy purchased],Energy_Purchases_MWh[Year],a!D$200,Energy_Purchases_MWh[Quarter],"Q2",Energy_Purchases_MWh[Plant Name],$F107),IF($G$5="Q3",SUMIFS(Energy_Purchases_MWh[Energy purchased],Energy_Purchases_MWh[Year],a!D$200,Energy_Purchases_MWh[Quarter],"Q3",Energy_Purchases_MWh[Plant Name],$F107),IF($G$5="Q4",SUMIFS(Energy_Purchases_MWh[Energy purchased],Energy_Purchases_MWh[Year],a!D$200,Energy_Purchases_MWh[Quarter],"Q4",Energy_Purchases_MWh[Plant Name],$F107), IF($G$5="Calendar Year",SUMIFS(Energy_Purchases_MWh[Energy purchased],Energy_Purchases_MWh[Year],a!D$200,Energy_Purchases_MWh[Plant Name],$F107),""))))))/10^3,"") -> 9.27818 | K107: =IFERROR(SUM(IF($G$5="Q1",SUMIFS(Energy_Purchases_MWh[Energy purchased],Energy_Purchases_MWh[Year],a!E$200,Energy_Purchases_MWh[Quarter],"Q1",Energy_Purchases_MWh[Plant Name],$F107),IF($G$5="Q2",SUMIFS(Energy_Purchases_MWh[Energy purchased],Energy_Purchases_MWh[Year],a!E$200,Energy_Purchases_MWh[Quarter],"Q2",Energy_Purchases_MWh[Plant Name],$F107),IF($G$5="Q3",SUMIFS(Energy_Purchases_MWh[Energy purchased],Energy_Purchases_MWh[Year],a!E$200,Energy_Purchases_MWh[Quarter],"Q3",Energy_Purchases_MWh[Plant Name],$F107),IF($G$5="Q4",SUMIFS(Energy_Purchases_MWh[Energy purchased],Energy_Purchases_MWh[Year],a!E$200,Energy_Purchases_MWh[Quarter],"Q4",Energy_Purchases_MWh[Plant Name],$F107), IF($G$5="Calendar Year",SUMIFS(Energy_Purchases_MWh[Energy purchased],Energy_Purchases_MWh[Year],a!E$200,Energy_Purchases_MWh[Plant Name],$F107),""))))))/10^3,"") -> 4.044
F108: BUJAGALI | G108: =IFERROR(SUM(IF($G$5="Q1",SUMIFS(Energy_Purchases_MWh[Energy purchased],Energy_Purchases_MWh[Year],a!A$200,Energy_Purchases_MWh[Quarter],"Q1",Energy_Purchases_MWh[Plant Name],$F108),IF($G$5="Q2",SUMIFS(Energy_Purchases_MWh[Energy purchased],Energy_Purchases_MWh[Year],a!A$200,Energy_Purchases_MWh[Quarter],"Q2",Energy_Purchases_MWh[Plant Name],$F108),IF($G$5="Q3",SUMIFS(Energy_Purchases_MWh[Energy purchased],Energy_Purchases_MWh[Year],a!A$200,Energy_Purchases_MWh[Quarter],"Q3",Energy_Purchases_MWh[Plant Name],$F108),IF($G$5="Q4",SUMIFS(Energy_Purchases_MWh[Energy purchased],Energy_Purchases_MWh[Year],a!A$200,Energy_Purchases_MWh[Quarter],"Q4",Energy_Purchases_MWh[Plant Name],$F108), IF($G$5="Calendar Year",SUMIFS(Energy_Purchases_MWh[Energy purchased],Energy_Purchases_MWh[Year],a!A$200,Energy_Purchases_MWh[Plant Name],$F108),""))))))/10^3,"") -> 407.960513 | H108: =IFERROR(SUM(IF($G$5="Q1",SUMIFS(Energy_Purchases_MWh[Energy purchased],Energy_Purchases_MWh[Year],a!B$200,Energy_Purchases_MWh[Quarter],"Q1",Energy_Purchases_MWh[Plant Name],$F108),IF($G$5="Q2",SUMIFS(Energy_Purchases_MWh[Energy purchased],Energy_Purchases_MWh[Year],a!B$200,Energy_Purchases_MWh[Quarter],"Q2",Energy_Purchases_MWh[Plant Name],$F108),IF($G$5="Q3",SUMIFS(Energy_Purchases_MWh[Energy purchased],Energy_Purchases_MWh[Year],a!B$200,Energy_Purchases_MWh[Quarter],"Q3",Energy_Purchases_MWh[Plant Name],$F108),IF($G$5="Q4",SUMIFS(Energy_Purchases_MWh[Energy purchased],Energy_Purchases_MWh[Year],a!B$200,Energy_Purchases_MWh[Quarter],"Q4",Energy_Purchases_MWh[Plant Name],$F108), IF($G$5="Calendar Year",SUMIFS(Energy_Purchases_MWh[Energy purchased],Energy_Purchases_MWh[Year],a!B$200,Energy_Purchases_MWh[Plant Name],$F108),""))))))/10^3,"") -> 410.400736 | I108: =IFERROR(SUM(IF($G$5="Q1",SUMIFS(Energy_Purchases_MWh[Energy purchased],Energy_Purchases_MWh[Year],a!C$200,Energy_Purchases_MWh[Quarter],"Q1",Energy_Purchases_MWh[Plant Name],$F108),IF($G$5="Q2",SUMIFS(Energy_Purchases_MWh[Energy purchased],Energy_Purchases_MWh[Year],a!C$200,Energy_Purchases_MWh[Quarter],"Q2",Energy_Purchases_MWh[Plant Name],$F108),IF($G$5="Q3",SUMIFS(Energy_Purchases_MWh[Energy purchased],Energy_Purchases_MWh[Year],a!C$200,Energy_Purchases_MWh[Quarter],"Q3",Energy_Purchases_MWh[Plant Name],$F108),IF($G$5="Q4",SUMIFS(Energy_Purchases_MWh[Energy purchased],Energy_Purchases_MWh[Year],a!C$200,Energy_Purchases_MWh[Quarter],"Q4",Energy_Purchases_MWh[Plant Name],$F108), IF($G$5="Calendar Year",SUMIFS(Energy_Purchases_MWh[Energy purchased],Energy_Purchases_MWh[Year],a!C$200,Energy_Purchases_MWh[Plant Name],$F108),""))))))/10^3,"") -> 368.554976 | J108: =IFERROR(SUM(IF($G$5="Q1",SUMIFS(Energy_Purchases_MWh[Energy purchased],Energy_Purchases_MWh[Year],a!D$200,Energy_Purchases_MWh[Quarter],"Q1",Energy_Purchases_MWh[Plant Name],$F108),IF($G$5="Q2",SUMIFS(Energy_Purchases_MWh[Energy purchased],Energy_Purchases_MWh[Year],a!D$200,Energy_Purchases_MWh[Quarter],"Q2",Energy_Purchases_MWh[Plant Name],$F108),IF($G$5="Q3",SUMIFS(Energy_Purchases_MWh[Energy purchased],Energy_Purchases_MWh[Year],a!D$200,Energy_Purchases_MWh[Quarter],"Q3",Energy_Purchases_MWh[Plant Name],$F108),IF($G$5="Q4",SUMIFS(Energy_Purchases_MWh[Energy purchased],Energy_Purchases_MWh[Year],a!D$200,Energy_Purchases_MWh[Quarter],"Q4",Energy_Purchases_MWh[Plant Name],$F108), IF($G$5="Calendar Year",SUMIFS(Energy_Purchases_MWh[Energy purchased],Energy_Purchases_MWh[Year],a!D$200,Energy_Purchases_MWh[Plant Name],$F108),""))))))/10^3,"") -> 389.813168 | K108: =IFERROR(SUM(IF($G$5="Q1",SUMIFS(Energy_Purchases_MWh[Energy purchased],Energy_Purchases_MWh[Year],a!E$200,Energy_Purchases_MWh[Quarter],"Q1",Energy_Purchases_MWh[Plant Name],$F108),IF($G$5="Q2",SUMIFS(Energy_Purchases_MWh[Energy purchased],Energy_Purchases_MWh[Year],a!E$200,Energy_Purchases_MWh[Quarter],"Q2",Energy_Purchases_MWh[Plant Name],$F108),IF($G$5="Q3",SUMIFS(Energy_Purchases_MWh[Energy purchased],Energy_Purchases_MWh[Year],a!E$200,Energy_Purchases_MWh[Quarter],"Q3",Energy_Purchases_MWh[Plant Name],$F108),IF($G$5="Q4",SUMIFS(Energy_Purchases_MWh[Energy purchased],Energy_Purchases_MWh[Year],a!E$200,Energy_Purchases_MWh[Quarter],"Q4",Energy_Purchases_MWh[Plant Name],$F108), IF($G$5="Calendar Year",SUMIFS(Energy_Purchases_MWh[Energy purchased],Energy_Purchases_MWh[Year],a!E$200,Energy_Purchases_MWh[Plant Name],$F108),""))))))/10^3,"") -> 451.001
F109: BUSITEMA SOLAR | G109: =IFERROR(SUM(IF($G$5="Q1",SUMIFS(Energy_Purchases_MWh[Energy purchased],Energy_Purchases_MWh[Year],a!A$200,Energy_Purchases_MWh[Quarter],"Q1",Energy_Purchases_MWh[Plant Name],$F109),IF($G$5="Q2",SUMIFS(Energy_Purchases_MWh[Energy purchased],Energy_Purchases_MWh[Year],a!A$200,Energy_Purchases_MWh[Quarter],"Q2",Energy_Purchases_MWh[Plant Name],$F109),IF($G$5="Q3",SUMIFS(Energy_Purchases_MWh[Energy purchased],Energy_Purchases_MWh[Year],a!A$200,Energy_Purchases_MWh[Quarter],"Q3",Energy_Purchases_MWh[Plant Name],$F109),IF($G$5="Q4",SUMIFS(Energy_Purchases_MWh[Energy purchased],Energy_Purchases_MWh[Year],a!A$200,Energy_Purchases_MWh[Quarter],"Q4",Energy_Purchases_MWh[Plant Name],$F109), IF($G$5="Calendar Year",SUMIFS(Energy_Purchases_MWh[Energy purchased],Energy_Purchases_MWh[Year],a!A$200,Energy_Purchases_MWh[Plant Name],$F109),""))))))/10^3,"") -> 0 | H109: =IFERROR(SUM(IF($G$5="Q1",SUMIFS(Energy_Purchases_MWh[Energy purchased],Energy_Purchases_MWh[Year],a!B$200,Energy_Purchases_MWh[Quarter],"Q1",Energy_Purchases_MWh[Plant Name],$F109),IF($G$5="Q2",SUMIFS(Energy_Purchases_MWh[Energy purchased],Energy_Purchases_MWh[Year],a!B$200,Energy_Purchases_MWh[Quarter],"Q2",Energy_Purchases_MWh[Plant Name],$F109),IF($G$5="Q3",SUMIFS(Energy_Purchases_MWh[Energy purchased],Energy_Purchases_MWh[Year],a!B$200,Energy_Purchases_MWh[Quarter],"Q3",Energy_Purchases_MWh[Plant Name],$F109),IF($G$5="Q4",SUMIFS(Energy_Purchases_MWh[Energy purchased],Energy_Purchases_MWh[Year],a!B$200,Energy_Purchases_MWh[Quarter],"Q4",Energy_Purchases_MWh[Plant Name],$F109), IF($G$5="Calendar Year",SUMIFS(Energy_Purchases_MWh[Energy purchased],Energy_Purchases_MWh[Year],a!B$200,Energy_Purchases_MWh[Plant Name],$F109),""))))))/10^3,"") -> 0 | I109: =IFERROR(SUM(IF($G$5="Q1",SUMIFS(Energy_Purchases_MWh[Energy purchased],Energy_Purchases_MWh[Year],a!C$200,Energy_Purchases_MWh[Quarter],"Q1",Energy_Purchases_MWh[Plant Name],$F109),IF($G$5="Q2",SUMIFS(Energy_Purchases_MWh[Energy purchased],Energy_Purchases_MWh[Year],a!C$200,Energy_Purchases_MWh[Quarter],"Q2",Energy_Purchases_MWh[Plant Name],$F109),IF($G$5="Q3",SUMIFS(Energy_Purchases_MWh[Energy purchased],Energy_Purchases_MWh[Year],a!C$200,Energy_Purchases_MWh[Quarter],"Q3",Energy_Purchases_MWh[Plant Name],$F109),IF($G$5="Q4",SUMIFS(Energy_Purchases_MWh[Energy purchased],Energy_Purchases_MWh[Year],a!C$200,Energy_Purchases_MWh[Quarter],"Q4",Energy_Purchases_MWh[Plant Name],$F109), IF($G$5="Calendar Year",SUMIFS(Energy_Purchases_MWh[Energy purchased],Energy_Purchases_MWh[Year],a!C$200,Energy_Purchases_MWh[Plant Name],$F109),""))))))/10^3,"") -> 0.02375040065 | J109: =IFERROR(SUM(IF($G$5="Q1",SUMIFS(Energy_Purchases_MWh[Energy purchased],Energy_Purchases_MWh[Year],a!D$200,Energy_Purchases_MWh[Quarter],"Q1",Energy_Purchases_MWh[Plant Name],$F109),IF($G$5="Q2",SUMIFS(Energy_Purchases_MWh[Energy purchased],Energy_Purchases_MWh[Year],a!D$200,Energy_Purchases_MWh[Quarter],"Q2",Energy_Purchases_MWh[Plant Name],$F109),IF($G$5="Q3",SUMIFS(Energy_Purchases_MWh[Energy purchased],Energy_Purchases_MWh[Year],a!D$200,Energy_Purchases_MWh[Quarter],"Q3",Energy_Purchases_MWh[Plant Name],$F109),IF($G$5="Q4",SUMIFS(Energy_Purchases_MWh[Energy purchased],Energy_Purchases_MWh[Year],a!D$200,Energy_Purchases_MWh[Quarter],"Q4",Energy_Purchases_MWh[Plant Name],$F109), IF($G$5="Calendar Year",SUMIFS(Energy_Purchases_MWh[Energy purchased],Energy_Purchases_MWh[Year],a!D$200,Energy_Purchases_MWh[Plant Name],$F109),""))))))/10^3,"") -> 1.364116201 | K109: =IFERROR(SUM(IF($G$5="Q1",SUMIFS(Energy_Purchases_MWh[Energy purchased],Energy_Purchases_MWh[Year],a!E$200,Energy_Purchases_MWh[Quarter],"Q1",Energy_Purchases_MWh[Plant Name],$F109),IF($G$5="Q2",SUMIFS(Energy_Purchases_MWh[Energy purchased],Energy_Purchases_MWh[Year],a!E$200,Energy_Purchases_MWh[Quarter],"Q2",Energy_Purchases_MWh[Plant Name],$F109),IF($G$5="Q3",SUMIFS(Energy_Purchases_MWh[Energy purchased],Energy_Purchases_MWh[Year],a!E$200,Energy_Purchases_MWh[Quarter],"Q3",Energy_Purchases_MWh[Plant Name],$F109),IF($G$5="Q4",SUMIFS(Energy_Purchases_MWh[Energy purchased],Energy_Purchases_MWh[Year],a!E$200,Energy_Purchases_MWh[Quarter],"Q4",Energy_Purchases_MWh[Plant Name],$F109), IF($G$5="Calendar Year",SUMIFS(Energy_Purchases_MWh[Energy purchased],Energy_Purchases_MWh[Year],a!E$200,Energy_Purchases_MWh[Plant Name],$F109),""))))))/10^3,"") -> 0.893
F110: ECO-POWER ISHASHA | G110: =IFERROR(SUM(IF($G$5="Q1",SUMIFS(Energy_Purchases_MWh[Energy purchased],Energy_Purchases_MWh[Year],a!A$200,Energy_Purchases_MWh[Quarter],"Q1",Energy_Purchases_MWh[Plant Name],$F110),IF($G$5="Q2",SUMIFS(Energy_Purchases_MWh[Energy purchased],Energy_Purchases_MWh[Year],a!A$200,Energy_Purchases_MWh[Quarter],"Q2",Energy_Purchases_MWh[Plant Name],$F110),IF($G$5="Q3",SUMIFS(Energy_Purchases_MWh[Energy purchased],Energy_Purchases_MWh[Year],a!A$200,Energy_Purchases_MWh[Quarter],"Q3",Energy_Purchases_MWh[Plant Name],$F110),IF($G$5="Q4",SUMIFS(Energy_Purchases_MWh[Energy purchased],Energy_Purchases_MWh[Year],a!A$200,Energy_Purchases_MWh[Quarter],"Q4",Energy_Purchases_MWh[Plant Name],$F110), IF($G$5="Calendar Year",SUMIFS(Energy_Purchases_MWh[Energy purchased],Energy_Purchases_MWh[Year],a!A$200,Energy_Purchases_MWh[Plant Name],$F110),""))))))/10^3,"") -> 5.09215 | H110: =IFERROR(SUM(IF($G$5="Q1",SUMIFS(Energy_Purchases_MWh[Energy purchased],Energy_Purchases_MWh[Year],a!B$200,Energy_Purchases_MWh[Quarter],"Q1",Energy_Purchases_MWh[Plant Name],$F110),IF($G$5="Q2",SUMIFS(Energy_Purchases_MWh[Energy purchased],Energy_Purchases_MWh[Year],a!B$200,Energy_Purchases_MWh[Quarter],"Q2",Energy_Purchases_MWh[Plant Name],$F110),IF($G$5="Q3",SUMIFS(Energy_Purchases_MWh[Energy purchased],Energy_Purchases_MWh[Year],a!B$200,Energy_Purchases_MWh[Quarter],"Q3",Energy_Purchases_MWh[Plant Name],$F110),IF($G$5="Q4",SUMIFS(Energy_Purchases_MWh[Energy purchased],Energy_Purchases_MWh[Year],a!B$200,Energy_Purchases_MWh[Quarter],"Q4",Energy_Purchases_MWh[Plant Name],$F110), IF($G$5="Calendar Year",SUMIFS(Energy_Purchases_MWh[Energy purchased],Energy_Purchases_MWh[Year],a!B$200,Energy_Purchases_MWh[Plant Name],$F110),""))))))/10^3,"") -> 4.81925 | I110: =IFERROR(SUM(IF($G$5="Q1",SUMIFS(Energy_Purchases_MWh[Energy purchased],Energy_Purchases_MWh[Year],a!C$200,Energy_Purchases_MWh[Quarter],"Q1",Energy_Purchases_MWh[Plant Name],$F110),IF($G$5="Q2",SUMIFS(Energy_Purchases_MWh[Energy purchased],Energy_Purchases_MWh[Year],a!C$200,Energy_Purchases_MWh[Quarter],"Q2",Energy_Purchases_MWh[Plant Name],$F110),IF($G$5="Q3",SUMIFS(Energy_Purchases_MWh[Energy purchased],Energy_Purchases_MWh[Year],a!C$200,Energy_Purchases_MWh[Quarter],"Q3",Energy_Purchases_MWh[Plant Name],$F110),IF($G$5="Q4",SUMIFS(Energy_Purchases_MWh[Energy purchased],Energy_Purchases_MWh[Year],a!C$200,Energy_Purchases_MWh[Quarter],"Q4",Energy_Purchases_MWh[Plant Name],$F110), IF($G$5="Calendar Year",SUMIFS(Energy_Purchases_MWh[Energy purchased],Energy_Purchases_MWh[Year],a!C$200,Energy_Purchases_MWh[Plant Name],$F110),""))))))/10^3,"") -> 4.70892 | J110: =IFERROR(SUM(IF($G$5="Q1",SUMIFS(Energy_Purchases_MWh[Energy purchased],Energy_Purchases_MWh[Year],a!D$200,Energy_Purchases_MWh[Quarter],"Q1",Energy_Purchases_MWh[Plant Name],$F110),IF($G$5="Q2",SUMIFS(Energy_Purchases_MWh[Energy purchased],Energy_Purchases_MWh[Year],a!D$200,Energy_Purchases_MWh[Quarter],"Q2",Energy_Purchases_MWh[Plant Name],$F110),IF($G$5="Q3",SUMIFS(Energy_Purchases_MWh[Energy purchased],Energy_Purchases_MWh[Year],a!D$200,Energy_Purchases_MWh[Quarter],"Q3",Energy_Purchases_MWh[Plant Name],$F110),IF($G$5="Q4",SUMIFS(Energy_Purchases_MWh[Energy purchased],Energy_Purchases_MWh[Year],a!D$200,Energy_Purchases_MWh[Quarter],"Q4",Energy_Purchases_MWh[Plant Name],$F110), IF($G$5="Calendar Year",SUMIFS(Energy_Purchases_MWh[Energy purchased],Energy_Purchases_MWh[Year],a!D$200,Energy_Purchases_MWh[Plant Name],$F110),""))))))/10^3,"") -> 3.670612 | K110: =IFERROR(SUM(IF($G$5="Q1",SUMIFS(Energy_Purchases_MWh[Energy purchased],Energy_Purchases_MWh[Year],a!E$200,Energy_Purchases_MWh[Quarter],"Q1",Energy_Purchases_MWh[Plant Name],$F110),IF($G$5="Q2",SUMIFS(Energy_Purchases_MWh[Energy purchased],Energy_Purchases_MWh[Year],a!E$200,Energy_Purchases_MWh[Quarter],"Q2",Energy_Purchases_MWh[Plant Name],$F110),IF($G$5="Q3",SUMIFS(Energy_Purchases_MWh[Energy purchased],Energy_Purchases_MWh[Year],a!E$200,Energy_Purchases_MWh[Quarter],"Q3",Energy_Purchases_MWh[Plant Name],$F110),IF($G$5="Q4",SUMIFS(Energy_Purchases_MWh[Energy purchased],Energy_Purchases_MWh[Year],a!E$200,Energy_Purchases_MWh[Quarter],"Q4",Energy_Purchases_MWh[Plant Name],$F110), IF($G$5="Calendar Year",SUMIFS(Energy_Purchases_MWh[Energy purchased],Energy_Purchases_MWh[Year],a!E$200,Energy_Purchases_MWh[Plant Name],$F110),""))))))/10^3,"") -> 5.29
F111: ELECTRO-MAXX | G111: =IFERROR(SUM(IF($G$5="Q1",SUMIFS(Energy_Purchases_MWh[Energy purchased],Energy_Purchases_MWh[Year],a!A$200,Energy_Purchases_MWh[Quarter],"Q1",Energy_Purchases_MWh[Plant Name],$F111),IF($G$5="Q2",SUMIFS(Energy_Purchases_MWh[Energy purchased],Energy_Purchases_MWh[Year],a!A$200,Energy_Purchases_MWh[Quarter],"Q2",Energy_Purchases_MWh[Plant Name],$F111),IF($G$5="Q3",SUMIFS(Energy_Purchases_MWh[Energy purchased],Energy_Purchases_MWh[Year],a!A$200,Energy_Purchases_MWh[Quarter],"Q3",Energy_Purchases_MWh[Plant Name],$F111),IF($G$5="Q4",SUMIFS(Energy_Purchases_MWh[Energy purchased],Energy_Purchases_MWh[Year],a!A$200,Energy_Purchases_MWh[Quarter],"Q4",Energy_Purchases_MWh[Plant Name],$F111), IF($G$5="Calendar Year",SUMIFS(Energy_Purchases_MWh[Energy purchased],Energy_Purchases_MWh[Year],a!A$200,Energy_Purchases_MWh[Plant Name],$F111),""))))))/10^3,"") -> 4.66386 | H111: =IFERROR(SUM(IF($G$5="Q1",SUMIFS(Energy_Purchases_MWh[Energy purchased],Energy_Purchases_MWh[Year],a!B$200,Energy_Purchases_MWh[Quarter],"Q1",Energy_Purchases_MWh[Plant Name],$F111),IF($G$5="Q2",SUMIFS(Energy_Purchases_MWh[Energy purchased],Energy_Purchases_MWh[Year],a!B$200,Energy_Purchases_MWh[Quarter],"Q2",Energy_Purchases_MWh[Plant Name],$F111),IF($G$5="Q3",SUMIFS(Energy_Purchases_MWh[Energy purchased],Energy_Purchases_MWh[Year],a!B$200,Energy_Purchases_MWh[Quarter],"Q3",Energy_Purchases_MWh[Plant Name],$F111),IF($G$5="Q4",SUMIFS(Energy_Purchases_MWh[Energy purchased],Energy_Purchases_MWh[Year],a!B$200,Energy_Purchases_MWh[Quarter],"Q4",Energy_Purchases_MWh[Plant Name],$F111), IF($G$5="Calendar Year",SUMIFS(Energy_Purchases_MWh[Energy purchased],Energy_Purchases_MWh[Year],a!B$200,Energy_Purchases_MWh[Plant Name],$F111),""))))))/10^3,"") -> 0 | I111: =IFERROR(SUM(IF($G$5="Q1",SUMIFS(Energy_Purchases_MWh[Energy purchased],Energy_Purchases_MWh[Year],a!C$200,Energy_Purchases_MWh[Quarter],"Q1",Energy_Purchases_MWh[Plant Name],$F111),IF($G$5="Q2",SUMIFS(Energy_Purchases_MWh[Energy purchased],Energy_Purchases_MWh[Year],a!C$200,Energy_Purchases_MWh[Quarter],"Q2",Energy_Purchases_MWh[Plant Name],$F111),IF($G$5="Q3",SUMIFS(Energy_Purchases_MWh[Energy purchased],Energy_Purchases_MWh[Year],a!C$200,Energy_Purchases_MWh[Quarter],"Q3",Energy_Purchases_MWh[Plant Name],$F111),IF($G$5="Q4",SUMIFS(Energy_Purchases_MWh[Energy purchased],Energy_Purchases_MWh[Year],a!C$200,Energy_Purchases_MWh[Quarter],"Q4",Energy_Purchases_MWh[Plant Name],$F111), IF($G$5="Calendar Year",SUMIFS(Energy_Purchases_MWh[Energy purchased],Energy_Purchases_MWh[Year],a!C$200,Energy_Purchases_MWh[Plant Name],$F111),""))))))/10^3,"") -> 0 | J111: =IFERROR(SUM(IF($G$5="Q1",SUMIFS(Energy_Purchases_MWh[Energy purchased],Energy_Purchases_MWh[Year],a!D$200,Energy_Purchases_MWh[Quarter],"Q1",Energy_Purchases_MWh[Plant Name],$F111),IF($G$5="Q2",SUMIFS(Energy_Purchases_MWh[Energy purchased],Energy_Purchases_MWh[Year],a!D$200,Energy_Purchases_MWh[Quarter],"Q2",Energy_Purchases_MWh[Plant Name],$F111),IF($G$5="Q3",SUMIFS(Energy_Purchases_MWh[Energy purchased],Energy_Purchases_MWh[Year],a!D$200,Energy_Purchases_MWh[Quarter],"Q3",Energy_Purchases_MWh[Plant Name],$F111),IF($G$5="Q4",SUMIFS(Energy_Purchases_MWh[Energy purchased],Energy_Purchases_MWh[Year],a!D$200,Energy_Purchases_MWh[Quarter],"Q4",Energy_Purchases_MWh[Plant Name],$F111), IF($G$5="Calendar Year",SUMIFS(Energy_Purchases_MWh[Energy purchased],Energy_Purchases_MWh[Year],a!D$200,Energy_Purchases_MWh[Plant Name],$F111),""))))))/10^3,"") -> 0 | K111: =IFERROR(SUM(IF($G$5="Q1",SUMIFS(Energy_Purchases_MWh[Energy purchased],Energy_Purchases_MWh[Year],a!E$200,Energy_Purchases_MWh[Quarter],"Q1",Energy_Purchases_MWh[Plant Name],$F111),IF($G$5="Q2",SUMIFS(Energy_Purchases_MWh[Energy purchased],Energy_Purchases_MWh[Year],a!E$200,Energy_Purchases_MWh[Quarter],"Q2",Energy_Purchases_MWh[Plant Name],$F111),IF($G$5="Q3",SUMIFS(Energy_Purchases_MWh[Energy purchased],Energy_Purchases_MWh[Year],a!E$200,Energy_Purchases_MWh[Quarter],"Q3",Energy_Purchases_MWh[Plant Name],$F111),IF($G$5="Q4",SUMIFS(Energy_Purchases_MWh[Energy purchased],Energy_Purchases_MWh[Year],a!E$200,Energy_Purchases_MWh[Quarter],"Q4",Energy_Purchases_MWh[Plant Name],$F111), IF($G$5="Calendar Year",SUMIFS(Energy_Purchases_MWh[Energy purchased],Energy_Purchases_MWh[Year],a!E$200,Energy_Purchases_MWh[Plant Name],$F111),""))))))/10^3,"") -> 0
F112: ELGON HYDRO SITI | G112: =IFERROR(SUM(IF($G$5="Q1",SUMIFS(Energy_Purchases_MWh[Energy purchased],Energy_Purchases_MWh[Year],a!A$200,Energy_Purchases_MWh[Quarter],"Q1",Energy_Purchases_MWh[Plant Name],$F112),IF($G$5="Q2",SUMIFS(Energy_Purchases_MWh[Energy purchased],Energy_Purchases_MWh[Year],a!A$200,Energy_Purchases_MWh[Quarter],"Q2",Energy_Purchases_MWh[Plant Name],$F112),IF($G$5="Q3",SUMIFS(Energy_Purchases_MWh[Energy purchased],Energy_Purchases_MWh[Year],a!A$200,Energy_Purchases_MWh[Quarter],"Q3",Energy_Purchases_MWh[Plant Name],$F112),IF($G$5="Q4",SUMIFS(Energy_Purchases_MWh[Energy purchased],Energy_Purchases_MWh[Year],a!A$200,Energy_Purchases_MWh[Quarter],"Q4",Energy_Purchases_MWh[Plant Name],$F112), IF($G$5="Calendar Year",SUMIFS(Energy_Purchases_MWh[Energy purchased],Energy_Purchases_MWh[Year],a!A$200,Energy_Purchases_MWh[Plant Name],$F112),""))))))/10^3,"") -> 0.4327 | H112: =IFERROR(SUM(IF($G$5="Q1",SUMIFS(Energy_Purchases_MWh[Energy purchased],Energy_Purchases_MWh[Year],a!B$200,Energy_Purchases_MWh[Quarter],"Q1",Energy_Purchases_MWh[Plant Name],$F112),IF($G$5="Q2",SUMIFS(Energy_Purchases_MWh[Energy purchased],Energy_Purchases_MWh[Year],a!B$200,Energy_Purchases_MWh[Quarter],"Q2",Energy_Purchases_MWh[Plant Name],$F112),IF($G$5="Q3",SUMIFS(Energy_Purchases_MWh[Energy purchased],Energy_Purchases_MWh[Year],a!B$200,Energy_Purchases_MWh[Quarter],"Q3",Energy_Purchases_MWh[Plant Name],$F112),IF($G$5="Q4",SUMIFS(Energy_Purchases_MWh[Energy purchased],Energy_Purchases_MWh[Year],a!B$200,Energy_Purchases_MWh[Quarter],"Q4",Energy_Purchases_MWh[Plant Name],$F112), IF($G$5="Calendar Year",SUMIFS(Energy_Purchases_MWh[Energy purchased],Energy_Purchases_MWh[Year],a!B$200,Energy_Purchases_MWh[Plant Name],$F112),""))))))/10^3,"") -> 8.208 | I112: =IFERROR(SUM(IF($G$5="Q1",SUMIFS(Energy_Purchases_MWh[Energy purchased],Energy_Purchases_MWh[Year],a!C$200,Energy_Purchases_MWh[Quarter],"Q1",Energy_Purchases_MWh[Plant Name],$F112),IF($G$5="Q2",SUMIFS(Energy_Purchases_MWh[Energy purchased],Energy_Purchases_MWh[Year],a!C$200,Energy_Purchases_MWh[Quarter],"Q2",Energy_Purchases_MWh[Plant Name],$F112),IF($G$5="Q3",SUMIFS(Energy_Purchases_MWh[Energy purchased],Energy_Purchases_MWh[Year],a!C$200,Energy_Purchases_MWh[Quarter],"Q3",Energy_Purchases_MWh[Plant Name],$F112),IF($G$5="Q4",SUMIFS(Energy_Purchases_MWh[Energy purchased],Energy_Purchases_MWh[Year],a!C$200,Energy_Purchases_MWh[Quarter],"Q4",Energy_Purchases_MWh[Plant Name],$F112), IF($G$5="Calendar Year",SUMIFS(Energy_Purchases_MWh[Energy purchased],Energy_Purchases_MWh[Year],a!C$200,Energy_Purchases_MWh[Plant Name],$F112),""))))))/10^3,"") -> 3.6157 | J112: =IFERROR(SUM(IF($G$5="Q1",SUMIFS(Energy_Purchases_MWh[Energy purchased],Energy_Purchases_MWh[Year],a!D$200,Energy_Purchases_MWh[Quarter],"Q1",Energy_Purchases_MWh[Plant Name],$F112),IF($G$5="Q2",SUMIFS(Energy_Purchases_MWh[Energy purchased],Energy_Purchases_MWh[Year],a!D$200,Energy_Purchases_MWh[Quarter],"Q2",Energy_Purchases_MWh[Plant Name],$F112),IF($G$5="Q3",SUMIFS(Energy_Purchases_MWh[Energy purchased],Energy_Purchases_MWh[Year],a!D$200,Energy_Purchases_MWh[Quarter],"Q3",Energy_Purchases_MWh[Plant Name],$F112),IF($G$5="Q4",SUMIFS(Energy_Purchases_MWh[Energy purchased],Energy_Purchases_MWh[Year],a!D$200,Energy_Purchases_MWh[Quarter],"Q4",Energy_Purchases_MWh[Plant Name],$F112), IF($G$5="Calendar Year",SUMIFS(Energy_Purchases_MWh[Energy purchased],Energy_Purchases_MWh[Year],a!D$200,Energy_Purchases_MWh[Plant Name],$F112),""))))))/10^3,"") -> 1.2834 | K112: =IFERROR(SUM(IF($G$5="Q1",SUMIFS(Energy_Purchases_MWh[Energy purchased],Energy_Purchases_MWh[Year],a!E$200,Energy_Purchases_MWh[Quarter],"Q1",Energy_Purchases_MWh[Plant Name],$F112),IF($G$5="Q2",SUMIFS(Energy_Purchases_MWh[Energy purchased],Energy_Purchases_MWh[Year],a!E$200,Energy_Purchases_MWh[Quarter],"Q2",Energy_Purchases_MWh[Plant Name],$F112),IF($G$5="Q3",SUMIFS(Energy_Purchases_MWh[Energy purchased],Energy_Purchases_MWh[Year],a!E$200,Energy_Purchases_MWh[Quarter],"Q3",Energy_Purchases_MWh[Plant Name],$F112),IF($G$5="Q4",SUMIFS(Energy_Purchases_MWh[Energy purchased],Energy_Purchases_MWh[Year],a!E$200,Energy_Purchases_MWh[Quarter],"Q4",Energy_Purchases_MWh[Plant Name],$F112), IF($G$5="Calendar Year",SUMIFS(Energy_Purchases_MWh[Energy purchased],Energy_Purchases_MWh[Year],a!E$200,Energy_Purchases_MWh[Plant Name],$F112),""))))))/10^3,"") -> 2.515
F113: EMMERGING POWER (BUFULUBI) | G113: =IFERROR(SUM(IF($G$5="Q1",SUMIFS(Energy_Purchases_MWh[Energy purchased],Energy_Purchases_MWh[Year],a!A$200,Energy_Purchases_MWh[Quarter],"Q1",Energy_Purchases_MWh[Plant Name],$F113),IF($G$5="Q2",SUMIFS(Energy_Purchases_MWh[Energy purchased],Energy_Purchases_MWh[Year],a!A$200,Energy_Purchases_MWh[Quarter],"Q2",Energy_Purchases_MWh[Plant Name],$F113),IF($G$5="Q3",SUMIFS(Energy_Purchases_MWh[Energy purchased],Energy_Purchases_MWh[Year],a!A$200,Energy_Purchases_MWh[Quarter],"Q3",Energy_Purchases_MWh[Plant Name],$F113),IF($G$5="Q4",SUMIFS(Energy_Purchases_MWh[Energy purchased],Energy_Purchases_MWh[Year],a!A$200,Energy_Purchases_MWh[Quarter],"Q4",Energy_Purchases_MWh[Plant Name],$F113), IF($G$5="Calendar Year",SUMIFS(Energy_Purchases_MWh[Energy purchased],Energy_Purchases_MWh[Year],a!A$200,Energy_Purchases_MWh[Plant Name],$F113),""))))))/10^3,"") -> 4.266651 | H113: =IFERROR(SUM(IF($G$5="Q1",SUMIFS(Energy_Purchases_MWh[Energy purchased],Energy_Purchases_MWh[Year],a!B$200,Energy_Purchases_MWh[Quarter],"Q1",Energy_Purchases_MWh[Plant Name],$F113),IF($G$5="Q2",SUMIFS(Energy_Purchases_MWh[Energy purchased],Energy_Purchases_MWh[Year],a!B$200,Energy_Purchases_MWh[Quarter],"Q2",Energy_Purchases_MWh[Plant Name],$F113),IF($G$5="Q3",SUMIFS(Energy_Purchases_MWh[Energy purchased],Energy_Purchases_MWh[Year],a!B$200,Energy_Purchases_MWh[Quarter],"Q3",Energy_Purchases_MWh[Plant Name],$F113),IF($G$5="Q4",SUMIFS(Energy_Purchases_MWh[Energy purchased],Energy_Purchases_MWh[Year],a!B$200,Energy_Purchases_MWh[Quarter],"Q4",Energy_Purchases_MWh[Plant Name],$F113), IF($G$5="Calendar Year",SUMIFS(Energy_Purchases_MWh[Energy purchased],Energy_Purchases_MWh[Year],a!B$200,Energy_Purchases_MWh[Plant Name],$F113),""))))))/10^3,"") -> 4.364105 | I113: =IFERROR(SUM(IF($G$5="Q1",SUMIFS(Energy_Purchases_MWh[Energy purchased],Energy_Purchases_MWh[Year],a!C$200,Energy_Purchases_MWh[Quarter],"Q1",Energy_Purchases_MWh[Plant Name],$F113),IF($G$5="Q2",SUMIFS(Energy_Purchases_MWh[Energy purchased],Energy_Purchases_MWh[Year],a!C$200,Energy_Purchases_MWh[Quarter],"Q2",Energy_Purchases_MWh[Plant Name],$F113),IF($G$5="Q3",SUMIFS(Energy_Purchases_MWh[Energy purchased],Energy_Purchases_MWh[Year],a!C$200,Energy_Purchases_MWh[Quarter],"Q3",Energy_Purchases_MWh[Plant Name],$F113),IF($G$5="Q4",SUMIFS(Energy_Purchases_MWh[Energy purchased],Energy_Purchases_MWh[Year],a!C$200,Energy_Purchases_MWh[Quarter],"Q4",Energy_Purchases_MWh[Plant Name],$F113), IF($G$5="Calendar Year",SUMIFS(Energy_Purchases_MWh[Energy purchased],Energy_Purchases_MWh[Year],a!C$200,Energy_Purchases_MWh[Plant Name],$F113),""))))))/10^3,"") -> 4.315477 | J113: =IFERROR(SUM(IF($G$5="Q1",SUMIFS(Energy_Purchases_MWh[Energy purchased],Energy_Purchases_MWh[Year],a!D$200,Energy_Purchases_MWh[Quarter],"Q1",Energy_Purchases_MWh[Plant Name],$F113),IF($G$5="Q2",SUMIFS(Energy_Purchases_MWh[Energy purchased],Energy_Purchases_MWh[Year],a!D$200,Energy_Purchases_MWh[Quarter],"Q2",Energy_Purchases_MWh[Plant Name],$F113),IF($G$5="Q3",SUMIFS(Energy_Purchases_MWh[Energy purchased],Energy_Purchases_MWh[Year],a!D$200,Energy_Purchases_MWh[Quarter],"Q3",Energy_Purchases_MWh[Plant Name],$F113),IF($G$5="Q4",SUMIFS(Energy_Purchases_MWh[Energy purchased],Energy_Purchases_MWh[Year],a!D$200,Energy_Purchases_MWh[Quarter],"Q4",Energy_Purchases_MWh[Plant Name],$F113), IF($G$5="Calendar Year",SUMIFS(Energy_Purchases_MWh[Energy purchased],Energy_Purchases_MWh[Year],a!D$200,Energy_Purchases_MWh[Plant Name],$F113),""))))))/10^3,"") -> 4.648752 | K113: =IFERROR(SUM(IF($G$5="Q1",SUMIFS(Energy_Purchases_MWh[Energy purchased],Energy_Purchases_MWh[Year],a!E$200,Energy_Purchases_MWh[Quarter],"Q1",Energy_Purchases_MWh[Plant Name],$F113),IF($G$5="Q2",SUMIFS(Energy_Purchases_MWh[Energy purchased],Energy_Purchases_MWh[Year],a!E$200,Energy_Purchases_MWh[Quarter],"Q2",Energy_Purchases_MWh[Plant Name],$F113),IF($G$5="Q3",SUMIFS(Energy_Purchases_MWh[Energy purchased],Energy_Purchases_MWh[Year],a!E$200,Energy_Purchases_MWh[Quarter],"Q3",Energy_Purchases_MWh[Plant Name],$F113),IF($G$5="Q4",SUMIFS(Energy_Purchases_MWh[Energy purchased],Energy_Purchases_MWh[Year],a!E$200,Energy_Purchases_MWh[Quarter],"Q4",Energy_Purchases_MWh[Plant Name],$F113), IF($G$5="Calendar Year",SUMIFS(Energy_Purchases_MWh[Energy purchased],Energy_Purchases_MWh[Year],a!E$200,Energy_Purchases_MWh[Plant Name],$F113),""))))))/10^3,"") -> 4.176
F114: IDA AGGREKO MUTUNDWE | G114: =IFERROR(SUM(IF($G$5="Q1",SUMIFS(Energy_Purchases_MWh[Energy purchased],Energy_Purchases_MWh[Year],a!A$200,Energy_Purchases_MWh[Quarter],"Q1",Energy_Purchases_MWh[Plant Name],$F114),IF($G$5="Q2",SUMIFS(Energy_Purchases_MWh[Energy purchased],Energy_Purchases_MWh[Year],a!A$200,Energy_Purchases_MWh[Quarter],"Q2",Energy_Purchases_MWh[Plant Name],$F114),IF($G$5="Q3",SUMIFS(Energy_Purchases_MWh[Energy purchased],Energy_Purchases_MWh[Year],a!A$200,Energy_Purchases_MWh[Quarter],"Q3",Energy_Purchases_MWh[Plant Name],$F114),IF($G$5="Q4",SUMIFS(Energy_Purchases_MWh[Energy purchased],Energy_Purchases_MWh[Year],a!A$200,Energy_Purchases_MWh[Quarter],"Q4",Energy_Purchases_MWh[Plant Name],$F114), IF($G$5="Calendar Year",SUMIFS(Energy_Purchases_MWh[Energy purchased],Energy_Purchases_MWh[Year],a!A$200,Energy_Purchases_MWh[Plant Name],$F114),""))))))/10^3,"") -> 0 | H114: =IFERROR(SUM(IF($G$5="Q1",SUMIFS(Energy_Purchases_MWh[Energy purchased],Energy_Purchases_MWh[Year],a!B$200,Energy_Purchases_MWh[Quarter],"Q1",Energy_Purchases_MWh[Plant Name],$F114),IF($G$5="Q2",SUMIFS(Energy_Purchases_MWh[Energy purchased],Energy_Purchases_MWh[Year],a!B$200,Energy_Purchases_MWh[Quarter],"Q2",Energy_Purchases_MWh[Plant Name],$F114),IF($G$5="Q3",SUMIFS(Energy_Purchases_MWh[Energy purchased],Energy_Purchases_MWh[Year],a!B$200,Energy_Purchases_MWh[Quarter],"Q3",Energy_Purchases_MWh[Plant Name],$F114),IF($G$5="Q4",SUMIFS(Energy_Purchases_MWh[Energy purchased],Energy_Purchases_MWh[Year],a!B$200,Energy_Purchases_MWh[Quarter],"Q4",Energy_Purchases_MWh[Plant Name],$F114), IF($G$5="Calendar Year",SUMIFS(Energy_Purchases_MWh[Energy purchased],Energy_Purchases_MWh[Year],a!B$200,Energy_Purchases_MWh[Plant Name],$F114),""))))))/10^3,"") -> 0 | I114: =IFERROR(SUM(IF($G$5="Q1",SUMIFS(Energy_Purchases_MWh[Energy purchased],Energy_Purchases_MWh[Year],a!C$200,Energy_Purchases_MWh[Quarter],"Q1",Energy_Purchases_MWh[Plant Name],$F114),IF($G$5="Q2",SUMIFS(Energy_Purchases_MWh[Energy purchased],Energy_Purchases_MWh[Year],a!C$200,Energy_Purchases_MWh[Quarter],"Q2",Energy_Purchases_MWh[Plant Name],$F114),IF($G$5="Q3",SUMIFS(Energy_Purchases_MWh[Energy purchased],Energy_Purchases_MWh[Year],a!C$200,Energy_Purchases_MWh[Quarter],"Q3",Energy_Purchases_MWh[Plant Name],$F114),IF($G$5="Q4",SUMIFS(Energy_Purchases_MWh[Energy purchased],Energy_Purchases_MWh[Year],a!C$200,Energy_Purchases_MWh[Quarter],"Q4",Energy_Purchases_MWh[Plant Name],$F114), IF($G$5="Calendar Year",SUMIFS(Energy_Purchases_MWh[Energy purchased],Energy_Purchases_MWh[Year],a!C$200,Energy_Purchases_MWh[Plant Name],$F114),""))))))/10^3,"") -> 0 | J114: =IFERROR(SUM(IF($G$5="Q1",SUMIFS(Energy_Purchases_MWh[Energy purchased],Energy_Purchases_MWh[Year],a!D$200,Energy_Purchases_MWh[Quarter],"Q1",Energy_Purchases_MWh[Plant Name],$F114),IF($G$5="Q2",SUMIFS(Energy_Purchases_MWh[Energy purchased],Energy_Purchases_MWh[Year],a!D$200,Energy_Purchases_MWh[Quarter],"Q2",Energy_Purchases_MWh[Plant Name],$F114),IF($G$5="Q3",SUMIFS(Energy_Purchases_MWh[Energy purchased],Energy_Purchases_MWh[Year],a!D$200,Energy_Purchases_MWh[Quarter],"Q3",Energy_Purchases_MWh[Plant Name],$F114),IF($G$5="Q4",SUMIFS(Energy_Purchases_MWh[Energy purchased],Energy_Purchases_MWh[Year],a!D$200,Energy_Purchases_MWh[Quarter],"Q4",Energy_Purchases_MWh[Plant Name],$F114), IF($G$5="Calendar Year",SUMIFS(Energy_Purchases_MWh[Energy purchased],Energy_Purchases_MWh[Year],a!D$200,Energy_Purchases_MWh[Plant Name],$F114),""))))))/10^3,"") -> 0 | K114: =IFERROR(SUM(IF($G$5="Q1",SUMIFS(Energy_Purchases_MWh[Energy purchased],Energy_Purchases_MWh[Year],a!E$200,Energy_Purchases_MWh[Quarter],"Q1",Energy_Purchases_MWh[Plant Name],$F114),IF($G$5="Q2",SUMIFS(Energy_Purchases_MWh[Energy purchased],Energy_Purchases_MWh[Year],a!E$200,Energy_Purchases_MWh[Quarter],"Q2",Energy_Purchases_MWh[Plant Name],$F114),IF($G$5="Q3",SUMIFS(Energy_Purchases_MWh[Energy purchased],Energy_Purchases_MWh[Year],a!E$200,Energy_Purchases_MWh[Quarter],"Q3",Energy_Purchases_MWh[Plant Name],$F114),IF($G$5="Q4",SUMIFS(Energy_Purchases_MWh[Energy purchased],Energy_Purchases_MWh[Year],a!E$200,Energy_Purchases_MWh[Quarter],"Q4",Energy_Purchases_MWh[Plant Name],$F114), IF($G$5="Calendar Year",SUMIFS(Energy_Purchases_MWh[Energy purchased],Energy_Purchases_MWh[Year],a!E$200,Energy_Purchases_MWh[Plant Name],$F114),""))))))/10^3,"") -> 0
F115: ISIMBA | G115: =IFERROR(SUM(IF($G$5="Q1",SUMIFS(Energy_Purchases_MWh[Energy purchased],Energy_Purchases_MWh[Year],a!A$200,Energy_Purchases_MWh[Quarter],"Q1",Energy_Purchases_MWh[Plant Name],$F115),IF($G$5="Q2",SUMIFS(Energy_Purchases_MWh[Energy purchased],Energy_Purchases_MWh[Year],a!A$200,Energy_Purchases_MWh[Quarter],"Q2",Energy_Purchases_MWh[Plant Name],$F115),IF($G$5="Q3",SUMIFS(Energy_Purchases_MWh[Energy purchased],Energy_Purchases_MWh[Year],a!A$200,Energy_Purchases_MWh[Quarter],"Q3",Energy_Purchases_MWh[Plant Name],$F115),IF($G$5="Q4",SUMIFS(Energy_Purchases_MWh[Energy purchased],Energy_Purchases_MWh[Year],a!A$200,Energy_Purchases_MWh[Quarter],"Q4",Energy_Purchases_MWh[Plant Name],$F115), IF($G$5="Calendar Year",SUMIFS(Energy_Purchases_MWh[Energy purchased],Energy_Purchases_MWh[Year],a!A$200,Energy_Purchases_MWh[Plant Name],$F115),""))))))/10^3,"") -> 282.97 | H115: =IFERROR(SUM(IF($G$5="Q1",SUMIFS(Energy_Purchases_MWh[Energy purchased],Energy_Purchases_MWh[Year],a!B$200,Energy_Purchases_MWh[Quarter],"Q1",Energy_Purchases_MWh[Plant Name],$F115),IF($G$5="Q2",SUMIFS(Energy_Purchases_MWh[Energy purchased],Energy_Purchases_MWh[Year],a!B$200,Energy_Purchases_MWh[Quarter],"Q2",Energy_Purchases_MWh[Plant Name],$F115),IF($G$5="Q3",SUMIFS(Energy_Purchases_MWh[Energy purchased],Energy_Purchases_MWh[Year],a!B$200,Energy_Purchases_MWh[Quarter],"Q3",Energy_Purchases_MWh[Plant Name],$F115),IF($G$5="Q4",SUMIFS(Energy_Purchases_MWh[Energy purchased],Energy_Purchases_MWh[Year],a!B$200,Energy_Purchases_MWh[Quarter],"Q4",Energy_Purchases_MWh[Plant Name],$F115), IF($G$5="Calendar Year",SUMIFS(Energy_Purchases_MWh[Energy purchased],Energy_Purchases_MWh[Year],a!B$200,Energy_Purchases_MWh[Plant Name],$F115),""))))))/10^3,"") -> 271.866 | I115: =IFERROR(SUM(IF($G$5="Q1",SUMIFS(Energy_Purchases_MWh[Energy purchased],Energy_Purchases_MWh[Year],a!C$200,Energy_Purchases_MWh[Quarter],"Q1",Energy_Purchases_MWh[Plant Name],$F115),IF($G$5="Q2",SUMIFS(Energy_Purchases_MWh[Energy purchased],Energy_Purchases_MWh[Year],a!C$200,Energy_Purchases_MWh[Quarter],"Q2",Energy_Purchases_MWh[Plant Name],$F115),IF($G$5="Q3",SUMIFS(Energy_Purchases_MWh[Energy purchased],Energy_Purchases_MWh[Year],a!C$200,Energy_Purchases_MWh[Quarter],"Q3",Energy_Purchases_MWh[Plant Name],$F115),IF($G$5="Q4",SUMIFS(Energy_Purchases_MWh[Energy purchased],Energy_Purchases_MWh[Year],a!C$200,Energy_Purchases_MWh[Quarter],"Q4",Energy_Purchases_MWh[Plant Name],$F115), IF($G$5="Calendar Year",SUMIFS(Energy_Purchases_MWh[Energy purchased],Energy_Purchases_MWh[Year],a!C$200,Energy_Purchases_MWh[Plant Name],$F115),""))))))/10^3,"") -> 276.65 | J115: =IFERROR(SUM(IF($G$5="Q1",SUMIFS(Energy_Purchases_MWh[Energy purchased],Energy_Purchases_MWh[Year],a!D$200,Energy_Purchases_MWh[Quarter],"Q1",Energy_Purchases_MWh[Plant Name],$F115),IF($G$5="Q2",SUMIFS(Energy_Purchases_MWh[Energy purchased],Energy_Purchases_MWh[Year],a!D$200,Energy_Purchases_MWh[Quarter],"Q2",Energy_Purchases_MWh[Plant Name],$F115),IF($G$5="Q3",SUMIFS(Energy_Purchases_MWh[Energy purchased],Energy_Purchases_MWh[Year],a!D$200,Energy_Purchases_MWh[Quarter],"Q3",Energy_Purchases_MWh[Plant Name],$F115),IF($G$5="Q4",SUMIFS(Energy_Purchases_MWh[Energy purchased],Energy_Purchases_MWh[Year],a!D$200,Energy_Purchases_MWh[Quarter],"Q4",Energy_Purchases_MWh[Plant Name],$F115), IF($G$5="Calendar Year",SUMIFS(Energy_Purchases_MWh[Energy purchased],Energy_Purchases_MWh[Year],a!D$200,Energy_Purchases_MWh[Plant Name],$F115),""))))))/10^3,"") -> 293.9514012 | K115: =IFERROR(SUM(IF($G$5="Q1",SUMIFS(Energy_Purchases_MWh[Energy purchased],Energy_Purchases_MWh[Year],a!E$200,Energy_Purchases_MWh[Quarter],"Q1",Energy_Purchases_MWh[Plant Name],$F115),IF($G$5="Q2",SUMIFS(Energy_Purchases_MWh[Energy purchased],Energy_Purchases_MWh[Year],a!E$200,Energy_Purchases_MWh[Quarter],"Q2",Energy_Purchases_MWh[Plant Name],$F115),IF($G$5="Q3",SUMIFS(Energy_Purchases_MWh[Energy purchased],Energy_Purchases_MWh[Year],a!E$200,Energy_Purchases_MWh[Quarter],"Q3",Energy_Purchases_MWh[Plant Name],$F115),IF($G$5="Q4",SUMIFS(Energy_Purchases_MWh[Energy purchased],Energy_Purchases_MWh[Year],a!E$200,Energy_Purchases_MWh[Quarter],"Q4",Energy_Purchases_MWh[Plant Name],$F115), IF($G$5="Calendar Year",SUMIFS(Energy_Purchases_MWh[Energy purchased],Energy_Purchases_MWh[Year],a!E$200,Energy_Purchases_MWh[Plant Name],$F115),""))))))/10^3,"") -> 285.155
F116: KABALEGA HYDROMAX | G116: =IFERROR(SUM(IF($G$5="Q1",SUMIFS(Energy_Purchases_MWh[Energy purchased],Energy_Purchases_MWh[Year],a!A$200,Energy_Purchases_MWh[Quarter],"Q1",Energy_Purchases_MWh[Plant Name],$F116),IF($G$5="Q2",SUMIFS(Energy_Purchases_MWh[Energy purchased],Energy_Purchases_MWh[Year],a!A$200,Energy_Purchases_MWh[Quarter],"Q2",Energy_Purchases_MWh[Plant Name],$F116),IF($G$5="Q3",SUMIFS(Energy_Purchases_MWh[Energy purchased],Energy_Purchases_MWh[Year],a!A$200,Energy_Purchases_MWh[Quarter],"Q3",Energy_Purchases_MWh[Plant Name],$F116),IF($G$5="Q4",SUMIFS(Energy_Purchases_MWh[Energy purchased],Energy_Purchases_MWh[Year],a!A$200,Energy_Purchases_MWh[Quarter],"Q4",Energy_Purchases_MWh[Plant Name],$F116), IF($G$5="Calendar Year",SUMIFS(Energy_Purchases_MWh[Energy purchased],Energy_Purchases_MWh[Year],a!A$200,Energy_Purchases_MWh[Plant Name],$F116),""))))))/10^3,"") -> 6.432424 | H116: =IFERROR(SUM(IF($G$5="Q1",SUMIFS(Energy_Purchases_MWh[Energy purchased],Energy_Purchases_MWh[Year],a!B$200,Energy_Purchases_MWh[Quarter],"Q1",Energy_Purchases_MWh[Plant Name],$F116),IF($G$5="Q2",SUMIFS(Energy_Purchases_MWh[Energy purchased],Energy_Purchases_MWh[Year],a!B$200,Energy_Purchases_MWh[Quarter],"Q2",Energy_Purchases_MWh[Plant Name],$F116),IF($G$5="Q3",SUMIFS(Energy_Purchases_MWh[Energy purchased],Energy_Purchases_MWh[Year],a!B$200,Energy_Purchases_MWh[Quarter],"Q3",Energy_Purchases_MWh[Plant Name],$F116),IF($G$5="Q4",SUMIFS(Energy_Purchases_MWh[Energy purchased],Energy_Purchases_MWh[Year],a!B$200,Energy_Purchases_MWh[Quarter],"Q4",Energy_Purchases_MWh[Plant Name],$F116), IF($G$5="Calendar Year",SUMIFS(Energy_Purchases_MWh[Energy purchased],Energy_Purchases_MWh[Year],a!B$200,Energy_Purchases_MWh[Plant Name],$F116),""))))))/10^3,"") -> 6.405105 | I116: =IFERROR(SUM(IF($G$5="Q1",SUMIFS(Energy_Purchases_MWh[Energy purchased],Energy_Purchases_MWh[Year],a!C$200,Energy_Purchases_MWh[Quarter],"Q1",Energy_Purchases_MWh[Plant Name],$F116),IF($G$5="Q2",SUMIFS(Energy_Purchases_MWh[Energy purchased],Energy_Purchases_MWh[Year],a!C$200,Energy_Purchases_MWh[Quarter],"Q2",Energy_Purchases_MWh[Plant Name],$F116),IF($G$5="Q3",SUMIFS(Energy_Purchases_MWh[Energy purchased],Energy_Purchases_MWh[Year],a!C$200,Energy_Purchases_MWh[Quarter],"Q3",Energy_Purchases_MWh[Plant Name],$F116),IF($G$5="Q4",SUMIFS(Energy_Purchases_MWh[Energy purchased],Energy_Purchases_MWh[Year],a!C$200,Energy_Purchases_MWh[Quarter],"Q4",Energy_Purchases_MWh[Plant Name],$F116), IF($G$5="Calendar Year",SUMIFS(Energy_Purchases_MWh[Energy purchased],Energy_Purchases_MWh[Year],a!C$200,Energy_Purchases_MWh[Plant Name],$F116),""))))))/10^3,"") -> 18.856513 | J116: =IFERROR(SUM(IF($G$5="Q1",SUMIFS(Energy_Purchases_MWh[Energy purchased],Energy_Purchases_MWh[Year],a!D$200,Energy_Purchases_MWh[Quarter],"Q1",Energy_Purchases_MWh[Plant Name],$F116),IF($G$5="Q2",SUMIFS(Energy_Purchases_MWh[Energy purchased],Energy_Purchases_MWh[Year],a!D$200,Energy_Purchases_MWh[Quarter],"Q2",Energy_Purchases_MWh[Plant Name],$F116),IF($G$5="Q3",SUMIFS(Energy_Purchases_MWh[Energy purchased],Energy_Purchases_MWh[Year],a!D$200,Energy_Purchases_MWh[Quarter],"Q3",Energy_Purchases_MWh[Plant Name],$F116),IF($G$5="Q4",SUMIFS(Energy_Purchases_MWh[Energy purchased],Energy_Purchases_MWh[Year],a!D$200,Energy_Purchases_MWh[Quarter],"Q4",Energy_Purchases_MWh[Plant Name],$F116), IF($G$5="Calendar Year",SUMIFS(Energy_Purchases_MWh[Energy purchased],Energy_Purchases_MWh[Year],a!D$200,Energy_Purchases_MWh[Plant Name],$F116),""))))))/10^3,"") -> 10.705036 | K116: =IFERROR(SUM(IF($G$5="Q1",SUMIFS(Energy_Purchases_MWh[Energy purchased],Energy_Purchases_MWh[Year],a!E$200,Energy_Purchases_MWh[Quarter],"Q1",Energy_Purchases_MWh[Plant Name],$F116),IF($G$5="Q2",SUMIFS(Energy_Purchases_MWh[Energy purchased],Energy_Purchases_MWh[Year],a!E$200,Energy_Purchases_MWh[Quarter],"Q2",Energy_Purchases_MWh[Plant Name],$F116),IF($G$5="Q3",SUMIFS(Energy_Purchases_MWh[Energy purchased],Energy_Purchases_MWh[Year],a!E$200,Energy_Purchases_MWh[Quarter],"Q3",Energy_Purchases_MWh[Plant Name],$F116),IF($G$5="Q4",SUMIFS(Energy_Purchases_MWh[Energy purchased],Energy_Purchases_MWh[Year],a!E$200,Energy_Purchases_MWh[Quarter],"Q4",Energy_Purchases_MWh[Plant Name],$F116), IF($G$5="Calendar Year",SUMIFS(Energy_Purchases_MWh[Energy purchased],Energy_Purchases_MWh[Year],a!E$200,Energy_Purchases_MWh[Plant Name],$F116),""))))))/10^3,"") -> 12.48
F117: KAKAKA | G117: =IFERROR(SUM(IF($G$5="Q1",SUMIFS(Energy_Purchases_MWh[Energy purchased],Energy_Purchases_MWh[Year],a!A$200,Energy_Purchases_MWh[Quarter],"Q1",Energy_Purchases_MWh[Plant Name],$F117),IF($G$5="Q2",SUMIFS(Energy_Purchases_MWh[Energy purchased],Energy_Purchases_MWh[Year],a!A$200,Energy_Purchases_MWh[Quarter],"Q2",Energy_Purchases_MWh[Plant Name],$F117),IF($G$5="Q3",SUMIFS(Energy_Purchases_MWh[Energy purchased],Energy_Purchases_MWh[Year],a!A$200,Energy_Purchases_MWh[Quarter],"Q3",Energy_Purchases_MWh[Plant Name],$F117),IF($G$5="Q4",SUMIFS(Energy_Purchases_MWh[Energy purchased],Energy_Purchases_MWh[Year],a!A$200,Energy_Purchases_MWh[Quarter],"Q4",Energy_Purchases_MWh[Plant Name],$F117), IF($G$5="Calendar Year",SUMIFS(Energy_Purchases_MWh[Energy purchased],Energy_Purchases_MWh[Year],a!A$200,Energy_Purchases_MWh[Plant Name],$F117),""))))))/10^3,"") -> 3.42964 | H117: =IFERROR(SUM(IF($G$5="Q1",SUMIFS(Energy_Purchases_MWh[Energy purchased],Energy_Purchases_MWh[Year],a!B$200,Energy_Purchases_MWh[Quarter],"Q1",Energy_Purchases_MWh[Plant Name],$F117),IF($G$5="Q2",SUMIFS(Energy_Purchases_MWh[Energy purchased],Energy_Purchases_MWh[Year],a!B$200,Energy_Purchases_MWh[Quarter],"Q2",Energy_Purchases_MWh[Plant Name],$F117),IF($G$5="Q3",SUMIFS(Energy_Purchases_MWh[Energy purchased],Energy_Purchases_MWh[Year],a!B$200,Energy_Purchases_MWh[Quarter],"Q3",Energy_Purchases_MWh[Plant Name],$F117),IF($G$5="Q4",SUMIFS(Energy_Purchases_MWh[Energy purchased],Energy_Purchases_MWh[Year],a!B$200,Energy_Purchases_MWh[Quarter],"Q4",Energy_Purchases_MWh[Plant Name],$F117), IF($G$5="Calendar Year",SUMIFS(Energy_Purchases_MWh[Energy purchased],Energy_Purchases_MWh[Year],a!B$200,Energy_Purchases_MWh[Plant Name],$F117),""))))))/10^3,"") -> 3.93602 | I117: =IFERROR(SUM(IF($G$5="Q1",SUMIFS(Energy_Purchases_MWh[Energy purchased],Energy_Purchases_MWh[Year],a!C$200,Energy_Purchases_MWh[Quarter],"Q1",Energy_Purchases_MWh[Plant Name],$F117),IF($G$5="Q2",SUMIFS(Energy_Purchases_MWh[Energy purchased],Energy_Purchases_MWh[Year],a!C$200,Energy_Purchases_MWh[Quarter],"Q2",Energy_Purchases_MWh[Plant Name],$F117),IF($G$5="Q3",SUMIFS(Energy_Purchases_MWh[Energy purchased],Energy_Purchases_MWh[Year],a!C$200,Energy_Purchases_MWh[Quarter],"Q3",Energy_Purchases_MWh[Plant Name],$F117),IF($G$5="Q4",SUMIFS(Energy_Purchases_MWh[Energy purchased],Energy_Purchases_MWh[Year],a!C$200,Energy_Purchases_MWh[Quarter],"Q4",Energy_Purchases_MWh[Plant Name],$F117), IF($G$5="Calendar Year",SUMIFS(Energy_Purchases_MWh[Energy purchased],Energy_Purchases_MWh[Year],a!C$200,Energy_Purchases_MWh[Plant Name],$F117),""))))))/10^3,"") -> 3.772 | J117: =IFERROR(SUM(IF($G$5="Q1",SUMIFS(Energy_Purchases_MWh[Energy purchased],Energy_Purchases_MWh[Year],a!D$200,Energy_Purchases_MWh[Quarter],"Q1",Energy_Purchases_MWh[Plant Name],$F117),IF($G$5="Q2",SUMIFS(Energy_Purchases_MWh[Energy purchased],Energy_Purchases_MWh[Year],a!D$200,Energy_Purchases_MWh[Quarter],"Q2",Energy_Purchases_MWh[Plant Name],$F117),IF($G$5="Q3",SUMIFS(Energy_Purchases_MWh[Energy purchased],Energy_Purchases_MWh[Year],a!D$200,Energy_Purchases_MWh[Quarter],"Q3",Energy_Purchases_MWh[Plant Name],$F117),IF($G$5="Q4",SUMIFS(Energy_Purchases_MWh[Energy purchased],Energy_Purchases_MWh[Year],a!D$200,Energy_Purchases_MWh[Quarter],"Q4",Energy_Purchases_MWh[Plant Name],$F117), IF($G$5="Calendar Year",SUMIFS(Energy_Purchases_MWh[Energy purchased],Energy_Purchases_MWh[Year],a!D$200,Energy_Purchases_MWh[Plant Name],$F117),""))))))/10^3,"") -> 2.89293 | K117: =IFERROR(SUM(IF($G$5="Q1",SUMIFS(Energy_Purchases_MWh[Energy purchased],Energy_Purchases_MWh[Year],a!E$200,Energy_Purchases_MWh[Quarter],"Q1",Energy_Purchases_MWh[Plant Name],$F117),IF($G$5="Q2",SUMIFS(Energy_Purchases_MWh[Energy purchased],Energy_Purchases_MWh[Year],a!E$200,Energy_Purchases_MWh[Quarter],"Q2",Energy_Purchases_MWh[Plant Name],$F117),IF($G$5="Q3",SUMIFS(Energy_Purchases_MWh[Energy purchased],Energy_Purchases_MWh[Year],a!E$200,Energy_Purchases_MWh[Quarter],"Q3",Energy_Purchases_MWh[Plant Name],$F117),IF($G$5="Q4",SUMIFS(Energy_Purchases_MWh[Energy purchased],Energy_Purchases_MWh[Year],a!E$200,Energy_Purchases_MWh[Quarter],"Q4",Energy_Purchases_MWh[Plant Name],$F117), IF($G$5="Calendar Year",SUMIFS(Energy_Purchases_MWh[Energy purchased],Energy_Purchases_MWh[Year],a!E$200,Energy_Purchases_MWh[Plant Name],$F117),""))))))/10^3,"") -> 3.411
F118: KAKIRA SUGAR LIMITED | G118: =IFERROR(SUM(IF($G$5="Q1",SUMIFS(Energy_Purchases_MWh[Energy purchased],Energy_Purchases_MWh[Year],a!A$200,Energy_Purchases_MWh[Quarter],"Q1",Energy_Purchases_MWh[Plant Name],$F118),IF($G$5="Q2",SUMIFS(Energy_Purchases_MWh[Energy purchased],Energy_Purchases_MWh[Year],a!A$200,Energy_Purchases_MWh[Quarter],"Q2",Energy_Purchases_MWh[Plant Name],$F118),IF($G$5="Q3",SUMIFS(Energy_Purchases_MWh[Energy purchased],Energy_Purchases_MWh[Year],a!A$200,Energy_Purchases_MWh[Quarter],"Q3",Energy_Purchases_MWh[Plant Name],$F118),IF($G$5="Q4",SUMIFS(Energy_Purchases_MWh[Energy purchased],Energy_Purchases_MWh[Year],a!A$200,Energy_Purchases_MWh[Quarter],"Q4",Energy_Purchases_MWh[Plant Name],$F118), IF($G$5="Calendar Year",SUMIFS(Energy_Purchases_MWh[Energy purchased],Energy_Purchases_MWh[Year],a!A$200,Energy_Purchases_MWh[Plant Name],$F118),""))))))/10^3,"") -> 52.368608 | H118: =IFERROR(SUM(IF($G$5="Q1",SUMIFS(Energy_Purchases_MWh[Energy purchased],Energy_Purchases_MWh[Year],a!B$200,Energy_Purchases_MWh[Quarter],"Q1",Energy_Purchases_MWh[Plant Name],$F118),IF($G$5="Q2",SUMIFS(Energy_Purchases_MWh[Energy purchased],Energy_Purchases_MWh[Year],a!B$200,Energy_Purchases_MWh[Quarter],"Q2",Energy_Purchases_MWh[Plant Name],$F118),IF($G$5="Q3",SUMIFS(Energy_Purchases_MWh[Energy purchased],Energy_Purchases_MWh[Year],a!B$200,Energy_Purchases_MWh[Quarter],"Q3",Energy_Purchases_MWh[Plant Name],$F118),IF($G$5="Q4",SUMIFS(Energy_Purchases_MWh[Energy purchased],Energy_Purchases_MWh[Year],a!B$200,Energy_Purchases_MWh[Quarter],"Q4",Energy_Purchases_MWh[Plant Name],$F118), IF($G$5="Calendar Year",SUMIFS(Energy_Purchases_MWh[Energy purchased],Energy_Purchases_MWh[Year],a!B$200,Energy_Purchases_MWh[Plant Name],$F118),""))))))/10^3,"") -> 18.3328007 | I118: =IFERROR(SUM(IF($G$5="Q1",SUMIFS(Energy_Purchases_MWh[Energy purchased],Energy_Purchases_MWh[Year],a!C$200,Energy_Purchases_MWh[Quarter],"Q1",Energy_Purchases_MWh[Plant Name],$F118),IF($G$5="Q2",SUMIFS(Energy_Purchases_MWh[Energy purchased],Energy_Purchases_MWh[Year],a!C$200,Energy_Purchases_MWh[Quarter],"Q2",Energy_Purchases_MWh[Plant Name],$F118),IF($G$5="Q3",SUMIFS(Energy_Purchases_MWh[Energy purchased],Energy_Purchases_MWh[Year],a!C$200,Energy_Purchases_MWh[Quarter],"Q3",Energy_Purchases_MWh[Plant Name],$F118),IF($G$5="Q4",SUMIFS(Energy_Purchases_MWh[Energy purchased],Energy_Purchases_MWh[Year],a!C$200,Energy_Purchases_MWh[Quarter],"Q4",Energy_Purchases_MWh[Plant Name],$F118), IF($G$5="Calendar Year",SUMIFS(Energy_Purchases_MWh[Energy purchased],Energy_Purchases_MWh[Year],a!C$200,Energy_Purchases_MWh[Plant Name],$F118),""))))))/10^3,"") -> 31.1005398 | J118: =IFERROR(SUM(IF($G$5="Q1",SUMIFS(Energy_Purchases_MWh[Energy purchased],Energy_Purchases_MWh[Year],a!D$200,Energy_Purchases_MWh[Quarter],"Q1",Energy_Purchases_MWh[Plant Name],$F118),IF($G$5="Q2",SUMIFS(Energy_Purchases_MWh[Energy purchased],Energy_Purchases_MWh[Year],a!D$200,Energy_Purchases_MWh[Quarter],"Q2",Energy_Purchases_MWh[Plant Name],$F118),IF($G$5="Q3",SUMIFS(Energy_Purchases_MWh[Energy purchased],Energy_Purchases_MWh[Year],a!D$200,Energy_Purchases_MWh[Quarter],"Q3",Energy_Purchases_MWh[Plant Name],$F118),IF($G$5="Q4",SUMIFS(Energy_Purchases_MWh[Energy purchased],Energy_Purchases_MWh[Year],a!D$200,Energy_Purchases_MWh[Quarter],"Q4",Energy_Purchases_MWh[Plant Name],$F118), IF($G$5="Calendar Year",SUMIFS(Energy_Purchases_MWh[Energy purchased],Energy_Purchases_MWh[Year],a!D$200,Energy_Purchases_MWh[Plant Name],$F118),""))))))/10^3,"") -> 50.136185 | K118: =IFERROR(SUM(IF($G$5="Q1",SUMIFS(Energy_Purchases_MWh[Energy purchased],Energy_Purchases_MWh[Year],a!E$200,Energy_Purchases_MWh[Quarter],"Q1",Energy_Purchases_MWh[Plant Name],$F118),IF($G$5="Q2",SUMIFS(Energy_Purchases_MWh[Energy purchased],Energy_Purchases_MWh[Year],a!E$200,Energy_Purchases_MWh[Quarter],"Q2",Energy_Purchases_MWh[Plant Name],$F118),IF($G$5="Q3",SUMIFS(Energy_Purchases_MWh[Energy purchased],Energy_Purchases_MWh[Year],a!E$200,Energy_Purchases_MWh[Quarter],"Q3",Energy_Purchases_MWh[Plant Name],$F118),IF($G$5="Q4",SUMIFS(Energy_Purchases_MWh[Energy purchased],Energy_Purchases_MWh[Year],a!E$200,Energy_Purchases_MWh[Quarter],"Q4",Energy_Purchases_MWh[Plant Name],$F118), IF($G$5="Calendar Year",SUMIFS(Energy_Purchases_MWh[Energy purchased],Energy_Purchases_MWh[Year],a!E$200,Energy_Purchases_MWh[Plant Name],$F118),""))))))/10^3,"") -> 38.788
F119: KARUMA | G119: =IFERROR(SUM(IF($G$5="Q1",SUMIFS(Energy_Purchases_MWh[Energy purchased],Energy_Purchases_MWh[Year],a!A$200,Energy_Purchases_MWh[Quarter],"Q1",Energy_Purchases_MWh[Plant Name],$F119),IF($G$5="Q2",SUMIFS(Energy_Purchases_MWh[Energy purchased],Energy_Purchases_MWh[Year],a!A$200,Energy_Purchases_MWh[Quarter],"Q2",Energy_Purchases_MWh[Plant Name],$F119),IF($G$5="Q3",SUMIFS(Energy_Purchases_MWh[Energy purchased],Energy_Purchases_MWh[Year],a!A$200,Energy_Purchases_MWh[Quarter],"Q3",Energy_Purchases_MWh[Plant Name],$F119),IF($G$5="Q4",SUMIFS(Energy_Purchases_MWh[Energy purchased],Energy_Purchases_MWh[Year],a!A$200,Energy_Purchases_MWh[Quarter],"Q4",Energy_Purchases_MWh[Plant Name],$F119), IF($G$5="Calendar Year",SUMIFS(Energy_Purchases_MWh[Energy purchased],Energy_Purchases_MWh[Year],a!A$200,Energy_Purchases_MWh[Plant Name],$F119),""))))))/10^3,"") -> 0 | H119: =IFERROR(SUM(IF($G$5="Q1",SUMIFS(Energy_Purchases_MWh[Energy purchased],Energy_Purchases_MWh[Year],a!B$200,Energy_Purchases_MWh[Quarter],"Q1",Energy_Purchases_MWh[Plant Name],$F119),IF($G$5="Q2",SUMIFS(Energy_Purchases_MWh[Energy purchased],Energy_Purchases_MWh[Year],a!B$200,Energy_Purchases_MWh[Quarter],"Q2",Energy_Purchases_MWh[Plant Name],$F119),IF($G$5="Q3",SUMIFS(Energy_Purchases_MWh[Energy purchased],Energy_Purchases_MWh[Year],a!B$200,Energy_Purchases_MWh[Quarter],"Q3",Energy_Purchases_MWh[Plant Name],$F119),IF($G$5="Q4",SUMIFS(Energy_Purchases_MWh[Energy purchased],Energy_Purchases_MWh[Year],a!B$200,Energy_Purchases_MWh[Quarter],"Q4",Energy_Purchases_MWh[Plant Name],$F119), IF($G$5="Calendar Year",SUMIFS(Energy_Purchases_MWh[Energy purchased],Energy_Purchases_MWh[Year],a!B$200,Energy_Purchases_MWh[Plant Name],$F119),""))))))/10^3,"") -> 0 | I119: =IFERROR(SUM(IF($G$5="Q1",SUMIFS(Energy_Purchases_MWh[Energy purchased],Energy_Purchases_MWh[Year],a!C$200,Energy_Purchases_MWh[Quarter],"Q1",Energy_Purchases_MWh[Plant Name],$F119),IF($G$5="Q2",SUMIFS(Energy_Purchases_MWh[Energy purchased],Energy_Purchases_MWh[Year],a!C$200,Energy_Purchases_MWh[Quarter],"Q2",Energy_Purchases_MWh[Plant Name],$F119),IF($G$5="Q3",SUMIFS(Energy_Purchases_MWh[Energy purchased],Energy_Purchases_MWh[Year],a!C$200,Energy_Purchases_MWh[Quarter],"Q3",Energy_Purchases_MWh[Plant Name],$F119),IF($G$5="Q4",SUMIFS(Energy_Purchases_MWh[Energy purchased],Energy_Purchases_MWh[Year],a!C$200,Energy_Purchases_MWh[Quarter],"Q4",Energy_Purchases_MWh[Plant Name],$F119), IF($G$5="Calendar Year",SUMIFS(Energy_Purchases_MWh[Energy purchased],Energy_Purchases_MWh[Year],a!C$200,Energy_Purchases_MWh[Plant Name],$F119),""))))))/10^3,"") -> 193.153 | J119: =IFERROR(SUM(IF($G$5="Q1",SUMIFS(Energy_Purchases_MWh[Energy purchased],Energy_Purchases_MWh[Year],a!D$200,Energy_Purchases_MWh[Quarter],"Q1",Energy_Purchases_MWh[Plant Name],$F119),IF($G$5="Q2",SUMIFS(Energy_Purchases_MWh[Energy purchased],Energy_Purchases_MWh[Year],a!D$200,Energy_Purchases_MWh[Quarter],"Q2",Energy_Purchases_MWh[Plant Name],$F119),IF($G$5="Q3",SUMIFS(Energy_Purchases_MWh[Energy purchased],Energy_Purchases_MWh[Year],a!D$200,Energy_Purchases_MWh[Quarter],"Q3",Energy_Purchases_MWh[Plant Name],$F119),IF($G$5="Q4",SUMIFS(Energy_Purchases_MWh[Energy purchased],Energy_Purchases_MWh[Year],a!D$200,Energy_Purchases_MWh[Quarter],"Q4",Energy_Purchases_MWh[Plant Name],$F119), IF($G$5="Calendar Year",SUMIFS(Energy_Purchases_MWh[Energy purchased],Energy_Purchases_MWh[Year],a!D$200,Energy_Purchases_MWh[Plant Name],$F119),""))))))/10^3,"") -> 240.19645 | K119: =IFERROR(SUM(IF($G$5="Q1",SUMIFS(Energy_Purchases_MWh[Energy purchased],Energy_Purchases_MWh[Year],a!E$200,Energy_Purchases_MWh[Quarter],"Q1",Energy_Purchases_MWh[Plant Name],$F119),IF($G$5="Q2",SUMIFS(Energy_Purchases_MWh[Energy purchased],Energy_Purchases_MWh[Year],a!E$200,Energy_Purchases_MWh[Quarter],"Q2",Energy_Purchases_MWh[Plant Name],$F119),IF($G$5="Q3",SUMIFS(Energy_Purchases_MWh[Energy purchased],Energy_Purchases_MWh[Year],a!E$200,Energy_Purchases_MWh[Quarter],"Q3",Energy_Purchases_MWh[Plant Name],$F119),IF($G$5="Q4",SUMIFS(Energy_Purchases_MWh[Energy purchased],Energy_Purchases_MWh[Year],a!E$200,Energy_Purchases_MWh[Quarter],"Q4",Energy_Purchases_MWh[Plant Name],$F119), IF($G$5="Calendar Year",SUMIFS(Energy_Purchases_MWh[Energy purchased],Energy_Purchases_MWh[Year],a!E$200,Energy_Purchases_MWh[Plant Name],$F119),""))))))/10^3,"") -> 489.842
F120: KCCL | G120: =IFERROR(SUM(IF($G$5="Q1",SUMIFS(Energy_Purchases_MWh[Energy purchased],Energy_Purchases_MWh[Year],a!A$200,Energy_Purchases_MWh[Quarter],"Q1",Energy_Purchases_MWh[Plant Name],$F120),IF($G$5="Q2",SUMIFS(Energy_Purchases_MWh[Energy purchased],Energy_Purchases_MWh[Year],a!A$200,Energy_Purchases_MWh[Quarter],"Q2",Energy_Purchases_MWh[Plant Name],$F120),IF($G$5="Q3",SUMIFS(Energy_Purchases_MWh[Energy purchased],Energy_Purchases_MWh[Year],a!A$200,Energy_Purchases_MWh[Quarter],"Q3",Energy_Purchases_MWh[Plant Name],$F120),IF($G$5="Q4",SUMIFS(Energy_Purchases_MWh[Energy purchased],Energy_Purchases_MWh[Year],a!A$200,Energy_Purchases_MWh[Quarter],"Q4",Energy_Purchases_MWh[Plant Name],$F120), IF($G$5="Calendar Year",SUMIFS(Energy_Purchases_MWh[Energy purchased],Energy_Purchases_MWh[Year],a!A$200,Energy_Purchases_MWh[Plant Name],$F120),""))))))/10^3,"") -> 10.763258 | H120: =IFERROR(SUM(IF($G$5="Q1",SUMIFS(Energy_Purchases_MWh[Energy purchased],Energy_Purchases_MWh[Year],a!B$200,Energy_Purchases_MWh[Quarter],"Q1",Energy_Purchases_MWh[Plant Name],$F120),IF($G$5="Q2",SUMIFS(Energy_Purchases_MWh[Energy purchased],Energy_Purchases_MWh[Year],a!B$200,Energy_Purchases_MWh[Quarter],"Q2",Energy_Purchases_MWh[Plant Name],$F120),IF($G$5="Q3",SUMIFS(Energy_Purchases_MWh[Energy purchased],Energy_Purchases_MWh[Year],a!B$200,Energy_Purchases_MWh[Quarter],"Q3",Energy_Purchases_MWh[Plant Name],$F120),IF($G$5="Q4",SUMIFS(Energy_Purchases_MWh[Energy purchased],Energy_Purchases_MWh[Year],a!B$200,Energy_Purchases_MWh[Quarter],"Q4",Energy_Purchases_MWh[Plant Name],$F120), IF($G$5="Calendar Year",SUMIFS(Energy_Purchases_MWh[Energy purchased],Energy_Purchases_MWh[Year],a!B$200,Energy_Purchases_MWh[Plant Name],$F120),""))))))/10^3,"") -> 10.341112 | I120: =IFERROR(SUM(IF($G$5="Q1",SUMIFS(Energy_Purchases_MWh[Energy purchased],Energy_Purchases_MWh[Year],a!C$200,Energy_Purchases_MWh[Quarter],"Q1",Energy_Purchases_MWh[Plant Name],$F120),IF($G$5="Q2",SUMIFS(Energy_Purchases_MWh[Energy purchased],Energy_Purchases_MWh[Year],a!C$200,Energy_Purchases_MWh[Quarter],"Q2",Energy_Purchases_MWh[Plant Name],$F120),IF($G$5="Q3",SUMIFS(Energy_Purchases_MWh[Energy purchased],Energy_Purchases_MWh[Year],a!C$200,Energy_Purchases_MWh[Quarter],"Q3",Energy_Purchases_MWh[Plant Name],$F120),IF($G$5="Q4",SUMIFS(Energy_Purchases_MWh[Energy purchased],Energy_Purchases_MWh[Year],a!C$200,Energy_Purchases_MWh[Quarter],"Q4",Energy_Purchases_MWh[Plant Name],$F120), IF($G$5="Calendar Year",SUMIFS(Energy_Purchases_MWh[Energy purchased],Energy_Purchases_MWh[Year],a!C$200,Energy_Purchases_MWh[Plant Name],$F120),""))))))/10^3,"") -> 12.533805 | J120: =IFERROR(SUM(IF($G$5="Q1",SUMIFS(Energy_Purchases_MWh[Energy purchased],Energy_Purchases_MWh[Year],a!D$200,Energy_Purchases_MWh[Quarter],"Q1",Energy_Purchases_MWh[Plant Name],$F120),IF($G$5="Q2",SUMIFS(Energy_Purchases_MWh[Energy purchased],Energy_Purchases_MWh[Year],a!D$200,Energy_Purchases_MWh[Quarter],"Q2",Energy_Purchases_MWh[Plant Name],$F120),IF($G$5="Q3",SUMIFS(Energy_Purchases_MWh[Energy purchased],Energy_Purchases_MWh[Year],a!D$200,Energy_Purchases_MWh[Quarter],"Q3",Energy_Purchases_MWh[Plant Name],$F120),IF($G$5="Q4",SUMIFS(Energy_Purchases_MWh[Energy purchased],Energy_Purchases_MWh[Year],a!D$200,Energy_Purchases_MWh[Quarter],"Q4",Energy_Purchases_MWh[Plant Name],$F120), IF($G$5="Calendar Year",SUMIFS(Energy_Purchases_MWh[Energy purchased],Energy_Purchases_MWh[Year],a!D$200,Energy_Purchases_MWh[Plant Name],$F120),""))))))/10^3,"") -> 10.106672 | K120: =IFERROR(SUM(IF($G$5="Q1",SUMIFS(Energy_Purchases_MWh[Energy purchased],Energy_Purchases_MWh[Year],a!E$200,Energy_Purchases_MWh[Quarter],"Q1",Energy_Purchases_MWh[Plant Name],$F120),IF($G$5="Q2",SUMIFS(Energy_Purchases_MWh[Energy purchased],Energy_Purchases_MWh[Year],a!E$200,Energy_Purchases_MWh[Quarter],"Q2",Energy_Purchases_MWh[Plant Name],$F120),IF($G$5="Q3",SUMIFS(Energy_Purchases_MWh[Energy purchased],Energy_Purchases_MWh[Year],a!E$200,Energy_Purchases_MWh[Quarter],"Q3",Energy_Purchases_MWh[Plant Name],$F120),IF($G$5="Q4",SUMIFS(Energy_Purchases_MWh[Energy purchased],Energy_Purchases_MWh[Year],a!E$200,Energy_Purchases_MWh[Quarter],"Q4",Energy_Purchases_MWh[Plant Name],$F120), IF($G$5="Calendar Year",SUMIFS(Energy_Purchases_MWh[Energy purchased],Energy_Purchases_MWh[Year],a!E$200,Energy_Purchases_MWh[Plant Name],$F120),""))))))/10^3,"") -> 12.499
F121: KENYA | G121: =IFERROR(SUM(IF($G$5="Q1",SUMIFS(Energy_Purchases_MWh[Energy purchased],Energy_Purchases_MWh[Year],a!A$200,Energy_Purchases_MWh[Quarter],"Q1",Energy_Purchases_MWh[Plant Name],$F121),IF($G$5="Q2",SUMIFS(Energy_Purchases_MWh[Energy purchased],Energy_Purchases_MWh[Year],a!A$200,Energy_Purchases_MWh[Quarter],"Q2",Energy_Purchases_MWh[Plant Name],$F121),IF($G$5="Q3",SUMIFS(Energy_Purchases_MWh[Energy purchased],Energy_Purchases_MWh[Year],a!A$200,Energy_Purchases_MWh[Quarter],"Q3",Energy_Purchases_MWh[Plant Name],$F121),IF($G$5="Q4",SUMIFS(Energy_Purchases_MWh[Energy purchased],Energy_Purchases_MWh[Year],a!A$200,Energy_Purchases_MWh[Quarter],"Q4",Energy_Purchases_MWh[Plant Name],$F121), IF($G$5="Calendar Year",SUMIFS(Energy_Purchases_MWh[Energy purchased],Energy_Purchases_MWh[Year],a!A$200,Energy_Purchases_MWh[Plant Name],$F121),""))))))/10^3,"") -> 1.9812 | H121: =IFERROR(SUM(IF($G$5="Q1",SUMIFS(Energy_Purchases_MWh[Energy purchased],Energy_Purchases_MWh[Year],a!B$200,Energy_Purchases_MWh[Quarter],"Q1",Energy_Purchases_MWh[Plant Name],$F121),IF($G$5="Q2",SUMIFS(Energy_Purchases_MWh[Energy purchased],Energy_Purchases_MWh[Year],a!B$200,Energy_Purchases_MWh[Quarter],"Q2",Energy_Purchases_MWh[Plant Name],$F121),IF($G$5="Q3",SUMIFS(Energy_Purchases_MWh[Energy purchased],Energy_Purchases_MWh[Year],a!B$200,Energy_Purchases_MWh[Quarter],"Q3",Energy_Purchases_MWh[Plant Name],$F121),IF($G$5="Q4",SUMIFS(Energy_Purchases_MWh[Energy purchased],Energy_Purchases_MWh[Year],a!B$200,Energy_Purchases_MWh[Quarter],"Q4",Energy_Purchases_MWh[Plant Name],$F121), IF($G$5="Calendar Year",SUMIFS(Energy_Purchases_MWh[Energy purchased],Energy_Purchases_MWh[Year],a!B$200,Energy_Purchases_MWh[Plant Name],$F121),""))))))/10^3,"") -> 6.915164 | I121: =IFERROR(SUM(IF($G$5="Q1",SUMIFS(Energy_Purchases_MWh[Energy purchased],Energy_Purchases_MWh[Year],a!C$200,Energy_Purchases_MWh[Quarter],"Q1",Energy_Purchases_MWh[Plant Name],$F121),IF($G$5="Q2",SUMIFS(Energy_Purchases_MWh[Energy purchased],Energy_Purchases_MWh[Year],a!C$200,Energy_Purchases_MWh[Quarter],"Q2",Energy_Purchases_MWh[Plant Name],$F121),IF($G$5="Q3",SUMIFS(Energy_Purchases_MWh[Energy purchased],Energy_Purchases_MWh[Year],a!C$200,Energy_Purchases_MWh[Quarter],"Q3",Energy_Purchases_MWh[Plant Name],$F121),IF($G$5="Q4",SUMIFS(Energy_Purchases_MWh[Energy purchased],Energy_Purchases_MWh[Year],a!C$200,Energy_Purchases_MWh[Quarter],"Q4",Energy_Purchases_MWh[Plant Name],$F121), IF($G$5="Calendar Year",SUMIFS(Energy_Purchases_MWh[Energy purchased],Energy_Purchases_MWh[Year],a!C$200,Energy_Purchases_MWh[Plant Name],$F121),""))))))/10^3,"") -> 10.65528961 | J121: =IFERROR(SUM(IF($G$5="Q1",SUMIFS(Energy_Purchases_MWh[Energy purchased],Energy_Purchases_MWh[Year],a!D$200,Energy_Purchases_MWh[Quarter],"Q1",Energy_Purchases_MWh[Plant Name],$F121),IF($G$5="Q2",SUMIFS(Energy_Purchases_MWh[Energy purchased],Energy_Purchases_MWh[Year],a!D$200,Energy_Purchases_MWh[Quarter],"Q2",Energy_Purchases_MWh[Plant Name],$F121),IF($G$5="Q3",SUMIFS(Energy_Purchases_MWh[Energy purchased],Energy_Purchases_MWh[Year],a!D$200,Energy_Purchases_MWh[Quarter],"Q3",Energy_Purchases_MWh[Plant Name],$F121),IF($G$5="Q4",SUMIFS(Energy_Purchases_MWh[Energy purchased],Energy_Purchases_MWh[Year],a!D$200,Energy_Purchases_MWh[Quarter],"Q4",Energy_Purchases_MWh[Plant Name],$F121), IF($G$5="Calendar Year",SUMIFS(Energy_Purchases_MWh[Energy purchased],Energy_Purchases_MWh[Year],a!D$200,Energy_Purchases_MWh[Plant Name],$F121),""))))))/10^3,"") -> 11.52881 | K121: =IFERROR(SUM(IF($G$5="Q1",SUMIFS(Energy_Purchases_MWh[Energy purchased],Energy_Purchases_MWh[Year],a!E$200,Energy_Purchases_MWh[Quarter],"Q1",Energy_Purchases_MWh[Plant Name],$F121),IF($G$5="Q2",SUMIFS(Energy_Purchases_MWh[Energy purchased],Energy_Purchases_MWh[Year],a!E$200,Energy_Purchases_MWh[Quarter],"Q2",Energy_Purchases_MWh[Plant Name],$F121),IF($G$5="Q3",SUMIFS(Energy_Purchases_MWh[Energy purchased],Energy_Purchases_MWh[Year],a!E$200,Energy_Purchases_MWh[Quarter],"Q3",Energy_Purchases_MWh[Plant Name],$F121),IF($G$5="Q4",SUMIFS(Energy_Purchases_MWh[Energy purchased],Energy_Purchases_MWh[Year],a!E$200,Energy_Purchases_MWh[Quarter],"Q4",Energy_Purchases_MWh[Plant Name],$F121), IF($G$5="Calendar Year",SUMIFS(Energy_Purchases_MWh[Energy purchased],Energy_Purchases_MWh[Year],a!E$200,Energy_Purchases_MWh[Plant Name],$F121),""))))))/10^3,"") -> 4.369
F122: KIGWABYA | G122: =IFERROR(SUM(IF($G$5="Q1",SUMIFS(Energy_Purchases_MWh[Energy purchased],Energy_Purchases_MWh[Year],a!A$200,Energy_Purchases_MWh[Quarter],"Q1",Energy_Purchases_MWh[Plant Name],$F122),IF($G$5="Q2",SUMIFS(Energy_Purchases_MWh[Energy purchased],Energy_Purchases_MWh[Year],a!A$200,Energy_Purchases_MWh[Quarter],"Q2",Energy_Purchases_MWh[Plant Name],$F122),IF($G$5="Q3",SUMIFS(Energy_Purchases_MWh[Energy purchased],Energy_Purchases_MWh[Year],a!A$200,Energy_Purchases_MWh[Quarter],"Q3",Energy_Purchases_MWh[Plant Name],$F122),IF($G$5="Q4",SUMIFS(Energy_Purchases_MWh[Energy purchased],Energy_Purchases_MWh[Year],a!A$200,Energy_Purchases_MWh[Quarter],"Q4",Energy_Purchases_MWh[Plant Name],$F122), IF($G$5="Calendar Year",SUMIFS(Energy_Purchases_MWh[Energy purchased],Energy_Purchases_MWh[Year],a!A$200,Energy_Purchases_MWh[Plant Name],$F122),""))))))/10^3,"") -> 0 | H122: =IFERROR(SUM(IF($G$5="Q1",SUMIFS(Energy_Purchases_MWh[Energy purchased],Energy_Purchases_MWh[Year],a!B$200,Energy_Purchases_MWh[Quarter],"Q1",Energy_Purchases_MWh[Plant Name],$F122),IF($G$5="Q2",SUMIFS(Energy_Purchases_MWh[Energy purchased],Energy_Purchases_MWh[Year],a!B$200,Energy_Purchases_MWh[Quarter],"Q2",Energy_Purchases_MWh[Plant Name],$F122),IF($G$5="Q3",SUMIFS(Energy_Purchases_MWh[Energy purchased],Energy_Purchases_MWh[Year],a!B$200,Energy_Purchases_MWh[Quarter],"Q3",Energy_Purchases_MWh[Plant Name],$F122),IF($G$5="Q4",SUMIFS(Energy_Purchases_MWh[Energy purchased],Energy_Purchases_MWh[Year],a!B$200,Energy_Purchases_MWh[Quarter],"Q4",Energy_Purchases_MWh[Plant Name],$F122), IF($G$5="Calendar Year",SUMIFS(Energy_Purchases_MWh[Energy purchased],Energy_Purchases_MWh[Year],a!B$200,Energy_Purchases_MWh[Plant Name],$F122),""))))))/10^3,"") -> 0 | I122: =IFERROR(SUM(IF($G$5="Q1",SUMIFS(Energy_Purchases_MWh[Energy purchased],Energy_Purchases_MWh[Year],a!C$200,Energy_Purchases_MWh[Quarter],"Q1",Energy_Purchases_MWh[Plant Name],$F122),IF($G$5="Q2",SUMIFS(Energy_Purchases_MWh[Energy purchased],Energy_Purchases_MWh[Year],a!C$200,Energy_Purchases_MWh[Quarter],"Q2",Energy_Purchases_MWh[Plant Name],$F122),IF($G$5="Q3",SUMIFS(Energy_Purchases_MWh[Energy purchased],Energy_Purchases_MWh[Year],a!C$200,Energy_Purchases_MWh[Quarter],"Q3",Energy_Purchases_MWh[Plant Name],$F122),IF($G$5="Q4",SUMIFS(Energy_Purchases_MWh[Energy purchased],Energy_Purchases_MWh[Year],a!C$200,Energy_Purchases_MWh[Quarter],"Q4",Energy_Purchases_MWh[Plant Name],$F122), IF($G$5="Calendar Year",SUMIFS(Energy_Purchases_MWh[Energy purchased],Energy_Purchases_MWh[Year],a!C$200,Energy_Purchases_MWh[Plant Name],$F122),""))))))/10^3,"") -> 0 | J122: =IFERROR(SUM(IF($G$5="Q1",SUMIFS(Energy_Purchases_MWh[Energy purchased],Energy_Purchases_MWh[Year],a!D$200,Energy_Purchases_MWh[Quarter],"Q1",Energy_Purchases_MWh[Plant Name],$F122),IF($G$5="Q2",SUMIFS(Energy_Purchases_MWh[Energy purchased],Energy_Purchases_MWh[Year],a!D$200,Energy_Purchases_MWh[Quarter],"Q2",Energy_Purchases_MWh[Plant Name],$F122),IF($G$5="Q3",SUMIFS(Energy_Purchases_MWh[Energy purchased],Energy_Purchases_MWh[Year],a!D$200,Energy_Purchases_MWh[Quarter],"Q3",Energy_Purchases_MWh[Plant Name],$F122),IF($G$5="Q4",SUMIFS(Energy_Purchases_MWh[Energy purchased],Energy_Purchases_MWh[Year],a!D$200,Energy_Purchases_MWh[Quarter],"Q4",Energy_Purchases_MWh[Plant Name],$F122), IF($G$5="Calendar Year",SUMIFS(Energy_Purchases_MWh[Energy purchased],Energy_Purchases_MWh[Year],a!D$200,Energy_Purchases_MWh[Plant Name],$F122),""))))))/10^3,"") -> 4.67489 | K122: =IFERROR(SUM(IF($G$5="Q1",SUMIFS(Energy_Purchases_MWh[Energy purchased],Energy_Purchases_MWh[Year],a!E$200,Energy_Purchases_MWh[Quarter],"Q1",Energy_Purchases_MWh[Plant Name],$F122),IF($G$5="Q2",SUMIFS(Energy_Purchases_MWh[Energy purchased],Energy_Purchases_MWh[Year],a!E$200,Energy_Purchases_MWh[Quarter],"Q2",Energy_Purchases_MWh[Plant Name],$F122),IF($G$5="Q3",SUMIFS(Energy_Purchases_MWh[Energy purchased],Energy_Purchases_MWh[Year],a!E$200,Energy_Purchases_MWh[Quarter],"Q3",Energy_Purchases_MWh[Plant Name],$F122),IF($G$5="Q4",SUMIFS(Energy_Purchases_MWh[Energy purchased],Energy_Purchases_MWh[Year],a!E$200,Energy_Purchases_MWh[Quarter],"Q4",Energy_Purchases_MWh[Plant Name],$F122), IF($G$5="Calendar Year",SUMIFS(Energy_Purchases_MWh[Energy purchased],Energy_Purchases_MWh[Year],a!E$200,Energy_Purchases_MWh[Plant Name],$F122),""))))))/10^3,"") -> 5.495
F123: KIKAGATI | G123: =IFERROR(SUM(IF($G$5="Q1",SUMIFS(Energy_Purchases_MWh[Energy purchased],Energy_Purchases_MWh[Year],a!A$200,Energy_Purchases_MWh[Quarter],"Q1",Energy_Purchases_MWh[Plant Name],$F123),IF($G$5="Q2",SUMIFS(Energy_Purchases_MWh[Energy purchased],Energy_Purchases_MWh[Year],a!A$200,Energy_Purchases_MWh[Quarter],"Q2",Energy_Purchases_MWh[Plant Name],$F123),IF($G$5="Q3",SUMIFS(Energy_Purchases_MWh[Energy purchased],Energy_Purchases_MWh[Year],a!A$200,Energy_Purchases_MWh[Quarter],"Q3",Energy_Purchases_MWh[Plant Name],$F123),IF($G$5="Q4",SUMIFS(Energy_Purchases_MWh[Energy purchased],Energy_Purchases_MWh[Year],a!A$200,Energy_Purchases_MWh[Quarter],"Q4",Energy_Purchases_MWh[Plant Name],$F123), IF($G$5="Calendar Year",SUMIFS(Energy_Purchases_MWh[Energy purchased],Energy_Purchases_MWh[Year],a!A$200,Energy_Purchases_MWh[Plant Name],$F123),""))))))/10^3,"") -> 14.49815 | H123: =IFERROR(SUM(IF($G$5="Q1",SUMIFS(Energy_Purchases_MWh[Energy purchased],Energy_Purchases_MWh[Year],a!B$200,Energy_Purchases_MWh[Quarter],"Q1",Energy_Purchases_MWh[Plant Name],$F123),IF($G$5="Q2",SUMIFS(Energy_Purchases_MWh[Energy purchased],Energy_Purchases_MWh[Year],a!B$200,Energy_Purchases_MWh[Quarter],"Q2",Energy_Purchases_MWh[Plant Name],$F123),IF($G$5="Q3",SUMIFS(Energy_Purchases_MWh[Energy purchased],Energy_Purchases_MWh[Year],a!B$200,Energy_Purchases_MWh[Quarter],"Q3",Energy_Purchases_MWh[Plant Name],$F123),IF($G$5="Q4",SUMIFS(Energy_Purchases_MWh[Energy purchased],Energy_Purchases_MWh[Year],a!B$200,Energy_Purchases_MWh[Quarter],"Q4",Energy_Purchases_MWh[Plant Name],$F123), IF($G$5="Calendar Year",SUMIFS(Energy_Purchases_MWh[Energy purchased],Energy_Purchases_MWh[Year],a!B$200,Energy_Purchases_MWh[Plant Name],$F123),""))))))/10^3,"") -> 23.42406 | I123: =IFERROR(SUM(IF($G$5="Q1",SUMIFS(Energy_Purchases_MWh[Energy purchased],Energy_Purchases_MWh[Year],a!C$200,Energy_Purchases_MWh[Quarter],"Q1",Energy_Purchases_MWh[Plant Name],$F123),IF($G$5="Q2",SUMIFS(Energy_Purchases_MWh[Energy purchased],Energy_Purchases_MWh[Year],a!C$200,Energy_Purchases_MWh[Quarter],"Q2",Energy_Purchases_MWh[Plant Name],$F123),IF($G$5="Q3",SUMIFS(Energy_Purchases_MWh[Energy purchased],Energy_Purchases_MWh[Year],a!C$200,Energy_Purchases_MWh[Quarter],"Q3",Energy_Purchases_MWh[Plant Name],$F123),IF($G$5="Q4",SUMIFS(Energy_Purchases_MWh[Energy purchased],Energy_Purchases_MWh[Year],a!C$200,Energy_Purchases_MWh[Quarter],"Q4",Energy_Purchases_MWh[Plant Name],$F123), IF($G$5="Calendar Year",SUMIFS(Energy_Purchases_MWh[Energy purchased],Energy_Purchases_MWh[Year],a!C$200,Energy_Purchases_MWh[Plant Name],$F123),""))))))/10^3,"") -> 24.1059 | J123: =IFERROR(SUM(IF($G$5="Q1",SUMIFS(Energy_Purchases_MWh[Energy purchased],Energy_Purchases_MWh[Year],a!D$200,Energy_Purchases_MWh[Quarter],"Q1",Energy_Purchases_MWh[Plant Name],$F123),IF($G$5="Q2",SUMIFS(Energy_Purchases_MWh[Energy purchased],Energy_Purchases_MWh[Year],a!D$200,Energy_Purchases_MWh[Quarter],"Q2",Energy_Purchases_MWh[Plant Name],$F123),IF($G$5="Q3",SUMIFS(Energy_Purchases_MWh[Energy purchased],Energy_Purchases_MWh[Year],a!D$200,Energy_Purchases_MWh[Quarter],"Q3",Energy_Purchases_MWh[Plant Name],$F123),IF($G$5="Q4",SUMIFS(Energy_Purchases_MWh[Energy purchased],Energy_Purchases_MWh[Year],a!D$200,Energy_Purchases_MWh[Quarter],"Q4",Energy_Purchases_MWh[Plant Name],$F123), IF($G$5="Calendar Year",SUMIFS(Energy_Purchases_MWh[Energy purchased],Energy_Purchases_MWh[Year],a!D$200,Energy_Purchases_MWh[Plant Name],$F123),""))))))/10^3,"") -> 27.74057 | K123: =IFERROR(SUM(IF($G$5="Q1",SUMIFS(Energy_Purchases_MWh[Energy purchased],Energy_Purchases_MWh[Year],a!E$200,Energy_Purchases_MWh[Quarter],"Q1",Energy_Purchases_MWh[Plant Name],$F123),IF($G$5="Q2",SUMIFS(Energy_Purchases_MWh[Energy purchased],Energy_Purchases_MWh[Year],a!E$200,Energy_Purchases_MWh[Quarter],"Q2",Energy_Purchases_MWh[Plant Name],$F123),IF($G$5="Q3",SUMIFS(Energy_Purchases_MWh[Energy purchased],Energy_Purchases_MWh[Year],a!E$200,Energy_Purchases_MWh[Quarter],"Q3",Energy_Purchases_MWh[Plant Name],$F123),IF($G$5="Q4",SUMIFS(Energy_Purchases_MWh[Energy purchased],Energy_Purchases_MWh[Year],a!E$200,Energy_Purchases_MWh[Quarter],"Q4",Energy_Purchases_MWh[Plant Name],$F123), IF($G$5="Calendar Year",SUMIFS(Energy_Purchases_MWh[Energy purchased],Energy_Purchases_MWh[Year],a!E$200,Energy_Purchases_MWh[Plant Name],$F123),""))))))/10^3,"") -> 25.514
F124: KINYARA SUGAR WORKS | G124: =IFERROR(SUM(IF($G$5="Q1",SUMIFS(Energy_Purchases_MWh[Energy purchased],Energy_Purchases_MWh[Year],a!A$200,Energy_Purchases_MWh[Quarter],"Q1",Energy_Purchases_MWh[Plant Name],$F124),IF($G$5="Q2",SUMIFS(Energy_Purchases_MWh[Energy purchased],Energy_Purchases_MWh[Year],a!A$200,Energy_Purchases_MWh[Quarter],"Q2",Energy_Purchases_MWh[Plant Name],$F124),IF($G$5="Q3",SUMIFS(Energy_Purchases_MWh[Energy purchased],Energy_Purchases_MWh[Year],a!A$200,Energy_Purchases_MWh[Quarter],"Q3",Energy_Purchases_MWh[Plant Name],$F124),IF($G$5="Q4",SUMIFS(Energy_Purchases_MWh[Energy purchased],Energy_Purchases_MWh[Year],a!A$200,Energy_Purchases_MWh[Quarter],"Q4",Energy_Purchases_MWh[Plant Name],$F124), IF($G$5="Calendar Year",SUMIFS(Energy_Purchases_MWh[Energy purchased],Energy_Purchases_MWh[Year],a!A$200,Energy_Purchases_MWh[Plant Name],$F124),""))))))/10^3,"") -> 0 | H124: =IFERROR(SUM(IF($G$5="Q1",SUMIFS(Energy_Purchases_MWh[Energy purchased],Energy_Purchases_MWh[Year],a!B$200,Energy_Purchases_MWh[Quarter],"Q1",Energy_Purchases_MWh[Plant Name],$F124),IF($G$5="Q2",SUMIFS(Energy_Purchases_MWh[Energy purchased],Energy_Purchases_MWh[Year],a!B$200,Energy_Purchases_MWh[Quarter],"Q2",Energy_Purchases_MWh[Plant Name],$F124),IF($G$5="Q3",SUMIFS(Energy_Purchases_MWh[Energy purchased],Energy_Purchases_MWh[Year],a!B$200,Energy_Purchases_MWh[Quarter],"Q3",Energy_Purchases_MWh[Plant Name],$F124),IF($G$5="Q4",SUMIFS(Energy_Purchases_MWh[Energy purchased],Energy_Purchases_MWh[Year],a!B$200,Energy_Purchases_MWh[Quarter],"Q4",Energy_Purchases_MWh[Plant Name],$F124), IF($G$5="Calendar Year",SUMIFS(Energy_Purchases_MWh[Energy purchased],Energy_Purchases_MWh[Year],a!B$200,Energy_Purchases_MWh[Plant Name],$F124),""))))))/10^3,"") -> 2.64297618 | I124: =IFERROR(SUM(IF($G$5="Q1",SUMIFS(Energy_Purchases_MWh[Energy purchased],Energy_Purchases_MWh[Year],a!C$200,Energy_Purchases_MWh[Quarter],"Q1",Energy_Purchases_MWh[Plant Name],$F124),IF($G$5="Q2",SUMIFS(Energy_Purchases_MWh[Energy purchased],Energy_Purchases_MWh[Year],a!C$200,Energy_Purchases_MWh[Quarter],"Q2",Energy_Purchases_MWh[Plant Name],$F124),IF($G$5="Q3",SUMIFS(Energy_Purchases_MWh[Energy purchased],Energy_Purchases_MWh[Year],a!C$200,Energy_Purchases_MWh[Quarter],"Q3",Energy_Purchases_MWh[Plant Name],$F124),IF($G$5="Q4",SUMIFS(Energy_Purchases_MWh[Energy purchased],Energy_Purchases_MWh[Year],a!C$200,Energy_Purchases_MWh[Quarter],"Q4",Energy_Purchases_MWh[Plant Name],$F124), IF($G$5="Calendar Year",SUMIFS(Energy_Purchases_MWh[Energy purchased],Energy_Purchases_MWh[Year],a!C$200,Energy_Purchases_MWh[Plant Name],$F124),""))))))/10^3,"") -> 3.671139 | J124: =IFERROR(SUM(IF($G$5="Q1",SUMIFS(Energy_Purchases_MWh[Energy purchased],Energy_Purchases_MWh[Year],a!D$200,Energy_Purchases_MWh[Quarter],"Q1",Energy_Purchases_MWh[Plant Name],$F124),IF($G$5="Q2",SUMIFS(Energy_Purchases_MWh[Energy purchased],Energy_Purchases_MWh[Year],a!D$200,Energy_Purchases_MWh[Quarter],"Q2",Energy_Purchases_MWh[Plant Name],$F124),IF($G$5="Q3",SUMIFS(Energy_Purchases_MWh[Energy purchased],Energy_Purchases_MWh[Year],a!D$200,Energy_Purchases_MWh[Quarter],"Q3",Energy_Purchases_MWh[Plant Name],$F124),IF($G$5="Q4",SUMIFS(Energy_Purchases_MWh[Energy purchased],Energy_Purchases_MWh[Year],a!D$200,Energy_Purchases_MWh[Quarter],"Q4",Energy_Purchases_MWh[Plant Name],$F124), IF($G$5="Calendar Year",SUMIFS(Energy_Purchases_MWh[Energy purchased],Energy_Purchases_MWh[Year],a!D$200,Energy_Purchases_MWh[Plant Name],$F124),""))))))/10^3,"") -> 3.670612 | K124: =IFERROR(SUM(IF($G$5="Q1",SUMIFS(Energy_Purchases_MWh[Energy purchased],Energy_Purchases_MWh[Year],a!E$200,Energy_Purchases_MWh[Quarter],"Q1",Energy_Purchases_MWh[Plant Name],$F124),IF($G$5="Q2",SUMIFS(Energy_Purchases_MWh[Energy purchased],Energy_Purchases_MWh[Year],a!E$200,Energy_Purchases_MWh[Quarter],"Q2",Energy_Purchases_MWh[Plant Name],$F124),IF($G$5="Q3",SUMIFS(Energy_Purchases_MWh[Energy purchased],Energy_Purchases_MWh[Year],a!E$200,Energy_Purchases_MWh[Quarter],"Q3",Energy_Purchases_MWh[Plant Name],$F124),IF($G$5="Q4",SUMIFS(Energy_Purchases_MWh[Energy purchased],Energy_Purchases_MWh[Year],a!E$200,Energy_Purchases_MWh[Quarter],"Q4",Energy_Purchases_MWh[Plant Name],$F124), IF($G$5="Calendar Year",SUMIFS(Energy_Purchases_MWh[Energy purchased],Energy_Purchases_MWh[Year],a!E$200,Energy_Purchases_MWh[Plant Name],$F124),""))))))/10^3,"") -> 0.629
F125: KIS | G125: =IFERROR(SUM(IF($G$5="Q1",SUMIFS(Energy_Purchases_MWh[Energy purchased],Energy_Purchases_MWh[Year],a!A$200,Energy_Purchases_MWh[Quarter],"Q1",Energy_Purchases_MWh[Plant Name],$F125),IF($G$5="Q2",SUMIFS(Energy_Purchases_MWh[Energy purchased],Energy_Purchases_MWh[Year],a!A$200,Energy_Purchases_MWh[Quarter],"Q2",Energy_Purchases_MWh[Plant Name],$F125),IF($G$5="Q3",SUMIFS(Energy_Purchases_MWh[Energy purchased],Energy_Purchases_MWh[Year],a!A$200,Energy_Purchases_MWh[Quarter],"Q3",Energy_Purchases_MWh[Plant Name],$F125),IF($G$5="Q4",SUMIFS(Energy_Purchases_MWh[Energy purchased],Energy_Purchases_MWh[Year],a!A$200,Energy_Purchases_MWh[Quarter],"Q4",Energy_Purchases_MWh[Plant Name],$F125), IF($G$5="Calendar Year",SUMIFS(Energy_Purchases_MWh[Energy purchased],Energy_Purchases_MWh[Year],a!A$200,Energy_Purchases_MWh[Plant Name],$F125),""))))))/10^3,"") -> 0 | H125: =IFERROR(SUM(IF($G$5="Q1",SUMIFS(Energy_Purchases_MWh[Energy purchased],Energy_Purchases_MWh[Year],a!B$200,Energy_Purchases_MWh[Quarter],"Q1",Energy_Purchases_MWh[Plant Name],$F125),IF($G$5="Q2",SUMIFS(Energy_Purchases_MWh[Energy purchased],Energy_Purchases_MWh[Year],a!B$200,Energy_Purchases_MWh[Quarter],"Q2",Energy_Purchases_MWh[Plant Name],$F125),IF($G$5="Q3",SUMIFS(Energy_Purchases_MWh[Energy purchased],Energy_Purchases_MWh[Year],a!B$200,Energy_Purchases_MWh[Quarter],"Q3",Energy_Purchases_MWh[Plant Name],$F125),IF($G$5="Q4",SUMIFS(Energy_Purchases_MWh[Energy purchased],Energy_Purchases_MWh[Year],a!B$200,Energy_Purchases_MWh[Quarter],"Q4",Energy_Purchases_MWh[Plant Name],$F125), IF($G$5="Calendar Year",SUMIFS(Energy_Purchases_MWh[Energy purchased],Energy_Purchases_MWh[Year],a!B$200,Energy_Purchases_MWh[Plant Name],$F125),""))))))/10^3,"") -> 0 | I125: =IFERROR(SUM(IF($G$5="Q1",SUMIFS(Energy_Purchases_MWh[Energy purchased],Energy_Purchases_MWh[Year],a!C$200,Energy_Purchases_MWh[Quarter],"Q1",Energy_Purchases_MWh[Plant Name],$F125),IF($G$5="Q2",SUMIFS(Energy_Purchases_MWh[Energy purchased],Energy_Purchases_MWh[Year],a!C$200,Energy_Purchases_MWh[Quarter],"Q2",Energy_Purchases_MWh[Plant Name],$F125),IF($G$5="Q3",SUMIFS(Energy_Purchases_MWh[Energy purchased],Energy_Purchases_MWh[Year],a!C$200,Energy_Purchases_MWh[Quarter],"Q3",Energy_Purchases_MWh[Plant Name],$F125),IF($G$5="Q4",SUMIFS(Energy_Purchases_MWh[Energy purchased],Energy_Purchases_MWh[Year],a!C$200,Energy_Purchases_MWh[Quarter],"Q4",Energy_Purchases_MWh[Plant Name],$F125), IF($G$5="Calendar Year",SUMIFS(Energy_Purchases_MWh[Energy purchased],Energy_Purchases_MWh[Year],a!C$200,Energy_Purchases_MWh[Plant Name],$F125),""))))))/10^3,"") -> 0 | J125: =IFERROR(SUM(IF($G$5="Q1",SUMIFS(Energy_Purchases_MWh[Energy purchased],Energy_Purchases_MWh[Year],a!D$200,Energy_Purchases_MWh[Quarter],"Q1",Energy_Purchases_MWh[Plant Name],$F125),IF($G$5="Q2",SUMIFS(Energy_Purchases_MWh[Energy purchased],Energy_Purchases_MWh[Year],a!D$200,Energy_Purchases_MWh[Quarter],"Q2",Energy_Purchases_MWh[Plant Name],$F125),IF($G$5="Q3",SUMIFS(Energy_Purchases_MWh[Energy purchased],Energy_Purchases_MWh[Year],a!D$200,Energy_Purchases_MWh[Quarter],"Q3",Energy_Purchases_MWh[Plant Name],$F125),IF($G$5="Q4",SUMIFS(Energy_Purchases_MWh[Energy purchased],Energy_Purchases_MWh[Year],a!D$200,Energy_Purchases_MWh[Quarter],"Q4",Energy_Purchases_MWh[Plant Name],$F125), IF($G$5="Calendar Year",SUMIFS(Energy_Purchases_MWh[Energy purchased],Energy_Purchases_MWh[Year],a!D$200,Energy_Purchases_MWh[Plant Name],$F125),""))))))/10^3,"") -> 0 | K125: =IFERROR(SUM(IF($G$5="Q1",SUMIFS(Energy_Purchases_MWh[Energy purchased],Energy_Purchases_MWh[Year],a!E$200,Energy_Purchases_MWh[Quarter],"Q1",Energy_Purchases_MWh[Plant Name],$F125),IF($G$5="Q2",SUMIFS(Energy_Purchases_MWh[Energy purchased],Energy_Purchases_MWh[Year],a!E$200,Energy_Purchases_MWh[Quarter],"Q2",Energy_Purchases_MWh[Plant Name],$F125),IF($G$5="Q3",SUMIFS(Energy_Purchases_MWh[Energy purchased],Energy_Purchases_MWh[Year],a!E$200,Energy_Purchases_MWh[Quarter],"Q3",Energy_Purchases_MWh[Plant Name],$F125),IF($G$5="Q4",SUMIFS(Energy_Purchases_MWh[Energy purchased],Energy_Purchases_MWh[Year],a!E$200,Energy_Purchases_MWh[Quarter],"Q4",Energy_Purchases_MWh[Plant Name],$F125), IF($G$5="Calendar Year",SUMIFS(Energy_Purchases_MWh[Energy purchased],Energy_Purchases_MWh[Year],a!E$200,Energy_Purchases_MWh[Plant Name],$F125),""))))))/10^3,"") -> 0
F126: KML | G126: =IFERROR(SUM(IF($G$5="Q1",SUMIFS(Energy_Purchases_MWh[Energy purchased],Energy_Purchases_MWh[Year],a!A$200,Energy_Purchases_MWh[Quarter],"Q1",Energy_Purchases_MWh[Plant Name],$F126),IF($G$5="Q2",SUMIFS(Energy_Purchases_MWh[Energy purchased],Energy_Purchases_MWh[Year],a!A$200,Energy_Purchases_MWh[Quarter],"Q2",Energy_Purchases_MWh[Plant Name],$F126),IF($G$5="Q3",SUMIFS(Energy_Purchases_MWh[Energy purchased],Energy_Purchases_MWh[Year],a!A$200,Energy_Purchases_MWh[Quarter],"Q3",Energy_Purchases_MWh[Plant Name],$F126),IF($G$5="Q4",SUMIFS(Energy_Purchases_MWh[Energy purchased],Energy_Purchases_MWh[Year],a!A$200,Energy_Purchases_MWh[Quarter],"Q4",Energy_Purchases_MWh[Plant Name],$F126), IF($G$5="Calendar Year",SUMIFS(Energy_Purchases_MWh[Energy purchased],Energy_Purchases_MWh[Year],a!A$200,Energy_Purchases_MWh[Plant Name],$F126),""))))))/10^3,"") -> 3.034982 | H126: =IFERROR(SUM(IF($G$5="Q1",SUMIFS(Energy_Purchases_MWh[Energy purchased],Energy_Purchases_MWh[Year],a!B$200,Energy_Purchases_MWh[Quarter],"Q1",Energy_Purchases_MWh[Plant Name],$F126),IF($G$5="Q2",SUMIFS(Energy_Purchases_MWh[Energy purchased],Energy_Purchases_MWh[Year],a!B$200,Energy_Purchases_MWh[Quarter],"Q2",Energy_Purchases_MWh[Plant Name],$F126),IF($G$5="Q3",SUMIFS(Energy_Purchases_MWh[Energy purchased],Energy_Purchases_MWh[Year],a!B$200,Energy_Purchases_MWh[Quarter],"Q3",Energy_Purchases_MWh[Plant Name],$F126),IF($G$5="Q4",SUMIFS(Energy_Purchases_MWh[Energy purchased],Energy_Purchases_MWh[Year],a!B$200,Energy_Purchases_MWh[Quarter],"Q4",Energy_Purchases_MWh[Plant Name],$F126), IF($G$5="Calendar Year",SUMIFS(Energy_Purchases_MWh[Energy purchased],Energy_Purchases_MWh[Year],a!B$200,Energy_Purchases_MWh[Plant Name],$F126),""))))))/10^3,"") -> 3.138181 | I126: =IFERROR(SUM(IF($G$5="Q1",SUMIFS(Energy_Purchases_MWh[Energy purchased],Energy_Purchases_MWh[Year],a!C$200,Energy_Purchases_MWh[Quarter],"Q1",Energy_Purchases_MWh[Plant Name],$F126),IF($G$5="Q2",SUMIFS(Energy_Purchases_MWh[Energy purchased],Energy_Purchases_MWh[Year],a!C$200,Energy_Purchases_MWh[Quarter],"Q2",Energy_Purchases_MWh[Plant Name],$F126),IF($G$5="Q3",SUMIFS(Energy_Purchases_MWh[Energy purchased],Energy_Purchases_MWh[Year],a!C$200,Energy_Purchases_MWh[Quarter],"Q3",Energy_Purchases_MWh[Plant Name],$F126),IF($G$5="Q4",SUMIFS(Energy_Purchases_MWh[Energy purchased],Energy_Purchases_MWh[Year],a!C$200,Energy_Purchases_MWh[Quarter],"Q4",Energy_Purchases_MWh[Plant Name],$F126), IF($G$5="Calendar Year",SUMIFS(Energy_Purchases_MWh[Energy purchased],Energy_Purchases_MWh[Year],a!C$200,Energy_Purchases_MWh[Plant Name],$F126),""))))))/10^3,"") -> 0 | J126: =IFERROR(SUM(IF($G$5="Q1",SUMIFS(Energy_Purchases_MWh[Energy purchased],Energy_Purchases_MWh[Year],a!D$200,Energy_Purchases_MWh[Quarter],"Q1",Energy_Purchases_MWh[Plant Name],$F126),IF($G$5="Q2",SUMIFS(Energy_Purchases_MWh[Energy purchased],Energy_Purchases_MWh[Year],a!D$200,Energy_Purchases_MWh[Quarter],"Q2",Energy_Purchases_MWh[Plant Name],$F126),IF($G$5="Q3",SUMIFS(Energy_Purchases_MWh[Energy purchased],Energy_Purchases_MWh[Year],a!D$200,Energy_Purchases_MWh[Quarter],"Q3",Energy_Purchases_MWh[Plant Name],$F126),IF($G$5="Q4",SUMIFS(Energy_Purchases_MWh[Energy purchased],Energy_Purchases_MWh[Year],a!D$200,Energy_Purchases_MWh[Quarter],"Q4",Energy_Purchases_MWh[Plant Name],$F126), IF($G$5="Calendar Year",SUMIFS(Energy_Purchases_MWh[Energy purchased],Energy_Purchases_MWh[Year],a!D$200,Energy_Purchases_MWh[Plant Name],$F126),""))))))/10^3,"") -> 0 | K126: =IFERROR(SUM(IF($G$5="Q1",SUMIFS(Energy_Purchases_MWh[Energy purchased],Energy_Purchases_MWh[Year],a!E$200,Energy_Purchases_MWh[Quarter],"Q1",Energy_Purchases_MWh[Plant Name],$F126),IF($G$5="Q2",SUMIFS(Energy_Purchases_MWh[Energy purchased],Energy_Purchases_MWh[Year],a!E$200,Energy_Purchases_MWh[Quarter],"Q2",Energy_Purchases_MWh[Plant Name],$F126),IF($G$5="Q3",SUMIFS(Energy_Purchases_MWh[Energy purchased],Energy_Purchases_MWh[Year],a!E$200,Energy_Purchases_MWh[Quarter],"Q3",Energy_Purchases_MWh[Plant Name],$F126),IF($G$5="Q4",SUMIFS(Energy_Purchases_MWh[Energy purchased],Energy_Purchases_MWh[Year],a!E$200,Energy_Purchases_MWh[Quarter],"Q4",Energy_Purchases_MWh[Plant Name],$F126), IF($G$5="Calendar Year",SUMIFS(Energy_Purchases_MWh[Energy purchased],Energy_Purchases_MWh[Year],a!E$200,Energy_Purchases_MWh[Plant Name],$F126),""))))))/10^3,"") -> 0
F127: LUBILIA | G127: =IFERROR(SUM(IF($G$5="Q1",SUMIFS(Energy_Purchases_MWh[Energy purchased],Energy_Purchases_MWh[Year],a!A$200,Energy_Purchases_MWh[Quarter],"Q1",Energy_Purchases_MWh[Plant Name],$F127),IF($G$5="Q2",SUMIFS(Energy_Purchases_MWh[Energy purchased],Energy_Purchases_MWh[Year],a!A$200,Energy_Purchases_MWh[Quarter],"Q2",Energy_Purchases_MWh[Plant Name],$F127),IF($G$5="Q3",SUMIFS(Energy_Purchases_MWh[Energy purchased],Energy_Purchases_MWh[Year],a!A$200,Energy_Purchases_MWh[Quarter],"Q3",Energy_Purchases_MWh[Plant Name],$F127),IF($G$5="Q4",SUMIFS(Energy_Purchases_MWh[Energy purchased],Energy_Purchases_MWh[Year],a!A$200,Energy_Purchases_MWh[Quarter],"Q4",Energy_Purchases_MWh[Plant Name],$F127), IF($G$5="Calendar Year",SUMIFS(Energy_Purchases_MWh[Energy purchased],Energy_Purchases_MWh[Year],a!A$200,Energy_Purchases_MWh[Plant Name],$F127),""))))))/10^3,"") -> 4.28892 | H127: =IFERROR(SUM(IF($G$5="Q1",SUMIFS(Energy_Purchases_MWh[Energy purchased],Energy_Purchases_MWh[Year],a!B$200,Energy_Purchases_MWh[Quarter],"Q1",Energy_Purchases_MWh[Plant Name],$F127),IF($G$5="Q2",SUMIFS(Energy_Purchases_MWh[Energy purchased],Energy_Purchases_MWh[Year],a!B$200,Energy_Purchases_MWh[Quarter],"Q2",Energy_Purchases_MWh[Plant Name],$F127),IF($G$5="Q3",SUMIFS(Energy_Purchases_MWh[Energy purchased],Energy_Purchases_MWh[Year],a!B$200,Energy_Purchases_MWh[Quarter],"Q3",Energy_Purchases_MWh[Plant Name],$F127),IF($G$5="Q4",SUMIFS(Energy_Purchases_MWh[Energy purchased],Energy_Purchases_MWh[Year],a!B$200,Energy_Purchases_MWh[Quarter],"Q4",Energy_Purchases_MWh[Plant Name],$F127), IF($G$5="Calendar Year",SUMIFS(Energy_Purchases_MWh[Energy purchased],Energy_Purchases_MWh[Year],a!B$200,Energy_Purchases_MWh[Plant Name],$F127),""))))))/10^3,"") -> 4.89791 | I127: =IFERROR(SUM(IF($G$5="Q1",SUMIFS(Energy_Purchases_MWh[Energy purchased],Energy_Purchases_MWh[Year],a!C$200,Energy_Purchases_MWh[Quarter],"Q1",Energy_Purchases_MWh[Plant Name],$F127),IF($G$5="Q2",SUMIFS(Energy_Purchases_MWh[Energy purchased],Energy_Purchases_MWh[Year],a!C$200,Energy_Purchases_MWh[Quarter],"Q2",Energy_Purchases_MWh[Plant Name],$F127),IF($G$5="Q3",SUMIFS(Energy_Purchases_MWh[Energy purchased],Energy_Purchases_MWh[Year],a!C$200,Energy_Purchases_MWh[Quarter],"Q3",Energy_Purchases_MWh[Plant Name],$F127),IF($G$5="Q4",SUMIFS(Energy_Purchases_MWh[Energy purchased],Energy_Purchases_MWh[Year],a!C$200,Energy_Purchases_MWh[Quarter],"Q4",Energy_Purchases_MWh[Plant Name],$F127), IF($G$5="Calendar Year",SUMIFS(Energy_Purchases_MWh[Energy purchased],Energy_Purchases_MWh[Year],a!C$200,Energy_Purchases_MWh[Plant Name],$F127),""))))))/10^3,"") -> 4.181027 | J127: =IFERROR(SUM(IF($G$5="Q1",SUMIFS(Energy_Purchases_MWh[Energy purchased],Energy_Purchases_MWh[Year],a!D$200,Energy_Purchases_MWh[Quarter],"Q1",Energy_Purchases_MWh[Plant Name],$F127),IF($G$5="Q2",SUMIFS(Energy_Purchases_MWh[Energy purchased],Energy_Purchases_MWh[Year],a!D$200,Energy_Purchases_MWh[Quarter],"Q2",Energy_Purchases_MWh[Plant Name],$F127),IF($G$5="Q3",SUMIFS(Energy_Purchases_MWh[Energy purchased],Energy_Purchases_MWh[Year],a!D$200,Energy_Purchases_MWh[Quarter],"Q3",Energy_Purchases_MWh[Plant Name],$F127),IF($G$5="Q4",SUMIFS(Energy_Purchases_MWh[Energy purchased],Energy_Purchases_MWh[Year],a!D$200,Energy_Purchases_MWh[Quarter],"Q4",Energy_Purchases_MWh[Plant Name],$F127), IF($G$5="Calendar Year",SUMIFS(Energy_Purchases_MWh[Energy purchased],Energy_Purchases_MWh[Year],a!D$200,Energy_Purchases_MWh[Plant Name],$F127),""))))))/10^3,"") -> 3.1714995 | K127: =IFERROR(SUM(IF($G$5="Q1",SUMIFS(Energy_Purchases_MWh[Energy purchased],Energy_Purchases_MWh[Year],a!E$200,Energy_Purchases_MWh[Quarter],"Q1",Energy_Purchases_MWh[Plant Name],$F127),IF($G$5="Q2",SUMIFS(Energy_Purchases_MWh[Energy purchased],Energy_Purchases_MWh[Year],a!E$200,Energy_Purchases_MWh[Quarter],"Q2",Energy_Purchases_MWh[Plant Name],$F127),IF($G$5="Q3",SUMIFS(Energy_Purchases_MWh[Energy purchased],Energy_Purchases_MWh[Year],a!E$200,Energy_Purchases_MWh[Quarter],"Q3",Energy_Purchases_MWh[Plant Name],$F127),IF($G$5="Q4",SUMIFS(Energy_Purchases_MWh[Energy purchased],Energy_Purchases_MWh[Year],a!E$200,Energy_Purchases_MWh[Quarter],"Q4",Energy_Purchases_MWh[Plant Name],$F127), IF($G$5="Calendar Year",SUMIFS(Energy_Purchases_MWh[Energy purchased],Energy_Purchases_MWh[Year],a!E$200,Energy_Purchases_MWh[Plant Name],$F127),""))))))/10^3,"") -> 4.358
F128: MAHOMA | G128: =IFERROR(SUM(IF($G$5="Q1",SUMIFS(Energy_Purchases_MWh[Energy purchased],Energy_Purchases_MWh[Year],a!A$200,Energy_Purchases_MWh[Quarter],"Q1",Energy_Purchases_MWh[Plant Name],$F128),IF($G$5="Q2",SUMIFS(Energy_Purchases_MWh[Energy purchased],Energy_Purchases_MWh[Year],a!A$200,Energy_Purchases_MWh[Quarter],"Q2",Energy_Purchases_MWh[Plant Name],$F128),IF($G$5="Q3",SUMIFS(Energy_Purchases_MWh[Energy purchased],Energy_Purchases_MWh[Year],a!A$200,Energy_Purchases_MWh[Quarter],"Q3",Energy_Purchases_MWh[Plant Name],$F128),IF($G$5="Q4",SUMIFS(Energy_Purchases_MWh[Energy purchased],Energy_Purchases_MWh[Year],a!A$200,Energy_Purchases_MWh[Quarter],"Q4",Energy_Purchases_MWh[Plant Name],$F128), IF($G$5="Calendar Year",SUMIFS(Energy_Purchases_MWh[Energy purchased],Energy_Purchases_MWh[Year],a!A$200,Energy_Purchases_MWh[Plant Name],$F128),""))))))/10^3,"") -> 1.75952 | H128: =IFERROR(SUM(IF($G$5="Q1",SUMIFS(Energy_Purchases_MWh[Energy purchased],Energy_Purchases_MWh[Year],a!B$200,Energy_Purchases_MWh[Quarter],"Q1",Energy_Purchases_MWh[Plant Name],$F128),IF($G$5="Q2",SUMIFS(Energy_Purchases_MWh[Energy purchased],Energy_Purchases_MWh[Year],a!B$200,Energy_Purchases_MWh[Quarter],"Q2",Energy_Purchases_MWh[Plant Name],$F128),IF($G$5="Q3",SUMIFS(Energy_Purchases_MWh[Energy purchased],Energy_Purchases_MWh[Year],a!B$200,Energy_Purchases_MWh[Quarter],"Q3",Energy_Purchases_MWh[Plant Name],$F128),IF($G$5="Q4",SUMIFS(Energy_Purchases_MWh[Energy purchased],Energy_Purchases_MWh[Year],a!B$200,Energy_Purchases_MWh[Quarter],"Q4",Energy_Purchases_MWh[Plant Name],$F128), IF($G$5="Calendar Year",SUMIFS(Energy_Purchases_MWh[Energy purchased],Energy_Purchases_MWh[Year],a!B$200,Energy_Purchases_MWh[Plant Name],$F128),""))))))/10^3,"") -> 4.357984 | I128: =IFERROR(SUM(IF($G$5="Q1",SUMIFS(Energy_Purchases_MWh[Energy purchased],Energy_Purchases_MWh[Year],a!C$200,Energy_Purchases_MWh[Quarter],"Q1",Energy_Purchases_MWh[Plant Name],$F128),IF($G$5="Q2",SUMIFS(Energy_Purchases_MWh[Energy purchased],Energy_Purchases_MWh[Year],a!C$200,Energy_Purchases_MWh[Quarter],"Q2",Energy_Purchases_MWh[Plant Name],$F128),IF($G$5="Q3",SUMIFS(Energy_Purchases_MWh[Energy purchased],Energy_Purchases_MWh[Year],a!C$200,Energy_Purchases_MWh[Quarter],"Q3",Energy_Purchases_MWh[Plant Name],$F128),IF($G$5="Q4",SUMIFS(Energy_Purchases_MWh[Energy purchased],Energy_Purchases_MWh[Year],a!C$200,Energy_Purchases_MWh[Quarter],"Q4",Energy_Purchases_MWh[Plant Name],$F128), IF($G$5="Calendar Year",SUMIFS(Energy_Purchases_MWh[Energy purchased],Energy_Purchases_MWh[Year],a!C$200,Energy_Purchases_MWh[Plant Name],$F128),""))))))/10^3,"") -> 2.518119 | J128: =IFERROR(SUM(IF($G$5="Q1",SUMIFS(Energy_Purchases_MWh[Energy purchased],Energy_Purchases_MWh[Year],a!D$200,Energy_Purchases_MWh[Quarter],"Q1",Energy_Purchases_MWh[Plant Name],$F128),IF($G$5="Q2",SUMIFS(Energy_Purchases_MWh[Energy purchased],Energy_Purchases_MWh[Year],a!D$200,Energy_Purchases_MWh[Quarter],"Q2",Energy_Purchases_MWh[Plant Name],$F128),IF($G$5="Q3",SUMIFS(Energy_Purchases_MWh[Energy purchased],Energy_Purchases_MWh[Year],a!D$200,Energy_Purchases_MWh[Quarter],"Q3",Energy_Purchases_MWh[Plant Name],$F128),IF($G$5="Q4",SUMIFS(Energy_Purchases_MWh[Energy purchased],Energy_Purchases_MWh[Year],a!D$200,Energy_Purchases_MWh[Quarter],"Q4",Energy_Purchases_MWh[Plant Name],$F128), IF($G$5="Calendar Year",SUMIFS(Energy_Purchases_MWh[Energy purchased],Energy_Purchases_MWh[Year],a!D$200,Energy_Purchases_MWh[Plant Name],$F128),""))))))/10^3,"") -> 0.9446 | K128: =IFERROR(SUM(IF($G$5="Q1",SUMIFS(Energy_Purchases_MWh[Energy purchased],Energy_Purchases_MWh[Year],a!E$200,Energy_Purchases_MWh[Quarter],"Q1",Energy_Purchases_MWh[Plant Name],$F128),IF($G$5="Q2",SUMIFS(Energy_Purchases_MWh[Energy purchased],Energy_Purchases_MWh[Year],a!E$200,Energy_Purchases_MWh[Quarter],"Q2",Energy_Purchases_MWh[Plant Name],$F128),IF($G$5="Q3",SUMIFS(Energy_Purchases_MWh[Energy purchased],Energy_Purchases_MWh[Year],a!E$200,Energy_Purchases_MWh[Quarter],"Q3",Energy_Purchases_MWh[Plant Name],$F128),IF($G$5="Q4",SUMIFS(Energy_Purchases_MWh[Energy purchased],Energy_Purchases_MWh[Year],a!E$200,Energy_Purchases_MWh[Quarter],"Q4",Energy_Purchases_MWh[Plant Name],$F128), IF($G$5="Calendar Year",SUMIFS(Energy_Purchases_MWh[Energy purchased],Energy_Purchases_MWh[Year],a!E$200,Energy_Purchases_MWh[Plant Name],$F128),""))))))/10^3,"") -> 1.692
F129: MAYUGE SUGAR | G129: =IFERROR(SUM(IF($G$5="Q1",SUMIFS(Energy_Purchases_MWh[Energy purchased],Energy_Purchases_MWh[Year],a!A$200,Energy_Purchases_MWh[Quarter],"Q1",Energy_Purchases_MWh[Plant Name],$F129),IF($G$5="Q2",SUMIFS(Energy_Purchases_MWh[Energy purchased],Energy_Purchases_MWh[Year],a!A$200,Energy_Purchases_MWh[Quarter],"Q2",Energy_Purchases_MWh[Plant Name],$F129),IF($G$5="Q3",SUMIFS(Energy_Purchases_MWh[Energy purchased],Energy_Purchases_MWh[Year],a!A$200,Energy_Purchases_MWh[Quarter],"Q3",Energy_Purchases_MWh[Plant Name],$F129),IF($G$5="Q4",SUMIFS(Energy_Purchases_MWh[Energy purchased],Energy_Purchases_MWh[Year],a!A$200,Energy_Purchases_MWh[Quarter],"Q4",Energy_Purchases_MWh[Plant Name],$F129), IF($G$5="Calendar Year",SUMIFS(Energy_Purchases_MWh[Energy purchased],Energy_Purchases_MWh[Year],a!A$200,Energy_Purchases_MWh[Plant Name],$F129),""))))))/10^3,"") -> 0 | H129: =IFERROR(SUM(IF($G$5="Q1",SUMIFS(Energy_Purchases_MWh[Energy purchased],Energy_Purchases_MWh[Year],a!B$200,Energy_Purchases_MWh[Quarter],"Q1",Energy_Purchases_MWh[Plant Name],$F129),IF($G$5="Q2",SUMIFS(Energy_Purchases_MWh[Energy purchased],Energy_Purchases_MWh[Year],a!B$200,Energy_Purchases_MWh[Quarter],"Q2",Energy_Purchases_MWh[Plant Name],$F129),IF($G$5="Q3",SUMIFS(Energy_Purchases_MWh[Energy purchased],Energy_Purchases_MWh[Year],a!B$200,Energy_Purchases_MWh[Quarter],"Q3",Energy_Purchases_MWh[Plant Name],$F129),IF($G$5="Q4",SUMIFS(Energy_Purchases_MWh[Energy purchased],Energy_Purchases_MWh[Year],a!B$200,Energy_Purchases_MWh[Quarter],"Q4",Energy_Purchases_MWh[Plant Name],$F129), IF($G$5="Calendar Year",SUMIFS(Energy_Purchases_MWh[Energy purchased],Energy_Purchases_MWh[Year],a!B$200,Energy_Purchases_MWh[Plant Name],$F129),""))))))/10^3,"") -> 0 | I129: =IFERROR(SUM(IF($G$5="Q1",SUMIFS(Energy_Purchases_MWh[Energy purchased],Energy_Purchases_MWh[Year],a!C$200,Energy_Purchases_MWh[Quarter],"Q1",Energy_Purchases_MWh[Plant Name],$F129),IF($G$5="Q2",SUMIFS(Energy_Purchases_MWh[Energy purchased],Energy_Purchases_MWh[Year],a!C$200,Energy_Purchases_MWh[Quarter],"Q2",Energy_Purchases_MWh[Plant Name],$F129),IF($G$5="Q3",SUMIFS(Energy_Purchases_MWh[Energy purchased],Energy_Purchases_MWh[Year],a!C$200,Energy_Purchases_MWh[Quarter],"Q3",Energy_Purchases_MWh[Plant Name],$F129),IF($G$5="Q4",SUMIFS(Energy_Purchases_MWh[Energy purchased],Energy_Purchases_MWh[Year],a!C$200,Energy_Purchases_MWh[Quarter],"Q4",Energy_Purchases_MWh[Plant Name],$F129), IF($G$5="Calendar Year",SUMIFS(Energy_Purchases_MWh[Energy purchased],Energy_Purchases_MWh[Year],a!C$200,Energy_Purchases_MWh[Plant Name],$F129),""))))))/10^3,"") -> 31.3164 | J129: =IFERROR(SUM(IF($G$5="Q1",SUMIFS(Energy_Purchases_MWh[Energy purchased],Energy_Purchases_MWh[Year],a!D$200,Energy_Purchases_MWh[Quarter],"Q1",Energy_Purchases_MWh[Plant Name],$F129),IF($G$5="Q2",SUMIFS(Energy_Purchases_MWh[Energy purchased],Energy_Purchases_MWh[Year],a!D$200,Energy_Purchases_MWh[Quarter],"Q2",Energy_Purchases_MWh[Plant Name],$F129),IF($G$5="Q3",SUMIFS(Energy_Purchases_MWh[Energy purchased],Energy_Purchases_MWh[Year],a!D$200,Energy_Purchases_MWh[Quarter],"Q3",Energy_Purchases_MWh[Plant Name],$F129),IF($G$5="Q4",SUMIFS(Energy_Purchases_MWh[Energy purchased],Energy_Purchases_MWh[Year],a!D$200,Energy_Purchases_MWh[Quarter],"Q4",Energy_Purchases_MWh[Plant Name],$F129), IF($G$5="Calendar Year",SUMIFS(Energy_Purchases_MWh[Energy purchased],Energy_Purchases_MWh[Year],a!D$200,Energy_Purchases_MWh[Plant Name],$F129),""))))))/10^3,"") -> 36.0183 | K129: =IFERROR(SUM(IF($G$5="Q1",SUMIFS(Energy_Purchases_MWh[Energy purchased],Energy_Purchases_MWh[Year],a!E$200,Energy_Purchases_MWh[Quarter],"Q1",Energy_Purchases_MWh[Plant Name],$F129),IF($G$5="Q2",SUMIFS(Energy_Purchases_MWh[Energy purchased],Energy_Purchases_MWh[Year],a!E$200,Energy_Purchases_MWh[Quarter],"Q2",Energy_Purchases_MWh[Plant Name],$F129),IF($G$5="Q3",SUMIFS(Energy_Purchases_MWh[Energy purchased],Energy_Purchases_MWh[Year],a!E$200,Energy_Purchases_MWh[Quarter],"Q3",Energy_Purchases_MWh[Plant Name],$F129),IF($G$5="Q4",SUMIFS(Energy_Purchases_MWh[Energy purchased],Energy_Purchases_MWh[Year],a!E$200,Energy_Purchases_MWh[Quarter],"Q4",Energy_Purchases_MWh[Plant Name],$F129), IF($G$5="Calendar Year",SUMIFS(Energy_Purchases_MWh[Energy purchased],Energy_Purchases_MWh[Year],a!E$200,Energy_Purchases_MWh[Plant Name],$F129),""))))))/10^3,"") -> 36.524
F130: MUVUMBE | G130: =IFERROR(SUM(IF($G$5="Q1",SUMIFS(Energy_Purchases_MWh[Energy purchased],Energy_Purchases_MWh[Year],a!A$200,Energy_Purchases_MWh[Quarter],"Q1",Energy_Purchases_MWh[Plant Name],$F130),IF($G$5="Q2",SUMIFS(Energy_Purchases_MWh[Energy purchased],Energy_Purchases_MWh[Year],a!A$200,Energy_Purchases_MWh[Quarter],"Q2",Energy_Purchases_MWh[Plant Name],$F130),IF($G$5="Q3",SUMIFS(Energy_Purchases_MWh[Energy purchased],Energy_Purchases_MWh[Year],a!A$200,Energy_Purchases_MWh[Quarter],"Q3",Energy_Purchases_MWh[Plant Name],$F130),IF($G$5="Q4",SUMIFS(Energy_Purchases_MWh[Energy purchased],Energy_Purchases_MWh[Year],a!A$200,Energy_Purchases_MWh[Quarter],"Q4",Energy_Purchases_MWh[Plant Name],$F130), IF($G$5="Calendar Year",SUMIFS(Energy_Purchases_MWh[Energy purchased],Energy_Purchases_MWh[Year],a!A$200,Energy_Purchases_MWh[Plant Name],$F130),""))))))/10^3,"") -> 9.437 | H130: =IFERROR(SUM(IF($G$5="Q1",SUMIFS(Energy_Purchases_MWh[Energy purchased],Energy_Purchases_MWh[Year],a!B$200,Energy_Purchases_MWh[Quarter],"Q1",Energy_Purchases_MWh[Plant Name],$F130),IF($G$5="Q2",SUMIFS(Energy_Purchases_MWh[Energy purchased],Energy_Purchases_MWh[Year],a!B$200,Energy_Purchases_MWh[Quarter],"Q2",Energy_Purchases_MWh[Plant Name],$F130),IF($G$5="Q3",SUMIFS(Energy_Purchases_MWh[Energy purchased],Energy_Purchases_MWh[Year],a!B$200,Energy_Purchases_MWh[Quarter],"Q3",Energy_Purchases_MWh[Plant Name],$F130),IF($G$5="Q4",SUMIFS(Energy_Purchases_MWh[Energy purchased],Energy_Purchases_MWh[Year],a!B$200,Energy_Purchases_MWh[Quarter],"Q4",Energy_Purchases_MWh[Plant Name],$F130), IF($G$5="Calendar Year",SUMIFS(Energy_Purchases_MWh[Energy purchased],Energy_Purchases_MWh[Year],a!B$200,Energy_Purchases_MWh[Plant Name],$F130),""))))))/10^3,"") -> 4.186203 | I130: =IFERROR(SUM(IF($G$5="Q1",SUMIFS(Energy_Purchases_MWh[Energy purchased],Energy_Purchases_MWh[Year],a!C$200,Energy_Purchases_MWh[Quarter],"Q1",Energy_Purchases_MWh[Plant Name],$F130),IF($G$5="Q2",SUMIFS(Energy_Purchases_MWh[Energy purchased],Energy_Purchases_MWh[Year],a!C$200,Energy_Purchases_MWh[Quarter],"Q2",Energy_Purchases_MWh[Plant Name],$F130),IF($G$5="Q3",SUMIFS(Energy_Purchases_MWh[Energy purchased],Energy_Purchases_MWh[Year],a!C$200,Energy_Purchases_MWh[Quarter],"Q3",Energy_Purchases_MWh[Plant Name],$F130),IF($G$5="Q4",SUMIFS(Energy_Purchases_MWh[Energy purchased],Energy_Purchases_MWh[Year],a!C$200,Energy_Purchases_MWh[Quarter],"Q4",Energy_Purchases_MWh[Plant Name],$F130), IF($G$5="Calendar Year",SUMIFS(Energy_Purchases_MWh[Energy purchased],Energy_Purchases_MWh[Year],a!C$200,Energy_Purchases_MWh[Plant Name],$F130),""))))))/10^3,"") -> 9.602 | J130: =IFERROR(SUM(IF($G$5="Q1",SUMIFS(Energy_Purchases_MWh[Energy purchased],Energy_Purchases_MWh[Year],a!D$200,Energy_Purchases_MWh[Quarter],"Q1",Energy_Purchases_MWh[Plant Name],$F130),IF($G$5="Q2",SUMIFS(Energy_Purchases_MWh[Energy purchased],Energy_Purchases_MWh[Year],a!D$200,Energy_Purchases_MWh[Quarter],"Q2",Energy_Purchases_MWh[Plant Name],$F130),IF($G$5="Q3",SUMIFS(Energy_Purchases_MWh[Energy purchased],Energy_Purchases_MWh[Year],a!D$200,Energy_Purchases_MWh[Quarter],"Q3",Energy_Purchases_MWh[Plant Name],$F130),IF($G$5="Q4",SUMIFS(Energy_Purchases_MWh[Energy purchased],Energy_Purchases_MWh[Year],a!D$200,Energy_Purchases_MWh[Quarter],"Q4",Energy_Purchases_MWh[Plant Name],$F130), IF($G$5="Calendar Year",SUMIFS(Energy_Purchases_MWh[Energy purchased],Energy_Purchases_MWh[Year],a!D$200,Energy_Purchases_MWh[Plant Name],$F130),""))))))/10^3,"") -> 5.633 | K130: =IFERROR(SUM(IF($G$5="Q1",SUMIFS(Energy_Purchases_MWh[Energy purchased],Energy_Purchases_MWh[Year],a!E$200,Energy_Purchases_MWh[Quarter],"Q1",Energy_Purchases_MWh[Plant Name],$F130),IF($G$5="Q2",SUMIFS(Energy_Purchases_MWh[Energy purchased],Energy_Purchases_MWh[Year],a!E$200,Energy_Purchases_MWh[Quarter],"Q2",Energy_Purchases_MWh[Plant Name],$F130),IF($G$5="Q3",SUMIFS(Energy_Purchases_MWh[Energy purchased],Energy_Purchases_MWh[Year],a!E$200,Energy_Purchases_MWh[Quarter],"Q3",Energy_Purchases_MWh[Plant Name],$F130),IF($G$5="Q4",SUMIFS(Energy_Purchases_MWh[Energy purchased],Energy_Purchases_MWh[Year],a!E$200,Energy_Purchases_MWh[Quarter],"Q4",Energy_Purchases_MWh[Plant Name],$F130), IF($G$5="Calendar Year",SUMIFS(Energy_Purchases_MWh[Energy purchased],Energy_Purchases_MWh[Year],a!E$200,Energy_Purchases_MWh[Plant Name],$F130),""))))))/10^3,"") -> 8.922
F131: NDUGUTU | G131: =IFERROR(SUM(IF($G$5="Q1",SUMIFS(Energy_Purchases_MWh[Energy purchased],Energy_Purchases_MWh[Year],a!A$200,Energy_Purchases_MWh[Quarter],"Q1",Energy_Purchases_MWh[Plant Name],$F131),IF($G$5="Q2",SUMIFS(Energy_Purchases_MWh[Energy purchased],Energy_Purchases_MWh[Year],a!A$200,Energy_Purchases_MWh[Quarter],"Q2",Energy_Purchases_MWh[Plant Name],$F131),IF($G$5="Q3",SUMIFS(Energy_Purchases_MWh[Energy purchased],Energy_Purchases_MWh[Year],a!A$200,Energy_Purchases_MWh[Quarter],"Q3",Energy_Purchases_MWh[Plant Name],$F131),IF($G$5="Q4",SUMIFS(Energy_Purchases_MWh[Energy purchased],Energy_Purchases_MWh[Year],a!A$200,Energy_Purchases_MWh[Quarter],"Q4",Energy_Purchases_MWh[Plant Name],$F131), IF($G$5="Calendar Year",SUMIFS(Energy_Purchases_MWh[Energy purchased],Energy_Purchases_MWh[Year],a!A$200,Energy_Purchases_MWh[Plant Name],$F131),""))))))/10^3,"") -> 3.9517 | H131: =IFERROR(SUM(IF($G$5="Q1",SUMIFS(Energy_Purchases_MWh[Energy purchased],Energy_Purchases_MWh[Year],a!B$200,Energy_Purchases_MWh[Quarter],"Q1",Energy_Purchases_MWh[Plant Name],$F131),IF($G$5="Q2",SUMIFS(Energy_Purchases_MWh[Energy purchased],Energy_Purchases_MWh[Year],a!B$200,Energy_Purchases_MWh[Quarter],"Q2",Energy_Purchases_MWh[Plant Name],$F131),IF($G$5="Q3",SUMIFS(Energy_Purchases_MWh[Energy purchased],Energy_Purchases_MWh[Year],a!B$200,Energy_Purchases_MWh[Quarter],"Q3",Energy_Purchases_MWh[Plant Name],$F131),IF($G$5="Q4",SUMIFS(Energy_Purchases_MWh[Energy purchased],Energy_Purchases_MWh[Year],a!B$200,Energy_Purchases_MWh[Quarter],"Q4",Energy_Purchases_MWh[Plant Name],$F131), IF($G$5="Calendar Year",SUMIFS(Energy_Purchases_MWh[Energy purchased],Energy_Purchases_MWh[Year],a!B$200,Energy_Purchases_MWh[Plant Name],$F131),""))))))/10^3,"") -> 4.3203 | I131: =IFERROR(SUM(IF($G$5="Q1",SUMIFS(Energy_Purchases_MWh[Energy purchased],Energy_Purchases_MWh[Year],a!C$200,Energy_Purchases_MWh[Quarter],"Q1",Energy_Purchases_MWh[Plant Name],$F131),IF($G$5="Q2",SUMIFS(Energy_Purchases_MWh[Energy purchased],Energy_Purchases_MWh[Year],a!C$200,Energy_Purchases_MWh[Quarter],"Q2",Energy_Purchases_MWh[Plant Name],$F131),IF($G$5="Q3",SUMIFS(Energy_Purchases_MWh[Energy purchased],Energy_Purchases_MWh[Year],a!C$200,Energy_Purchases_MWh[Quarter],"Q3",Energy_Purchases_MWh[Plant Name],$F131),IF($G$5="Q4",SUMIFS(Energy_Purchases_MWh[Energy purchased],Energy_Purchases_MWh[Year],a!C$200,Energy_Purchases_MWh[Quarter],"Q4",Energy_Purchases_MWh[Plant Name],$F131), IF($G$5="Calendar Year",SUMIFS(Energy_Purchases_MWh[Energy purchased],Energy_Purchases_MWh[Year],a!C$200,Energy_Purchases_MWh[Plant Name],$F131),""))))))/10^3,"") -> 4.9789 | J131: =IFERROR(SUM(IF($G$5="Q1",SUMIFS(Energy_Purchases_MWh[Energy purchased],Energy_Purchases_MWh[Year],a!D$200,Energy_Purchases_MWh[Quarter],"Q1",Energy_Purchases_MWh[Plant Name],$F131),IF($G$5="Q2",SUMIFS(Energy_Purchases_MWh[Energy purchased],Energy_Purchases_MWh[Year],a!D$200,Energy_Purchases_MWh[Quarter],"Q2",Energy_Purchases_MWh[Plant Name],$F131),IF($G$5="Q3",SUMIFS(Energy_Purchases_MWh[Energy purchased],Energy_Purchases_MWh[Year],a!D$200,Energy_Purchases_MWh[Quarter],"Q3",Energy_Purchases_MWh[Plant Name],$F131),IF($G$5="Q4",SUMIFS(Energy_Purchases_MWh[Energy purchased],Energy_Purchases_MWh[Year],a!D$200,Energy_Purchases_MWh[Quarter],"Q4",Energy_Purchases_MWh[Plant Name],$F131), IF($G$5="Calendar Year",SUMIFS(Energy_Purchases_MWh[Energy purchased],Energy_Purchases_MWh[Year],a!D$200,Energy_Purchases_MWh[Plant Name],$F131),""))))))/10^3,"") -> 3.9336 | K131: =IFERROR(SUM(IF($G$5="Q1",SUMIFS(Energy_Purchases_MWh[Energy purchased],Energy_Purchases_MWh[Year],a!E$200,Energy_Purchases_MWh[Quarter],"Q1",Energy_Purchases_MWh[Plant Name],$F131),IF($G$5="Q2",SUMIFS(Energy_Purchases_MWh[Energy purchased],Energy_Purchases_MWh[Year],a!E$200,Energy_Purchases_MWh[Quarter],"Q2",Energy_Purchases_MWh[Plant Name],$F131),IF($G$5="Q3",SUMIFS(Energy_Purchases_MWh[Energy purchased],Energy_Purchases_MWh[Year],a!E$200,Energy_Purchases_MWh[Quarter],"Q3",Energy_Purchases_MWh[Plant Name],$F131),IF($G$5="Q4",SUMIFS(Energy_Purchases_MWh[Energy purchased],Energy_Purchases_MWh[Year],a!E$200,Energy_Purchases_MWh[Quarter],"Q4",Energy_Purchases_MWh[Plant Name],$F131), IF($G$5="Calendar Year",SUMIFS(Energy_Purchases_MWh[Energy purchased],Energy_Purchases_MWh[Year],a!E$200,Energy_Purchases_MWh[Plant Name],$F131),""))))))/10^3,"") -> 4.62
F132: NKUSI | G132: =IFERROR(SUM(IF($G$5="Q1",SUMIFS(Energy_Purchases_MWh[Energy purchased],Energy_Purchases_MWh[Year],a!A$200,Energy_Purchases_MWh[Quarter],"Q1",Energy_Purchases_MWh[Plant Name],$F132),IF($G$5="Q2",SUMIFS(Energy_Purchases_MWh[Energy purchased],Energy_Purchases_MWh[Year],a!A$200,Energy_Purchases_MWh[Quarter],"Q2",Energy_Purchases_MWh[Plant Name],$F132),IF($G$5="Q3",SUMIFS(Energy_Purchases_MWh[Energy purchased],Energy_Purchases_MWh[Year],a!A$200,Energy_Purchases_MWh[Quarter],"Q3",Energy_Purchases_MWh[Plant Name],$F132),IF($G$5="Q4",SUMIFS(Energy_Purchases_MWh[Energy purchased],Energy_Purchases_MWh[Year],a!A$200,Energy_Purchases_MWh[Quarter],"Q4",Energy_Purchases_MWh[Plant Name],$F132), IF($G$5="Calendar Year",SUMIFS(Energy_Purchases_MWh[Energy purchased],Energy_Purchases_MWh[Year],a!A$200,Energy_Purchases_MWh[Plant Name],$F132),""))))))/10^3,"") -> 7.05537 | H132: =IFERROR(SUM(IF($G$5="Q1",SUMIFS(Energy_Purchases_MWh[Energy purchased],Energy_Purchases_MWh[Year],a!B$200,Energy_Purchases_MWh[Quarter],"Q1",Energy_Purchases_MWh[Plant Name],$F132),IF($G$5="Q2",SUMIFS(Energy_Purchases_MWh[Energy purchased],Energy_Purchases_MWh[Year],a!B$200,Energy_Purchases_MWh[Quarter],"Q2",Energy_Purchases_MWh[Plant Name],$F132),IF($G$5="Q3",SUMIFS(Energy_Purchases_MWh[Energy purchased],Energy_Purchases_MWh[Year],a!B$200,Energy_Purchases_MWh[Quarter],"Q3",Energy_Purchases_MWh[Plant Name],$F132),IF($G$5="Q4",SUMIFS(Energy_Purchases_MWh[Energy purchased],Energy_Purchases_MWh[Year],a!B$200,Energy_Purchases_MWh[Quarter],"Q4",Energy_Purchases_MWh[Plant Name],$F132), IF($G$5="Calendar Year",SUMIFS(Energy_Purchases_MWh[Energy purchased],Energy_Purchases_MWh[Year],a!B$200,Energy_Purchases_MWh[Plant Name],$F132),""))))))/10^3,"") -> 14.16243 | I132: =IFERROR(SUM(IF($G$5="Q1",SUMIFS(Energy_Purchases_MWh[Energy purchased],Energy_Purchases_MWh[Year],a!C$200,Energy_Purchases_MWh[Quarter],"Q1",Energy_Purchases_MWh[Plant Name],$F132),IF($G$5="Q2",SUMIFS(Energy_Purchases_MWh[Energy purchased],Energy_Purchases_MWh[Year],a!C$200,Energy_Purchases_MWh[Quarter],"Q2",Energy_Purchases_MWh[Plant Name],$F132),IF($G$5="Q3",SUMIFS(Energy_Purchases_MWh[Energy purchased],Energy_Purchases_MWh[Year],a!C$200,Energy_Purchases_MWh[Quarter],"Q3",Energy_Purchases_MWh[Plant Name],$F132),IF($G$5="Q4",SUMIFS(Energy_Purchases_MWh[Energy purchased],Energy_Purchases_MWh[Year],a!C$200,Energy_Purchases_MWh[Quarter],"Q4",Energy_Purchases_MWh[Plant Name],$F132), IF($G$5="Calendar Year",SUMIFS(Energy_Purchases_MWh[Energy purchased],Energy_Purchases_MWh[Year],a!C$200,Energy_Purchases_MWh[Plant Name],$F132),""))))))/10^3,"") -> 19.35275 | J132: =IFERROR(SUM(IF($G$5="Q1",SUMIFS(Energy_Purchases_MWh[Energy purchased],Energy_Purchases_MWh[Year],a!D$200,Energy_Purchases_MWh[Quarter],"Q1",Energy_Purchases_MWh[Plant Name],$F132),IF($G$5="Q2",SUMIFS(Energy_Purchases_MWh[Energy purchased],Energy_Purchases_MWh[Year],a!D$200,Energy_Purchases_MWh[Quarter],"Q2",Energy_Purchases_MWh[Plant Name],$F132),IF($G$5="Q3",SUMIFS(Energy_Purchases_MWh[Energy purchased],Energy_Purchases_MWh[Year],a!D$200,Energy_Purchases_MWh[Quarter],"Q3",Energy_Purchases_MWh[Plant Name],$F132),IF($G$5="Q4",SUMIFS(Energy_Purchases_MWh[Energy purchased],Energy_Purchases_MWh[Year],a!D$200,Energy_Purchases_MWh[Quarter],"Q4",Energy_Purchases_MWh[Plant Name],$F132), IF($G$5="Calendar Year",SUMIFS(Energy_Purchases_MWh[Energy purchased],Energy_Purchases_MWh[Year],a!D$200,Energy_Purchases_MWh[Plant Name],$F132),""))))))/10^3,"") -> 12.5367 | K132: =IFERROR(SUM(IF($G$5="Q1",SUMIFS(Energy_Purchases_MWh[Energy purchased],Energy_Purchases_MWh[Year],a!E$200,Energy_Purchases_MWh[Quarter],"Q1",Energy_Purchases_MWh[Plant Name],$F132),IF($G$5="Q2",SUMIFS(Energy_Purchases_MWh[Energy purchased],Energy_Purchases_MWh[Year],a!E$200,Energy_Purchases_MWh[Quarter],"Q2",Energy_Purchases_MWh[Plant Name],$F132),IF($G$5="Q3",SUMIFS(Energy_Purchases_MWh[Energy purchased],Energy_Purchases_MWh[Year],a!E$200,Energy_Purchases_MWh[Quarter],"Q3",Energy_Purchases_MWh[Plant Name],$F132),IF($G$5="Q4",SUMIFS(Energy_Purchases_MWh[Energy purchased],Energy_Purchases_MWh[Year],a!E$200,Energy_Purchases_MWh[Quarter],"Q4",Energy_Purchases_MWh[Plant Name],$F132), IF($G$5="Calendar Year",SUMIFS(Energy_Purchases_MWh[Energy purchased],Energy_Purchases_MWh[Year],a!E$200,Energy_Purchases_MWh[Plant Name],$F132),""))))))/10^3,"") -> 14.878
F133: NYAGAKA III (GENMAX) | K133: =IFERROR(SUM(IF($G$5="Q1",SUMIFS(Energy_Purchases_MWh[Energy purchased],Energy_Purchases_MWh[Year],a!E$200,Energy_Purchases_MWh[Quarter],"Q1",Energy_Purchases_MWh[Plant Name],$F133),IF($G$5="Q2",SUMIFS(Energy_Purchases_MWh[Energy purchased],Energy_Purchases_MWh[Year],a!E$200,Energy_Purchases_MWh[Quarter],"Q2",Energy_Purchases_MWh[Plant Name],$F133),IF($G$5="Q3",SUMIFS(Energy_Purchases_MWh[Energy purchased],Energy_Purchases_MWh[Year],a!E$200,Energy_Purchases_MWh[Quarter],"Q3",Energy_Purchases_MWh[Plant Name],$F133),IF($G$5="Q4",SUMIFS(Energy_Purchases_MWh[Energy purchased],Energy_Purchases_MWh[Year],a!E$200,Energy_Purchases_MWh[Quarter],"Q4",Energy_Purchases_MWh[Plant Name],$F133), IF($G$5="Calendar Year",SUMIFS(Energy_Purchases_MWh[Energy purchased],Energy_Purchases_MWh[Year],a!E$200,Energy_Purchases_MWh[Plant Name],$F133),""))))))/10^3,"") -> 9.742
F134: NYAMAGASANI 2 | G134: =IFERROR(SUM(IF($G$5="Q1",SUMIFS(Energy_Purchases_MWh[Energy purchased],Energy_Purchases_MWh[Year],a!A$200,Energy_Purchases_MWh[Quarter],"Q1",Energy_Purchases_MWh[Plant Name],$F134),IF($G$5="Q2",SUMIFS(Energy_Purchases_MWh[Energy purchased],Energy_Purchases_MWh[Year],a!A$200,Energy_Purchases_MWh[Quarter],"Q2",Energy_Purchases_MWh[Plant Name],$F134),IF($G$5="Q3",SUMIFS(Energy_Purchases_MWh[Energy purchased],Energy_Purchases_MWh[Year],a!A$200,Energy_Purchases_MWh[Quarter],"Q3",Energy_Purchases_MWh[Plant Name],$F134),IF($G$5="Q4",SUMIFS(Energy_Purchases_MWh[Energy purchased],Energy_Purchases_MWh[Year],a!A$200,Energy_Purchases_MWh[Quarter],"Q4",Energy_Purchases_MWh[Plant Name],$F134), IF($G$5="Calendar Year",SUMIFS(Energy_Purchases_MWh[Energy purchased],Energy_Purchases_MWh[Year],a!A$200,Energy_Purchases_MWh[Plant Name],$F134),""))))))/10^3,"") -> 3.54487 | H134: =IFERROR(SUM(IF($G$5="Q1",SUMIFS(Energy_Purchases_MWh[Energy purchased],Energy_Purchases_MWh[Year],a!B$200,Energy_Purchases_MWh[Quarter],"Q1",Energy_Purchases_MWh[Plant Name],$F134),IF($G$5="Q2",SUMIFS(Energy_Purchases_MWh[Energy purchased],Energy_Purchases_MWh[Year],a!B$200,Energy_Purchases_MWh[Quarter],"Q2",Energy_Purchases_MWh[Plant Name],$F134),IF($G$5="Q3",SUMIFS(Energy_Purchases_MWh[Energy purchased],Energy_Purchases_MWh[Year],a!B$200,Energy_Purchases_MWh[Quarter],"Q3",Energy_Purchases_MWh[Plant Name],$F134),IF($G$5="Q4",SUMIFS(Energy_Purchases_MWh[Energy purchased],Energy_Purchases_MWh[Year],a!B$200,Energy_Purchases_MWh[Quarter],"Q4",Energy_Purchases_MWh[Plant Name],$F134), IF($G$5="Calendar Year",SUMIFS(Energy_Purchases_MWh[Energy purchased],Energy_Purchases_MWh[Year],a!B$200,Energy_Purchases_MWh[Plant Name],$F134),""))))))/10^3,"") -> 5.0791 | I134: =IFERROR(SUM(IF($G$5="Q1",SUMIFS(Energy_Purchases_MWh[Energy purchased],Energy_Purchases_MWh[Year],a!C$200,Energy_Purchases_MWh[Quarter],"Q1",Energy_Purchases_MWh[Plant Name],$F134),IF($G$5="Q2",SUMIFS(Energy_Purchases_MWh[Energy purchased],Energy_Purchases_MWh[Year],a!C$200,Energy_Purchases_MWh[Quarter],"Q2",Energy_Purchases_MWh[Plant Name],$F134),IF($G$5="Q3",SUMIFS(Energy_Purchases_MWh[Energy purchased],Energy_Purchases_MWh[Year],a!C$200,Energy_Purchases_MWh[Quarter],"Q3",Energy_Purchases_MWh[Plant Name],$F134),IF($G$5="Q4",SUMIFS(Energy_Purchases_MWh[Energy purchased],Energy_Purchases_MWh[Year],a!C$200,Energy_Purchases_MWh[Quarter],"Q4",Energy_Purchases_MWh[Plant Name],$F134), IF($G$5="Calendar Year",SUMIFS(Energy_Purchases_MWh[Energy purchased],Energy_Purchases_MWh[Year],a!C$200,Energy_Purchases_MWh[Plant Name],$F134),""))))))/10^3,"") -> 5.05473 | J134: =IFERROR(SUM(IF($G$5="Q1",SUMIFS(Energy_Purchases_MWh[Energy purchased],Energy_Purchases_MWh[Year],a!D$200,Energy_Purchases_MWh[Quarter],"Q1",Energy_Purchases_MWh[Plant Name],$F134),IF($G$5="Q2",SUMIFS(Energy_Purchases_MWh[Energy purchased],Energy_Purchases_MWh[Year],a!D$200,Energy_Purchases_MWh[Quarter],"Q2",Energy_Purchases_MWh[Plant Name],$F134),IF($G$5="Q3",SUMIFS(Energy_Purchases_MWh[Energy purchased],Energy_Purchases_MWh[Year],a!D$200,Energy_Purchases_MWh[Quarter],"Q3",Energy_Purchases_MWh[Plant Name],$F134),IF($G$5="Q4",SUMIFS(Energy_Purchases_MWh[Energy purchased],Energy_Purchases_MWh[Year],a!D$200,Energy_Purchases_MWh[Quarter],"Q4",Energy_Purchases_MWh[Plant Name],$F134), IF($G$5="Calendar Year",SUMIFS(Energy_Purchases_MWh[Energy purchased],Energy_Purchases_MWh[Year],a!D$200,Energy_Purchases_MWh[Plant Name],$F134),""))))))/10^3,"") -> 4.02003 | K134: =IFERROR(SUM(IF($G$5="Q1",SUMIFS(Energy_Purchases_MWh[Energy purchased],Energy_Purchases_MWh[Year],a!E$200,Energy_Purchases_MWh[Quarter],"Q1",Energy_Purchases_MWh[Plant Name],$F134),IF($G$5="Q2",SUMIFS(Energy_Purchases_MWh[Energy purchased],Energy_Purchases_MWh[Year],a!E$200,Energy_Purchases_MWh[Quarter],"Q2",Energy_Purchases_MWh[Plant Name],$F134),IF($G$5="Q3",SUMIFS(Energy_Purchases_MWh[Energy purchased],Energy_Purchases_MWh[Year],a!E$200,Energy_Purchases_MWh[Quarter],"Q3",Energy_Purchases_MWh[Plant Name],$F134),IF($G$5="Q4",SUMIFS(Energy_Purchases_MWh[Energy purchased],Energy_Purchases_MWh[Year],a!E$200,Energy_Purchases_MWh[Quarter],"Q4",Energy_Purchases_MWh[Plant Name],$F134), IF($G$5="Calendar Year",SUMIFS(Energy_Purchases_MWh[Energy purchased],Energy_Purchases_MWh[Year],a!E$200,Energy_Purchases_MWh[Plant Name],$F134),""))))))/10^3,"") -> 4.453
F135: NYAMWAMBA | G135: =IFERROR(SUM(IF($G$5="Q1",SUMIFS(Energy_Purchases_MWh[Energy purchased],Energy_Purchases_MWh[Year],a!A$200,Energy_Purchases_MWh[Quarter],"Q1",Energy_Purchases_MWh[Plant Name],$F135),IF($G$5="Q2",SUMIFS(Energy_Purchases_MWh[Energy purchased],Energy_Purchases_MWh[Year],a!A$200,Energy_Purchases_MWh[Quarter],"Q2",Energy_Purchases_MWh[Plant Name],$F135),IF($G$5="Q3",SUMIFS(Energy_Purchases_MWh[Energy purchased],Energy_Purchases_MWh[Year],a!A$200,Energy_Purchases_MWh[Quarter],"Q3",Energy_Purchases_MWh[Plant Name],$F135),IF($G$5="Q4",SUMIFS(Energy_Purchases_MWh[Energy purchased],Energy_Purchases_MWh[Year],a!A$200,Energy_Purchases_MWh[Quarter],"Q4",Energy_Purchases_MWh[Plant Name],$F135), IF($G$5="Calendar Year",SUMIFS(Energy_Purchases_MWh[Energy purchased],Energy_Purchases_MWh[Year],a!A$200,Energy_Purchases_MWh[Plant Name],$F135),""))))))/10^3,"") -> 3.39717 | H135: =IFERROR(SUM(IF($G$5="Q1",SUMIFS(Energy_Purchases_MWh[Energy purchased],Energy_Purchases_MWh[Year],a!B$200,Energy_Purchases_MWh[Quarter],"Q1",Energy_Purchases_MWh[Plant Name],$F135),IF($G$5="Q2",SUMIFS(Energy_Purchases_MWh[Energy purchased],Energy_Purchases_MWh[Year],a!B$200,Energy_Purchases_MWh[Quarter],"Q2",Energy_Purchases_MWh[Plant Name],$F135),IF($G$5="Q3",SUMIFS(Energy_Purchases_MWh[Energy purchased],Energy_Purchases_MWh[Year],a!B$200,Energy_Purchases_MWh[Quarter],"Q3",Energy_Purchases_MWh[Plant Name],$F135),IF($G$5="Q4",SUMIFS(Energy_Purchases_MWh[Energy purchased],Energy_Purchases_MWh[Year],a!B$200,Energy_Purchases_MWh[Quarter],"Q4",Energy_Purchases_MWh[Plant Name],$F135), IF($G$5="Calendar Year",SUMIFS(Energy_Purchases_MWh[Energy purchased],Energy_Purchases_MWh[Year],a!B$200,Energy_Purchases_MWh[Plant Name],$F135),""))))))/10^3,"") -> 4.6731 | I135: =IFERROR(SUM(IF($G$5="Q1",SUMIFS(Energy_Purchases_MWh[Energy purchased],Energy_Purchases_MWh[Year],a!C$200,Energy_Purchases_MWh[Quarter],"Q1",Energy_Purchases_MWh[Plant Name],$F135),IF($G$5="Q2",SUMIFS(Energy_Purchases_MWh[Energy purchased],Energy_Purchases_MWh[Year],a!C$200,Energy_Purchases_MWh[Quarter],"Q2",Energy_Purchases_MWh[Plant Name],$F135),IF($G$5="Q3",SUMIFS(Energy_Purchases_MWh[Energy purchased],Energy_Purchases_MWh[Year],a!C$200,Energy_Purchases_MWh[Quarter],"Q3",Energy_Purchases_MWh[Plant Name],$F135),IF($G$5="Q4",SUMIFS(Energy_Purchases_MWh[Energy purchased],Energy_Purchases_MWh[Year],a!C$200,Energy_Purchases_MWh[Quarter],"Q4",Energy_Purchases_MWh[Plant Name],$F135), IF($G$5="Calendar Year",SUMIFS(Energy_Purchases_MWh[Energy purchased],Energy_Purchases_MWh[Year],a!C$200,Energy_Purchases_MWh[Plant Name],$F135),""))))))/10^3,"") -> 4.687671 | J135: =IFERROR(SUM(IF($G$5="Q1",SUMIFS(Energy_Purchases_MWh[Energy purchased],Energy_Purchases_MWh[Year],a!D$200,Energy_Purchases_MWh[Quarter],"Q1",Energy_Purchases_MWh[Plant Name],$F135),IF($G$5="Q2",SUMIFS(Energy_Purchases_MWh[Energy purchased],Energy_Purchases_MWh[Year],a!D$200,Energy_Purchases_MWh[Quarter],"Q2",Energy_Purchases_MWh[Plant Name],$F135),IF($G$5="Q3",SUMIFS(Energy_Purchases_MWh[Energy purchased],Energy_Purchases_MWh[Year],a!D$200,Energy_Purchases_MWh[Quarter],"Q3",Energy_Purchases_MWh[Plant Name],$F135),IF($G$5="Q4",SUMIFS(Energy_Purchases_MWh[Energy purchased],Energy_Purchases_MWh[Year],a!D$200,Energy_Purchases_MWh[Quarter],"Q4",Energy_Purchases_MWh[Plant Name],$F135), IF($G$5="Calendar Year",SUMIFS(Energy_Purchases_MWh[Energy purchased],Energy_Purchases_MWh[Year],a!D$200,Energy_Purchases_MWh[Plant Name],$F135),""))))))/10^3,"") -> 4.38977 | K135: =IFERROR(SUM(IF($G$5="Q1",SUMIFS(Energy_Purchases_MWh[Energy purchased],Energy_Purchases_MWh[Year],a!E$200,Energy_Purchases_MWh[Quarter],"Q1",Energy_Purchases_MWh[Plant Name],$F135),IF($G$5="Q2",SUMIFS(Energy_Purchases_MWh[Energy purchased],Energy_Purchases_MWh[Year],a!E$200,Energy_Purchases_MWh[Quarter],"Q2",Energy_Purchases_MWh[Plant Name],$F135),IF($G$5="Q3",SUMIFS(Energy_Purchases_MWh[Energy purchased],Energy_Purchases_MWh[Year],a!E$200,Energy_Purchases_MWh[Quarter],"Q3",Energy_Purchases_MWh[Plant Name],$F135),IF($G$5="Q4",SUMIFS(Energy_Purchases_MWh[Energy purchased],Energy_Purchases_MWh[Year],a!E$200,Energy_Purchases_MWh[Quarter],"Q4",Energy_Purchases_MWh[Plant Name],$F135), IF($G$5="Calendar Year",SUMIFS(Energy_Purchases_MWh[Energy purchased],Energy_Purchases_MWh[Year],a!E$200,Energy_Purchases_MWh[Plant Name],$F135),""))))))/10^3,"") -> 5.11
F136: NYAMWAMBA 2 | G136: =IFERROR(SUM(IF($G$5="Q1",SUMIFS(Energy_Purchases_MWh[Energy purchased],Energy_Purchases_MWh[Year],a!A$200,Energy_Purchases_MWh[Quarter],"Q1",Energy_Purchases_MWh[Plant Name],$F136),IF($G$5="Q2",SUMIFS(Energy_Purchases_MWh[Energy purchased],Energy_Purchases_MWh[Year],a!A$200,Energy_Purchases_MWh[Quarter],"Q2",Energy_Purchases_MWh[Plant Name],$F136),IF($G$5="Q3",SUMIFS(Energy_Purchases_MWh[Energy purchased],Energy_Purchases_MWh[Year],a!A$200,Energy_Purchases_MWh[Quarter],"Q3",Energy_Purchases_MWh[Plant Name],$F136),IF($G$5="Q4",SUMIFS(Energy_Purchases_MWh[Energy purchased],Energy_Purchases_MWh[Year],a!A$200,Energy_Purchases_MWh[Quarter],"Q4",Energy_Purchases_MWh[Plant Name],$F136), IF($G$5="Calendar Year",SUMIFS(Energy_Purchases_MWh[Energy purchased],Energy_Purchases_MWh[Year],a!A$200,Energy_Purchases_MWh[Plant Name],$F136),""))))))/10^3,"") -> 0 | H136: =IFERROR(SUM(IF($G$5="Q1",SUMIFS(Energy_Purchases_MWh[Energy purchased],Energy_Purchases_MWh[Year],a!B$200,Energy_Purchases_MWh[Quarter],"Q1",Energy_Purchases_MWh[Plant Name],$F136),IF($G$5="Q2",SUMIFS(Energy_Purchases_MWh[Energy purchased],Energy_Purchases_MWh[Year],a!B$200,Energy_Purchases_MWh[Quarter],"Q2",Energy_Purchases_MWh[Plant Name],$F136),IF($G$5="Q3",SUMIFS(Energy_Purchases_MWh[Energy purchased],Energy_Purchases_MWh[Year],a!B$200,Energy_Purchases_MWh[Quarter],"Q3",Energy_Purchases_MWh[Plant Name],$F136),IF($G$5="Q4",SUMIFS(Energy_Purchases_MWh[Energy purchased],Energy_Purchases_MWh[Year],a!B$200,Energy_Purchases_MWh[Quarter],"Q4",Energy_Purchases_MWh[Plant Name],$F136), IF($G$5="Calendar Year",SUMIFS(Energy_Purchases_MWh[Energy purchased],Energy_Purchases_MWh[Year],a!B$200,Energy_Purchases_MWh[Plant Name],$F136),""))))))/10^3,"") -> 3.39348 | I136: =IFERROR(SUM(IF($G$5="Q1",SUMIFS(Energy_Purchases_MWh[Energy purchased],Energy_Purchases_MWh[Year],a!C$200,Energy_Purchases_MWh[Quarter],"Q1",Energy_Purchases_MWh[Plant Name],$F136),IF($G$5="Q2",SUMIFS(Energy_Purchases_MWh[Energy purchased],Energy_Purchases_MWh[Year],a!C$200,Energy_Purchases_MWh[Quarter],"Q2",Energy_Purchases_MWh[Plant Name],$F136),IF($G$5="Q3",SUMIFS(Energy_Purchases_MWh[Energy purchased],Energy_Purchases_MWh[Year],a!C$200,Energy_Purchases_MWh[Quarter],"Q3",Energy_Purchases_MWh[Plant Name],$F136),IF($G$5="Q4",SUMIFS(Energy_Purchases_MWh[Energy purchased],Energy_Purchases_MWh[Year],a!C$200,Energy_Purchases_MWh[Quarter],"Q4",Energy_Purchases_MWh[Plant Name],$F136), IF($G$5="Calendar Year",SUMIFS(Energy_Purchases_MWh[Energy purchased],Energy_Purchases_MWh[Year],a!C$200,Energy_Purchases_MWh[Plant Name],$F136),""))))))/10^3,"") -> 0.56403 | J136: =IFERROR(SUM(IF($G$5="Q1",SUMIFS(Energy_Purchases_MWh[Energy purchased],Energy_Purchases_MWh[Year],a!D$200,Energy_Purchases_MWh[Quarter],"Q1",Energy_Purchases_MWh[Plant Name],$F136),IF($G$5="Q2",SUMIFS(Energy_Purchases_MWh[Energy purchased],Energy_Purchases_MWh[Year],a!D$200,Energy_Purchases_MWh[Quarter],"Q2",Energy_Purchases_MWh[Plant Name],$F136),IF($G$5="Q3",SUMIFS(Energy_Purchases_MWh[Energy purchased],Energy_Purchases_MWh[Year],a!D$200,Energy_Purchases_MWh[Quarter],"Q3",Energy_Purchases_MWh[Plant Name],$F136),IF($G$5="Q4",SUMIFS(Energy_Purchases_MWh[Energy purchased],Energy_Purchases_MWh[Year],a!D$200,Energy_Purchases_MWh[Quarter],"Q4",Energy_Purchases_MWh[Plant Name],$F136), IF($G$5="Calendar Year",SUMIFS(Energy_Purchases_MWh[Energy purchased],Energy_Purchases_MWh[Year],a!D$200,Energy_Purchases_MWh[Plant Name],$F136),""))))))/10^3,"") -> 3.77859 | K136: =IFERROR(SUM(IF($G$5="Q1",SUMIFS(Energy_Purchases_MWh[Energy purchased],Energy_Purchases_MWh[Year],a!E$200,Energy_Purchases_MWh[Quarter],"Q1",Energy_Purchases_MWh[Plant Name],$F136),IF($G$5="Q2",SUMIFS(Energy_Purchases_MWh[Energy purchased],Energy_Purchases_MWh[Year],a!E$200,Energy_Purchases_MWh[Quarter],"Q2",Energy_Purchases_MWh[Plant Name],$F136),IF($G$5="Q3",SUMIFS(Energy_Purchases_MWh[Energy purchased],Energy_Purchases_MWh[Year],a!E$200,Energy_Purchases_MWh[Quarter],"Q3",Energy_Purchases_MWh[Plant Name],$F136),IF($G$5="Q4",SUMIFS(Energy_Purchases_MWh[Energy purchased],Energy_Purchases_MWh[Year],a!E$200,Energy_Purchases_MWh[Quarter],"Q4",Energy_Purchases_MWh[Plant Name],$F136), IF($G$5="Calendar Year",SUMIFS(Energy_Purchases_MWh[Energy purchased],Energy_Purchases_MWh[Year],a!E$200,Energy_Purchases_MWh[Plant Name],$F136),""))))))/10^3,"") -> 4.504
F137: RWANDA | G137: =IFERROR(SUM(IF($G$5="Q1",SUMIFS(Energy_Purchases_MWh[Energy purchased],Energy_Purchases_MWh[Year],a!A$200,Energy_Purchases_MWh[Quarter],"Q1",Energy_Purchases_MWh[Plant Name],$F137),IF($G$5="Q2",SUMIFS(Energy_Purchases_MWh[Energy purchased],Energy_Purchases_MWh[Year],a!A$200,Energy_Purchases_MWh[Quarter],"Q2",Energy_Purchases_MWh[Plant Name],$F137),IF($G$5="Q3",SUMIFS(Energy_Purchases_MWh[Energy purchased],Energy_Purchases_MWh[Year],a!A$200,Energy_Purchases_MWh[Quarter],"Q3",Energy_Purchases_MWh[Plant Name],$F137),IF($G$5="Q4",SUMIFS(Energy_Purchases_MWh[Energy purchased],Energy_Purchases_MWh[Year],a!A$200,Energy_Purchases_MWh[Quarter],"Q4",Energy_Purchases_MWh[Plant Name],$F137), IF($G$5="Calendar Year",SUMIFS(Energy_Purchases_MWh[Energy purchased],Energy_Purchases_MWh[Year],a!A$200,Energy_Purchases_MWh[Plant Name],$F137),""))))))/10^3,"") -> 1.510857 | H137: =IFERROR(SUM(IF($G$5="Q1",SUMIFS(Energy_Purchases_MWh[Energy purchased],Energy_Purchases_MWh[Year],a!B$200,Energy_Purchases_MWh[Quarter],"Q1",Energy_Purchases_MWh[Plant Name],$F137),IF($G$5="Q2",SUMIFS(Energy_Purchases_MWh[Energy purchased],Energy_Purchases_MWh[Year],a!B$200,Energy_Purchases_MWh[Quarter],"Q2",Energy_Purchases_MWh[Plant Name],$F137),IF($G$5="Q3",SUMIFS(Energy_Purchases_MWh[Energy purchased],Energy_Purchases_MWh[Year],a!B$200,Energy_Purchases_MWh[Quarter],"Q3",Energy_Purchases_MWh[Plant Name],$F137),IF($G$5="Q4",SUMIFS(Energy_Purchases_MWh[Energy purchased],Energy_Purchases_MWh[Year],a!B$200,Energy_Purchases_MWh[Quarter],"Q4",Energy_Purchases_MWh[Plant Name],$F137), IF($G$5="Calendar Year",SUMIFS(Energy_Purchases_MWh[Energy purchased],Energy_Purchases_MWh[Year],a!B$200,Energy_Purchases_MWh[Plant Name],$F137),""))))))/10^3,"") -> 1.8372467 | I137: =IFERROR(SUM(IF($G$5="Q1",SUMIFS(Energy_Purchases_MWh[Energy purchased],Energy_Purchases_MWh[Year],a!C$200,Energy_Purchases_MWh[Quarter],"Q1",Energy_Purchases_MWh[Plant Name],$F137),IF($G$5="Q2",SUMIFS(Energy_Purchases_MWh[Energy purchased],Energy_Purchases_MWh[Year],a!C$200,Energy_Purchases_MWh[Quarter],"Q2",Energy_Purchases_MWh[Plant Name],$F137),IF($G$5="Q3",SUMIFS(Energy_Purchases_MWh[Energy purchased],Energy_Purchases_MWh[Year],a!C$200,Energy_Purchases_MWh[Quarter],"Q3",Energy_Purchases_MWh[Plant Name],$F137),IF($G$5="Q4",SUMIFS(Energy_Purchases_MWh[Energy purchased],Energy_Purchases_MWh[Year],a!C$200,Energy_Purchases_MWh[Quarter],"Q4",Energy_Purchases_MWh[Plant Name],$F137), IF($G$5="Calendar Year",SUMIFS(Energy_Purchases_MWh[Energy purchased],Energy_Purchases_MWh[Year],a!C$200,Energy_Purchases_MWh[Plant Name],$F137),""))))))/10^3,"") -> 1.8289081 | J137: =IFERROR(SUM(IF($G$5="Q1",SUMIFS(Energy_Purchases_MWh[Energy purchased],Energy_Purchases_MWh[Year],a!D$200,Energy_Purchases_MWh[Quarter],"Q1",Energy_Purchases_MWh[Plant Name],$F137),IF($G$5="Q2",SUMIFS(Energy_Purchases_MWh[Energy purchased],Energy_Purchases_MWh[Year],a!D$200,Energy_Purchases_MWh[Quarter],"Q2",Energy_Purchases_MWh[Plant Name],$F137),IF($G$5="Q3",SUMIFS(Energy_Purchases_MWh[Energy purchased],Energy_Purchases_MWh[Year],a!D$200,Energy_Purchases_MWh[Quarter],"Q3",Energy_Purchases_MWh[Plant Name],$F137),IF($G$5="Q4",SUMIFS(Energy_Purchases_MWh[Energy purchased],Energy_Purchases_MWh[Year],a!D$200,Energy_Purchases_MWh[Quarter],"Q4",Energy_Purchases_MWh[Plant Name],$F137), IF($G$5="Calendar Year",SUMIFS(Energy_Purchases_MWh[Energy purchased],Energy_Purchases_MWh[Year],a!D$200,Energy_Purchases_MWh[Plant Name],$F137),""))))))/10^3,"") -> 4.962592 | K137: =IFERROR(SUM(IF($G$5="Q1",SUMIFS(Energy_Purchases_MWh[Energy purchased],Energy_Purchases_MWh[Year],a!E$200,Energy_Purchases_MWh[Quarter],"Q1",Energy_Purchases_MWh[Plant Name],$F137),IF($G$5="Q2",SUMIFS(Energy_Purchases_MWh[Energy purchased],Energy_Purchases_MWh[Year],a!E$200,Energy_Purchases_MWh[Quarter],"Q2",Energy_Purchases_MWh[Plant Name],$F137),IF($G$5="Q3",SUMIFS(Energy_Purchases_MWh[Energy purchased],Energy_Purchases_MWh[Year],a!E$200,Energy_Purchases_MWh[Quarter],"Q3",Energy_Purchases_MWh[Plant Name],$F137),IF($G$5="Q4",SUMIFS(Energy_Purchases_MWh[Energy purchased],Energy_Purchases_MWh[Year],a!E$200,Energy_Purchases_MWh[Quarter],"Q4",Energy_Purchases_MWh[Plant Name],$F137), IF($G$5="Calendar Year",SUMIFS(Energy_Purchases_MWh[Energy purchased],Energy_Purchases_MWh[Year],a!E$200,Energy_Purchases_MWh[Plant Name],$F137),""))))))/10^3,"") -> 3.012
F138: RWENZORI HYDRO (NYAMAGASANI 1) | G138: =IFERROR(SUM(IF($G$5="Q1",SUMIFS(Energy_Purchases_MWh[Energy purchased],Energy_Purchases_MWh[Year],a!A$200,Energy_Purchases_MWh[Quarter],"Q1",Energy_Purchases_MWh[Plant Name],$F138),IF($G$5="Q2",SUMIFS(Energy_Purchases_MWh[Energy purchased],Energy_Purchases_MWh[Year],a!A$200,Energy_Purchases_MWh[Quarter],"Q2",Energy_Purchases_MWh[Plant Name],$F138),IF($G$5="Q3",SUMIFS(Energy_Purchases_MWh[Energy purchased],Energy_Purchases_MWh[Year],a!A$200,Energy_Purchases_MWh[Quarter],"Q3",Energy_Purchases_MWh[Plant Name],$F138),IF($G$5="Q4",SUMIFS(Energy_Purchases_MWh[Energy purchased],Energy_Purchases_MWh[Year],a!A$200,Energy_Purchases_MWh[Quarter],"Q4",Energy_Purchases_MWh[Plant Name],$F138), IF($G$5="Calendar Year",SUMIFS(Energy_Purchases_MWh[Energy purchased],Energy_Purchases_MWh[Year],a!A$200,Energy_Purchases_MWh[Plant Name],$F138),""))))))/10^3,"") -> 5.64715 | H138: =IFERROR(SUM(IF($G$5="Q1",SUMIFS(Energy_Purchases_MWh[Energy purchased],Energy_Purchases_MWh[Year],a!B$200,Energy_Purchases_MWh[Quarter],"Q1",Energy_Purchases_MWh[Plant Name],$F138),IF($G$5="Q2",SUMIFS(Energy_Purchases_MWh[Energy purchased],Energy_Purchases_MWh[Year],a!B$200,Energy_Purchases_MWh[Quarter],"Q2",Energy_Purchases_MWh[Plant Name],$F138),IF($G$5="Q3",SUMIFS(Energy_Purchases_MWh[Energy purchased],Energy_Purchases_MWh[Year],a!B$200,Energy_Purchases_MWh[Quarter],"Q3",Energy_Purchases_MWh[Plant Name],$F138),IF($G$5="Q4",SUMIFS(Energy_Purchases_MWh[Energy purchased],Energy_Purchases_MWh[Year],a!B$200,Energy_Purchases_MWh[Quarter],"Q4",Energy_Purchases_MWh[Plant Name],$F138), IF($G$5="Calendar Year",SUMIFS(Energy_Purchases_MWh[Energy purchased],Energy_Purchases_MWh[Year],a!B$200,Energy_Purchases_MWh[Plant Name],$F138),""))))))/10^3,"") -> 6.8829 | I138: =IFERROR(SUM(IF($G$5="Q1",SUMIFS(Energy_Purchases_MWh[Energy purchased],Energy_Purchases_MWh[Year],a!C$200,Energy_Purchases_MWh[Quarter],"Q1",Energy_Purchases_MWh[Plant Name],$F138),IF($G$5="Q2",SUMIFS(Energy_Purchases_MWh[Energy purchased],Energy_Purchases_MWh[Year],a!C$200,Energy_Purchases_MWh[Quarter],"Q2",Energy_Purchases_MWh[Plant Name],$F138),IF($G$5="Q3",SUMIFS(Energy_Purchases_MWh[Energy purchased],Energy_Purchases_MWh[Year],a!C$200,Energy_Purchases_MWh[Quarter],"Q3",Energy_Purchases_MWh[Plant Name],$F138),IF($G$5="Q4",SUMIFS(Energy_Purchases_MWh[Energy purchased],Energy_Purchases_MWh[Year],a!C$200,Energy_Purchases_MWh[Quarter],"Q4",Energy_Purchases_MWh[Plant Name],$F138), IF($G$5="Calendar Year",SUMIFS(Energy_Purchases_MWh[Energy purchased],Energy_Purchases_MWh[Year],a!C$200,Energy_Purchases_MWh[Plant Name],$F138),""))))))/10^3,"") -> 10.97044 | J138: =IFERROR(SUM(IF($G$5="Q1",SUMIFS(Energy_Purchases_MWh[Energy purchased],Energy_Purchases_MWh[Year],a!D$200,Energy_Purchases_MWh[Quarter],"Q1",Energy_Purchases_MWh[Plant Name],$F138),IF($G$5="Q2",SUMIFS(Energy_Purchases_MWh[Energy purchased],Energy_Purchases_MWh[Year],a!D$200,Energy_Purchases_MWh[Quarter],"Q2",Energy_Purchases_MWh[Plant Name],$F138),IF($G$5="Q3",SUMIFS(Energy_Purchases_MWh[Energy purchased],Energy_Purchases_MWh[Year],a!D$200,Energy_Purchases_MWh[Quarter],"Q3",Energy_Purchases_MWh[Plant Name],$F138),IF($G$5="Q4",SUMIFS(Energy_Purchases_MWh[Energy purchased],Energy_Purchases_MWh[Year],a!D$200,Energy_Purchases_MWh[Quarter],"Q4",Energy_Purchases_MWh[Plant Name],$F138), IF($G$5="Calendar Year",SUMIFS(Energy_Purchases_MWh[Energy purchased],Energy_Purchases_MWh[Year],a!D$200,Energy_Purchases_MWh[Plant Name],$F138),""))))))/10^3,"") -> 8.65946 | K138: =IFERROR(SUM(IF($G$5="Q1",SUMIFS(Energy_Purchases_MWh[Energy purchased],Energy_Purchases_MWh[Year],a!E$200,Energy_Purchases_MWh[Quarter],"Q1",Energy_Purchases_MWh[Plant Name],$F138),IF($G$5="Q2",SUMIFS(Energy_Purchases_MWh[Energy purchased],Energy_Purchases_MWh[Year],a!E$200,Energy_Purchases_MWh[Quarter],"Q2",Energy_Purchases_MWh[Plant Name],$F138),IF($G$5="Q3",SUMIFS(Energy_Purchases_MWh[Energy purchased],Energy_Purchases_MWh[Year],a!E$200,Energy_Purchases_MWh[Quarter],"Q3",Energy_Purchases_MWh[Plant Name],$F138),IF($G$5="Q4",SUMIFS(Energy_Purchases_MWh[Energy purchased],Energy_Purchases_MWh[Year],a!E$200,Energy_Purchases_MWh[Quarter],"Q4",Energy_Purchases_MWh[Plant Name],$F138), IF($G$5="Calendar Year",SUMIFS(Energy_Purchases_MWh[Energy purchased],Energy_Purchases_MWh[Year],a!E$200,Energy_Purchases_MWh[Plant Name],$F138),""))))))/10^3,"") -> 9.32
F139: RWIMI | G139: =IFERROR(SUM(IF($G$5="Q1",SUMIFS(Energy_Purchases_MWh[Energy purchased],Energy_Purchases_MWh[Year],a!A$200,Energy_Purchases_MWh[Quarter],"Q1",Energy_Purchases_MWh[Plant Name],$F139),IF($G$5="Q2",SUMIFS(Energy_Purchases_MWh[Energy purchased],Energy_Purchases_MWh[Year],a!A$200,Energy_Purchases_MWh[Quarter],"Q2",Energy_Purchases_MWh[Plant Name],$F139),IF($G$5="Q3",SUMIFS(Energy_Purchases_MWh[Energy purchased],Energy_Purchases_MWh[Year],a!A$200,Energy_Purchases_MWh[Quarter],"Q3",Energy_Purchases_MWh[Plant Name],$F139),IF($G$5="Q4",SUMIFS(Energy_Purchases_MWh[Energy purchased],Energy_Purchases_MWh[Year],a!A$200,Energy_Purchases_MWh[Quarter],"Q4",Energy_Purchases_MWh[Plant Name],$F139), IF($G$5="Calendar Year",SUMIFS(Energy_Purchases_MWh[Energy purchased],Energy_Purchases_MWh[Year],a!A$200,Energy_Purchases_MWh[Plant Name],$F139),""))))))/10^3,"") -> 4.5025 | H139: =IFERROR(SUM(IF($G$5="Q1",SUMIFS(Energy_Purchases_MWh[Energy purchased],Energy_Purchases_MWh[Year],a!B$200,Energy_Purchases_MWh[Quarter],"Q1",Energy_Purchases_MWh[Plant Name],$F139),IF($G$5="Q2",SUMIFS(Energy_Purchases_MWh[Energy purchased],Energy_Purchases_MWh[Year],a!B$200,Energy_Purchases_MWh[Quarter],"Q2",Energy_Purchases_MWh[Plant Name],$F139),IF($G$5="Q3",SUMIFS(Energy_Purchases_MWh[Energy purchased],Energy_Purchases_MWh[Year],a!B$200,Energy_Purchases_MWh[Quarter],"Q3",Energy_Purchases_MWh[Plant Name],$F139),IF($G$5="Q4",SUMIFS(Energy_Purchases_MWh[Energy purchased],Energy_Purchases_MWh[Year],a!B$200,Energy_Purchases_MWh[Quarter],"Q4",Energy_Purchases_MWh[Plant Name],$F139), IF($G$5="Calendar Year",SUMIFS(Energy_Purchases_MWh[Energy purchased],Energy_Purchases_MWh[Year],a!B$200,Energy_Purchases_MWh[Plant Name],$F139),""))))))/10^3,"") -> 1.0665 | I139: =IFERROR(SUM(IF($G$5="Q1",SUMIFS(Energy_Purchases_MWh[Energy purchased],Energy_Purchases_MWh[Year],a!C$200,Energy_Purchases_MWh[Quarter],"Q1",Energy_Purchases_MWh[Plant Name],$F139),IF($G$5="Q2",SUMIFS(Energy_Purchases_MWh[Energy purchased],Energy_Purchases_MWh[Year],a!C$200,Energy_Purchases_MWh[Quarter],"Q2",Energy_Purchases_MWh[Plant Name],$F139),IF($G$5="Q3",SUMIFS(Energy_Purchases_MWh[Energy purchased],Energy_Purchases_MWh[Year],a!C$200,Energy_Purchases_MWh[Quarter],"Q3",Energy_Purchases_MWh[Plant Name],$F139),IF($G$5="Q4",SUMIFS(Energy_Purchases_MWh[Energy purchased],Energy_Purchases_MWh[Year],a!C$200,Energy_Purchases_MWh[Quarter],"Q4",Energy_Purchases_MWh[Plant Name],$F139), IF($G$5="Calendar Year",SUMIFS(Energy_Purchases_MWh[Energy purchased],Energy_Purchases_MWh[Year],a!C$200,Energy_Purchases_MWh[Plant Name],$F139),""))))))/10^3,"") -> 6.168 | J139: =IFERROR(SUM(IF($G$5="Q1",SUMIFS(Energy_Purchases_MWh[Energy purchased],Energy_Purchases_MWh[Year],a!D$200,Energy_Purchases_MWh[Quarter],"Q1",Energy_Purchases_MWh[Plant Name],$F139),IF($G$5="Q2",SUMIFS(Energy_Purchases_MWh[Energy purchased],Energy_Purchases_MWh[Year],a!D$200,Energy_Purchases_MWh[Quarter],"Q2",Energy_Purchases_MWh[Plant Name],$F139),IF($G$5="Q3",SUMIFS(Energy_Purchases_MWh[Energy purchased],Energy_Purchases_MWh[Year],a!D$200,Energy_Purchases_MWh[Quarter],"Q3",Energy_Purchases_MWh[Plant Name],$F139),IF($G$5="Q4",SUMIFS(Energy_Purchases_MWh[Energy purchased],Energy_Purchases_MWh[Year],a!D$200,Energy_Purchases_MWh[Quarter],"Q4",Energy_Purchases_MWh[Plant Name],$F139), IF($G$5="Calendar Year",SUMIFS(Energy_Purchases_MWh[Energy purchased],Energy_Purchases_MWh[Year],a!D$200,Energy_Purchases_MWh[Plant Name],$F139),""))))))/10^3,"") -> 4.3234 | K139: =IFERROR(SUM(IF($G$5="Q1",SUMIFS(Energy_Purchases_MWh[Energy purchased],Energy_Purchases_MWh[Year],a!E$200,Energy_Purchases_MWh[Quarter],"Q1",Energy_Purchases_MWh[Plant Name],$F139),IF($G$5="Q2",SUMIFS(Energy_Purchases_MWh[Energy purchased],Energy_Purchases_MWh[Year],a!E$200,Energy_Purchases_MWh[Quarter],"Q2",Energy_Purchases_MWh[Plant Name],$F139),IF($G$5="Q3",SUMIFS(Energy_Purchases_MWh[Energy purchased],Energy_Purchases_MWh[Year],a!E$200,Energy_Purchases_MWh[Quarter],"Q3",Energy_Purchases_MWh[Plant Name],$F139),IF($G$5="Q4",SUMIFS(Energy_Purchases_MWh[Energy purchased],Energy_Purchases_MWh[Year],a!E$200,Energy_Purchases_MWh[Quarter],"Q4",Energy_Purchases_MWh[Plant Name],$F139), IF($G$5="Calendar Year",SUMIFS(Energy_Purchases_MWh[Energy purchased],Energy_Purchases_MWh[Year],a!E$200,Energy_Purchases_MWh[Plant Name],$F139),""))))))/10^3,"") -> 5.003
F140: SAIL KALIRO | G140: =IFERROR(SUM(IF($G$5="Q1",SUMIFS(Energy_Purchases_MWh[Energy purchased],Energy_Purchases_MWh[Year],a!A$200,Energy_Purchases_MWh[Quarter],"Q1",Energy_Purchases_MWh[Plant Name],$F140),IF($G$5="Q2",SUMIFS(Energy_Purchases_MWh[Energy purchased],Energy_Purchases_MWh[Year],a!A$200,Energy_Purchases_MWh[Quarter],"Q2",Energy_Purchases_MWh[Plant Name],$F140),IF($G$5="Q3",SUMIFS(Energy_Purchases_MWh[Energy purchased],Energy_Purchases_MWh[Year],a!A$200,Energy_Purchases_MWh[Quarter],"Q3",Energy_Purchases_MWh[Plant Name],$F140),IF($G$5="Q4",SUMIFS(Energy_Purchases_MWh[Energy purchased],Energy_Purchases_MWh[Year],a!A$200,Energy_Purchases_MWh[Quarter],"Q4",Energy_Purchases_MWh[Plant Name],$F140), IF($G$5="Calendar Year",SUMIFS(Energy_Purchases_MWh[Energy purchased],Energy_Purchases_MWh[Year],a!A$200,Energy_Purchases_MWh[Plant Name],$F140),""))))))/10^3,"") -> 10.4046 | H140: =IFERROR(SUM(IF($G$5="Q1",SUMIFS(Energy_Purchases_MWh[Energy purchased],Energy_Purchases_MWh[Year],a!B$200,Energy_Purchases_MWh[Quarter],"Q1",Energy_Purchases_MWh[Plant Name],$F140),IF($G$5="Q2",SUMIFS(Energy_Purchases_MWh[Energy purchased],Energy_Purchases_MWh[Year],a!B$200,Energy_Purchases_MWh[Quarter],"Q2",Energy_Purchases_MWh[Plant Name],$F140),IF($G$5="Q3",SUMIFS(Energy_Purchases_MWh[Energy purchased],Energy_Purchases_MWh[Year],a!B$200,Energy_Purchases_MWh[Quarter],"Q3",Energy_Purchases_MWh[Plant Name],$F140),IF($G$5="Q4",SUMIFS(Energy_Purchases_MWh[Energy purchased],Energy_Purchases_MWh[Year],a!B$200,Energy_Purchases_MWh[Quarter],"Q4",Energy_Purchases_MWh[Plant Name],$F140), IF($G$5="Calendar Year",SUMIFS(Energy_Purchases_MWh[Energy purchased],Energy_Purchases_MWh[Year],a!B$200,Energy_Purchases_MWh[Plant Name],$F140),""))))))/10^3,"") -> 2.1511 | I140: =IFERROR(SUM(IF($G$5="Q1",SUMIFS(Energy_Purchases_MWh[Energy purchased],Energy_Purchases_MWh[Year],a!C$200,Energy_Purchases_MWh[Quarter],"Q1",Energy_Purchases_MWh[Plant Name],$F140),IF($G$5="Q2",SUMIFS(Energy_Purchases_MWh[Energy purchased],Energy_Purchases_MWh[Year],a!C$200,Energy_Purchases_MWh[Quarter],"Q2",Energy_Purchases_MWh[Plant Name],$F140),IF($G$5="Q3",SUMIFS(Energy_Purchases_MWh[Energy purchased],Energy_Purchases_MWh[Year],a!C$200,Energy_Purchases_MWh[Quarter],"Q3",Energy_Purchases_MWh[Plant Name],$F140),IF($G$5="Q4",SUMIFS(Energy_Purchases_MWh[Energy purchased],Energy_Purchases_MWh[Year],a!C$200,Energy_Purchases_MWh[Quarter],"Q4",Energy_Purchases_MWh[Plant Name],$F140), IF($G$5="Calendar Year",SUMIFS(Energy_Purchases_MWh[Energy purchased],Energy_Purchases_MWh[Year],a!C$200,Energy_Purchases_MWh[Plant Name],$F140),""))))))/10^3,"") -> 2.4264 | J140: =IFERROR(SUM(IF($G$5="Q1",SUMIFS(Energy_Purchases_MWh[Energy purchased],Energy_Purchases_MWh[Year],a!D$200,Energy_Purchases_MWh[Quarter],"Q1",Energy_Purchases_MWh[Plant Name],$F140),IF($G$5="Q2",SUMIFS(Energy_Purchases_MWh[Energy purchased],Energy_Purchases_MWh[Year],a!D$200,Energy_Purchases_MWh[Quarter],"Q2",Energy_Purchases_MWh[Plant Name],$F140),IF($G$5="Q3",SUMIFS(Energy_Purchases_MWh[Energy purchased],Energy_Purchases_MWh[Year],a!D$200,Energy_Purchases_MWh[Quarter],"Q3",Energy_Purchases_MWh[Plant Name],$F140),IF($G$5="Q4",SUMIFS(Energy_Purchases_MWh[Energy purchased],Energy_Purchases_MWh[Year],a!D$200,Energy_Purchases_MWh[Quarter],"Q4",Energy_Purchases_MWh[Plant Name],$F140), IF($G$5="Calendar Year",SUMIFS(Energy_Purchases_MWh[Energy purchased],Energy_Purchases_MWh[Year],a!D$200,Energy_Purchases_MWh[Plant Name],$F140),""))))))/10^3,"") -> 7.1886 | K140: =IFERROR(SUM(IF($G$5="Q1",SUMIFS(Energy_Purchases_MWh[Energy purchased],Energy_Purchases_MWh[Year],a!E$200,Energy_Purchases_MWh[Quarter],"Q1",Energy_Purchases_MWh[Plant Name],$F140),IF($G$5="Q2",SUMIFS(Energy_Purchases_MWh[Energy purchased],Energy_Purchases_MWh[Year],a!E$200,Energy_Purchases_MWh[Quarter],"Q2",Energy_Purchases_MWh[Plant Name],$F140),IF($G$5="Q3",SUMIFS(Energy_Purchases_MWh[Energy purchased],Energy_Purchases_MWh[Year],a!E$200,Energy_Purchases_MWh[Quarter],"Q3",Energy_Purchases_MWh[Plant Name],$F140),IF($G$5="Q4",SUMIFS(Energy_Purchases_MWh[Energy purchased],Energy_Purchases_MWh[Year],a!E$200,Energy_Purchases_MWh[Quarter],"Q4",Energy_Purchases_MWh[Plant Name],$F140), IF($G$5="Calendar Year",SUMIFS(Energy_Purchases_MWh[Energy purchased],Energy_Purchases_MWh[Year],a!E$200,Energy_Purchases_MWh[Plant Name],$F140),""))))))/10^3,"") -> 0.29
F141: SCOUL | G141: =IFERROR(SUM(IF($G$5="Q1",SUMIFS(Energy_Purchases_MWh[Energy purchased],Energy_Purchases_MWh[Year],a!A$200,Energy_Purchases_MWh[Quarter],"Q1",Energy_Purchases_MWh[Plant Name],$F141),IF($G$5="Q2",SUMIFS(Energy_Purchases_MWh[Energy purchased],Energy_Purchases_MWh[Year],a!A$200,Energy_Purchases_MWh[Quarter],"Q2",Energy_Purchases_MWh[Plant Name],$F141),IF($G$5="Q3",SUMIFS(Energy_Purchases_MWh[Energy purchased],Energy_Purchases_MWh[Year],a!A$200,Energy_Purchases_MWh[Quarter],"Q3",Energy_Purchases_MWh[Plant Name],$F141),IF($G$5="Q4",SUMIFS(Energy_Purchases_MWh[Energy purchased],Energy_Purchases_MWh[Year],a!A$200,Energy_Purchases_MWh[Quarter],"Q4",Energy_Purchases_MWh[Plant Name],$F141), IF($G$5="Calendar Year",SUMIFS(Energy_Purchases_MWh[Energy purchased],Energy_Purchases_MWh[Year],a!A$200,Energy_Purchases_MWh[Plant Name],$F141),""))))))/10^3,"") -> 40.42595 | H141: =IFERROR(SUM(IF($G$5="Q1",SUMIFS(Energy_Purchases_MWh[Energy purchased],Energy_Purchases_MWh[Year],a!B$200,Energy_Purchases_MWh[Quarter],"Q1",Energy_Purchases_MWh[Plant Name],$F141),IF($G$5="Q2",SUMIFS(Energy_Purchases_MWh[Energy purchased],Energy_Purchases_MWh[Year],a!B$200,Energy_Purchases_MWh[Quarter],"Q2",Energy_Purchases_MWh[Plant Name],$F141),IF($G$5="Q3",SUMIFS(Energy_Purchases_MWh[Energy purchased],Energy_Purchases_MWh[Year],a!B$200,Energy_Purchases_MWh[Quarter],"Q3",Energy_Purchases_MWh[Plant Name],$F141),IF($G$5="Q4",SUMIFS(Energy_Purchases_MWh[Energy purchased],Energy_Purchases_MWh[Year],a!B$200,Energy_Purchases_MWh[Quarter],"Q4",Energy_Purchases_MWh[Plant Name],$F141), IF($G$5="Calendar Year",SUMIFS(Energy_Purchases_MWh[Energy purchased],Energy_Purchases_MWh[Year],a!B$200,Energy_Purchases_MWh[Plant Name],$F141),""))))))/10^3,"") -> 39.93017 | I141: =IFERROR(SUM(IF($G$5="Q1",SUMIFS(Energy_Purchases_MWh[Energy purchased],Energy_Purchases_MWh[Year],a!C$200,Energy_Purchases_MWh[Quarter],"Q1",Energy_Purchases_MWh[Plant Name],$F141),IF($G$5="Q2",SUMIFS(Energy_Purchases_MWh[Energy purchased],Energy_Purchases_MWh[Year],a!C$200,Energy_Purchases_MWh[Quarter],"Q2",Energy_Purchases_MWh[Plant Name],$F141),IF($G$5="Q3",SUMIFS(Energy_Purchases_MWh[Energy purchased],Energy_Purchases_MWh[Year],a!C$200,Energy_Purchases_MWh[Quarter],"Q3",Energy_Purchases_MWh[Plant Name],$F141),IF($G$5="Q4",SUMIFS(Energy_Purchases_MWh[Energy purchased],Energy_Purchases_MWh[Year],a!C$200,Energy_Purchases_MWh[Quarter],"Q4",Energy_Purchases_MWh[Plant Name],$F141), IF($G$5="Calendar Year",SUMIFS(Energy_Purchases_MWh[Energy purchased],Energy_Purchases_MWh[Year],a!C$200,Energy_Purchases_MWh[Plant Name],$F141),""))))))/10^3,"") -> 43.96219 | J141: =IFERROR(SUM(IF($G$5="Q1",SUMIFS(Energy_Purchases_MWh[Energy purchased],Energy_Purchases_MWh[Year],a!D$200,Energy_Purchases_MWh[Quarter],"Q1",Energy_Purchases_MWh[Plant Name],$F141),IF($G$5="Q2",SUMIFS(Energy_Purchases_MWh[Energy purchased],Energy_Purchases_MWh[Year],a!D$200,Energy_Purchases_MWh[Quarter],"Q2",Energy_Purchases_MWh[Plant Name],$F141),IF($G$5="Q3",SUMIFS(Energy_Purchases_MWh[Energy purchased],Energy_Purchases_MWh[Year],a!D$200,Energy_Purchases_MWh[Quarter],"Q3",Energy_Purchases_MWh[Plant Name],$F141),IF($G$5="Q4",SUMIFS(Energy_Purchases_MWh[Energy purchased],Energy_Purchases_MWh[Year],a!D$200,Energy_Purchases_MWh[Quarter],"Q4",Energy_Purchases_MWh[Plant Name],$F141), IF($G$5="Calendar Year",SUMIFS(Energy_Purchases_MWh[Energy purchased],Energy_Purchases_MWh[Year],a!D$200,Energy_Purchases_MWh[Plant Name],$F141),""))))))/10^3,"") -> 37.81369 | K141: =IFERROR(SUM(IF($G$5="Q1",SUMIFS(Energy_Purchases_MWh[Energy purchased],Energy_Purchases_MWh[Year],a!E$200,Energy_Purchases_MWh[Quarter],"Q1",Energy_Purchases_MWh[Plant Name],$F141),IF($G$5="Q2",SUMIFS(Energy_Purchases_MWh[Energy purchased],Energy_Purchases_MWh[Year],a!E$200,Energy_Purchases_MWh[Quarter],"Q2",Energy_Purchases_MWh[Plant Name],$F141),IF($G$5="Q3",SUMIFS(Energy_Purchases_MWh[Energy purchased],Energy_Purchases_MWh[Year],a!E$200,Energy_Purchases_MWh[Quarter],"Q3",Energy_Purchases_MWh[Plant Name],$F141),IF($G$5="Q4",SUMIFS(Energy_Purchases_MWh[Energy purchased],Energy_Purchases_MWh[Year],a!E$200,Energy_Purchases_MWh[Quarter],"Q4",Energy_Purchases_MWh[Plant Name],$F141), IF($G$5="Calendar Year",SUMIFS(Energy_Purchases_MWh[Energy purchased],Energy_Purchases_MWh[Year],a!E$200,Energy_Purchases_MWh[Plant Name],$F141),""))))))/10^3,"") -> 40.225
F142: SINDILA | G142: =IFERROR(SUM(IF($G$5="Q1",SUMIFS(Energy_Purchases_MWh[Energy purchased],Energy_Purchases_MWh[Year],a!A$200,Energy_Purchases_MWh[Quarter],"Q1",Energy_Purchases_MWh[Plant Name],$F142),IF($G$5="Q2",SUMIFS(Energy_Purchases_MWh[Energy purchased],Energy_Purchases_MWh[Year],a!A$200,Energy_Purchases_MWh[Quarter],"Q2",Energy_Purchases_MWh[Plant Name],$F142),IF($G$5="Q3",SUMIFS(Energy_Purchases_MWh[Energy purchased],Energy_Purchases_MWh[Year],a!A$200,Energy_Purchases_MWh[Quarter],"Q3",Energy_Purchases_MWh[Plant Name],$F142),IF($G$5="Q4",SUMIFS(Energy_Purchases_MWh[Energy purchased],Energy_Purchases_MWh[Year],a!A$200,Energy_Purchases_MWh[Quarter],"Q4",Energy_Purchases_MWh[Plant Name],$F142), IF($G$5="Calendar Year",SUMIFS(Energy_Purchases_MWh[Energy purchased],Energy_Purchases_MWh[Year],a!A$200,Energy_Purchases_MWh[Plant Name],$F142),""))))))/10^3,"") -> 2.6953 | H142: =IFERROR(SUM(IF($G$5="Q1",SUMIFS(Energy_Purchases_MWh[Energy purchased],Energy_Purchases_MWh[Year],a!B$200,Energy_Purchases_MWh[Quarter],"Q1",Energy_Purchases_MWh[Plant Name],$F142),IF($G$5="Q2",SUMIFS(Energy_Purchases_MWh[Energy purchased],Energy_Purchases_MWh[Year],a!B$200,Energy_Purchases_MWh[Quarter],"Q2",Energy_Purchases_MWh[Plant Name],$F142),IF($G$5="Q3",SUMIFS(Energy_Purchases_MWh[Energy purchased],Energy_Purchases_MWh[Year],a!B$200,Energy_Purchases_MWh[Quarter],"Q3",Energy_Purchases_MWh[Plant Name],$F142),IF($G$5="Q4",SUMIFS(Energy_Purchases_MWh[Energy purchased],Energy_Purchases_MWh[Year],a!B$200,Energy_Purchases_MWh[Quarter],"Q4",Energy_Purchases_MWh[Plant Name],$F142), IF($G$5="Calendar Year",SUMIFS(Energy_Purchases_MWh[Energy purchased],Energy_Purchases_MWh[Year],a!B$200,Energy_Purchases_MWh[Plant Name],$F142),""))))))/10^3,"") -> 3.2027 | I142: =IFERROR(SUM(IF($G$5="Q1",SUMIFS(Energy_Purchases_MWh[Energy purchased],Energy_Purchases_MWh[Year],a!C$200,Energy_Purchases_MWh[Quarter],"Q1",Energy_Purchases_MWh[Plant Name],$F142),IF($G$5="Q2",SUMIFS(Energy_Purchases_MWh[Energy purchased],Energy_Purchases_MWh[Year],a!C$200,Energy_Purchases_MWh[Quarter],"Q2",Energy_Purchases_MWh[Plant Name],$F142),IF($G$5="Q3",SUMIFS(Energy_Purchases_MWh[Energy purchased],Energy_Purchases_MWh[Year],a!C$200,Energy_Purchases_MWh[Quarter],"Q3",Energy_Purchases_MWh[Plant Name],$F142),IF($G$5="Q4",SUMIFS(Energy_Purchases_MWh[Energy purchased],Energy_Purchases_MWh[Year],a!C$200,Energy_Purchases_MWh[Quarter],"Q4",Energy_Purchases_MWh[Plant Name],$F142), IF($G$5="Calendar Year",SUMIFS(Energy_Purchases_MWh[Energy purchased],Energy_Purchases_MWh[Year],a!C$200,Energy_Purchases_MWh[Plant Name],$F142),""))))))/10^3,"") -> 3.4309 | J142: =IFERROR(SUM(IF($G$5="Q1",SUMIFS(Energy_Purchases_MWh[Energy purchased],Energy_Purchases_MWh[Year],a!D$200,Energy_Purchases_MWh[Quarter],"Q1",Energy_Purchases_MWh[Plant Name],$F142),IF($G$5="Q2",SUMIFS(Energy_Purchases_MWh[Energy purchased],Energy_Purchases_MWh[Year],a!D$200,Energy_Purchases_MWh[Quarter],"Q2",Energy_Purchases_MWh[Plant Name],$F142),IF($G$5="Q3",SUMIFS(Energy_Purchases_MWh[Energy purchased],Energy_Purchases_MWh[Year],a!D$200,Energy_Purchases_MWh[Quarter],"Q3",Energy_Purchases_MWh[Plant Name],$F142),IF($G$5="Q4",SUMIFS(Energy_Purchases_MWh[Energy purchased],Energy_Purchases_MWh[Year],a!D$200,Energy_Purchases_MWh[Quarter],"Q4",Energy_Purchases_MWh[Plant Name],$F142), IF($G$5="Calendar Year",SUMIFS(Energy_Purchases_MWh[Energy purchased],Energy_Purchases_MWh[Year],a!D$200,Energy_Purchases_MWh[Plant Name],$F142),""))))))/10^3,"") -> 2.7993 | K142: =IFERROR(SUM(IF($G$5="Q1",SUMIFS(Energy_Purchases_MWh[Energy purchased],Energy_Purchases_MWh[Year],a!E$200,Energy_Purchases_MWh[Quarter],"Q1",Energy_Purchases_MWh[Plant Name],$F142),IF($G$5="Q2",SUMIFS(Energy_Purchases_MWh[Energy purchased],Energy_Purchases_MWh[Year],a!E$200,Energy_Purchases_MWh[Quarter],"Q2",Energy_Purchases_MWh[Plant Name],$F142),IF($G$5="Q3",SUMIFS(Energy_Purchases_MWh[Energy purchased],Energy_Purchases_MWh[Year],a!E$200,Energy_Purchases_MWh[Quarter],"Q3",Energy_Purchases_MWh[Plant Name],$F142),IF($G$5="Q4",SUMIFS(Energy_Purchases_MWh[Energy purchased],Energy_Purchases_MWh[Year],a!E$200,Energy_Purchases_MWh[Quarter],"Q4",Energy_Purchases_MWh[Plant Name],$F142), IF($G$5="Calendar Year",SUMIFS(Energy_Purchases_MWh[Energy purchased],Energy_Purchases_MWh[Year],a!E$200,Energy_Purchases_MWh[Plant Name],$F142),""))))))/10^3,"") -> 3.331
F143: SITI 2 | G143: =IFERROR(SUM(IF($G$5="Q1",SUMIFS(Energy_Purchases_MWh[Energy purchased],Energy_Purchases_MWh[Year],a!A$200,Energy_Purchases_MWh[Quarter],"Q1",Energy_Purchases_MWh[Plant Name],$F143),IF($G$5="Q2",SUMIFS(Energy_Purchases_MWh[Energy purchased],Energy_Purchases_MWh[Year],a!A$200,Energy_Purchases_MWh[Quarter],"Q2",Energy_Purchases_MWh[Plant Name],$F143),IF($G$5="Q3",SUMIFS(Energy_Purchases_MWh[Energy purchased],Energy_Purchases_MWh[Year],a!A$200,Energy_Purchases_MWh[Quarter],"Q3",Energy_Purchases_MWh[Plant Name],$F143),IF($G$5="Q4",SUMIFS(Energy_Purchases_MWh[Energy purchased],Energy_Purchases_MWh[Year],a!A$200,Energy_Purchases_MWh[Quarter],"Q4",Energy_Purchases_MWh[Plant Name],$F143), IF($G$5="Calendar Year",SUMIFS(Energy_Purchases_MWh[Energy purchased],Energy_Purchases_MWh[Year],a!A$200,Energy_Purchases_MWh[Plant Name],$F143),""))))))/10^3,"") -> 0.75074 | H143: =IFERROR(SUM(IF($G$5="Q1",SUMIFS(Energy_Purchases_MWh[Energy purchased],Energy_Purchases_MWh[Year],a!B$200,Energy_Purchases_MWh[Quarter],"Q1",Energy_Purchases_MWh[Plant Name],$F143),IF($G$5="Q2",SUMIFS(Energy_Purchases_MWh[Energy purchased],Energy_Purchases_MWh[Year],a!B$200,Energy_Purchases_MWh[Quarter],"Q2",Energy_Purchases_MWh[Plant Name],$F143),IF($G$5="Q3",SUMIFS(Energy_Purchases_MWh[Energy purchased],Energy_Purchases_MWh[Year],a!B$200,Energy_Purchases_MWh[Quarter],"Q3",Energy_Purchases_MWh[Plant Name],$F143),IF($G$5="Q4",SUMIFS(Energy_Purchases_MWh[Energy purchased],Energy_Purchases_MWh[Year],a!B$200,Energy_Purchases_MWh[Quarter],"Q4",Energy_Purchases_MWh[Plant Name],$F143), IF($G$5="Calendar Year",SUMIFS(Energy_Purchases_MWh[Energy purchased],Energy_Purchases_MWh[Year],a!B$200,Energy_Purchases_MWh[Plant Name],$F143),""))))))/10^3,"") -> 4.9633 | I143: =IFERROR(SUM(IF($G$5="Q1",SUMIFS(Energy_Purchases_MWh[Energy purchased],Energy_Purchases_MWh[Year],a!C$200,Energy_Purchases_MWh[Quarter],"Q1",Energy_Purchases_MWh[Plant Name],$F143),IF($G$5="Q2",SUMIFS(Energy_Purchases_MWh[Energy purchased],Energy_Purchases_MWh[Year],a!C$200,Energy_Purchases_MWh[Quarter],"Q2",Energy_Purchases_MWh[Plant Name],$F143),IF($G$5="Q3",SUMIFS(Energy_Purchases_MWh[Energy purchased],Energy_Purchases_MWh[Year],a!C$200,Energy_Purchases_MWh[Quarter],"Q3",Energy_Purchases_MWh[Plant Name],$F143),IF($G$5="Q4",SUMIFS(Energy_Purchases_MWh[Energy purchased],Energy_Purchases_MWh[Year],a!C$200,Energy_Purchases_MWh[Quarter],"Q4",Energy_Purchases_MWh[Plant Name],$F143), IF($G$5="Calendar Year",SUMIFS(Energy_Purchases_MWh[Energy purchased],Energy_Purchases_MWh[Year],a!C$200,Energy_Purchases_MWh[Plant Name],$F143),""))))))/10^3,"") -> 7.12141 | J143: =IFERROR(SUM(IF($G$5="Q1",SUMIFS(Energy_Purchases_MWh[Energy purchased],Energy_Purchases_MWh[Year],a!D$200,Energy_Purchases_MWh[Quarter],"Q1",Energy_Purchases_MWh[Plant Name],$F143),IF($G$5="Q2",SUMIFS(Energy_Purchases_MWh[Energy purchased],Energy_Purchases_MWh[Year],a!D$200,Energy_Purchases_MWh[Quarter],"Q2",Energy_Purchases_MWh[Plant Name],$F143),IF($G$5="Q3",SUMIFS(Energy_Purchases_MWh[Energy purchased],Energy_Purchases_MWh[Year],a!D$200,Energy_Purchases_MWh[Quarter],"Q3",Energy_Purchases_MWh[Plant Name],$F143),IF($G$5="Q4",SUMIFS(Energy_Purchases_MWh[Energy purchased],Energy_Purchases_MWh[Year],a!D$200,Energy_Purchases_MWh[Quarter],"Q4",Energy_Purchases_MWh[Plant Name],$F143), IF($G$5="Calendar Year",SUMIFS(Energy_Purchases_MWh[Energy purchased],Energy_Purchases_MWh[Year],a!D$200,Energy_Purchases_MWh[Plant Name],$F143),""))))))/10^3,"") -> 2.84877 | K143: =IFERROR(SUM(IF($G$5="Q1",SUMIFS(Energy_Purchases_MWh[Energy purchased],Energy_Purchases_MWh[Year],a!E$200,Energy_Purchases_MWh[Quarter],"Q1",Energy_Purchases_MWh[Plant Name],$F143),IF($G$5="Q2",SUMIFS(Energy_Purchases_MWh[Energy purchased],Energy_Purchases_MWh[Year],a!E$200,Energy_Purchases_MWh[Quarter],"Q2",Energy_Purchases_MWh[Plant Name],$F143),IF($G$5="Q3",SUMIFS(Energy_Purchases_MWh[Energy purchased],Energy_Purchases_MWh[Year],a!E$200,Energy_Purchases_MWh[Quarter],"Q3",Energy_Purchases_MWh[Plant Name],$F143),IF($G$5="Q4",SUMIFS(Energy_Purchases_MWh[Energy purchased],Energy_Purchases_MWh[Year],a!E$200,Energy_Purchases_MWh[Quarter],"Q4",Energy_Purchases_MWh[Plant Name],$F143), IF($G$5="Calendar Year",SUMIFS(Energy_Purchases_MWh[Energy purchased],Energy_Purchases_MWh[Year],a!E$200,Energy_Purchases_MWh[Plant Name],$F143),""))))))/10^3,"") -> 4.615
F144: SM HYDRO | G144: =IFERROR(SUM(IF($G$5="Q1",SUMIFS(Energy_Purchases_MWh[Energy purchased],Energy_Purchases_MWh[Year],a!A$200,Energy_Purchases_MWh[Quarter],"Q1",Energy_Purchases_MWh[Plant Name],$F144),IF($G$5="Q2",SUMIFS(Energy_Purchases_MWh[Energy purchased],Energy_Purchases_MWh[Year],a!A$200,Energy_Purchases_MWh[Quarter],"Q2",Energy_Purchases_MWh[Plant Name],$F144),IF($G$5="Q3",SUMIFS(Energy_Purchases_MWh[Energy purchased],Energy_Purchases_MWh[Year],a!A$200,Energy_Purchases_MWh[Quarter],"Q3",Energy_Purchases_MWh[Plant Name],$F144),IF($G$5="Q4",SUMIFS(Energy_Purchases_MWh[Energy purchased],Energy_Purchases_MWh[Year],a!A$200,Energy_Purchases_MWh[Quarter],"Q4",Energy_Purchases_MWh[Plant Name],$F144), IF($G$5="Calendar Year",SUMIFS(Energy_Purchases_MWh[Energy purchased],Energy_Purchases_MWh[Year],a!A$200,Energy_Purchases_MWh[Plant Name],$F144),""))))))/10^3,"") -> 0 | H144: =IFERROR(SUM(IF($G$5="Q1",SUMIFS(Energy_Purchases_MWh[Energy purchased],Energy_Purchases_MWh[Year],a!B$200,Energy_Purchases_MWh[Quarter],"Q1",Energy_Purchases_MWh[Plant Name],$F144),IF($G$5="Q2",SUMIFS(Energy_Purchases_MWh[Energy purchased],Energy_Purchases_MWh[Year],a!B$200,Energy_Purchases_MWh[Quarter],"Q2",Energy_Purchases_MWh[Plant Name],$F144),IF($G$5="Q3",SUMIFS(Energy_Purchases_MWh[Energy purchased],Energy_Purchases_MWh[Year],a!B$200,Energy_Purchases_MWh[Quarter],"Q3",Energy_Purchases_MWh[Plant Name],$F144),IF($G$5="Q4",SUMIFS(Energy_Purchases_MWh[Energy purchased],Energy_Purchases_MWh[Year],a!B$200,Energy_Purchases_MWh[Quarter],"Q4",Energy_Purchases_MWh[Plant Name],$F144), IF($G$5="Calendar Year",SUMIFS(Energy_Purchases_MWh[Energy purchased],Energy_Purchases_MWh[Year],a!B$200,Energy_Purchases_MWh[Plant Name],$F144),""))))))/10^3,"") -> 0 | I144: =IFERROR(SUM(IF($G$5="Q1",SUMIFS(Energy_Purchases_MWh[Energy purchased],Energy_Purchases_MWh[Year],a!C$200,Energy_Purchases_MWh[Quarter],"Q1",Energy_Purchases_MWh[Plant Name],$F144),IF($G$5="Q2",SUMIFS(Energy_Purchases_MWh[Energy purchased],Energy_Purchases_MWh[Year],a!C$200,Energy_Purchases_MWh[Quarter],"Q2",Energy_Purchases_MWh[Plant Name],$F144),IF($G$5="Q3",SUMIFS(Energy_Purchases_MWh[Energy purchased],Energy_Purchases_MWh[Year],a!C$200,Energy_Purchases_MWh[Quarter],"Q3",Energy_Purchases_MWh[Plant Name],$F144),IF($G$5="Q4",SUMIFS(Energy_Purchases_MWh[Energy purchased],Energy_Purchases_MWh[Year],a!C$200,Energy_Purchases_MWh[Quarter],"Q4",Energy_Purchases_MWh[Plant Name],$F144), IF($G$5="Calendar Year",SUMIFS(Energy_Purchases_MWh[Energy purchased],Energy_Purchases_MWh[Year],a!C$200,Energy_Purchases_MWh[Plant Name],$F144),""))))))/10^3,"") -> 2.6096 | J144: =IFERROR(SUM(IF($G$5="Q1",SUMIFS(Energy_Purchases_MWh[Energy purchased],Energy_Purchases_MWh[Year],a!D$200,Energy_Purchases_MWh[Quarter],"Q1",Energy_Purchases_MWh[Plant Name],$F144),IF($G$5="Q2",SUMIFS(Energy_Purchases_MWh[Energy purchased],Energy_Purchases_MWh[Year],a!D$200,Energy_Purchases_MWh[Quarter],"Q2",Energy_Purchases_MWh[Plant Name],$F144),IF($G$5="Q3",SUMIFS(Energy_Purchases_MWh[Energy purchased],Energy_Purchases_MWh[Year],a!D$200,Energy_Purchases_MWh[Quarter],"Q3",Energy_Purchases_MWh[Plant Name],$F144),IF($G$5="Q4",SUMIFS(Energy_Purchases_MWh[Energy purchased],Energy_Purchases_MWh[Year],a!D$200,Energy_Purchases_MWh[Quarter],"Q4",Energy_Purchases_MWh[Plant Name],$F144), IF($G$5="Calendar Year",SUMIFS(Energy_Purchases_MWh[Energy purchased],Energy_Purchases_MWh[Year],a!D$200,Energy_Purchases_MWh[Plant Name],$F144),""))))))/10^3,"") -> 0 | K144: =IFERROR(SUM(IF($G$5="Q1",SUMIFS(Energy_Purchases_MWh[Energy purchased],Energy_Purchases_MWh[Year],a!E$200,Energy_Purchases_MWh[Quarter],"Q1",Energy_Purchases_MWh[Plant Name],$F144),IF($G$5="Q2",SUMIFS(Energy_Purchases_MWh[Energy purchased],Energy_Purchases_MWh[Year],a!E$200,Energy_Purchases_MWh[Quarter],"Q2",Energy_Purchases_MWh[Plant Name],$F144),IF($G$5="Q3",SUMIFS(Energy_Purchases_MWh[Energy purchased],Energy_Purchases_MWh[Year],a!E$200,Energy_Purchases_MWh[Quarter],"Q3",Energy_Purchases_MWh[Plant Name],$F144),IF($G$5="Q4",SUMIFS(Energy_Purchases_MWh[Energy purchased],Energy_Purchases_MWh[Year],a!E$200,Energy_Purchases_MWh[Quarter],"Q4",Energy_Purchases_MWh[Plant Name],$F144), IF($G$5="Calendar Year",SUMIFS(Energy_Purchases_MWh[Energy purchased],Energy_Purchases_MWh[Year],a!E$200,Energy_Purchases_MWh[Plant Name],$F144),""))))))/10^3,"") -> 1.994
